Workbook

Sheet Summary
B2: =C5&" - "&C7&" - Version "&TEXT(C8,"#.0#") -> Fairways at Mill Creek - Franklin, NC - Version 1.0 | I2: Summary
B4: General Info and Timing | E4: Returns | F4: Cash Outflow | G4: Profit | H4: IRR | I4: MOIC
B5: Property | C5: Fairways at Mill Creek | E5: Unlevered Returns | F5: =-G15 -> -12897752.73 | G5: =MonthlyCF!H257 -> 21837669.11 | H5: =MonthlyCF!F257 -> 0.2176205337 | I5: =MonthlyCF!G257 -> 3.019508014
B6: Address | C6: 341 Country Club Drive | E6: Levered Returns | F6: =-G14 -> -1177560 | G6: =MonthlyCF!H258 -> 16717353.67 | H6: =MonthlyCF!F258 -> 0.7400084138 | I6: =MonthlyCF!G258 -> 7.296856127
B7: City, State | C7: Franklin, NC | E7: Limited Partner | F7: ='Waterfall - IRR Hurdles'!F5 -> -2389385.75 | G7: ='Waterfall - IRR Hurdles'!G5 -> 11796189.02 | H7: ='Waterfall - IRR Hurdles'!H5 -> 0.6641188323 | I7: ='Waterfall - IRR Hurdles'!I5 -> 5.936912768
B8: Version | C8: 1 | E8: Sponsor | F8: ='Waterfall - IRR Hurdles'!F6 -> -265487.3056 | G8: ='Waterfall - IRR Hurdles'!G6 -> 4921164.651 | H8: ='Waterfall - IRR Hurdles'!H6 -> 1.181728804 | I8: ='Waterfall - IRR Hurdles'!I6 -> 19.53634636
B9: Rooms / Keys | C9: 45
B10: GSF | C10: 40000 | E10: Sources & Uses | G10: Total | H10: Per Key | I10: Per GSF
E11: Sources | G11: =SUM(G12:G14) -> 13017752.73 | H11: =G11/$C$9 -> 289283.3939 | I11: =G11/$C$10 -> 325.4438182
B12: Timing | E12: =IF(C36="off","Debt","Senior Debt") -> Senior Debt | G12: =C51 -> 8284554.576 | H12: =G12/$C$9 -> 184101.2128 | I12: =G12/$C$10 -> 207.1138644
B13: Analysis/Development Start Date | C13: =EOMONTH(DATE(C15,C14,1),0) -> 2026-01-31 | E13: Mezz Debt | G13: =C40 -> 3555638.151 | H13: =G13/$C$9 -> 79014.18114 | I13: =G13/$C$10 -> 88.89095378
B14: Month | C14: 1 | E14: Equity | G14: =C35 -> 1177560 | H14: =G14/$C$9 -> 26167.99999 | I14: =G14/$C$10 -> 29.43899999
B15: Year | C15: 2026 | E15: Uses | G15: =SUM(G16:G22) -> 12897752.73 | H15: 286616.7274 | I15: 322.4438183
B16: Development Completion | C16: =MAX(MonthlyCF!I9:I159) -> 2029-03-31 | E16: =Budget!D9 -> Acquisition / Land Purchase | G16: =Budget!F9 -> 2820600 | H16: 62680 | I16: 70.515
B17: Operation Start Date | C17: =EOMONTH(DATE(C19,C18,1),0) -> 2028-04-30 | E17: =Budget!D10 -> Soft Costs | G17: =Budget!F10 -> 750000 | H17: 16666.66667 | I17: 18.75
B18: Month | C18: 4 | E18: =Budget!D11 -> Hard Costs | G18: =Budget!F11 -> 6950000 | H18: 154444.4444 | I18: 173.75
B19: Year | C19: 2028 | E19: =Budget!D12 -> FF&E & OS&E | G19: =Budget!F12 -> 390000 | H19: 8666.666667 | I19: 9.75
B20: Hold Period From Operating Start Date | C20: 5 | E20: =Budget!D13 -> Interest Reserve + Loan Fees | G20: =Budget!F13 -> 1242152.731 | H20: 27603.39402 | I20: 31.05381827
B21: Exit Date | C21: =EOMONTH(C17,(C20*12)-1) -> 2033-03-31 | E21: =Budget!D14 -> Marketing | G21: =Budget!F14 -> 50000 | H21: 1111.111111 | I21: 1.25
B22: Total Investment Period | C22: =DATEDIF(C13,C21,"y") -> 7 | E22: =Budget!D15 -> Contingency | G22: =Budget!F15 -> 695000 | H22: 15444.44444 | I22: 17.375
B24: Exit Assumptions | E24: Property Metrics | F24: Total | G24: Per Key
B25: Exit Cap Rate | C25: 0.07 | E25: Development Costs
B26: Sale Price | C26: =SUM(MonthlyCF!Q250:GN250) -> 26609932.88 | E26: Total Debt | F26: =G12+G13 -> 11840192.73 | G26: =F26/$C$9 -> 263115.3939
B27: Sale Expenses | C27: 0.03 | E27: Total Equity | F27: =G14 -> 1177560 | G27: =F27/$C$9 -> 26167.99999
C28: =MonthlyCF!N251 -> 798297.9864 | E28: Exit
B29: Net Unlevered Proceeds From Sale | C29: =C26-C28 -> 25811634.89 | E29: Sale Price | F29: =C26 -> 26609932.88 | G29: =F29/$C$9 -> 591331.8418
E30: Net Sales Proceeds - (Unlevered) | F30: =C29 -> 25811634.89 | G30: =F30/$C$9 -> 573591.8865
B31: Construction Financing | E31: Net Sales Proceeds - (Levered) | F31: =C29-G47 -> 11614108.99 | G31: =F31/$C$9 -> 258091.311
B32: Total Project Costs Pre-Interest Reserve | C32: =MonthlyCF!N188 -> 11775600
B33: Total Project Costs | C33: =MonthlyCF!N191 -> 13017752.73 | E33: Refinancing Assumptions @ Stabilization
B34: ETC | C34: =1-C49-C38 -> 0.09045800948 | E34: =IF(G34>=C16,"Stabilization/Disbursement Date","Stabilization/Disbursement Date is Too Early") -> Stabilization/Disbursement Date | G34: 2029-04-30
B35: Equity | C35: =C32*(1-C48-IF(C36="off",0,C37)) -> 1177560 | E35: Occupancy at Stabilization | G35: =INDEX(OpCashFlow!$E$6:$E$17,MATCH(Summary!G34,OpCashFlow!F6:F17,0)) -> 0.654
B36: MEZZ DEBT | C36: On | E36: Value at refi | G36: =(SUMIF(MonthlyCF!$P$8:$GN$8,">="&Summary!$G$34,MonthlyCF!$P$237:$GN$237)-SUMIF(MonthlyCF!$P$8:$GN$8,">="&EDATE(Summary!$G$34,12),MonthlyCF!$P$237:$GN$237))/G37 -> 23338438.55
B37: LTC Control | C37: 0.25 | E37: Going in Cap Rate | G37: 0.07
B38: LTC with Interest Reserve | C38: =IF(C36="on",C40/$C$33,0) -> 0.2731376318 | E38: Loan Amount | G38: =G39*G36 -> 15169985.06
B39: Debt Pre-Interest Reserve | C39: =IF(C36="on",$C$32*C37,0) -> 2943899.999 | E39: LTV | G39: 0.65
B40: Debt | C40: =IF(C36="on",MonthlyCF!D213,0) -> 3555638.151 | E40: Interest Rate | G40: 0.0635
B41: Loan Fee (% of Loan) | C41: =IF(C36="on",C42/C40,0) -> 0.0299524292 | E41: Loan Fees | G41: 0.02
B42: Dial-In Loan Fee/Closing Costs | C42: 106500 | E42: Interest Only Period (Months) | G42: 6
B43: Interest Rate | C43: 500 | E43: Amortization Period (Years) | G43: 25
B44: Go to Row 217 in the 'CF' sheet to input LIBOR curve forecast manually | E44: Loan Disbursal Amount | G44: =G38*(1-G41) -> 14866585.36
B45: Floor | C45: 0.03 | E45: I/O Payments (Monthly) | G45: =G40*G38/12 -> 80274.50427
B46: Ceiling | C46: 0.05 | E46: Amortization Payments (monthly) | G46: =PMT(G40/12,G43*12,-G38) -> 101011.514
B47: =IF(C36="off","CONSTRUCTION DEBT","SENIOR DEBT") -> SENIOR DEBT | E47: Loan Balance Repayment | G47: =FV(G40/12,(C20*12-DATEDIF(C17,G34,"m")-G42),G46,-G38) -> 14197525.9
B48: LTC Control | C48: 0.65 | E48: Min DSCR | G48: =MIN(MonthlyCF!S278:AG278) -> 1.355029787
B49: LTC with Interest Reserve | C49: =C51/$C$33 -> 0.6364043587 | E49: Average Debt Yield | G49: =AVERAGE(MonthlyCF!S294:AG294) -> 0.08967431146
B50: Debt Pre-Interest Reserve | C50: =$C$32*C48 -> 7654139.997
B51: Debt | C51: =$C$33-$C$35-C40 -> 8284554.576 | E51: Sensitivity Matrix - Hold Period Impact on Unlevered Returns
B52: Loan Fee (% of Loan) | C52: =C53/C51 -> 0.02003728728 | F52: Unlevered
B53: Dial-In Loan Fee/Closing Costs | C53: 166000 | F53: IRR | G53: MOIC
B54: Interest Rate | C54: 250 | E54: 1 | F54: =INDEX(MonthlyCF!$N$311:$N$320,MATCH(Summary!E54,MonthlyCF!$O$311:$O$320,0)) -> 0.3945546567 | G54: =INDEX(MonthlyCF!$M$311:$M$320,MATCH(Summary!E54,MonthlyCF!$O$311:$O$320,0)) -> 2.101542696
B55: Go to Row 221 in the 'MonthlyCF' sheet to input LIBOR curve forecast manually | E55: 3 | F55: =INDEX(MonthlyCF!$N$311:$N$320,MATCH(Summary!E55,MonthlyCF!$O$311:$O$320,0)) -> 0.2622204363 | G55: =INDEX(MonthlyCF!$M$311:$M$320,MATCH(Summary!E55,MonthlyCF!$O$311:$O$320,0)) -> 2.556562603
B56: Floor | C56: 0.03 | E56: 5 | F56: =INDEX(MonthlyCF!$N$311:$N$320,MATCH(Summary!E56,MonthlyCF!$O$311:$O$320,0)) -> 0.2176205337 | G56: =INDEX(MonthlyCF!$M$311:$M$320,MATCH(Summary!E56,MonthlyCF!$O$311:$O$320,0)) -> 3.019508014
B57: Ceiling | C57: 0.05 | E57: 7 | F57: =INDEX(MonthlyCF!$N$311:$N$320,MATCH(Summary!E57,MonthlyCF!$O$311:$O$320,0)) -> 0.1967979133 | G57: =INDEX(MonthlyCF!$M$311:$M$320,MATCH(Summary!E57,MonthlyCF!$O$311:$O$320,0)) -> 3.527013812
B58: Percent of Available Operating Cash Flow to Pay Int. | C58: 1 | E58: 10 | F58: =INDEX(MonthlyCF!$N$311:$N$320,MATCH(Summary!E58,MonthlyCF!$O$311:$O$320,0)) -> 0.1798081219 | G58: =INDEX(MonthlyCF!$M$311:$M$320,MATCH(Summary!E58,MonthlyCF!$O$311:$O$320,0)) -> 4.32751936
B60: Disclaimer: Any information important to you or another party should be independently confirmed within an applicable due diligence period.
C68: On
C69: Off
B79: 1 | C79: Discount Rate | E79: IRR
B80: 2 | C80: Cap Rate on Yr 1 NOI | E80: MOIC
B81: 3 | C81: Custom Input | E81: Profit
B82: 4
B83: 5
B84: 6
B85: 7
B86: 8
B87: 9
B88: 10
B91: 1
B92: 2
B93: 3
B94: 4
B95: 5
B96: 6
B97: 7
B98: 8
B99: 9
B100: 10
B101: 11
B102: 12
B123: Date | C123: =IF(C124+C125+C126=0,"",MonthlyCF!P8) -> 2026-01-31 | D123: =IF(D124+D125+D126=0,"",MonthlyCF!Q8) -> 2026-02-28 | E123: =IF(E124+E125+E126=0,"",MonthlyCF!R8) -> 2026-03-31 | F123: =IF(F124+F125+F126=0,"",MonthlyCF!S8) -> 2026-04-30 | G123: =IF(G124+G125+G126=0,"",MonthlyCF!T8) -> 2026-05-31 | H123: =IF(H124+H125+H126=0,"",MonthlyCF!U8) -> 2026-06-30 | I123: =IF(I124+I125+I126=0,"",MonthlyCF!V8) -> 2026-07-31 | J123: =IF(J124+J125+J126=0,"",MonthlyCF!W8) -> 2026-08-31 | K123: =IF(K124+K125+K126=0,"",MonthlyCF!X8) -> 2026-09-30 | L123: =IF(L124+L125+L126=0,"",MonthlyCF!Y8) -> 2026-10-31 | M123: =IF(M124+M125+M126=0,"",MonthlyCF!Z8) -> 2026-11-30 | N123: =IF(N124+N125+N126=0,"",MonthlyCF!AA8) -> 2026-12-31 | O123: =IF(O124+O125+O126=0,"",MonthlyCF!AB8) -> 2027-01-31 | P123: =IF(P124+P125+P126=0,"",MonthlyCF!AC8) -> 2027-02-28 | Q123: =IF(Q124+Q125+Q126=0,"",MonthlyCF!AD8) -> 2027-03-31 | R123: =IF(R124+R125+R126=0,"",MonthlyCF!AE8) -> 2027-04-30 | S123: =IF(S124+S125+S126=0,"",MonthlyCF!AF8) -> 2027-05-31 | T123: =IF(T124+T125+T126=0,"",MonthlyCF!AG8) -> 2027-06-30 | U123: =IF(U124+U125+U126=0,"",MonthlyCF!AH8) -> 2027-07-31 | V123: =IF(V124+V125+V126=0,"",MonthlyCF!AI8) -> 2027-08-31 | W123: =IF(W124+W125+W126=0,"",MonthlyCF!AJ8) -> 2027-09-30 | X123: =IF(X124+X125+X126=0,"",MonthlyCF!AK8) -> 2027-10-31 | Y123: =IF(Y124+Y125+Y126=0,"",MonthlyCF!AL8) -> 2027-11-30 | Z123: =IF(Z124+Z125+Z126=0,"",MonthlyCF!AM8) -> 2027-12-31 | AA123: =IF(AA124+AA125+AA126=0,"",MonthlyCF!AN8) -> 2028-01-31 | AB123: =IF(AB124+AB125+AB126=0,"",MonthlyCF!AO8) -> 2028-02-29 | AC123: =IF(AC124+AC125+AC126=0,"",MonthlyCF!AP8) -> 2028-03-31 | AD123: =IF(AD124+AD125+AD126=0,"",MonthlyCF!AQ8) -> 2028-04-30 | AE123: =IF(AE124+AE125+AE126=0,"",MonthlyCF!AR8) -> 2028-05-31 | AF123: =IF(AF124+AF125+AF126=0,"",MonthlyCF!AS8) -> 2028-06-30 | AG123: =IF(AG124+AG125+AG126=0,"",MonthlyCF!AT8) -> 2028-07-31 | AH123: =IF(AH124+AH125+AH126=0,"",MonthlyCF!AU8) -> 2028-08-31 | AI123: =IF(AI124+AI125+AI126=0,"",MonthlyCF!AV8) -> 2028-09-30 | AJ123: =IF(AJ124+AJ125+AJ126=0,"",MonthlyCF!AW8) -> 2028-10-31 | AK123: =IF(AK124+AK125+AK126=0,"",MonthlyCF!AX8) -> 2028-11-30 | AL123: =IF(AL124+AL125+AL126=0,"",MonthlyCF!AY8) -> 2028-12-31 | AM123: =IF(AM124+AM125+AM126=0,"",MonthlyCF!AZ8) -> 2029-01-31 | AN123: =IF(AN124+AN125+AN126=0,"",MonthlyCF!BA8) -> 2029-02-28 | AO123: =IF(AO124+AO125+AO126=0,"",MonthlyCF!BB8) -> 2029-03-31 | AP123: =IF(AP124+AP125+AP126=0,"",MonthlyCF!BC8) -> 2029-04-30 | AQ123: =IF(AQ124+AQ125+AQ126=0,"",MonthlyCF!BD8) ->  | AR123: =IF(AR124+AR125+AR126=0,"",MonthlyCF!BE8) ->  | AS123: =IF(AS124+AS125+AS126=0,"",MonthlyCF!BF8) ->  | AT123: =IF(AT124+AT125+AT126=0,"",MonthlyCF!BG8) ->  | AU123: =IF(AU124+AU125+AU126=0,"",MonthlyCF!BH8) ->  | AV123: =IF(AV124+AV125+AV126=0,"",MonthlyCF!BI8) ->  | AW123: =IF(AW124+AW125+AW126=0,"",MonthlyCF!BJ8) ->  | AX123: =IF(AX124+AX125+AX126=0,"",MonthlyCF!BK8) ->  | AY123: =IF(AY124+AY125+AY126=0,"",MonthlyCF!BL8) ->  | AZ123: =IF(AZ124+AZ125+AZ126=0,"",MonthlyCF!BM8) ->  | BA123: =IF(BA124+BA125+BA126=0,"",MonthlyCF!BN8) ->  | BB123: =IF(BB124+BB125+BB126=0,"",MonthlyCF!BO8) ->  | BC123: =IF(BC124+BC125+BC126=0,"",MonthlyCF!BP8) ->  | BD123: =IF(BD124+BD125+BD126=0,"",MonthlyCF!BQ8) ->  | BE123: =IF(BE124+BE125+BE126=0,"",MonthlyCF!BR8) ->  | BF123: =IF(BF124+BF125+BF126=0,"",MonthlyCF!BS8) ->  | BG123: =IF(BG124+BG125+BG126=0,"",MonthlyCF!BT8) ->  | BH123: =IF(BH124+BH125+BH126=0,"",MonthlyCF!BU8) ->  | BI123: =IF(BI124+BI125+BI126=0,"",MonthlyCF!BV8) ->  | BJ123: =IF(BJ124+BJ125+BJ126=0,"",MonthlyCF!BW8) ->  | BK123: =IF(BK124+BK125+BK126=0,"",MonthlyCF!BX8) ->  | BL123: =IF(BL124+BL125+BL126=0,"",MonthlyCF!BY8) ->  | BM123: =IF(BM124+BM125+BM126=0,"",MonthlyCF!BZ8) ->  | BN123: =IF(BN124+BN125+BN126=0,"",MonthlyCF!CA8) ->  | BO123: =IF(BO124+BO125+BO126=0,"",MonthlyCF!CB8) ->  | BP123: =IF(BP124+BP125+BP126=0,"",MonthlyCF!CC8) ->  | BQ123: =IF(BQ124+BQ125+BQ126=0,"",MonthlyCF!CD8) ->  | BR123: =IF(BR124+BR125+BR126=0,"",MonthlyCF!CE8) ->  | BS123: =IF(BS124+BS125+BS126=0,"",MonthlyCF!CF8) ->  | BT123: =IF(BT124+BT125+BT126=0,"",MonthlyCF!CG8) ->  | BU123: =IF(BU124+BU125+BU126=0,"",MonthlyCF!CH8) ->  | BV123: =IF(BV124+BV125+BV126=0,"",MonthlyCF!CI8) ->  | BW123: =IF(BW124+BW125+BW126=0,"",MonthlyCF!CJ8) ->  | BX123: =IF(BX124+BX125+BX126=0,"",MonthlyCF!CK8) ->  | BY123: =IF(BY124+BY125+BY126=0,"",MonthlyCF!CL8) ->  | BZ123: =IF(BZ124+BZ125+BZ126=0,"",MonthlyCF!CM8) ->  | CA123: =IF(CA124+CA125+CA126=0,"",MonthlyCF!CN8) ->  | CB123: =IF(CB124+CB125+CB126=0,"",MonthlyCF!CO8) ->  | CC123: =IF(CC124+CC125+CC126=0,"",MonthlyCF!CP8) ->  | CD123: =IF(CD124+CD125+CD126=0,"",MonthlyCF!CQ8) ->  | CE123: =IF(CE124+CE125+CE126=0,"",MonthlyCF!CR8) ->  | CF123: =IF(CF124+CF125+CF126=0,"",MonthlyCF!CS8) ->  | CG123: =IF(CG124+CG125+CG126=0,"",MonthlyCF!CT8) ->  | CH123: =IF(CH124+CH125+CH126=0,"",MonthlyCF!CU8) ->  | CI123: =IF(CI124+CI125+CI126=0,"",MonthlyCF!CV8) ->  | CJ123: =IF(CJ124+CJ125+CJ126=0,"",MonthlyCF!CW8) ->  | CK123: =IF(CK124+CK125+CK126=0,"",MonthlyCF!CX8) ->  | CL123: =IF(CL124+CL125+CL126=0,"",MonthlyCF!CY8) ->  | CM123: =IF(CM124+CM125+CM126=0,"",MonthlyCF!CZ8) ->  | CN123: =IF(CN124+CN125+CN126=0,"",MonthlyCF!DA8) ->  | CO123: =IF(CO124+CO125+CO126=0,"",MonthlyCF!DB8) ->  | CP123: =IF(CP124+CP125+CP126=0,"",MonthlyCF!DC8) ->  | CQ123: =IF(CQ124+CQ125+CQ126=0,"",MonthlyCF!DD8) ->  | CR123: =IF(CR124+CR125+CR126=0,"",MonthlyCF!DE8) ->  | CS123: =IF(CS124+CS125+CS126=0,"",MonthlyCF!DF8) ->  | CT123: =IF(CT124+CT125+CT126=0,"",MonthlyCF!DG8) ->  | CU123: =IF(CU124+CU125+CU126=0,"",MonthlyCF!DH8) ->  | CV123: =IF(CV124+CV125+CV126=0,"",MonthlyCF!DI8) ->  | CW123: =IF(CW124+CW125+CW126=0,"",MonthlyCF!DJ8) ->  | CX123: =IF(CX124+CX125+CX126=0,"",MonthlyCF!DK8) ->  | CY123: =IF(CY124+CY125+CY126=0,"",MonthlyCF!DL8) ->  | CZ123: =IF(CZ124+CZ125+CZ126=0,"",MonthlyCF!DM8) ->  | DA123: =IF(DA124+DA125+DA126=0,"",MonthlyCF!DN8) ->  | DB123: =IF(DB124+DB125+DB126=0,"",MonthlyCF!DO8) ->  | DC123: =IF(DC124+DC125+DC126=0,"",MonthlyCF!DP8) ->  | DD123: =IF(DD124+DD125+DD126=0,"",MonthlyCF!DQ8) ->  | DE123: =IF(DE124+DE125+DE126=0,"",MonthlyCF!DR8) ->  | DF123: =IF(DF124+DF125+DF126=0,"",MonthlyCF!DS8) ->  | DG123: =IF(DG124+DG125+DG126=0,"",MonthlyCF!DT8) ->  | DH123: =IF(DH124+DH125+DH126=0,"",MonthlyCF!DU8) ->  | DI123: =IF(DI124+DI125+DI126=0,"",MonthlyCF!DV8) ->  | DJ123: =IF(DJ124+DJ125+DJ126=0,"",MonthlyCF!DW8) ->  | DK123: =IF(DK124+DK125+DK126=0,"",MonthlyCF!DX8) ->  | DL123: =IF(DL124+DL125+DL126=0,"",MonthlyCF!DY8) ->  | DM123: =IF(DM124+DM125+DM126=0,"",MonthlyCF!DZ8) ->  | DN123: =IF(DN124+DN125+DN126=0,"",MonthlyCF!EA8) ->  | DO123: =IF(DO124+DO125+DO126=0,"",MonthlyCF!EB8) ->  | DP123: =IF(DP124+DP125+DP126=0,"",MonthlyCF!EC8) ->  | DQ123: =IF(DQ124+DQ125+DQ126=0,"",MonthlyCF!ED8) ->  | DR123: =IF(DR124+DR125+DR126=0,"",MonthlyCF!EE8) ->  | DS123: =IF(DS124+DS125+DS126=0,"",MonthlyCF!EF8) ->  | DT123: =IF(DT124+DT125+DT126=0,"",MonthlyCF!EG8) ->  | DU123: =IF(DU124+DU125+DU126=0,"",MonthlyCF!EH8) ->  | DV123: =IF(DV124+DV125+DV126=0,"",MonthlyCF!EI8) ->  | DW123: =IF(DW124+DW125+DW126=0,"",MonthlyCF!EJ8) ->  | DX123: =IF(DX124+DX125+DX126=0,"",MonthlyCF!EK8) ->  | DY123: =IF(DY124+DY125+DY126=0,"",MonthlyCF!EL8) ->  | DZ123: =IF(DZ124+DZ125+DZ126=0,"",MonthlyCF!EM8) ->  | EA123: =IF(EA124+EA125+EA126=0,"",MonthlyCF!EN8) ->  | EB123: =IF(EB124+EB125+EB126=0,"",MonthlyCF!EO8) ->  | EC123: =IF(EC124+EC125+EC126=0,"",MonthlyCF!EP8) ->  | ED123: =IF(ED124+ED125+ED126=0,"",MonthlyCF!EQ8) ->  | EE123: =IF(EE124+EE125+EE126=0,"",MonthlyCF!ER8) ->  | EF123: =IF(EF124+EF125+EF126=0,"",MonthlyCF!ES8) ->  | EG123: =IF(EG124+EG125+EG126=0,"",MonthlyCF!ET8) ->  | EH123: =IF(EH124+EH125+EH126=0,"",MonthlyCF!EU8) ->  | EI123: =IF(EI124+EI125+EI126=0,"",MonthlyCF!EV8) ->  | EJ123: =IF(EJ124+EJ125+EJ126=0,"",MonthlyCF!EW8) ->  | EK123: =IF(EK124+EK125+EK126=0,"",MonthlyCF!EX8) ->  | EL123: =IF(EL124+EL125+EL126=0,"",MonthlyCF!EY8) ->  | EM123: =IF(EM124+EM125+EM126=0,"",MonthlyCF!EZ8) ->  | EN123: =IF(EN124+EN125+EN126=0,"",MonthlyCF!FA8) ->  | EO123: =IF(EO124+EO125+EO126=0,"",MonthlyCF!FB8) ->  | EP123: =IF(EP124+EP125+EP126=0,"",MonthlyCF!FC8) ->  | EQ123: =IF(EQ124+EQ125+EQ126=0,"",MonthlyCF!FD8) ->  | ER123: =IF(ER124+ER125+ER126=0,"",MonthlyCF!FE8) ->  | ES123: =IF(ES124+ES125+ES126=0,"",MonthlyCF!FF8) ->  | ET123: =IF(ET124+ET125+ET126=0,"",MonthlyCF!FG8) ->  | EU123: =IF(EU124+EU125+EU126=0,"",MonthlyCF!FH8) ->  | EV123: =IF(EV124+EV125+EV126=0,"",MonthlyCF!FI8) ->  | EW123: =IF(EW124+EW125+EW126=0,"",MonthlyCF!FJ8) ->  | EX123: =IF(EX124+EX125+EX126=0,"",MonthlyCF!FK8) ->  | EY123: =IF(EY124+EY125+EY126=0,"",MonthlyCF!FL8) ->  | EZ123: =IF(EZ124+EZ125+EZ126=0,"",MonthlyCF!FM8) ->  | FA123: =IF(FA124+FA125+FA126=0,"",MonthlyCF!FN8) ->  | FB123: =IF(FB124+FB125+FB126=0,"",MonthlyCF!FO8) ->  | FC123: =IF(FC124+FC125+FC126=0,"",MonthlyCF!FP8) ->  | FD123: =IF(FD124+FD125+FD126=0,"",MonthlyCF!FQ8) ->  | FE123: =IF(FE124+FE125+FE126=0,"",MonthlyCF!FR8) ->  | FF123: =IF(FF124+FF125+FF126=0,"",MonthlyCF!FS8) ->  | FG123: =IF(FG124+FG125+FG126=0,"",MonthlyCF!FT8) ->  | FH123: =IF(FH124+FH125+FH126=0,"",MonthlyCF!FU8) ->  | FI123: =IF(FI124+FI125+FI126=0,"",MonthlyCF!FV8) ->  | FJ123: =IF(FJ124+FJ125+FJ126=0,"",MonthlyCF!FW8) ->  | FK123: =IF(FK124+FK125+FK126=0,"",MonthlyCF!FX8) ->  | FL123: =IF(FL124+FL125+FL126=0,"",MonthlyCF!FY8) ->  | FM123: =IF(FM124+FM125+FM126=0,"",MonthlyCF!FZ8) ->  | FN123: =IF(FN124+FN125+FN126=0,"",MonthlyCF!GA8) ->  | FO123: =IF(FO124+FO125+FO126=0,"",MonthlyCF!GB8) ->  | FP123: =IF(FP124+FP125+FP126=0,"",MonthlyCF!GC8) ->  | FQ123: =IF(FQ124+FQ125+FQ126=0,"",MonthlyCF!GD8) ->  | FR123: =IF(FR124+FR125+FR126=0,"",MonthlyCF!GE8) ->  | FS123: =IF(FS124+FS125+FS126=0,"",MonthlyCF!GF8) ->  | FT123: =IF(FT124+FT125+FT126=0,"",MonthlyCF!GG8) ->  | FU123: =IF(FU124+FU125+FU126=0,"",MonthlyCF!GH8) ->  | FV123: =IF(FV124+FV125+FV126=0,"",MonthlyCF!GI8) ->  | FW123: =IF(FW124+FW125+FW126=0,"",MonthlyCF!GJ8) ->  | FX123: =IF(FX124+FX125+FX126=0,"",MonthlyCF!GK8) ->  | FY123: =IF(FY124+FY125+FY126=0,"",MonthlyCF!GL8) ->  | FZ123: =IF(FZ124+FZ125+FZ126=0,"",MonthlyCF!GM8) ->  | GA123: =IF(GA124+GA125+GA126=0,"",MonthlyCF!GN8) -> 
B124: ="Equity - "&TEXT(SUM(C124:GA124),"$#,###.0,,")&" MM" -> Equity - $1.2 MM | C124: =MonthlyCF!P196 -> 1177560 | D124: =MonthlyCF!Q196 -> 0 | E124: =MonthlyCF!R196 -> 0 | F124: =MonthlyCF!S196 -> 0 | G124: =MonthlyCF!T196 -> 0 | H124: =MonthlyCF!U196 -> 0 | I124: =MonthlyCF!V196 -> 0 | J124: =MonthlyCF!W196 -> 0 | K124: =MonthlyCF!X196 -> 0 | L124: =MonthlyCF!Y196 -> 0 | M124: =MonthlyCF!Z196 -> 0 | N124: =MonthlyCF!AA196 -> 0 | O124: =MonthlyCF!AB196 -> 0 | P124: =MonthlyCF!AC196 -> 0 | Q124: =MonthlyCF!AD196 -> 0 | R124: =MonthlyCF!AE196 -> 0 | S124: =MonthlyCF!AF196 -> 0 | T124: =MonthlyCF!AG196 -> 0 | U124: =MonthlyCF!AH196 -> 0 | V124: =MonthlyCF!AI196 -> 0 | W124: =MonthlyCF!AJ196 -> 0 | X124: =MonthlyCF!AK196 -> 0 | Y124: =MonthlyCF!AL196 -> 0 | Z124: =MonthlyCF!AM196 -> 0 | AA124: =MonthlyCF!AN196 -> 0 | AB124: =MonthlyCF!AO196 -> 0 | AC124: =MonthlyCF!AP196 -> 0 | AD124: =MonthlyCF!AQ196 -> 0 | AE124: =MonthlyCF!AR196 -> 0 | AF124: =MonthlyCF!AS196 -> 0 | AG124: =MonthlyCF!AT196 -> 0 | AH124: =MonthlyCF!AU196 -> 0 | AI124: =MonthlyCF!AV196 -> 0 | AJ124: =MonthlyCF!AW196 -> 0 | AK124: =MonthlyCF!AX196 -> 0 | AL124: =MonthlyCF!AY196 -> 0 | AM124: =MonthlyCF!AZ196 -> 0 | AN124: =MonthlyCF!BA196 -> 0 | AO124: =MonthlyCF!BB196 -> 0 | AP124: =MonthlyCF!BC196 -> 0 | AQ124: =MonthlyCF!BD196 -> 0 | AR124: =MonthlyCF!BE196 -> 0 | AS124: =MonthlyCF!BF196 -> 0 | AT124: =MonthlyCF!BG196 -> 0 | AU124: =MonthlyCF!BH196 -> 0 | AV124: =MonthlyCF!BI196 -> 0 | AW124: =MonthlyCF!BJ196 -> 0 | AX124: =MonthlyCF!BK196 -> 0 | AY124: =MonthlyCF!BL196 -> 0 | AZ124: =MonthlyCF!BM196 -> 0 | BA124: =MonthlyCF!BN196 -> 0 | BB124: =MonthlyCF!BO196 -> 0 | BC124: =MonthlyCF!BP196 -> 0 | BD124: =MonthlyCF!BQ196 -> 0 | BE124: =MonthlyCF!BR196 -> 0 | BF124: =MonthlyCF!BS196 -> 0 | BG124: =MonthlyCF!BT196 -> 0 | BH124: =MonthlyCF!BU196 -> 0 | BI124: =MonthlyCF!BV196 -> 0 | BJ124: =MonthlyCF!BW196 -> 0 | BK124: =MonthlyCF!BX196 -> 0 | BL124: =MonthlyCF!BY196 -> 0 | BM124: =MonthlyCF!BZ196 -> 0 | BN124: =MonthlyCF!CA196 -> 0 | BO124: =MonthlyCF!CB196 -> 0 | BP124: =MonthlyCF!CC196 -> 0 | BQ124: =MonthlyCF!CD196 -> 0 | BR124: =MonthlyCF!CE196 -> 0 | BS124: =MonthlyCF!CF196 -> 0 | BT124: =MonthlyCF!CG196 -> 0 | BU124: =MonthlyCF!CH196 -> 0 | BV124: =MonthlyCF!CI196 -> 0 | BW124: =MonthlyCF!CJ196 -> 0 | BX124: =MonthlyCF!CK196 -> 0 | BY124: =MonthlyCF!CL196 -> 0 | BZ124: =MonthlyCF!CM196 -> 0 | CA124: =MonthlyCF!CN196 -> 0 | CB124: =MonthlyCF!CO196 -> 0 | CC124: =MonthlyCF!CP196 -> 0 | CD124: =MonthlyCF!CQ196 -> 0 | CE124: =MonthlyCF!CR196 -> 0 | CF124: =MonthlyCF!CS196 -> 0 | CG124: =MonthlyCF!CT196 -> 0 | CH124: =MonthlyCF!CU196 -> 0 | CI124: =MonthlyCF!CV196 -> 0 | CJ124: =MonthlyCF!CW196 -> 0 | CK124: =MonthlyCF!CX196 -> 0 | CL124: =MonthlyCF!CY196 -> 0 | CM124: =MonthlyCF!CZ196 -> 0 | CN124: =MonthlyCF!DA196 -> 0 | CO124: =MonthlyCF!DB196 -> 0 | CP124: =MonthlyCF!DC196 -> 0 | CQ124: =MonthlyCF!DD196 -> 0 | CR124: =MonthlyCF!DE196 -> 0 | CS124: =MonthlyCF!DF196 -> 0 | CT124: =MonthlyCF!DG196 -> 0 | CU124: =MonthlyCF!DH196 -> 0 | CV124: =MonthlyCF!DI196 -> 0 | CW124: =MonthlyCF!DJ196 -> 0 | CX124: =MonthlyCF!DK196 -> 0 | CY124: =MonthlyCF!DL196 -> 0 | CZ124: =MonthlyCF!DM196 -> 0 | DA124: =MonthlyCF!DN196 -> 0 | DB124: =MonthlyCF!DO196 -> 0 | DC124: =MonthlyCF!DP196 -> 0 | DD124: =MonthlyCF!DQ196 -> 0 | DE124: =MonthlyCF!DR196 -> 0 | DF124: =MonthlyCF!DS196 -> 0 | DG124: =MonthlyCF!DT196 -> 0 | DH124: =MonthlyCF!DU196 -> 0 | DI124: =MonthlyCF!DV196 -> 0 | DJ124: =MonthlyCF!DW196 -> 0 | DK124: =MonthlyCF!DX196 -> 0 | DL124: =MonthlyCF!DY196 -> 0 | DM124: =MonthlyCF!DZ196 -> 0 | DN124: =MonthlyCF!EA196 -> 0 | DO124: =MonthlyCF!EB196 -> 0 | DP124: =MonthlyCF!EC196 -> 0 | DQ124: =MonthlyCF!ED196 -> 0 | DR124: =MonthlyCF!EE196 -> 0 | DS124: =MonthlyCF!EF196 -> 0 | DT124: =MonthlyCF!EG196 -> 0 | DU124: =MonthlyCF!EH196 -> 0 | DV124: =MonthlyCF!EI196 -> 0 | DW124: =MonthlyCF!EJ196 -> 0 | DX124: =MonthlyCF!EK196 -> 0 | DY124: =MonthlyCF!EL196 -> 0 | DZ124: =MonthlyCF!EM196 -> 0 | EA124: =MonthlyCF!EN196 -> 0 | EB124: =MonthlyCF!EO196 -> 0 | EC124: =MonthlyCF!EP196 -> 0 | ED124: =MonthlyCF!EQ196 -> 0 | EE124: =MonthlyCF!ER196 -> 0 | EF124: =MonthlyCF!ES196 -> 0 | EG124: =MonthlyCF!ET196 -> 0 | EH124: =MonthlyCF!EU196 -> 0 | EI124: =MonthlyCF!EV196 -> 0 | EJ124: =MonthlyCF!EW196 -> 0 | EK124: =MonthlyCF!EX196 -> 0 | EL124: =MonthlyCF!EY196 -> 0 | EM124: =MonthlyCF!EZ196 -> 0 | EN124: =MonthlyCF!FA196 -> 0 | EO124: =MonthlyCF!FB196 -> 0 | EP124: =MonthlyCF!FC196 -> 0 | EQ124: =MonthlyCF!FD196 -> 0 | ER124: =MonthlyCF!FE196 -> 0 | ES124: =MonthlyCF!FF196 -> 0 | ET124: =MonthlyCF!FG196 -> 0 | EU124: =MonthlyCF!FH196 -> 0 | EV124: =MonthlyCF!FI196 -> 0 | EW124: =MonthlyCF!FJ196 -> 0 | EX124: =MonthlyCF!FK196 -> 0 | EY124: =MonthlyCF!FL196 -> 0 | EZ124: =MonthlyCF!FM196 -> 0 | FA124: =MonthlyCF!FN196 -> 0 | FB124: =MonthlyCF!FO196 -> 0 | FC124: =MonthlyCF!FP196 -> 0 | FD124: =MonthlyCF!FQ196 -> 0 | FE124: =MonthlyCF!FR196 -> 0 | FF124: =MonthlyCF!FS196 -> 0 | FG124: =MonthlyCF!FT196 -> 0 | FH124: =MonthlyCF!FU196 -> 0 | FI124: =MonthlyCF!FV196 -> 0 | FJ124: =MonthlyCF!FW196 -> 0 | FK124: =MonthlyCF!FX196 -> 0 | FL124: =MonthlyCF!FY196 -> 0 | FM124: =MonthlyCF!FZ196 -> 0 | FN124: =MonthlyCF!GA196 -> 0 | FO124: =MonthlyCF!GB196 -> 0 | FP124: =MonthlyCF!GC196 -> 0 | FQ124: =MonthlyCF!GD196 -> 0 | FR124: =MonthlyCF!GE196 -> 0 | FS124: =MonthlyCF!GF196 -> 0 | FT124: =MonthlyCF!GG196 -> 0 | FU124: =MonthlyCF!GH196 -> 0 | FV124: =MonthlyCF!GI196 -> 0 | FW124: =MonthlyCF!GJ196 -> 0 | FX124: =MonthlyCF!GK196 -> 0 | FY124: =MonthlyCF!GL196 -> 0 | FZ124: =MonthlyCF!GM196 -> 0 | GA124: =MonthlyCF!GN196 -> 0
B125: ="Mezz Debt - "&TEXT(SUM(C125:GA125),"$#,###.0,,")&" MM" -> Mezz Debt - $3.6 MM | C125: =MonthlyCF!P201+MonthlyCF!P211+MonthlyCF!P212 -> 1764539.996 | D125: =MonthlyCF!Q201+MonthlyCF!Q211+MonthlyCF!Q212 -> 74659.82411 | E125: =MonthlyCF!R201+MonthlyCF!R211+MonthlyCF!R212 -> 82965.99487 | F125: =MonthlyCF!S201+MonthlyCF!S211+MonthlyCF!S212 -> 91111.28136 | G125: =MonthlyCF!T201+MonthlyCF!T211+MonthlyCF!T212 -> 99091.3554 | H125: =MonthlyCF!U201+MonthlyCF!U211+MonthlyCF!U212 -> 356394.7851 | I125: =MonthlyCF!V201+MonthlyCF!V211+MonthlyCF!V212 -> 353744.1855 | J125: =MonthlyCF!W201+MonthlyCF!W211+MonthlyCF!W212 -> 290154.3339 | K125: =MonthlyCF!X201+MonthlyCF!X211+MonthlyCF!X212 -> 12969.42399 | L125: =MonthlyCF!Y201+MonthlyCF!Y211+MonthlyCF!Y212 -> 13023.46325 | M125: =MonthlyCF!Z201+MonthlyCF!Z211+MonthlyCF!Z212 -> 13077.72768 | N125: =MonthlyCF!AA201+MonthlyCF!AA211+MonthlyCF!AA212 -> 13132.21822 | O125: =MonthlyCF!AB201+MonthlyCF!AB211+MonthlyCF!AB212 -> 13186.93579 | P125: =MonthlyCF!AC201+MonthlyCF!AC211+MonthlyCF!AC212 -> 13241.88136 | Q125: =MonthlyCF!AD201+MonthlyCF!AD211+MonthlyCF!AD212 -> 13297.05586 | R125: =MonthlyCF!AE201+MonthlyCF!AE211+MonthlyCF!AE212 -> 13352.46026 | S125: =MonthlyCF!AF201+MonthlyCF!AF211+MonthlyCF!AF212 -> 13408.09551 | T125: =MonthlyCF!AG201+MonthlyCF!AG211+MonthlyCF!AG212 -> 13463.96258 | U125: =MonthlyCF!AH201+MonthlyCF!AH211+MonthlyCF!AH212 -> 13520.06242 | V125: =MonthlyCF!AI201+MonthlyCF!AI211+MonthlyCF!AI212 -> 13576.39602 | W125: =MonthlyCF!AJ201+MonthlyCF!AJ211+MonthlyCF!AJ212 -> 13632.96433 | X125: =MonthlyCF!AK201+MonthlyCF!AK211+MonthlyCF!AK212 -> 13689.76835 | Y125: =MonthlyCF!AL201+MonthlyCF!AL211+MonthlyCF!AL212 -> 13746.80905 | Z125: =MonthlyCF!AM201+MonthlyCF!AM211+MonthlyCF!AM212 -> 13804.08742 | AA125: =MonthlyCF!AN201+MonthlyCF!AN211+MonthlyCF!AN212 -> 13861.60445 | AB125: =MonthlyCF!AO201+MonthlyCF!AO211+MonthlyCF!AO212 -> 13919.36114 | AC125: =MonthlyCF!AP201+MonthlyCF!AP211+MonthlyCF!AP212 -> 13977.35848 | AD125: =MonthlyCF!AQ201+MonthlyCF!AQ211+MonthlyCF!AQ212 -> 14035.59747 | AE125: =MonthlyCF!AR201+MonthlyCF!AR211+MonthlyCF!AR212 -> 14094.07913 | AF125: =MonthlyCF!AS201+MonthlyCF!AS211+MonthlyCF!AS212 -> 14152.80446 | AG125: =MonthlyCF!AT201+MonthlyCF!AT211+MonthlyCF!AT212 -> 14211.77447 | AH125: =MonthlyCF!AU201+MonthlyCF!AU211+MonthlyCF!AU212 -> 14270.9902 | AI125: =MonthlyCF!AV201+MonthlyCF!AV211+MonthlyCF!AV212 -> 14330.45266 | AJ125: =MonthlyCF!AW201+MonthlyCF!AW211+MonthlyCF!AW212 -> 14390.16288 | AK125: =MonthlyCF!AX201+MonthlyCF!AX211+MonthlyCF!AX212 -> 14450.12189 | AL125: =MonthlyCF!AY201+MonthlyCF!AY211+MonthlyCF!AY212 -> 14510.33073 | AM125: =MonthlyCF!AZ201+MonthlyCF!AZ211+MonthlyCF!AZ212 -> 14570.79044 | AN125: =MonthlyCF!BA201+MonthlyCF!BA211+MonthlyCF!BA212 -> 14631.50207 | AO125: =MonthlyCF!BB201+MonthlyCF!BB211+MonthlyCF!BB212 -> 14692.46666 | AP125: =MonthlyCF!BC201+MonthlyCF!BC211+MonthlyCF!BC212 -> 14753.68527 | AQ125: =MonthlyCF!BD201+MonthlyCF!BD211+MonthlyCF!BD212 -> 0 | AR125: =MonthlyCF!BE201+MonthlyCF!BE211+MonthlyCF!BE212 -> 0 | AS125: =MonthlyCF!BF201+MonthlyCF!BF211+MonthlyCF!BF212 -> 0 | AT125: =MonthlyCF!BG201+MonthlyCF!BG211+MonthlyCF!BG212 -> 0 | AU125: =MonthlyCF!BH201+MonthlyCF!BH211+MonthlyCF!BH212 -> 0 | AV125: =MonthlyCF!BI201+MonthlyCF!BI211+MonthlyCF!BI212 -> 0 | AW125: =MonthlyCF!BJ201+MonthlyCF!BJ211+MonthlyCF!BJ212 -> 0 | AX125: =MonthlyCF!BK201+MonthlyCF!BK211+MonthlyCF!BK212 -> 0 | AY125: =MonthlyCF!BL201+MonthlyCF!BL211+MonthlyCF!BL212 -> 0 | AZ125: =MonthlyCF!BM201+MonthlyCF!BM211+MonthlyCF!BM212 -> 0 | BA125: =MonthlyCF!BN201+MonthlyCF!BN211+MonthlyCF!BN212 -> 0 | BB125: =MonthlyCF!BO201+MonthlyCF!BO211+MonthlyCF!BO212 -> 0 | BC125: =MonthlyCF!BP201+MonthlyCF!BP211+MonthlyCF!BP212 -> 0 | BD125: =MonthlyCF!BQ201+MonthlyCF!BQ211+MonthlyCF!BQ212 -> 0 | BE125: =MonthlyCF!BR201+MonthlyCF!BR211+MonthlyCF!BR212 -> 0 | BF125: =MonthlyCF!BS201+MonthlyCF!BS211+MonthlyCF!BS212 -> 0 | BG125: =MonthlyCF!BT201+MonthlyCF!BT211+MonthlyCF!BT212 -> 0 | BH125: =MonthlyCF!BU201+MonthlyCF!BU211+MonthlyCF!BU212 -> 0 | BI125: =MonthlyCF!BV201+MonthlyCF!BV211+MonthlyCF!BV212 -> 0 | BJ125: =MonthlyCF!BW201+MonthlyCF!BW211+MonthlyCF!BW212 -> 0 | BK125: =MonthlyCF!BX201+MonthlyCF!BX211+MonthlyCF!BX212 -> 0 | BL125: =MonthlyCF!BY201+MonthlyCF!BY211+MonthlyCF!BY212 -> 0 | BM125: =MonthlyCF!BZ201+MonthlyCF!BZ211+MonthlyCF!BZ212 -> 0 | BN125: =MonthlyCF!CA201+MonthlyCF!CA211+MonthlyCF!CA212 -> 0 | BO125: =MonthlyCF!CB201+MonthlyCF!CB211+MonthlyCF!CB212 -> 0 | BP125: =MonthlyCF!CC201+MonthlyCF!CC211+MonthlyCF!CC212 -> 0 | BQ125: =MonthlyCF!CD201+MonthlyCF!CD211+MonthlyCF!CD212 -> 0 | BR125: =MonthlyCF!CE201+MonthlyCF!CE211+MonthlyCF!CE212 -> 0 | BS125: =MonthlyCF!CF201+MonthlyCF!CF211+MonthlyCF!CF212 -> 0 | BT125: =MonthlyCF!CG201+MonthlyCF!CG211+MonthlyCF!CG212 -> 0 | BU125: =MonthlyCF!CH201+MonthlyCF!CH211+MonthlyCF!CH212 -> 0 | BV125: =MonthlyCF!CI201+MonthlyCF!CI211+MonthlyCF!CI212 -> 0 | BW125: =MonthlyCF!CJ201+MonthlyCF!CJ211+MonthlyCF!CJ212 -> 0 | BX125: =MonthlyCF!CK201+MonthlyCF!CK211+MonthlyCF!CK212 -> 0 | BY125: =MonthlyCF!CL201+MonthlyCF!CL211+MonthlyCF!CL212 -> 0 | BZ125: =MonthlyCF!CM201+MonthlyCF!CM211+MonthlyCF!CM212 -> 0 | CA125: =MonthlyCF!CN201+MonthlyCF!CN211+MonthlyCF!CN212 -> 0 | CB125: =MonthlyCF!CO201+MonthlyCF!CO211+MonthlyCF!CO212 -> 0 | CC125: =MonthlyCF!CP201+MonthlyCF!CP211+MonthlyCF!CP212 -> 0 | CD125: =MonthlyCF!CQ201+MonthlyCF!CQ211+MonthlyCF!CQ212 -> 0 | CE125: =MonthlyCF!CR201+MonthlyCF!CR211+MonthlyCF!CR212 -> 0 | CF125: =MonthlyCF!CS201+MonthlyCF!CS211+MonthlyCF!CS212 -> 0 | CG125: =MonthlyCF!CT201+MonthlyCF!CT211+MonthlyCF!CT212 -> 0 | CH125: =MonthlyCF!CU201+MonthlyCF!CU211+MonthlyCF!CU212 -> 0 | CI125: =MonthlyCF!CV201+MonthlyCF!CV211+MonthlyCF!CV212 -> 0 | CJ125: =MonthlyCF!CW201+MonthlyCF!CW211+MonthlyCF!CW212 -> 0 | CK125: =MonthlyCF!CX201+MonthlyCF!CX211+MonthlyCF!CX212 -> 0 | CL125: =MonthlyCF!CY201+MonthlyCF!CY211+MonthlyCF!CY212 -> 0 | CM125: =MonthlyCF!CZ201+MonthlyCF!CZ211+MonthlyCF!CZ212 -> 0 | CN125: =MonthlyCF!DA201+MonthlyCF!DA211+MonthlyCF!DA212 -> 0 | CO125: =MonthlyCF!DB201+MonthlyCF!DB211+MonthlyCF!DB212 -> 0 | CP125: =MonthlyCF!DC201+MonthlyCF!DC211+MonthlyCF!DC212 -> 0 | CQ125: =MonthlyCF!DD201+MonthlyCF!DD211+MonthlyCF!DD212 -> 0 | CR125: =MonthlyCF!DE201+MonthlyCF!DE211+MonthlyCF!DE212 -> 0 | CS125: =MonthlyCF!DF201+MonthlyCF!DF211+MonthlyCF!DF212 -> 0 | CT125: =MonthlyCF!DG201+MonthlyCF!DG211+MonthlyCF!DG212 -> 0 | CU125: =MonthlyCF!DH201+MonthlyCF!DH211+MonthlyCF!DH212 -> 0 | CV125: =MonthlyCF!DI201+MonthlyCF!DI211+MonthlyCF!DI212 -> 0 | CW125: =MonthlyCF!DJ201+MonthlyCF!DJ211+MonthlyCF!DJ212 -> 0 | CX125: =MonthlyCF!DK201+MonthlyCF!DK211+MonthlyCF!DK212 -> 0 | CY125: =MonthlyCF!DL201+MonthlyCF!DL211+MonthlyCF!DL212 -> 0 | CZ125: =MonthlyCF!DM201+MonthlyCF!DM211+MonthlyCF!DM212 -> 0 | DA125: =MonthlyCF!DN201+MonthlyCF!DN211+MonthlyCF!DN212 -> 0 | DB125: =MonthlyCF!DO201+MonthlyCF!DO211+MonthlyCF!DO212 -> 0 | DC125: =MonthlyCF!DP201+MonthlyCF!DP211+MonthlyCF!DP212 -> 0 | DD125: =MonthlyCF!DQ201+MonthlyCF!DQ211+MonthlyCF!DQ212 -> 0 | DE125: =MonthlyCF!DR201+MonthlyCF!DR211+MonthlyCF!DR212 -> 0 | DF125: =MonthlyCF!DS201+MonthlyCF!DS211+MonthlyCF!DS212 -> 0 | DG125: =MonthlyCF!DT201+MonthlyCF!DT211+MonthlyCF!DT212 -> 0 | DH125: =MonthlyCF!DU201+MonthlyCF!DU211+MonthlyCF!DU212 -> 0 | DI125: =MonthlyCF!DV201+MonthlyCF!DV211+MonthlyCF!DV212 -> 0 | DJ125: =MonthlyCF!DW201+MonthlyCF!DW211+MonthlyCF!DW212 -> 0 | DK125: =MonthlyCF!DX201+MonthlyCF!DX211+MonthlyCF!DX212 -> 0 | DL125: =MonthlyCF!DY201+MonthlyCF!DY211+MonthlyCF!DY212 -> 0 | DM125: =MonthlyCF!DZ201+MonthlyCF!DZ211+MonthlyCF!DZ212 -> 0 | DN125: =MonthlyCF!EA201+MonthlyCF!EA211+MonthlyCF!EA212 -> 0 | DO125: =MonthlyCF!EB201+MonthlyCF!EB211+MonthlyCF!EB212 -> 0 | DP125: =MonthlyCF!EC201+MonthlyCF!EC211+MonthlyCF!EC212 -> 0 | DQ125: =MonthlyCF!ED201+MonthlyCF!ED211+MonthlyCF!ED212 -> 0 | DR125: =MonthlyCF!EE201+MonthlyCF!EE211+MonthlyCF!EE212 -> 0 | DS125: =MonthlyCF!EF201+MonthlyCF!EF211+MonthlyCF!EF212 -> 0 | DT125: =MonthlyCF!EG201+MonthlyCF!EG211+MonthlyCF!EG212 -> 0 | DU125: =MonthlyCF!EH201+MonthlyCF!EH211+MonthlyCF!EH212 -> 0 | DV125: =MonthlyCF!EI201+MonthlyCF!EI211+MonthlyCF!EI212 -> 0 | DW125: =MonthlyCF!EJ201+MonthlyCF!EJ211+MonthlyCF!EJ212 -> 0 | DX125: =MonthlyCF!EK201+MonthlyCF!EK211+MonthlyCF!EK212 -> 0 | DY125: =MonthlyCF!EL201+MonthlyCF!EL211+MonthlyCF!EL212 -> 0 | DZ125: =MonthlyCF!EM201+MonthlyCF!EM211+MonthlyCF!EM212 -> 0 | EA125: =MonthlyCF!EN201+MonthlyCF!EN211+MonthlyCF!EN212 -> 0 | EB125: =MonthlyCF!EO201+MonthlyCF!EO211+MonthlyCF!EO212 -> 0 | EC125: =MonthlyCF!EP201+MonthlyCF!EP211+MonthlyCF!EP212 -> 0 | ED125: =MonthlyCF!EQ201+MonthlyCF!EQ211+MonthlyCF!EQ212 -> 0 | EE125: =MonthlyCF!ER201+MonthlyCF!ER211+MonthlyCF!ER212 -> 0 | EF125: =MonthlyCF!ES201+MonthlyCF!ES211+MonthlyCF!ES212 -> 0 | EG125: =MonthlyCF!ET201+MonthlyCF!ET211+MonthlyCF!ET212 -> 0 | EH125: =MonthlyCF!EU201+MonthlyCF!EU211+MonthlyCF!EU212 -> 0 | EI125: =MonthlyCF!EV201+MonthlyCF!EV211+MonthlyCF!EV212 -> 0 | EJ125: =MonthlyCF!EW201+MonthlyCF!EW211+MonthlyCF!EW212 -> 0 | EK125: =MonthlyCF!EX201+MonthlyCF!EX211+MonthlyCF!EX212 -> 0 | EL125: =MonthlyCF!EY201+MonthlyCF!EY211+MonthlyCF!EY212 -> 0 | EM125: =MonthlyCF!EZ201+MonthlyCF!EZ211+MonthlyCF!EZ212 -> 0 | EN125: =MonthlyCF!FA201+MonthlyCF!FA211+MonthlyCF!FA212 -> 0 | EO125: =MonthlyCF!FB201+MonthlyCF!FB211+MonthlyCF!FB212 -> 0 | EP125: =MonthlyCF!FC201+MonthlyCF!FC211+MonthlyCF!FC212 -> 0 | EQ125: =MonthlyCF!FD201+MonthlyCF!FD211+MonthlyCF!FD212 -> 0 | ER125: =MonthlyCF!FE201+MonthlyCF!FE211+MonthlyCF!FE212 -> 0 | ES125: =MonthlyCF!FF201+MonthlyCF!FF211+MonthlyCF!FF212 -> 0 | ET125: =MonthlyCF!FG201+MonthlyCF!FG211+MonthlyCF!FG212 -> 0 | EU125: =MonthlyCF!FH201+MonthlyCF!FH211+MonthlyCF!FH212 -> 0 | EV125: =MonthlyCF!FI201+MonthlyCF!FI211+MonthlyCF!FI212 -> 0 | EW125: =MonthlyCF!FJ201+MonthlyCF!FJ211+MonthlyCF!FJ212 -> 0 | EX125: =MonthlyCF!FK201+MonthlyCF!FK211+MonthlyCF!FK212 -> 0 | EY125: =MonthlyCF!FL201+MonthlyCF!FL211+MonthlyCF!FL212 -> 0 | EZ125: =MonthlyCF!FM201+MonthlyCF!FM211+MonthlyCF!FM212 -> 0 | FA125: =MonthlyCF!FN201+MonthlyCF!FN211+MonthlyCF!FN212 -> 0 | FB125: =MonthlyCF!FO201+MonthlyCF!FO211+MonthlyCF!FO212 -> 0 | FC125: =MonthlyCF!FP201+MonthlyCF!FP211+MonthlyCF!FP212 -> 0 | FD125: =MonthlyCF!FQ201+MonthlyCF!FQ211+MonthlyCF!FQ212 -> 0 | FE125: =MonthlyCF!FR201+MonthlyCF!FR211+MonthlyCF!FR212 -> 0 | FF125: =MonthlyCF!FS201+MonthlyCF!FS211+MonthlyCF!FS212 -> 0 | FG125: =MonthlyCF!FT201+MonthlyCF!FT211+MonthlyCF!FT212 -> 0 | FH125: =MonthlyCF!FU201+MonthlyCF!FU211+MonthlyCF!FU212 -> 0 | FI125: =MonthlyCF!FV201+MonthlyCF!FV211+MonthlyCF!FV212 -> 0 | FJ125: =MonthlyCF!FW201+MonthlyCF!FW211+MonthlyCF!FW212 -> 0 | FK125: =MonthlyCF!FX201+MonthlyCF!FX211+MonthlyCF!FX212 -> 0 | FL125: =MonthlyCF!FY201+MonthlyCF!FY211+MonthlyCF!FY212 -> 0 | FM125: =MonthlyCF!FZ201+MonthlyCF!FZ211+MonthlyCF!FZ212 -> 0 | FN125: =MonthlyCF!GA201+MonthlyCF!GA211+MonthlyCF!GA212 -> 0 | FO125: =MonthlyCF!GB201+MonthlyCF!GB211+MonthlyCF!GB212 -> 0 | FP125: =MonthlyCF!GC201+MonthlyCF!GC211+MonthlyCF!GC212 -> 0 | FQ125: =MonthlyCF!GD201+MonthlyCF!GD211+MonthlyCF!GD212 -> 0 | FR125: =MonthlyCF!GE201+MonthlyCF!GE211+MonthlyCF!GE212 -> 0 | FS125: =MonthlyCF!GF201+MonthlyCF!GF211+MonthlyCF!GF212 -> 0 | FT125: =MonthlyCF!GG201+MonthlyCF!GG211+MonthlyCF!GG212 -> 0 | FU125: =MonthlyCF!GH201+MonthlyCF!GH211+MonthlyCF!GH212 -> 0 | FV125: =MonthlyCF!GI201+MonthlyCF!GI211+MonthlyCF!GI212 -> 0 | FW125: =MonthlyCF!GJ201+MonthlyCF!GJ211+MonthlyCF!GJ212 -> 0 | FX125: =MonthlyCF!GK201+MonthlyCF!GK211+MonthlyCF!GK212 -> 0 | FY125: =MonthlyCF!GL201+MonthlyCF!GL211+MonthlyCF!GL212 -> 0 | FZ125: =MonthlyCF!GM201+MonthlyCF!GM211+MonthlyCF!GM212 -> 0 | GA125: =MonthlyCF!GN201+MonthlyCF!GN211+MonthlyCF!GN212 -> 0
B126: ="Senior Debt - "&TEXT(SUM(C126:GA126),"$#,###.0,,")&" MM" -> Senior Debt - $8.3 MM | C126: =MonthlyCF!P216+MonthlyCF!P227+MonthlyCF!P228 -> 0 | D126: =MonthlyCF!Q216+MonthlyCF!Q227+MonthlyCF!Q228 -> 0 | E126: =MonthlyCF!R216+MonthlyCF!R227+MonthlyCF!R228 -> 0 | F126: =MonthlyCF!S216+MonthlyCF!S227+MonthlyCF!S228 -> 0 | G126: =MonthlyCF!T216+MonthlyCF!T227+MonthlyCF!T228 -> 0 | H126: =MonthlyCF!U216+MonthlyCF!U227+MonthlyCF!U228 -> 0 | I126: =MonthlyCF!V216+MonthlyCF!V227+MonthlyCF!V228 -> 0 | J126: =MonthlyCF!W216+MonthlyCF!W227+MonthlyCF!W228 -> 233578.9471 | K126: =MonthlyCF!X216+MonthlyCF!X227+MonthlyCF!X228 -> 97914.78188 | L126: =MonthlyCF!Y216+MonthlyCF!Y227+MonthlyCF!Y228 -> 152996.9574 | M126: =MonthlyCF!Z216+MonthlyCF!Z227+MonthlyCF!Z228 -> 283337.2551 | N126: =MonthlyCF!AA216+MonthlyCF!AA227+MonthlyCF!AA228 -> 252251.6866 | O126: =MonthlyCF!AB216+MonthlyCF!AB227+MonthlyCF!AB228 -> 269413.5121 | P126: =MonthlyCF!AC216+MonthlyCF!AC227+MonthlyCF!AC228 -> 284766.9348 | Q126: =MonthlyCF!AD216+MonthlyCF!AD227+MonthlyCF!AD228 -> 297827.0508 | R126: =MonthlyCF!AE216+MonthlyCF!AE227+MonthlyCF!AE228 -> 356117.333 | S126: =MonthlyCF!AF216+MonthlyCF!AF227+MonthlyCF!AF228 -> 370518.3879 | T126: =MonthlyCF!AG216+MonthlyCF!AG227+MonthlyCF!AG228 -> 381889.5809 | U126: =MonthlyCF!AH216+MonthlyCF!AH227+MonthlyCF!AH228 -> 389957.671 | V126: =MonthlyCF!AI216+MonthlyCF!AI227+MonthlyCF!AI228 -> 394551.3382 | W126: =MonthlyCF!AJ216+MonthlyCF!AJ227+MonthlyCF!AJ228 -> 418562.3928 | X126: =MonthlyCF!AK216+MonthlyCF!AK227+MonthlyCF!AK228 -> 418034.7447 | Y126: =MonthlyCF!AL216+MonthlyCF!AL227+MonthlyCF!AL228 -> 414022.8754 | Z126: =MonthlyCF!AM216+MonthlyCF!AM227+MonthlyCF!AM228 -> 406716.058 | AA126: =MonthlyCF!AN216+MonthlyCF!AN227+MonthlyCF!AN228 -> 396384.3716 | AB126: =MonthlyCF!AO216+MonthlyCF!AO227+MonthlyCF!AO228 -> 383364.0517 | AC126: =MonthlyCF!AP216+MonthlyCF!AP227+MonthlyCF!AP228 -> 183988.278 | AD126: =MonthlyCF!AQ216+MonthlyCF!AQ227+MonthlyCF!AQ228 -> 185366.2931 | AE126: =MonthlyCF!AR216+MonthlyCF!AR227+MonthlyCF!AR228 -> 185081.8438 | AF126: =MonthlyCF!AS216+MonthlyCF!AS227+MonthlyCF!AS228 -> 183222.8798 | AG126: =MonthlyCF!AT216+MonthlyCF!AT227+MonthlyCF!AT228 -> 179873.1799 | AH126: =MonthlyCF!AU216+MonthlyCF!AU227+MonthlyCF!AU228 -> 175167.7746 | AI126: =MonthlyCF!AV216+MonthlyCF!AV227+MonthlyCF!AV228 -> 169284.8878 | AJ126: =MonthlyCF!AW216+MonthlyCF!AW227+MonthlyCF!AW228 -> 162435.623 | AK126: =MonthlyCF!AX216+MonthlyCF!AX227+MonthlyCF!AX228 -> 154868.4153 | AL126: =MonthlyCF!AY216+MonthlyCF!AY227+MonthlyCF!AY228 -> 146848.7794 | AM126: =MonthlyCF!AZ216+MonthlyCF!AZ227+MonthlyCF!AZ228 -> 118718.5674 | AN126: =MonthlyCF!BA216+MonthlyCF!BA227+MonthlyCF!BA228 -> 110315.1332 | AO126: =MonthlyCF!BB216+MonthlyCF!BB227+MonthlyCF!BB228 -> 102062.4099 | AP126: =MonthlyCF!BC216+MonthlyCF!BC227+MonthlyCF!BC228 -> 25114.58005 | AQ126: =MonthlyCF!BD216+MonthlyCF!BD227+MonthlyCF!BD228 -> 0 | AR126: =MonthlyCF!BE216+MonthlyCF!BE227+MonthlyCF!BE228 -> 0 | AS126: =MonthlyCF!BF216+MonthlyCF!BF227+MonthlyCF!BF228 -> 0 | AT126: =MonthlyCF!BG216+MonthlyCF!BG227+MonthlyCF!BG228 -> 0 | AU126: =MonthlyCF!BH216+MonthlyCF!BH227+MonthlyCF!BH228 -> 0 | AV126: =MonthlyCF!BI216+MonthlyCF!BI227+MonthlyCF!BI228 -> 0 | AW126: =MonthlyCF!BJ216+MonthlyCF!BJ227+MonthlyCF!BJ228 -> 0 | AX126: =MonthlyCF!BK216+MonthlyCF!BK227+MonthlyCF!BK228 -> 0 | AY126: =MonthlyCF!BL216+MonthlyCF!BL227+MonthlyCF!BL228 -> 0 | AZ126: =MonthlyCF!BM216+MonthlyCF!BM227+MonthlyCF!BM228 -> 0 | BA126: =MonthlyCF!BN216+MonthlyCF!BN227+MonthlyCF!BN228 -> 0 | BB126: =MonthlyCF!BO216+MonthlyCF!BO227+MonthlyCF!BO228 -> 0 | BC126: =MonthlyCF!BP216+MonthlyCF!BP227+MonthlyCF!BP228 -> 0 | BD126: =MonthlyCF!BQ216+MonthlyCF!BQ227+MonthlyCF!BQ228 -> 0 | BE126: =MonthlyCF!BR216+MonthlyCF!BR227+MonthlyCF!BR228 -> 0 | BF126: =MonthlyCF!BS216+MonthlyCF!BS227+MonthlyCF!BS228 -> 0 | BG126: =MonthlyCF!BT216+MonthlyCF!BT227+MonthlyCF!BT228 -> 0 | BH126: =MonthlyCF!BU216+MonthlyCF!BU227+MonthlyCF!BU228 -> 0 | BI126: =MonthlyCF!BV216+MonthlyCF!BV227+MonthlyCF!BV228 -> 0 | BJ126: =MonthlyCF!BW216+MonthlyCF!BW227+MonthlyCF!BW228 -> 0 | BK126: =MonthlyCF!BX216+MonthlyCF!BX227+MonthlyCF!BX228 -> 0 | BL126: =MonthlyCF!BY216+MonthlyCF!BY227+MonthlyCF!BY228 -> 0 | BM126: =MonthlyCF!BZ216+MonthlyCF!BZ227+MonthlyCF!BZ228 -> 0 | BN126: =MonthlyCF!CA216+MonthlyCF!CA227+MonthlyCF!CA228 -> 0 | BO126: =MonthlyCF!CB216+MonthlyCF!CB227+MonthlyCF!CB228 -> 0 | BP126: =MonthlyCF!CC216+MonthlyCF!CC227+MonthlyCF!CC228 -> 0 | BQ126: =MonthlyCF!CD216+MonthlyCF!CD227+MonthlyCF!CD228 -> 0 | BR126: =MonthlyCF!CE216+MonthlyCF!CE227+MonthlyCF!CE228 -> 0 | BS126: =MonthlyCF!CF216+MonthlyCF!CF227+MonthlyCF!CF228 -> 0 | BT126: =MonthlyCF!CG216+MonthlyCF!CG227+MonthlyCF!CG228 -> 0 | BU126: =MonthlyCF!CH216+MonthlyCF!CH227+MonthlyCF!CH228 -> 0 | BV126: =MonthlyCF!CI216+MonthlyCF!CI227+MonthlyCF!CI228 -> 0 | BW126: =MonthlyCF!CJ216+MonthlyCF!CJ227+MonthlyCF!CJ228 -> 0 | BX126: =MonthlyCF!CK216+MonthlyCF!CK227+MonthlyCF!CK228 -> 0 | BY126: =MonthlyCF!CL216+MonthlyCF!CL227+MonthlyCF!CL228 -> 0 | BZ126: =MonthlyCF!CM216+MonthlyCF!CM227+MonthlyCF!CM228 -> 0 | CA126: =MonthlyCF!CN216+MonthlyCF!CN227+MonthlyCF!CN228 -> 0 | CB126: =MonthlyCF!CO216+MonthlyCF!CO227+MonthlyCF!CO228 -> 0 | CC126: =MonthlyCF!CP216+MonthlyCF!CP227+MonthlyCF!CP228 -> 0 | CD126: =MonthlyCF!CQ216+MonthlyCF!CQ227+MonthlyCF!CQ228 -> 0 | CE126: =MonthlyCF!CR216+MonthlyCF!CR227+MonthlyCF!CR228 -> 0 | CF126: =MonthlyCF!CS216+MonthlyCF!CS227+MonthlyCF!CS228 -> 0 | CG126: =MonthlyCF!CT216+MonthlyCF!CT227+MonthlyCF!CT228 -> 0 | CH126: =MonthlyCF!CU216+MonthlyCF!CU227+MonthlyCF!CU228 -> 0 | CI126: =MonthlyCF!CV216+MonthlyCF!CV227+MonthlyCF!CV228 -> 0 | CJ126: =MonthlyCF!CW216+MonthlyCF!CW227+MonthlyCF!CW228 -> 0 | CK126: =MonthlyCF!CX216+MonthlyCF!CX227+MonthlyCF!CX228 -> 0 | CL126: =MonthlyCF!CY216+MonthlyCF!CY227+MonthlyCF!CY228 -> 0 | CM126: =MonthlyCF!CZ216+MonthlyCF!CZ227+MonthlyCF!CZ228 -> 0 | CN126: =MonthlyCF!DA216+MonthlyCF!DA227+MonthlyCF!DA228 -> 0 | CO126: =MonthlyCF!DB216+MonthlyCF!DB227+MonthlyCF!DB228 -> 0 | CP126: =MonthlyCF!DC216+MonthlyCF!DC227+MonthlyCF!DC228 -> 0 | CQ126: =MonthlyCF!DD216+MonthlyCF!DD227+MonthlyCF!DD228 -> 0 | CR126: =MonthlyCF!DE216+MonthlyCF!DE227+MonthlyCF!DE228 -> 0 | CS126: =MonthlyCF!DF216+MonthlyCF!DF227+MonthlyCF!DF228 -> 0 | CT126: =MonthlyCF!DG216+MonthlyCF!DG227+MonthlyCF!DG228 -> 0 | CU126: =MonthlyCF!DH216+MonthlyCF!DH227+MonthlyCF!DH228 -> 0 | CV126: =MonthlyCF!DI216+MonthlyCF!DI227+MonthlyCF!DI228 -> 0 | CW126: =MonthlyCF!DJ216+MonthlyCF!DJ227+MonthlyCF!DJ228 -> 0 | CX126: =MonthlyCF!DK216+MonthlyCF!DK227+MonthlyCF!DK228 -> 0 | CY126: =MonthlyCF!DL216+MonthlyCF!DL227+MonthlyCF!DL228 -> 0 | CZ126: =MonthlyCF!DM216+MonthlyCF!DM227+MonthlyCF!DM228 -> 0 | DA126: =MonthlyCF!DN216+MonthlyCF!DN227+MonthlyCF!DN228 -> 0 | DB126: =MonthlyCF!DO216+MonthlyCF!DO227+MonthlyCF!DO228 -> 0 | DC126: =MonthlyCF!DP216+MonthlyCF!DP227+MonthlyCF!DP228 -> 0 | DD126: =MonthlyCF!DQ216+MonthlyCF!DQ227+MonthlyCF!DQ228 -> 0 | DE126: =MonthlyCF!DR216+MonthlyCF!DR227+MonthlyCF!DR228 -> 0 | DF126: =MonthlyCF!DS216+MonthlyCF!DS227+MonthlyCF!DS228 -> 0 | DG126: =MonthlyCF!DT216+MonthlyCF!DT227+MonthlyCF!DT228 -> 0 | DH126: =MonthlyCF!DU216+MonthlyCF!DU227+MonthlyCF!DU228 -> 0 | DI126: =MonthlyCF!DV216+MonthlyCF!DV227+MonthlyCF!DV228 -> 0 | DJ126: =MonthlyCF!DW216+MonthlyCF!DW227+MonthlyCF!DW228 -> 0 | DK126: =MonthlyCF!DX216+MonthlyCF!DX227+MonthlyCF!DX228 -> 0 | DL126: =MonthlyCF!DY216+MonthlyCF!DY227+MonthlyCF!DY228 -> 0 | DM126: =MonthlyCF!DZ216+MonthlyCF!DZ227+MonthlyCF!DZ228 -> 0 | DN126: =MonthlyCF!EA216+MonthlyCF!EA227+MonthlyCF!EA228 -> 0 | DO126: =MonthlyCF!EB216+MonthlyCF!EB227+MonthlyCF!EB228 -> 0 | DP126: =MonthlyCF!EC216+MonthlyCF!EC227+MonthlyCF!EC228 -> 0 | DQ126: =MonthlyCF!ED216+MonthlyCF!ED227+MonthlyCF!ED228 -> 0 | DR126: =MonthlyCF!EE216+MonthlyCF!EE227+MonthlyCF!EE228 -> 0 | DS126: =MonthlyCF!EF216+MonthlyCF!EF227+MonthlyCF!EF228 -> 0 | DT126: =MonthlyCF!EG216+MonthlyCF!EG227+MonthlyCF!EG228 -> 0 | DU126: =MonthlyCF!EH216+MonthlyCF!EH227+MonthlyCF!EH228 -> 0 | DV126: =MonthlyCF!EI216+MonthlyCF!EI227+MonthlyCF!EI228 -> 0 | DW126: =MonthlyCF!EJ216+MonthlyCF!EJ227+MonthlyCF!EJ228 -> 0 | DX126: =MonthlyCF!EK216+MonthlyCF!EK227+MonthlyCF!EK228 -> 0 | DY126: =MonthlyCF!EL216+MonthlyCF!EL227+MonthlyCF!EL228 -> 0 | DZ126: =MonthlyCF!EM216+MonthlyCF!EM227+MonthlyCF!EM228 -> 0 | EA126: =MonthlyCF!EN216+MonthlyCF!EN227+MonthlyCF!EN228 -> 0 | EB126: =MonthlyCF!EO216+MonthlyCF!EO227+MonthlyCF!EO228 -> 0 | EC126: =MonthlyCF!EP216+MonthlyCF!EP227+MonthlyCF!EP228 -> 0 | ED126: =MonthlyCF!EQ216+MonthlyCF!EQ227+MonthlyCF!EQ228 -> 0 | EE126: =MonthlyCF!ER216+MonthlyCF!ER227+MonthlyCF!ER228 -> 0 | EF126: =MonthlyCF!ES216+MonthlyCF!ES227+MonthlyCF!ES228 -> 0 | EG126: =MonthlyCF!ET216+MonthlyCF!ET227+MonthlyCF!ET228 -> 0 | EH126: =MonthlyCF!EU216+MonthlyCF!EU227+MonthlyCF!EU228 -> 0 | EI126: =MonthlyCF!EV216+MonthlyCF!EV227+MonthlyCF!EV228 -> 0 | EJ126: =MonthlyCF!EW216+MonthlyCF!EW227+MonthlyCF!EW228 -> 0 | EK126: =MonthlyCF!EX216+MonthlyCF!EX227+MonthlyCF!EX228 -> 0 | EL126: =MonthlyCF!EY216+MonthlyCF!EY227+MonthlyCF!EY228 -> 0 | EM126: =MonthlyCF!EZ216+MonthlyCF!EZ227+MonthlyCF!EZ228 -> 0 | EN126: =MonthlyCF!FA216+MonthlyCF!FA227+MonthlyCF!FA228 -> 0 | EO126: =MonthlyCF!FB216+MonthlyCF!FB227+MonthlyCF!FB228 -> 0 | EP126: =MonthlyCF!FC216+MonthlyCF!FC227+MonthlyCF!FC228 -> 0 | EQ126: =MonthlyCF!FD216+MonthlyCF!FD227+MonthlyCF!FD228 -> 0 | ER126: =MonthlyCF!FE216+MonthlyCF!FE227+MonthlyCF!FE228 -> 0 | ES126: =MonthlyCF!FF216+MonthlyCF!FF227+MonthlyCF!FF228 -> 0 | ET126: =MonthlyCF!FG216+MonthlyCF!FG227+MonthlyCF!FG228 -> 0 | EU126: =MonthlyCF!FH216+MonthlyCF!FH227+MonthlyCF!FH228 -> 0 | EV126: =MonthlyCF!FI216+MonthlyCF!FI227+MonthlyCF!FI228 -> 0 | EW126: =MonthlyCF!FJ216+MonthlyCF!FJ227+MonthlyCF!FJ228 -> 0 | EX126: =MonthlyCF!FK216+MonthlyCF!FK227+MonthlyCF!FK228 -> 0 | EY126: =MonthlyCF!FL216+MonthlyCF!FL227+MonthlyCF!FL228 -> 0 | EZ126: =MonthlyCF!FM216+MonthlyCF!FM227+MonthlyCF!FM228 -> 0 | FA126: =MonthlyCF!FN216+MonthlyCF!FN227+MonthlyCF!FN228 -> 0 | FB126: =MonthlyCF!FO216+MonthlyCF!FO227+MonthlyCF!FO228 -> 0 | FC126: =MonthlyCF!FP216+MonthlyCF!FP227+MonthlyCF!FP228 -> 0 | FD126: =MonthlyCF!FQ216+MonthlyCF!FQ227+MonthlyCF!FQ228 -> 0 | FE126: =MonthlyCF!FR216+MonthlyCF!FR227+MonthlyCF!FR228 -> 0 | FF126: =MonthlyCF!FS216+MonthlyCF!FS227+MonthlyCF!FS228 -> 0 | FG126: =MonthlyCF!FT216+MonthlyCF!FT227+MonthlyCF!FT228 -> 0 | FH126: =MonthlyCF!FU216+MonthlyCF!FU227+MonthlyCF!FU228 -> 0 | FI126: =MonthlyCF!FV216+MonthlyCF!FV227+MonthlyCF!FV228 -> 0 | FJ126: =MonthlyCF!FW216+MonthlyCF!FW227+MonthlyCF!FW228 -> 0 | FK126: =MonthlyCF!FX216+MonthlyCF!FX227+MonthlyCF!FX228 -> 0 | FL126: =MonthlyCF!FY216+MonthlyCF!FY227+MonthlyCF!FY228 -> 0 | FM126: =MonthlyCF!FZ216+MonthlyCF!FZ227+MonthlyCF!FZ228 -> 0 | FN126: =MonthlyCF!GA216+MonthlyCF!GA227+MonthlyCF!GA228 -> 0 | FO126: =MonthlyCF!GB216+MonthlyCF!GB227+MonthlyCF!GB228 -> 0 | FP126: =MonthlyCF!GC216+MonthlyCF!GC227+MonthlyCF!GC228 -> 0 | FQ126: =MonthlyCF!GD216+MonthlyCF!GD227+MonthlyCF!GD228 -> 0 | FR126: =MonthlyCF!GE216+MonthlyCF!GE227+MonthlyCF!GE228 -> 0 | FS126: =MonthlyCF!GF216+MonthlyCF!GF227+MonthlyCF!GF228 -> 0 | FT126: =MonthlyCF!GG216+MonthlyCF!GG227+MonthlyCF!GG228 -> 0 | FU126: =MonthlyCF!GH216+MonthlyCF!GH227+MonthlyCF!GH228 -> 0 | FV126: =MonthlyCF!GI216+MonthlyCF!GI227+MonthlyCF!GI228 -> 0 | FW126: =MonthlyCF!GJ216+MonthlyCF!GJ227+MonthlyCF!GJ228 -> 0 | FX126: =MonthlyCF!GK216+MonthlyCF!GK227+MonthlyCF!GK228 -> 0 | FY126: =MonthlyCF!GL216+MonthlyCF!GL227+MonthlyCF!GL228 -> 0 | FZ126: =MonthlyCF!GM216+MonthlyCF!GM227+MonthlyCF!GM228 -> 0 | GA126: =MonthlyCF!GN216+MonthlyCF!GN227+MonthlyCF!GN228 -> 0

Sheet OpCashFlow
B2: =Summary!B2 -> Fairways at Mill Creek - Franklin, NC - Version 1.0 | AC2: Operating Cash Flow
D4: Year 1 Occupancy | H4: 1 | J4: =+H4+1 -> 2 | L4: =+J4+1 -> 3 | N4: =+L4+1 -> 4 | P4: =+N4+1 -> 5 | R4: =+P4+1 -> 6 | T4: =+R4+1 -> 7 | V4: =+T4+1 -> 8 | X4: =+V4+1 -> 9 | Z4: =+X4+1 -> 10 | AB4: =+Z4+1 -> 11
D5: Month | E5: Occ. % | F5: Start Date | G5: Total Rooms | H5: ="Year Ending "&TEXT(Summary!$C$17,"Mmmm") -> Year Ending April | J5: ="Year Ending "&TEXT(Summary!$C$17,"Mmmm") -> Year Ending April | L5: ="Year Ending "&TEXT(Summary!$C$17,"Mmmm") -> Year Ending April | N5: ="Year Ending "&TEXT(Summary!$C$17,"Mmmm") -> Year Ending April | P5: ="Year Ending "&TEXT(Summary!$C$17,"Mmmm") -> Year Ending April | R5: ="Year Ending "&TEXT(Summary!$C$17,"Mmmm") -> Year Ending April | T5: ="Year Ending "&TEXT(Summary!$C$17,"Mmmm") -> Year Ending April | V5: ="Year Ending "&TEXT(Summary!$C$17,"Mmmm") -> Year Ending April | X5: ="Year Ending "&TEXT(Summary!$C$17,"Mmmm") -> Year Ending April | Z5: ="Year Ending "&TEXT(Summary!$C$17,"Mmmm") -> Year Ending April | AB5: ="Year Ending "&TEXT(Summary!$C$17,"Mmmm") -> Year Ending April
B6: Year | D6: 1 | E6: 0.25 | F6: =EOMONTH(Summary!C17,1) -> 2028-05-31 | G6: =(_xlfn.DAYS(F6,DATE(YEAR(F6),MONTH(F6),1))+1)*$H$7*E6 -> 348.75 | H6: =YEAR(EDATE(Summary!C17,12)) -> 2029 | J6: =H6+1 -> 2030 | L6: =J6+1 -> 2031 | N6: =L6+1 -> 2032 | P6: =N6+1 -> 2033 | R6: =P6+1 -> 2034 | T6: =R6+1 -> 2035 | V6: =T6+1 -> 2036 | X6: =V6+1 -> 2037 | Z6: =X6+1 -> 2038 | AB6: =Z6+1 -> 2039
B7: Rooms | D7: 2 | E7: =+E6+0.0505 -> 0.3005 | F7: =EOMONTH(F6,1) -> 2028-06-30 | G7: =(_xlfn.DAYS(F7,DATE(YEAR(F7),MONTH(F7),1))+1)*$H$7*E7 -> 405.675 | H7: =Summary!$C$9 -> 45 | J7: =Summary!$C$9 -> 45 | L7: =Summary!$C$9 -> 45 | N7: =Summary!$C$9 -> 45 | P7: =Summary!$C$9 -> 45 | R7: =Summary!$C$9 -> 45 | T7: =Summary!$C$9 -> 45 | V7: =Summary!$C$9 -> 45 | X7: =Summary!$C$9 -> 45 | Z7: =Summary!$C$9 -> 45 | AB7: =Summary!$C$9 -> 45
B8: Days | D8: 3 | E8: =+E7+0.0505 -> 0.351 | F8: =EOMONTH(F7,1) -> 2028-07-31 | G8: 489.645 | H8: =_xlfn.DAYS(DATE(H6,12,31),DATE(H6,1,1))+1 -> 365 | J8: =_xlfn.DAYS(DATE(J6,12,31),DATE(J6,1,1))+1 -> 365 | L8: =_xlfn.DAYS(DATE(L6,12,31),DATE(L6,1,1))+1 -> 365 | N8: =_xlfn.DAYS(DATE(N6,12,31),DATE(N6,1,1))+1 -> 366 | P8: =_xlfn.DAYS(DATE(P6,12,31),DATE(P6,1,1))+1 -> 365 | R8: =_xlfn.DAYS(DATE(R6,12,31),DATE(R6,1,1))+1 -> 365 | T8: =_xlfn.DAYS(DATE(T6,12,31),DATE(T6,1,1))+1 -> 365 | V8: =_xlfn.DAYS(DATE(V6,12,31),DATE(V6,1,1))+1 -> 366 | X8: =_xlfn.DAYS(DATE(X6,12,31),DATE(X6,1,1))+1 -> 365 | Z8: =_xlfn.DAYS(DATE(Z6,12,31),DATE(Z6,1,1))+1 -> 365 | AB8: =_xlfn.DAYS(DATE(AB6,12,31),DATE(AB6,1,1))+1 -> 365
B9: Available Rooms | D9: 4 | E9: 0.4015 | F9: 2028-08-31 | G9: 560.0925 | H9: =H8*H7 -> 16425 | J9: =J8*J7 -> 16425 | L9: =L8*L7 -> 16425 | N9: =N8*N7 -> 16470 | P9: =P8*P7 -> 16425 | R9: =R8*R7 -> 16425 | T9: =T8*T7 -> 16425 | V9: =V8*V7 -> 16470 | X9: =X8*X7 -> 16425 | Z9: =Z8*Z7 -> 16425 | AB9: =AB8*AB7 -> 16425
B10: Occupied Rooms | D10: 5 | E10: 0.452 | F10: 2028-09-30 | G10: 610.2 | H10: =SUM(G6:G17) -> 8235.3825 | J10: =J11*J9 -> 11169 | L10: =L11*L9 -> 11169 | N10: =N11*N9 -> 11199.6 | P10: =P11*P9 -> 11169 | R10: =R11*R9 -> 11169 | T10: =T11*T9 -> 11169 | V10: =V11*V9 -> 11199.6 | X10: =X11*X9 -> 11169 | Z10: =Z11*Z9 -> 11169 | AB10: =AB11*AB9 -> 11169
B11: Occupancy | D11: 6 | E11: 0.5025 | F11: 2028-10-31 | G11: 700.9875 | H11: =H10/H9 -> 0.5013931507 | J11: 0.68 | L11: 0.68 | N11: 0.68 | P11: 0.68 | R11: 0.68 | T11: 0.68 | V11: 0.68 | X11: 0.68 | Z11: 0.68 | AB11: 0.68
B12: ADR | D12: 7 | E12: 0.553 | F12: 2028-11-30 | G12: 746.55 | H12: 250 | J12: =H12*(1+J13) -> 262.5 | L12: =J12*(1+L13) -> 275.625 | N12: =L12*(1+N13) -> 283.89375 | P12: =N12*(1+P13) -> 292.4105625 | R12: =P12*(1+R13) -> 301.1828794 | T12: =R12*(1+T13) -> 310.2183658 | V12: =T12*(1+V13) -> 319.5249167 | X12: =V12*(1+X13) -> 329.1106642 | Z12: =X12*(1+Z13) -> 338.9839842 | AB12: =Z12*(1+AB13) -> 349.1535037
B13: ADR Growth | D13: 8 | E13: 0.6035 | F13: 2028-12-31 | G13: 841.8825 | H13: N/A | J13: 0.05 | L13: 0.05 | N13: 0.03 | P13: 0.03 | R13: 0.03 | T13: 0.03 | V13: 0.03 | X13: 0.03 | Z13: 0.03 | AB13: 0.03
B14: RevPAR | D14: 9 | E14: 0.654 | F14: 2029-01-31 | G14: 912.33 | H14: =H12*H10/H9 -> 125.3482877 | J14: =J12*J10/J9 -> 178.5 | L14: =L12*L10/L9 -> 187.425 | N14: =N12*N10/N9 -> 193.04775 | P14: =P12*P10/P9 -> 198.8391825 | R14: =R12*R10/R9 -> 204.804358 | T14: =T12*T10/T9 -> 210.9484887 | V14: =V12*V10/V9 -> 217.2769434 | X14: =X12*X10/X9 -> 223.7952517 | Z14: =Z12*Z10/Z9 -> 230.5091092 | AB14: =AB12*AB10/AB9 -> 237.4243825
B15: RevPAR Growth | D15: 10 | E15: =E14 -> 0.654 | F15: 2029-02-28 | G15: 824.04 | H15: N/A | J15: =J14/H14-1 -> 0.4240322171 | L15: =L14/J14-1 -> 0.05 | N15: =N14/L14-1 -> 0.03 | P15: =P14/N14-1 -> 0.03 | R15: =R14/P14-1 -> 0.03 | T15: =T14/R14-1 -> 0.03 | V15: =V14/T14-1 -> 0.03 | X15: =X14/V14-1 -> 0.03 | Z15: =Z14/X14-1 -> 0.03 | AB15: =AB14/Z14-1 -> 0.03
B16: TRevPAR | D16: 11 | E16: =E15 -> 0.654 | F16: 2029-03-31 | G16: 912.33 | H16: =H45/H9 -> 94.48506805 | J16: =J45/J9 -> 139.9607867 | L16: =L45/L9 -> 147.3351605 | N16: =N45/N9 -> 151.8063212 | P16: =P45/P9 -> 156.3077755 | R16: =R45/R9 -> 160.9970088 | T16: =T45/T9 -> 165.826919 | V16: =V45/V9 -> 170.8592468 | X16: =X45/X9 -> 175.9256701 | Z16: =Z45/Z9 -> 181.2034402 | AB16: =AB45/AB9 -> 186.6395434
B17: TRevPAR Growth | D17: 12 | E17: =E16 -> 0.654 | F17: 2029-04-30 | G17: 882.9 | H17: N/A | J17: =(J16/H16)-1 -> 0.481300586 | L17: =(L16/J16)-1 -> 0.05268885671 | N17: =(N16/L16)-1 -> 0.0303468679 | P17: =(P16/N16)-1 -> 0.02965261476 | R17: =(R16/P16)-1 -> 0.03 | T17: =(T16/R16)-1 -> 0.03 | V17: =(V16/T16)-1 -> 0.03034686868 | X17: =(X16/V16)-1 -> 0.02965261398 | Z17: =(Z16/X16)-1 -> 0.03 | AB17: =(AB16/Z16)-1 -> 0.03
H18: $ | I18: % | J18: $ | K18: % | L18: $ | M18: % | N18: $ | O18: % | P18: $ | Q18: % | R18: $ | S18: % | T18: $ | U18: % | V18: $ | W18: % | X18: $ | Y18: % | Z18: $ | AA18: % | AB18: $ | AC18: %
B19: Departmental Revenues
B20: Rooms | H20: =H14*H9 -> 2058845.625 | I20: =H20/H$39 -> 0.9218289086 | J20: =J14*J9 -> 2931862.5 | K20: =J20/J$39 -> 0.9232035338 | L20: =L14*L9 -> 3078455.625 | M20: =L20/L$39 -> 0.9245559649 | N20: =N14*N9 -> 3179496.443 | O20: =N20/N$39 -> 0.9245559649 | P20: =P14*P9 -> 3265933.573 | Q20: =P20/P$39 -> 0.9245559649 | R20: =R14*R9 -> 3363911.58 | S20: =R20/R$39 -> 0.9245559649 | T20: =T14*T9 -> 3464828.927 | U20: =T20/T$39 -> 0.9245559649 | V20: =V14*V9 -> 3578551.257 | W20: =V20/V$39 -> 0.9245559649 | X20: =X14*X9 -> 3675837.009 | Y20: =X20/X$39 -> 0.9245559649 | Z20: =Z14*Z9 -> 3786112.119 | AA20: =Z20/Z$39 -> 0.9245559649 | AB20: =AB14*AB9 -> 3899695.483 | AC20: =AB20/AB$39 -> 0.9245559649
B21: Food & Beverage | H21: =H23*H$10 -> 119413.0462 | I21: =H21/H$39 -> 0.0534660767 | J21: =J23*J$10 -> 166809.015 | K21: =J21/J$39 -> 0.05252588487 | L21: =L23*L$10 -> 171813.2854 | M21: =L21/L$39 -> 0.05160087306 | N21: =N23*N$10 -> 177452.527 | O21: =N21/N$39 -> 0.05160087306 | P21: =P23*P$10 -> 182276.7145 | Q21: =P21/P$39 -> 0.05160087306 | R21: =R23*R$10 -> 187745.016 | S21: =R21/R$39 -> 0.05160087306 | T21: =T23*T$10 -> 193377.3664 | U21: =T21/T$39 -> 0.05160087306 | V21: =V23*V$10 -> 199724.3825 | W21: =V21/V$39 -> 0.05160087306 | X21: =X23*X$10 -> 205154.0481 | Y21: =X21/X$39 -> 0.05160087306 | Z21: =Z23*Z$10 -> 211308.6695 | AA21: =Z21/Z$39 -> 0.05160087306 | AB21: =AB23*AB$10 -> 217647.9296 | AC21: =AB21/AB$39 -> 0.05160087306
E23: $/Per Occupied Room | H23: 14.5 | J23: =H23*(1+IF($E25=$B$94,$G24,J25)) -> 14.935 | L23: =J23*(1+IF($E25=$B$94,$G24,L25)) -> 15.38305 | N23: =L23*(1+IF($E25=$B$94,$G24,N25)) -> 15.8445415 | P23: =N23*(1+IF($E25=$B$94,$G24,P25)) -> 16.31987775 | R23: =P23*(1+IF($E25=$B$94,$G24,R25)) -> 16.80947408 | T23: =R23*(1+IF($E25=$B$94,$G24,T25)) -> 17.3137583 | V23: =T23*(1+IF($E25=$B$94,$G24,V25)) -> 17.83317105 | X23: =V23*(1+IF($E25=$B$94,$G24,X25)) -> 18.36816618 | Z23: =X23*(1+IF($E25=$B$94,$G24,Z25)) -> 18.91921117 | AB23: =Z23*(1+IF($E25=$B$94,$G24,AB25)) -> 19.4867875
E24: Growth Method (Select Method Below) | G24: 0.03 | H24: =$G24 -> 0.03 | J24: =$G24 -> 0.03 | L24: =$G24 -> 0.03 | N24: =$G24 -> 0.03 | P24: =$G24 -> 0.03 | R24: =$G24 -> 0.03 | T24: =$G24 -> 0.03 | V24: =$G24 -> 0.03 | X24: =$G24 -> 0.03 | Z24: =$G24 -> 0.03 | AB24: =$G24 -> 0.03
E25: Static | G25: Custom Growth (Input Growth For Each Year) | J25: 0.05 | L25: 0.03 | N25: 0.02 | P25: 0.02 | R25: 0.02 | T25: 0.02 | V25: 0.02 | X25: 0.02 | Z25: 0.02 | AB25: 0.02
B27: Other Operated Departments | H27: =H29*H$10 -> 41176.9125 | I27: =H27/H$39 -> 0.01843657817 | J27: =J29*J$10 -> 57520.35 | K27: =J27/J$39 -> 0.01811237409 | L27: =L29*L$10 -> 59245.9605 | M27: =L27/L$39 -> 0.0177934045 | N27: =N29*N$10 -> 61190.52655 | O27: =N27/N$39 -> 0.0177934045 | P27: =P29*P$10 -> 62854.03949 | Q27: =P27/P$39 -> 0.0177934045 | R27: =R29*R$10 -> 64739.66068 | S27: =R27/R$39 -> 0.0177934045 | T27: =T29*T$10 -> 66681.8505 | U27: =T27/T$39 -> 0.0177934045 | V27: =V29*V$10 -> 68870.47672 | W27: =V27/V$39 -> 0.0177934045 | X27: =X29*X$10 -> 70742.7752 | Y27: =X27/X$39 -> 0.0177934045 | Z27: =Z29*Z$10 -> 72865.05845 | AA27: =Z27/Z$39 -> 0.0177934045 | AB27: =AB29*AB$10 -> 75051.0102 | AC27: =AB27/AB$39 -> 0.0177934045
E29: $/Per Occupied Room | H29: 5 | J29: =H29*(1+IF($E31=$B$94,$G30,J31)) -> 5.15 | L29: =J29*(1+IF($E31=$B$94,$G30,L31)) -> 5.3045 | N29: =L29*(1+IF($E31=$B$94,$G30,N31)) -> 5.463635 | P29: =N29*(1+IF($E31=$B$94,$G30,P31)) -> 5.62754405 | R29: =P29*(1+IF($E31=$B$94,$G30,R31)) -> 5.796370372 | T29: =R29*(1+IF($E31=$B$94,$G30,T31)) -> 5.970261483 | V29: =T29*(1+IF($E31=$B$94,$G30,V31)) -> 6.149369327 | X29: =V29*(1+IF($E31=$B$94,$G30,X31)) -> 6.333850407 | Z29: =X29*(1+IF($E31=$B$94,$G30,Z31)) -> 6.523865919 | AB29: =Z29*(1+IF($E31=$B$94,$G30,AB31)) -> 6.719581897
E30: Growth Method (Select Method Below) | G30: 0.03 | J30: =$G30 -> 0.03 | L30: =$G30 -> 0.03 | N30: =$G30 -> 0.03 | P30: =$G30 -> 0.03 | R30: =$G30 -> 0.03 | T30: =$G30 -> 0.03 | V30: =$G30 -> 0.03 | X30: =$G30 -> 0.03 | Z30: =$G30 -> 0.03 | AB30: =$G30 -> 0.03
E31: Static | G31: Custom Growth (Input Growth For Each Year) | J31: 0.04 | L31: 0.03 | N31: 0.02 | P31: 0.02 | R31: 0.02 | T31: 0.02 | V31: 0.02 | X31: 0.02 | Z31: 0.02 | AB31: 0.02
B33: Misc. Income | H33: =H35*H$10 -> 14000.15025 | I33: =H33/H$39 -> 0.006268436578 | J33: =J35*J$10 -> 19556.919 | K33: =J33/J$39 -> 0.006158207191 | L33: =L35*L$10 -> 20143.62657 | M33: =L33/L$39 -> 0.006049757531 | N33: =N35*N$10 -> 20804.77903 | O33: =N33/N$39 -> 0.006049757531 | P33: =P35*P$10 -> 21370.37343 | Q33: =P33/P$39 -> 0.006049757531 | R33: =R35*R$10 -> 22011.48463 | S33: =R33/R$39 -> 0.006049757531 | T33: =T35*T$10 -> 22671.82917 | U33: =T33/T$39 -> 0.006049757531 | V33: =V35*V$10 -> 23415.96208 | W33: =V33/V$39 -> 0.006049757531 | X33: =X35*X$10 -> 24052.54357 | Y33: =X33/X$39 -> 0.006049757531 | Z33: =Z35*Z$10 -> 24774.11987 | AA33: =Z33/Z$39 -> 0.006049757531 | AB33: =AB35*AB$10 -> 25517.34347 | AC33: =AB33/AB$39 -> 0.006049757531
E35: $/Per Occupied Room | H35: 1.7 | J35: =H35*(1+IF($E37=$B$94,$G36,J37)) -> 1.751 | L35: =J35*(1+IF($E37=$B$94,$G36,L37)) -> 1.80353 | N35: =L35*(1+IF($E37=$B$94,$G36,N37)) -> 1.8576359 | P35: =N35*(1+IF($E37=$B$94,$G36,P37)) -> 1.913364977 | R35: =P35*(1+IF($E37=$B$94,$G36,R37)) -> 1.970765926 | T35: =R35*(1+IF($E37=$B$94,$G36,T37)) -> 2.029888904 | V35: =T35*(1+IF($E37=$B$94,$G36,V37)) -> 2.090785571 | X35: =V35*(1+IF($E37=$B$94,$G36,X37)) -> 2.153509138 | Z35: =X35*(1+IF($E37=$B$94,$G36,Z37)) -> 2.218114413 | AB35: =Z35*(1+IF($E37=$B$94,$G36,AB37)) -> 2.284657845
E36: Growth Method (Select Method Below) | G36: 0.03 | J36: =$G36 -> 0.03 | L36: =$G36 -> 0.03 | N36: =$G36 -> 0.03 | P36: =$G36 -> 0.03 | R36: =$G36 -> 0.03 | T36: =$G36 -> 0.03 | V36: =$G36 -> 0.03 | X36: =$G36 -> 0.03 | Z36: =$G36 -> 0.03 | AB36: =$G36 -> 0.03
E37: Static | G37: Custom Growth (Input Growth For Each Year) | J37: 0.04 | L37: 0.03 | N37: 0.02 | P37: 0.02 | R37: 0.02 | T37: 0.02 | V37: 0.02 | X37: 0.02 | Z37: 0.02 | AB37: 0.02
B39: Total Revenue | H39: =+H20+H21+H27+H33 -> 2233435.734 | I39: =H39/H$39 -> 1 | J39: =+J20+J21+J27+J33 -> 3175748.784 | K39: =J39/J$39 -> 1 | L39: =+L20+L21+L27+L33 -> 3329658.498 | M39: =L39/L$39 -> 1 | N39: =+N20+N21+N27+N33 -> 3438944.275 | O39: =N39/N$39 -> 1 | P39: =+P20+P21+P27+P33 -> 3532434.7 | Q39: =P39/P$39 -> 1 | R39: =+R20+R21+R27+R33 -> 3638407.741 | S39: =R39/R$39 -> 1 | T39: =+T20+T21+T27+T33 -> 3747559.973 | U39: =T39/T$39 -> 1 | V39: =+V20+V21+V27+V33 -> 3870562.079 | W39: =V39/V$39 -> 1 | X39: =+X20+X21+X27+X33 -> 3975786.376 | Y39: =X39/X$39 -> 1 | Z39: =+Z20+Z21+Z27+Z33 -> 4095059.967 | AA39: =Z39/Z$39 -> 1 | AB39: =+AB20+AB21+AB27+AB33 -> 4217911.766 | AC39: =AB39/AB$39 -> 1
B40: Departmental Expenses | D40: % Fixed | E40: % Variable | G40: Inflation
B41: Rooms | D41: 0.36 | E41: =1-D41 -> 0.64 | G41: 0.03 | H41: 394764.3296 | I41: =H41/H20 -> 0.1917406166 | J41: =H41*$D41*(1+$G41)+(H41*$E41*J20/H20) -> 506159.1725 | K41: =J41/J20 -> 0.172640829 | L41: =J41*$D41*(1+$G41)+(J41*$E41*L20/J20) -> 527822.785 | M41: =L41/L20 -> 0.1714570062 | N41: =L41*$D41*(1+$G41)+(L41*$E41*N20/L20) -> 544610.731 | O41: =N41/N20 -> 0.1712883599 | P41: =N41*$D41*(1+$G41)+(N41*$E41*P20/N20) -> 559968.1584 | Q41: =P41/P20 -> 0.1714573019 | R41: =P41*$D41*(1+$G41)+(P41*$E41*R20/P20) -> 576767.2032 | S41: =R41/R20 -> 0.1714573019 | T41: =R41*$D41*(1+$G41)+(R41*$E41*T20/R20) -> 594070.2193 | U41: =T41/T20 -> 0.1714573019 | V41: =T41*$D41*(1+$G41)+(T41*$E41*V20/T20) -> 612965.2329 | W41: =V41/V20 -> 0.1712886553 | X41: =V41*$D41*(1+$G41)+(V41*$E41*X20/V20) -> 630250.1826 | Y41: =X41/X20 -> 0.1714575976 | Z41: =X41*$D41*(1+$G41)+(X41*$E41*Z20/X20) -> 649157.6881 | AA41: =Z41/Z20 -> 0.1714575976 | AB41: =Z41*$D41*(1+$G41)+(Z41*$E41*AB20/Z20) -> 668632.4187 | AC41: =AB41/AB20 -> 0.1714575976
B42: Food & Beverage | D42: 0.29 | E42: =1-D42 -> 0.71 | G42: 0.03 | H42: 240683.6828 | I42: =H42/H21 -> 2.015556008 | J42: =H42*$D42*(1+$G42)+(H42*$E42*J21/H21) -> 310603.3838 | K42: =J42/J21 -> 1.862029962 | L42: =J42*$D42*(1+$G42)+(J42*$E42*L21/J21) -> 319921.4853 | M42: =L42/L21 -> 1.862029962 | N42: =L42*$D42*(1+$G42)+(L42*$E42*N21/L21) -> 330160.1123 | O42: =N42/N21 -> 1.860554583 | P42: =N42*$D42*(1+$G42)+(N42*$E42*P21/N21) -> 339405.2269 | Q42: =P42/P21 -> 1.862032832 | R42: =P42*$D42*(1+$G42)+(P42*$E42*R21/P21) -> 349587.3837 | S42: =R42/R21 -> 1.862032832 | T42: =R42*$D42*(1+$G42)+(R42*$E42*T21/R21) -> 360075.0052 | U42: =T42/T21 -> 1.862032832 | V42: =T42*$D42*(1+$G42)+(T42*$E42*V21/T21) -> 371598.6878 | W42: =V42/V21 -> 1.86055745 | X42: =V42*$D42*(1+$G42)+(V42*$E42*X21/V21) -> 382004.1618 | Y42: =X42/X21 -> 1.862035701 | Z42: =X42*$D42*(1+$G42)+(X42*$E42*Z21/X21) -> 393464.2867 | AA42: =Z42/Z21 -> 1.862035701 | AB42: =Z42*$D42*(1+$G42)+(Z42*$E42*AB21/Z21) -> 405268.2153 | AC42: =AB42/AB21 -> 1.862035701
B43: Other Operated Departments | D43: 0.25 | E43: =1-D43 -> 0.75 | G43: 0.03 | H43: 46070.47895 | I43: =H43/H27 -> 1.118842481 | J43: =H43*$D43*(1+$G43)+(H43*$E43*J27/H27) -> 60130.30666 | K43: =J43/J27 -> 1.045374492 | L43: =J43*$D43*(1+$G43)+(J43*$E43*L27/J27) -> 61934.21586 | M43: =L43/L27 -> 1.045374492 | N43: =L43*$D43*(1+$G43)+(L43*$E43*N27/L27) -> 63923.32229 | O43: =N43/N27 -> 1.044660438 | P43: =N43*$D43*(1+$G43)+(N43*$E43*P27/N27) -> 65706.10183 | Q43: =P43/P27 -> 1.045375959 | R43: =P43*$D43*(1+$G43)+(P43*$E43*R27/P27) -> 67677.28488 | S43: =R43/R27 -> 1.045375959 | T43: =R43*$D43*(1+$G43)+(R43*$E43*T27/R27) -> 69707.60343 | U43: =T43/T27 -> 1.045375959 | V43: =T43*$D43*(1+$G43)+(T43*$E43*V27/T27) -> 71946.36338 | W43: =V43/V27 -> 1.044661905 | X43: =V43*$D43*(1+$G43)+(V43*$E43*X27/V27) -> 73952.90028 | Y43: =X43/X27 -> 1.045377426 | Z43: =X43*$D43*(1+$G43)+(X43*$E43*Z27/X27) -> 76171.48728 | AA43: =Z43/Z27 -> 1.045377426 | AB43: =Z43*$D43*(1+$G43)+(Z43*$E43*AB27/Z27) -> 78456.6319 | AC43: =AB43/AB27 -> 1.045377426
B44: Total Departmental Expenses | H44: =SUM(H41:H43) -> 681518.4913 | I44: =H44/H$39 -> 0.3051435423 | J44: =SUM(J41:J43) -> 876892.8629 | K44: =J44/J$39 -> 0.2761216087 | L44: =SUM(L41:L43) -> 909678.4862 | M44: =L44/L$39 -> 0.2732047406 | N44: =SUM(N41:N43) -> 938694.1656 | O44: =N44/N$39 -> 0.2729599815 | P44: =SUM(P41:P43) -> 965079.4871 | Q44: =P44/P$39 -> 0.2732051882 | R44: =SUM(R41:R43) -> 994031.8717 | S44: =R44/R$39 -> 0.2732051882 | T44: =SUM(T41:T43) -> 1023852.828 | U44: =T44/T$39 -> 0.2732051882 | V44: =SUM(V41:V43) -> 1056510.284 | W44: =V44/V$39 -> 0.2729604287 | X44: =SUM(X41:X43) -> 1086207.245 | Y44: =X44/X$39 -> 0.2732056358 | Z44: =SUM(Z41:Z43) -> 1118793.462 | AA44: =Z44/Z$39 -> 0.2732056358 | AB44: =SUM(AB41:AB43) -> 1152357.266 | AC44: =AB44/AB$39 -> 0.2732056358
B45: DEPARTMENTAL PROFIT | H45: =H39-H44 -> 1551917.243 | I45: =H45/H$39 -> 0.6948564577 | J45: =J39-J44 -> 2298855.921 | K45: =J45/J$39 -> 0.7238783913 | L45: =+L39-L44 -> 2419980.011 | M45: =L45/L$39 -> 0.7267952594 | N45: =+N39-N44 -> 2500250.109 | O45: =N45/N$39 -> 0.7270400185 | P45: =+P39-P44 -> 2567355.213 | Q45: =P45/P$39 -> 0.7267948118 | R45: =+R39-R44 -> 2644375.869 | S45: =R45/R$39 -> 0.7267948118 | T45: =+T39-T44 -> 2723707.145 | U45: =T45/T$39 -> 0.7267948118 | V45: =+V39-V44 -> 2814051.795 | W45: =V45/V$39 -> 0.7270395713 | X45: =+X39-X44 -> 2889579.131 | Y45: =X45/X$39 -> 0.7267943642 | Z45: =+Z39-Z44 -> 2976266.505 | AA45: =Z45/Z$39 -> 0.7267943642 | AB45: =+AB39-AB44 -> 3065554.5 | AC45: =AB45/AB$39 -> 0.7267943642
B46: Undistributed Expenses
B47: Admin. & General | H47: =H49*H$10 -> 104177.5886 | I47: =H47/H$39 -> 0.04664454277 | J47: =J49*J$10 -> 144113.607 | K47: =J47/J$39 -> 0.04537941028 | L47: =L49*L$10 -> 146995.8791 | M47: =L47/L$39 -> 0.04414743411 | N47: =N49*N$10 -> 150346.5797 | O47: =N47/N$39 -> 0.04371881825 | P47: =P49*P$10 -> 152934.5127 | Q47: =P47/P$39 -> 0.0432943637 | R47: =R49*R$10 -> 155993.2029 | S47: =R47/R$39 -> 0.04287403007 | T47: =T49*T$10 -> 159113.067 | U47: =T47/T$39 -> 0.04245777735 | V47: =V49*V$10 -> 162739.973 | W47: =V47/V$39 -> 0.04204556592 | X47: =X49*X$10 -> 165541.2349 | Y47: =X47/X$39 -> 0.04163735655 | Z47: =Z49*Z$10 -> 168852.0596 | AA47: =Z47/Z$39 -> 0.04123311037 | AB47: =AB49*AB$10 -> 172229.1008 | AC47: =AB47/AB$39 -> 0.04083278891
E49: $/Per Occupied Room | H49: 12.65 | J49: =H49*(1+IF($E51=$B$94,$G50,J51)) -> 12.903 | L49: =J49*(1+IF($E51=$B$94,$G50,L51)) -> 13.16106 | N49: =L49*(1+IF($E51=$B$94,$G50,N51)) -> 13.4242812 | P49: =N49*(1+IF($E51=$B$94,$G50,P51)) -> 13.69276682 | R49: =P49*(1+IF($E51=$B$94,$G50,R51)) -> 13.96662216 | T49: =R49*(1+IF($E51=$B$94,$G50,T51)) -> 14.2459546 | V49: =T49*(1+IF($E51=$B$94,$G50,V51)) -> 14.5308737 | X49: =V49*(1+IF($E51=$B$94,$G50,X51)) -> 14.82149117 | Z49: =X49*(1+IF($E51=$B$94,$G50,Z51)) -> 15.11792099 | AB49: =Z49*(1+IF($E51=$B$94,$G50,AB51)) -> 15.42027941
E50: Growth Method (Select Method Below) | G50: 0.03 | H50: =$G50 -> 0.03 | J50: =$G50 -> 0.03 | L50: =$G50 -> 0.03 | N50: =$G50 -> 0.03 | P50: =$G50 -> 0.03 | R50: =$G50 -> 0.03 | T50: =$G50 -> 0.03 | V50: =$G50 -> 0.03 | X50: =$G50 -> 0.03 | Z50: =$G50 -> 0.03 | AB50: =$G50 -> 0.03
E51: Custom | G51: Custom Growth (Input Growth For Each Year) | J51: 0.02 | L51: 0.02 | N51: 0.02 | P51: 0.02 | R51: 0.02 | T51: 0.02 | V51: 0.02 | X51: 0.02 | Z51: 0.02 | AB51: 0.02
B53: Information and Telecommunications Systems | H53: =H55*H$10 -> 20176.68713 | I53: =H53/H$39 -> 0.009033923304 | J53: =J55*J$10 -> 28184.9715 | K53: =J53/J$39 -> 0.008875063305 | L53: =L55*L$10 -> 29030.52065 | M53: =L53/L$39 -> 0.008718768206 | N53: =N55*N$10 -> 29983.35801 | O53: =N53/N$39 -> 0.008718768206 | P53: =P55*P$10 -> 30798.47935 | Q53: =P53/P$39 -> 0.008718768206 | R53: =R55*R$10 -> 31722.43373 | S53: =R53/R$39 -> 0.008718768206 | T53: =T55*T$10 -> 32674.10674 | U53: =T53/T$39 -> 0.008718768206 | V53: =V55*V$10 -> 33746.53359 | W53: =V53/V$39 -> 0.008718768206 | X53: =X55*X$10 -> 34663.95985 | Y53: =X53/X$39 -> 0.008718768206 | Z53: =Z55*Z$10 -> 35703.87864 | AA53: =Z53/Z$39 -> 0.008718768206 | AB53: =AB55*AB$10 -> 36774.995 | AC53: =AB53/AB$39 -> 0.008718768206
E55: $/Per Occupied Room | H55: 2.45 | J55: =H55*(1+IF($E57=$B$94,$G56,J57)) -> 2.5235 | L55: =J55*(1+IF($E57=$B$94,$G56,L57)) -> 2.599205 | N55: =L55*(1+IF($E57=$B$94,$G56,N57)) -> 2.67718115 | P55: =N55*(1+IF($E57=$B$94,$G56,P57)) -> 2.757496585 | R55: =P55*(1+IF($E57=$B$94,$G56,R57)) -> 2.840221482 | T55: =R55*(1+IF($E57=$B$94,$G56,T57)) -> 2.925428126 | V55: =T55*(1+IF($E57=$B$94,$G56,V57)) -> 3.01319097 | X55: =V55*(1+IF($E57=$B$94,$G56,X57)) -> 3.103586699 | Z55: =X55*(1+IF($E57=$B$94,$G56,Z57)) -> 3.1966943 | AB55: =Z55*(1+IF($E57=$B$94,$G56,AB57)) -> 3.292595129
E56: Growth Method (Select Method Below) | G56: 0.03 | H56: =$G56 -> 0.03 | J56: =$G56 -> 0.03 | L56: =$G56 -> 0.03 | N56: =$G56 -> 0.03 | P56: =$G56 -> 0.03 | R56: =$G56 -> 0.03 | T56: =$G56 -> 0.03 | V56: =$G56 -> 0.03 | X56: =$G56 -> 0.03 | Z56: =$G56 -> 0.03 | AB56: =$G56 -> 0.03
E57: Static | G57: Custom Growth (Input Growth For Each Year) | J57: 0.04 | L57: 0.03 | N57: 0.02 | P57: 0.02 | R57: 0.02 | T57: 0.02 | V57: 0.02 | X57: 0.02 | Z57: 0.02 | AB57: 0.02
B59: Sales & Marketing | H59: =H61*H$10 -> 41073.20389 | I59: =H59/H$39 -> 0.01839014361 | J59: =J61*J$10 -> 57375.47863 | K59: =J59/J$39 -> 0.01806675607 | L59: =L61*L$10 -> 59096.74299 | M59: =L59/L$39 -> 0.01774858984 | N59: =N61*N$10 -> 61036.41143 | O59: =N59/N$39 -> 0.01774858984 | P59: =P61*P$10 -> 62695.73464 | Q59: =P59/P$39 -> 0.01774858984 | R59: =R61*R$10 -> 64576.60668 | S59: =R59/R$39 -> 0.01774858984 | T59: =T61*T$10 -> 66513.90488 | U59: =T59/T$39 -> 0.01774858984 | V59: =V61*V$10 -> 68697.0188 | W59: =V59/V$39 -> 0.01774858984 | X59: =X61*X$10 -> 70564.60169 | Y59: =X59/X$39 -> 0.01774858984 | Z59: =Z61*Z$10 -> 72681.53974 | AA59: =Z59/Z$39 -> 0.01774858984 | AB59: =AB61*AB$10 -> 74861.98593 | AC59: =AB59/AB$39 -> 0.01774858984
E61: $/Per Occupied Room | H61: 4.987406947 | J61: =H61*(1+IF($E63=$B$94,$G62,J63)) -> 5.137029155 | L61: =J61*(1+IF($E63=$B$94,$G62,L63)) -> 5.29114003 | N61: =L61*(1+IF($E63=$B$94,$G62,N63)) -> 5.449874231 | P61: =N61*(1+IF($E63=$B$94,$G62,P63)) -> 5.613370458 | R61: =P61*(1+IF($E63=$B$94,$G62,R63)) -> 5.781771571 | T61: =R61*(1+IF($E63=$B$94,$G62,T63)) -> 5.955224719 | V61: =T61*(1+IF($E63=$B$94,$G62,V63)) -> 6.13388146 | X61: =V61*(1+IF($E63=$B$94,$G62,X63)) -> 6.317897904 | Z61: =X61*(1+IF($E63=$B$94,$G62,Z63)) -> 6.507434841 | AB61: =Z61*(1+IF($E63=$B$94,$G62,AB63)) -> 6.702657886
E62: Growth Method (Select Method Below) | G62: 0.03 | H62: =$G62 -> 0.03 | J62: =$G62 -> 0.03 | L62: =$G62 -> 0.03 | N62: =$G62 -> 0.03 | P62: =$G62 -> 0.03 | R62: =$G62 -> 0.03 | T62: =$G62 -> 0.03 | V62: =$G62 -> 0.03 | X62: =$G62 -> 0.03 | Z62: =$G62 -> 0.03 | AB62: =$G62 -> 0.03
E63: Static | G63: Custom Growth (Input Growth For Each Year) | J63: 0.04 | L63: 0.03 | N63: 0.02 | P63: 0.02 | R63: 0.02 | T63: 0.02 | V63: 0.02 | X63: 0.02 | Z63: 0.02 | AB63: 0.02
B65: Prop. Op. & Maintenance | H65: =H67*H$10 -> 116942.4315 | I65: =H65/H$39 -> 0.05235988201 | J65: =J67*J$10 -> 163357.794 | K65: =J65/J$39 -> 0.05143914242 | L65: =L67*L$10 -> 168258.5278 | M65: =L65/L$39 -> 0.05053326879 | N65: =N67*N$10 -> 173781.0954 | O65: =N65/N$39 -> 0.05053326879 | P65: =P67*P$10 -> 178505.4722 | Q65: =P65/P$39 -> 0.05053326879 | R65: =R67*R$10 -> 183860.6363 | S65: =R65/R$39 -> 0.05053326879 | T65: =T67*T$10 -> 189376.4554 | U65: =T65/T$39 -> 0.05053326879 | V65: =V67*V$10 -> 195592.1539 | W65: =V65/V$39 -> 0.05053326879 | X65: =X67*X$10 -> 200909.4816 | Y65: =X65/X$39 -> 0.05053326879 | Z65: =Z67*Z$10 -> 206936.766 | AA65: =Z65/Z$39 -> 0.05053326879 | AB65: =AB67*AB$10 -> 213144.869 | AC65: =AB65/AB$39 -> 0.05053326879
E67: $/Per Occupied Room | H67: 14.2 | J67: =H67*(1+IF($E69=$B$94,$G68,J69)) -> 14.626 | L67: =J67*(1+IF($E69=$B$94,$G68,L69)) -> 15.06478 | N67: =L67*(1+IF($E69=$B$94,$G68,N69)) -> 15.5167234 | P67: =N67*(1+IF($E69=$B$94,$G68,P69)) -> 15.9822251 | R67: =P67*(1+IF($E69=$B$94,$G68,R69)) -> 16.46169186 | T67: =R67*(1+IF($E69=$B$94,$G68,T69)) -> 16.95554261 | V67: =T67*(1+IF($E69=$B$94,$G68,V69)) -> 17.46420889 | X67: =V67*(1+IF($E69=$B$94,$G68,X69)) -> 17.98813516 | Z67: =X67*(1+IF($E69=$B$94,$G68,Z69)) -> 18.52777921 | AB67: =Z67*(1+IF($E69=$B$94,$G68,AB69)) -> 19.08361259
E68: Growth Method (Select Method Below) | G68: 0.03 | H68: =$G68 -> 0.03 | J68: =$G68 -> 0.03 | L68: =$G68 -> 0.03 | N68: =$G68 -> 0.03 | P68: =$G68 -> 0.03 | R68: =$G68 -> 0.03 | T68: =$G68 -> 0.03 | V68: =$G68 -> 0.03 | X68: =$G68 -> 0.03 | Z68: =$G68 -> 0.03 | AB68: =$G68 -> 0.03
E69: Static | G69: Custom Growth (Input Growth For Each Year) | J69: 0.04 | L69: 0.03 | N69: 0.02 | P69: 0.02 | R69: 0.02 | T69: 0.02 | V69: 0.02 | X69: 0.02 | Z69: 0.02 | AB69: 0.02
B71: Utilities | H71: =H73*H$10 -> 62588.907 | I71: =H71/H$39 -> 0.02802359882 | J71: =J73*J$10 -> 87430.932 | K71: =J71/J$39 -> 0.02753080862 | L71: =L73*L$10 -> 90053.85996 | M71: =L71/L$39 -> 0.02704597484 | N71: =N73*N$10 -> 93009.60035 | O71: =N71/N$39 -> 0.02704597484 | P71: =P73*P$10 -> 95538.14003 | Q71: =P71/P$39 -> 0.02704597484 | R71: =R73*R$10 -> 98404.28423 | S71: =R71/R$39 -> 0.02704597484 | T71: =T73*T$10 -> 101356.4128 | U71: =T71/T$39 -> 0.02704597484 | V71: =V73*V$10 -> 104683.1246 | W71: =V71/V$39 -> 0.02704597484 | X71: =X73*X$10 -> 107529.0183 | Y71: =X71/X$39 -> 0.02704597484 | Z71: =Z73*Z$10 -> 110754.8888 | AA71: =Z71/Z$39 -> 0.02704597484 | AB71: =AB73*AB$10 -> 114077.5355 | AC71: =AB71/AB$39 -> 0.02704597484
E73: $/Per Occupied Room | H73: 7.6 | J73: =H73*(1+IF($E75=$B$94,$G74,J75)) -> 7.828 | L73: =J73*(1+IF($E75=$B$94,$G74,L75)) -> 8.06284 | N73: =L73*(1+IF($E75=$B$94,$G74,N75)) -> 8.3047252 | P73: =N73*(1+IF($E75=$B$94,$G74,P75)) -> 8.553866956 | R73: =P73*(1+IF($E75=$B$94,$G74,R75)) -> 8.810482965 | T73: =R73*(1+IF($E75=$B$94,$G74,T75)) -> 9.074797454 | V73: =T73*(1+IF($E75=$B$94,$G74,V75)) -> 9.347041377 | X73: =V73*(1+IF($E75=$B$94,$G74,X75)) -> 9.627452619 | Z73: =X73*(1+IF($E75=$B$94,$G74,Z75)) -> 9.916276197 | AB73: =Z73*(1+IF($E75=$B$94,$G74,AB75)) -> 10.21376448
E74: Growth Method (Select Method Below) | G74: 0.03 | H74: =$G74 -> 0.03 | J74: =$G74 -> 0.03 | L74: =$G74 -> 0.03 | N74: =$G74 -> 0.03 | P74: =$G74 -> 0.03 | R74: =$G74 -> 0.03 | T74: =$G74 -> 0.03 | V74: =$G74 -> 0.03 | X74: =$G74 -> 0.03 | Z74: =$G74 -> 0.03 | AB74: =$G74 -> 0.03
E75: Static | G75: Custom Growth (Input Growth For Each Year) | J75: 0.02 | L75: 0.02 | N75: 0.02 | P75: 0.02 | R75: 0.02 | T75: 0.02 | V75: 0.02 | X75: 0.02 | Z75: 0.02 | AB75: 0.02
B77: Total Undistributed Expenses | H77: =+H71+H65+H59+H53+H47 -> 344958.8181 | I77: =H77/H$39 -> 0.1544520905 | J77: =+J71+J65+J59+J53+J47 -> 480462.7831 | K77: =J77/J$39 -> 0.1512911807 | L77: =+L71+L65+L59+L53+L47 -> 493435.5306 | M77: =L77/L$39 -> 0.1481940358 | N77: =+N71+N65+N59+N53+N47 -> 508157.0449 | O77: =N77/N$39 -> 0.1477654199 | P77: =+P71+P65+P59+P53+P47 -> 520472.3388 | Q77: =P77/P$39 -> 0.1473409654 | R77: =+R71+R65+R59+R53+R47 -> 534557.1639 | S77: =R77/R$39 -> 0.1469206318 | T77: =+T71+T65+T59+T53+T47 -> 549033.9468 | U77: =T77/T$39 -> 0.146504379 | V77: =+V71+V65+V59+V53+V47 -> 565458.8039 | W77: =V77/V$39 -> 0.1460921676 | X77: =+X71+X65+X59+X53+X47 -> 579208.2963 | Y77: =X77/X$39 -> 0.1456839582 | Z77: =+Z71+Z65+Z59+Z53+Z47 -> 594929.1328 | AA77: =Z77/Z$39 -> 0.145279712 | AB77: =+AB71+AB65+AB59+AB53+AB47 -> 611088.4862 | AC77: =AB77/AB$39 -> 0.1448793906
B78: GROSS OPERATING PROFIT | H78: =H45-H77 -> 1206958.425 | I78: =H78/H$39 -> 0.5404043672 | J78: =J45-J77 -> 1818393.138 | K78: =J78/J$39 -> 0.5725872106 | L78: =L45-L77 -> 1926544.481 | M78: =L78/L$39 -> 0.5786012236 | N78: =N45-N77 -> 1992093.065 | O78: =N78/N$39 -> 0.5792745986 | P78: =P45-P77 -> 2046882.874 | Q78: =P78/P$39 -> 0.5794538464 | R78: =R45-R77 -> 2109818.705 | S78: =R78/R$39 -> 0.57987418 | T78: =T45-T77 -> 2174673.199 | U78: =T78/T$39 -> 0.5802904327 | V78: =V45-V77 -> 2248592.991 | W78: =V78/V$39 -> 0.5809474037 | X78: =X45-X77 -> 2310370.835 | Y78: =X78/X$39 -> 0.5811104059 | Z78: =Z45-Z77 -> 2381337.372 | AA78: =Z78/Z$39 -> 0.5815146521 | AB78: =AB45-AB77 -> 2454466.014 | AC78: =AB78/AB$39 -> 0.5819149736
B79: Management Fee | G79: 0.03 | H79: =$G$79*H$39 -> 67003.07202 | I79: =H79/H$39 -> 0.03 | J79: =$G$79*J$39 -> 95272.46352 | K79: =J79/J$39 -> 0.03 | L79: =$G$79*L$39 -> 99889.75493 | M79: =L79/L$39 -> 0.03 | N79: =$G$79*N$39 -> 103168.3283 | O79: =N79/N$39 -> 0.03 | P79: =$G$79*P$39 -> 105973.041 | Q79: =P79/P$39 -> 0.03 | R79: =$G$79*R$39 -> 109152.2322 | S79: =R79/R$39 -> 0.03 | T79: =$G$79*T$39 -> 112426.7992 | U79: =T79/T$39 -> 0.03 | V79: =$G$79*V$39 -> 116116.8624 | W79: =V79/V$39 -> 0.03 | X79: =$G$79*X$39 -> 119273.5913 | Y79: =X79/X$39 -> 0.03 | Z79: =$G$79*Z$39 -> 122851.799 | AA79: =Z79/Z$39 -> 0.03 | AB79: =$G$79*AB$39 -> 126537.353 | AC79: =AB79/AB$39 -> 0.03
B80: INCOME BEFORE FIXED EXPENSES | H80: =H78-H79 -> 1139955.353 | I80: =H80/H$39 -> 0.5104043672 | J80: =J78-J79 -> 1723120.674 | K80: =J80/J$39 -> 0.5425872106 | L80: =L78-L79 -> 1826654.726 | M80: =L80/L$39 -> 0.5486012236 | N80: =N78-N79 -> 1888924.736 | O80: =N80/N$39 -> 0.5492745986 | P80: =P78-P79 -> 1940909.833 | Q80: =P80/P$39 -> 0.5494538464 | R80: =R78-R79 -> 2000666.473 | S80: =R80/R$39 -> 0.54987418 | T80: =T78-T79 -> 2062246.399 | U80: =T80/T$39 -> 0.5502904327 | V80: =V78-V79 -> 2132476.128 | W80: =V80/V$39 -> 0.5509474037 | X80: =X78-X79 -> 2191097.243 | Y80: =X80/X$39 -> 0.5511104059 | Z80: =Z78-Z79 -> 2258485.573 | AA80: =Z80/Z$39 -> 0.5515146521 | AB80: =AB78-AB79 -> 2327928.661 | AC80: =AB80/AB$39 -> 0.5519149736
B81: Fixed Expenses
B82: Property Taxes | H82: 12000 | I82: =H82/H$39 -> 0.005372887976 | J82: =+H82*1.02 -> 12240 | K82: =J82/J$39 -> 0.003854209143 | L82: =+J82*1.02 -> 12484.8 | M82: =L82/L$39 -> 0.00374957372 | N82: =+L82*1.02 -> 12734.496 | O82: =N82/N$39 -> 0.003703024819 | P82: =+N82*1.02 -> 12989.18592 | Q82: =P82/P$39 -> 0.003677119897 | R82: =+P82*1.02 -> 13248.96964 | S82: =R82/R$39 -> 0.003641419704 | T82: =+R82*1.02 -> 13513.94903 | U82: =T82/T$39 -> 0.003606066114 | V82: =+T82*1.02 -> 13784.22801 | W82: =V82/V$39 -> 0.003561298781 | X82: =+V82*1.02 -> 14059.91257 | Y82: =X82/X$39 -> 0.003536385319 | Z82: =+X82*1.02 -> 14341.11082 | AA82: =Z82/Z$39 -> 0.003502051481 | AB82: =+Z82*1.02 -> 14627.93304 | AC82: =AB82/AB$39 -> 0.003468050982
B83: Insurance | H83: 12000 | I83: =H83/H$39 -> 0.005372887976 | J83: =+H83*1.02 -> 12240 | K83: =J83/J$39 -> 0.003854209143 | L83: =+J83*1.02 -> 12484.8 | M83: =L83/L$39 -> 0.00374957372 | N83: =+L83*1.02 -> 12734.496 | O83: =N83/N$39 -> 0.003703024819 | P83: =+N83*1.02 -> 12989.18592 | Q83: =P83/P$39 -> 0.003677119897 | R83: =+P83*1.02 -> 13248.96964 | S83: =R83/R$39 -> 0.003641419704 | T83: =+R83*1.02 -> 13513.94903 | U83: =T83/T$39 -> 0.003606066114 | V83: =+T83*1.02 -> 13784.22801 | W83: =V83/V$39 -> 0.003561298781 | X83: =+V83*1.02 -> 14059.91257 | Y83: =X83/X$39 -> 0.003536385319 | Z83: =+X83*1.02 -> 14341.11082 | AA83: =Z83/Z$39 -> 0.003502051481 | AB83: =+Z83*1.02 -> 14627.93304 | AC83: =AB83/AB$39 -> 0.003468050982
B84: Lease & Rental Expense | H84: 1234 | I84: =H84/H$39 -> 0.0005525119802 | J84: 1435 | K84: =J84/J$39 -> 0.000451861938 | L84: 2123 | M84: =L84/L$39 -> 0.0006376029258 | N84: 2321 | O84: =N84/N$39 -> 0.000674916432 | P84: 2321 | Q84: =P84/P$39 -> 0.0006570539011 | R84: 2321 | S84: =R84/R$39 -> 0.0006379164088 | T84: 2321 | U84: =T84/T$39 -> 0.0006193363192 | V84: 2321 | W84: =V84/V$39 -> 0.0005996545083 | X84: 2321 | Y84: =X84/X$39 -> 0.0005837838809 | Z84: 2321 | AA84: =Z84/Z$39 -> 0.0005667804669 | AB84: 2321 | AC84: =AB84/AB$39 -> 0.000550272298
B85: Total Fixed Expenses | H85: =SUM(H82:H84) -> 25234 | I85: =H85/H$39 -> 0.01129828793 | J85: =SUM(J82:J84) -> 25915 | K85: =J85/J$39 -> 0.008160280224 | L85: =SUM(L82:L84) -> 27092.6 | M85: =L85/L$39 -> 0.008136750366 | N85: =SUM(N82:N84) -> 27789.992 | O85: =N85/N$39 -> 0.008080966069 | P85: =SUM(P82:P84) -> 28299.37184 | Q85: =P85/P$39 -> 0.008011293695 | R85: =SUM(R82:R84) -> 28818.93928 | S85: =R85/R$39 -> 0.007920755816 | T85: =SUM(T82:T84) -> 29348.89806 | U85: =T85/T$39 -> 0.007831468548 | V85: =SUM(V82:V84) -> 29889.45602 | W85: =V85/V$39 -> 0.00772225207 | X85: =SUM(X82:X84) -> 30440.82514 | Y85: =X85/X$39 -> 0.00765655452 | Z85: =SUM(Z82:Z84) -> 31003.22165 | AA85: =Z85/Z$39 -> 0.00757088343 | AB85: =SUM(AB82:AB84) -> 31576.86608 | AC85: =AB85/AB$39 -> 0.007486374261
B86: EBITDA | H86: =H80-H85 -> 1114721.353 | I86: =H86/H$39 -> 0.4991060793 | J86: =J80-J85 -> 1697205.674 | K86: =J86/J$39 -> 0.5344269304 | L86: =L80-L85 -> 1799562.126 | M86: =L86/L$39 -> 0.5404644732 | N86: =N80-N85 -> 1861134.744 | O86: =N86/N$39 -> 0.5411936325 | P86: =P80-P85 -> 1912610.461 | Q86: =P86/P$39 -> 0.5414425527 | R86: =R80-R85 -> 1971847.534 | S86: =R86/R$39 -> 0.5419534242 | T86: =T80-T85 -> 2032897.501 | U86: =T86/T$39 -> 0.5424589642 | V86: =V80-V85 -> 2102586.672 | W86: =V86/V$39 -> 0.5432251517 | X86: =X80-X85 -> 2160656.418 | Y86: =X86/X$39 -> 0.5434538514 | Z86: =Z80-Z85 -> 2227482.351 | AA86: =Z86/Z$39 -> 0.5439437687 | AB86: =AB80-AB85 -> 2296351.795 | AC86: =AB86/AB$39 -> 0.5444285993
B87: Reserve for Replacement | H87: =H39*I87 -> 44668.71468 | I87: =I88 -> 0.02 | J87: =J39*K87 -> 63514.97568 | K87: =K88 -> 0.02 | L87: =L39*M87 -> 99889.75493 | M87: =M88 -> 0.03 | N87: =N39*O87 -> 103168.3283 | O87: =O88 -> 0.03 | P87: =P39*Q87 -> 105973.041 | Q87: =Q88 -> 0.03 | R87: =R39*S87 -> 109152.2322 | S87: =S88 -> 0.03 | T87: =T39*U87 -> 112426.7992 | U87: =U88 -> 0.03 | V87: =V39*W87 -> 116116.8624 | W87: =W88 -> 0.03 | X87: =X39*Y87 -> 119273.5913 | Y87: =Y88 -> 0.03 | Z87: =Z39*AA87 -> 122851.799 | AA87: =AA88 -> 0.03 | AB87: =AB39*AC87 -> 126537.353 | AC87: =AC88 -> 0.03
I88: 0.02 | K88: 0.02 | M88: 0.03 | O88: 0.03 | Q88: 0.03 | S88: 0.03 | U88: 0.03 | W88: 0.03 | Y88: 0.03 | AA88: 0.03 | AC88: 0.03
B89: NET OPERATING INCOME | H89: =H86-H87 -> 1070052.638 | I89: =H89/H$39 -> 0.4791060793 | J89: =J86-J87 -> 1633690.699 | K89: =J89/J$39 -> 0.5144269304 | L89: =L86-L87 -> 1699672.371 | M89: =L89/L$39 -> 0.5104644732 | N89: =N86-N87 -> 1757966.416 | O89: =N89/N$39 -> 0.5111936325 | P89: =P86-P87 -> 1806637.42 | Q89: =P89/P$39 -> 0.5114425527 | R89: =R86-R87 -> 1862695.302 | S89: =R89/R$39 -> 0.5119534242 | T89: =T86-T87 -> 1920470.702 | U89: =T89/T$39 -> 0.5124589642 | V89: =V86-V87 -> 1986469.81 | W89: =V89/V$39 -> 0.5132251517 | X89: =X86-X87 -> 2041382.827 | Y89: =X89/X$39 -> 0.5134538514 | Z89: =Z86-Z87 -> 2104630.552 | AA89: =Z89/Z$39 -> 0.5139437687 | AB89: =AB86-AB87 -> 2169814.442 | AC89: =AB89/AB$39 -> 0.5144285993
B90: Disclaimer: Any information important to you or another party should be independently confirmed within an applicable due diligence period.
B94: Static
B95: Custom

Sheet Budget
D2: =Summary!$B$2 -> Fairways at Mill Creek - Franklin, NC - Version 1.0 | AL2: Budget
D4: Budget
D6: Budget Summary | E6: % | F6: Total | G6: Per Key | H6: $/GSF | N6: Budget Inputs
D7: Total | F7: =F8+F13 -> 12897752.73 | G7: =F7/Summary!$C$9 -> 286616.7274 | H7: =$F7/Summary!$C$10 -> 322.4438183
D8: Total Pre Interest Reserve | F8: =F20 -> 11655600 | G8: =$F8/Summary!$C$9 -> 259013.3333 | H8: =$F8/Summary!$C$10 -> 291.39
D9: =IF(P10="","",P10) -> Acquisition / Land Purchase | F9: =IF(Q10=0,"",Q10) -> 2820600 | G9: =F9/Summary!$C$9 -> 62680 | H9: =$F9/Summary!$C$10 -> 70.515
D10: =IF(T10="","",T10) -> Soft Costs | F10: =IF(U10=0,"",U10) -> 750000 | G10: =F10/Summary!$C$9 -> 16666.66667 | H10: =$F10/Summary!$C$10 -> 18.75 | O10: =IF(OR(P10<>"",Q10<>""),1+O9,"") -> 1 | P10: Acquisition / Land Purchase | Q10: =SUM(Q11:Q39) -> 2820600 | S10: =IF(OR(T10<>"",U10<>""),O39+1) -> 7 | T10: Soft Costs | U10: =SUM(U11:U39) -> 750000 | W10: =IF(OR(X10<>"",Y10<>""),S39+1) -> 16 | X10: Hard Costs | Y10: =SUM(Y11:Y39) -> 6950000 | AA10: =IF(OR(AB10<>"",AC10<>""),W39+1) -> 24 | AB10: FF&E & OS&E | AC10: =SUM(AC11:AC39) -> 390000 | AE10: =IF(OR(AF10<>"",AG10<>""),AA39+1) -> 30 | AF10: Marketing | AG10: =SUM(AG11:AG39) -> 50000 | AI10: =IF(OR(AJ10<>"",AK10<>""),AE39+1) -> 33 | AJ10: Contingency | AK10: =SUM(AK11:AK38) -> 695000
D11: =IF(X10="","",X10) -> Hard Costs | F11: =IF(Y10=0,"",Y10) -> 6950000 | G11: =F11/Summary!$C$9 -> 154444.4444 | H11: =$F11/Summary!$C$10 -> 173.75 | O11: =IF(OR(P11<>"",Q11<>""),1+MAX($O$10:O10),"") -> 2 | P11: Land Purchase | Q11: 2800000 | S11: =IF(OR(T11<>"",U11<>""),1+MAX($S$10:S10),"") -> 8 | T11: Architect - Design Phase | U11: 160000 | W11: =IF(OR(X11<>"",Y11<>""),1+MAX($W$10:W10),"") -> 17 | X11: Sitework | Y11: 750000 | AA11: =IF(OR(AB11<>"",AC11<>""),1+MAX($AA$10:AA10),"") -> 25 | AB11: Furniture | AC11: 100000 | AE11: =IF(OR(AF11<>"",AG11<>""),1+MAX($AE$10:AE10),"") ->  | AI11: =IF(OR(AJ11<>"",AK11<>""),1+MAX($AI$10:AI10),"") -> 34 | AJ11: 10% of Hard Costs | AK11: =Y10*0.1 -> 695000
D12: =IF(AB10="","",AB10) -> FF&E & OS&E | F12: =IF(AC10=0,"",AC10) -> 390000 | G12: =F12/Summary!$C$9 -> 8666.666667 | H12: =$F12/Summary!$C$10 -> 9.75 | O12: =IF(OR(P12<>"",Q12<>""),1+MAX($O$10:O11),"") -> 3 | P12: Transfer Taxes | Q12: 5600 | S12: =IF(OR(T12<>"",U12<>""),1+MAX($S$10:S11),"") -> 9 | T12: Architect - CA | U12: 80000 | W12: =IF(OR(X12<>"",Y12<>""),1+MAX($W$10:W11),"") -> 18 | X12: Foundation | Y12: 200000 | AA12: =IF(OR(AB12<>"",AC12<>""),1+MAX($AA$10:AA11),"") -> 26 | AB12: Fixtures | AC12: 40000 | AE12: =IF(OR(AF12<>"",AG12<>""),1+MAX($AE$10:AE11),"") -> 31 | AF12: General Marketing | AG12: 50000 | AI12: =IF(OR(AJ12<>"",AK12<>""),1+MAX($AI$10:AI11),"") -> 
D13: Interest Reserve + Loan Fees | F13: =F21 -> 1242152.731 | G13: =F13/Summary!$C$9 -> 27603.39402 | H13: =$F13/Summary!$C$10 -> 31.05381827 | O13: =IF(OR(P13<>"",Q13<>""),1+MAX($O$10:O12),"") -> 4 | P13: Legal Costs | Q13: 5000 | S13: =IF(OR(T13<>"",U13<>""),1+MAX($S$10:S12),"") -> 10 | T13: Engineering Consultants (Structural, Civil, MEP, Etc.) | U13: 80000 | W13: =IF(OR(X13<>"",Y13<>""),1+MAX($W$10:W12),"") -> 19 | X13: Structure | Y13: 1200000 | AA13: =IF(OR(AB13<>"",AC13<>""),1+MAX($AA$10:AA12),"") -> 27 | AB13: Equipment | AC13: 200000 | AE13: =IF(OR(AF13<>"",AG13<>""),1+MAX($AE$10:AE12),"") ->  | AI13: =IF(OR(AJ13<>"",AK13<>""),1+MAX($AI$10:AI12),"") -> 
D14: =IF(AF10="","",AF10) -> Marketing | F14: =IF(AG10=0,"",AG10) -> 50000 | G14: =F14/Summary!$C$9 -> 1111.111111 | H14: =$F14/Summary!$C$10 -> 1.25 | O14: =IF(OR(P14<>"",Q14<>""),1+MAX($O$10:O13),"") -> 5 | P14: Pre-Acquisition Due Diligence Costs | Q14: 10000 | S14: =IF(OR(T14<>"",U14<>""),1+MAX($S$10:S13),"") -> 11 | T14: Legal | U14: 30000 | W14: =IF(OR(X14<>"",Y14<>""),1+MAX($W$10:W13),"") -> 20 | X14: MEP | Y14: 1200000 | AA14: =IF(OR(AB14<>"",AC14<>""),1+MAX($AA$10:AA13),"") -> 28 | AB14: Operating Supplies | AC14: 50000 | AE14: =IF(OR(AF14<>"",AG14<>""),1+MAX($AE$10:AE13),"") ->  | AI14: =IF(OR(AJ14<>"",AK14<>""),1+MAX($AI$10:AI13),"") -> 
D15: =IF(AJ10="","",AJ10) -> Contingency | F15: =IF(AK10=0,"",AK10) -> 695000 | G15: =F15/Summary!$C$9 -> 15444.44444 | H15: =$F15/Summary!$C$10 -> 17.375 | O15: =IF(OR(P15<>"",Q15<>""),1+MAX($O$10:O14),"") ->  | S15: =IF(OR(T15<>"",U15<>""),1+MAX($S$10:S14),"") -> 12 | T15: Entitlement Consultants | U15: 30000 | W15: =IF(OR(X15<>"",Y15<>""),1+MAX($W$10:W14),"") -> 21 | X15: Exteriors | Y15: 1600000 | AA15: =IF(OR(AB15<>"",AC15<>""),1+MAX($AA$10:AA14),"") ->  | AE15: =IF(OR(AF15<>"",AG15<>""),1+MAX($AE$10:AE14),"") ->  | AI15: =IF(OR(AJ15<>"",AK15<>""),1+MAX($AI$10:AI14),"") -> 
O16: =IF(OR(P16<>"",Q16<>""),1+MAX($O$10:O15),"") ->  | S16: =IF(OR(T16<>"",U16<>""),1+MAX($S$10:S15),"") -> 13 | T16: Entitlement Fees | U16: 30000 | W16: =IF(OR(X16<>"",Y16<>""),1+MAX($W$10:W15),"") -> 22 | X16: Interiors | Y16: 2000000 | AA16: =IF(OR(AB16<>"",AC16<>""),1+MAX($AA$10:AA15),"") ->  | AE16: =IF(OR(AF16<>"",AG16<>""),1+MAX($AE$10:AE15),"") ->  | AI16: =IF(OR(AJ16<>"",AK16<>""),1+MAX($AI$10:AI15),"") -> 
D17: Budget Detail | E17: % | F17: Total | G17: Per Unit | H17: $/GSF | O17: =IF(OR(P17<>"",Q17<>""),1+MAX($O$10:O16),"") ->  | S17: =IF(OR(T17<>"",U17<>""),1+MAX($S$10:S16),"") -> 14 | T17: G&A | U17: 340000 | W17: =IF(OR(X17<>"",Y17<>""),1+MAX($W$10:W16),"") ->  | AA17: =IF(OR(AB17<>"",AC17<>""),1+MAX($AA$10:AA16),"") ->  | AE17: =IF(OR(AF17<>"",AG17<>""),1+MAX($AE$10:AE16),"") ->  | AI17: =IF(OR(AJ17<>"",AK17<>""),1+MAX($AI$10:AI16),"") -> 
D18: Total | F18: =F20+F21 -> 12897752.73 | G18: =F18/Summary!$C$9 -> 286616.7274 | H18: =$F18/Summary!$C$10 -> 322.4438183 | O18: =IF(OR(P18<>"",Q18<>""),1+MAX($O$10:O17),"") ->  | S18: =IF(OR(T18<>"",U18<>""),1+MAX($S$10:S17),"") ->  | W18: =IF(OR(X18<>"",Y18<>""),1+MAX($W$10:W17),"") ->  | AA18: =IF(OR(AB18<>"",AC18<>""),1+MAX($AA$10:AA17),"") ->  | AE18: =IF(OR(AF18<>"",AG18<>""),1+MAX($AE$10:AE17),"") ->  | AI18: =IF(OR(AJ18<>"",AK18<>""),1+MAX($AI$10:AI17),"") -> 
O19: =IF(OR(P19<>"",Q19<>""),1+MAX($O$10:O18),"") ->  | S19: =IF(OR(T19<>"",U19<>""),1+MAX($S$10:S18),"") ->  | W19: =IF(OR(X19<>"",Y19<>""),1+MAX($W$10:W18),"") ->  | AA19: =IF(OR(AB19<>"",AC19<>""),1+MAX($AA$10:AA18),"") ->  | AE19: =IF(OR(AF19<>"",AG19<>""),1+MAX($AE$10:AE18),"") ->  | AI19: =IF(OR(AJ19<>"",AK19<>""),1+MAX($AI$10:AI18),"") -> 
D20: Total Pre-Interest Reserve | F20: =SUM(Q10,U10,Y10,AC10,AG10,AK10) -> 11655600 | G20: =$F20/Summary!$C$9 -> 259013.3333 | H20: =$F20/Summary!$C$10 -> 291.39 | O20: =IF(OR(P20<>"",Q20<>""),1+MAX($O$10:O19),"") ->  | S20: =IF(OR(T20<>"",U20<>""),1+MAX($S$10:S19),"") ->  | W20: =IF(OR(X20<>"",Y20<>""),1+MAX($W$10:W19),"") ->  | AA20: =IF(OR(AB20<>"",AC20<>""),1+MAX($AA$10:AA19),"") ->  | AE20: =IF(OR(AF20<>"",AG20<>""),1+MAX($AE$10:AE19),"") ->  | AI20: =IF(OR(AJ20<>"",AK20<>""),1+MAX($AI$10:AI19),"") -> 
D21: Interest Reserve + Loan Fees | E21: =F21/$F$18 -> 0.09630768683 | F21: =SUM(MonthlyCF!N189:N190) -> 1242152.731 | G21: =IF($F21<>"",$F21/Summary!$C$9,"") -> 27603.39402 | H21: =IF($F21<>"",$F21/Summary!$C$10,"") -> 31.05381827 | O21: =IF(OR(P21<>"",Q21<>""),1+MAX($O$10:O20),"") ->  | S21: =IF(OR(T21<>"",U21<>""),1+MAX($S$10:S20),"") ->  | W21: =IF(OR(X21<>"",Y21<>""),1+MAX($W$10:W20),"") ->  | AA21: =IF(OR(AB21<>"",AC21<>""),1+MAX($AA$10:AA20),"") ->  | AE21: =IF(OR(AF21<>"",AG21<>""),1+MAX($AE$10:AE20),"") ->  | AI21: =IF(OR(AJ21<>"",AK21<>""),1+MAX($AI$10:AI20),"") -> 
O22: =IF(OR(P22<>"",Q22<>""),1+MAX($O$10:O21),"") ->  | S22: =IF(OR(T22<>"",U22<>""),1+MAX($S$10:S21),"") ->  | W22: =IF(OR(X22<>"",Y22<>""),1+MAX($W$10:W21),"") ->  | AA22: =IF(OR(AB22<>"",AC22<>""),1+MAX($AA$10:AA21),"") ->  | AE22: =IF(OR(AF22<>"",AG22<>""),1+MAX($AE$10:AE21),"") ->  | AI22: =IF(OR(AJ22<>"",AK22<>""),1+MAX($AI$10:AI21),"") -> 
C23: 1 | D23: =IF(M193=0,"",M193) -> Acquisition / Land Purchase | E23: =IFERROR(IF(N193=0,"",F23/$F$18),"") -> 0.21868926 | F23: =IF(N193=0,"",N193) -> 2820600 | G23: =IF($F23<>"",$F23/Summary!$C$9,"") -> 62680 | H23: =IF($F23<>"",$F23/Summary!$C$10,"") -> 70.515 | O23: =IF(OR(P23<>"",Q23<>""),1+MAX($O$10:O22),"") ->  | S23: =IF(OR(T23<>"",U23<>""),1+MAX($S$10:S22),"") ->  | W23: =IF(OR(X23<>"",Y23<>""),1+MAX($W$10:W22),"") ->  | AA23: =IF(OR(AB23<>"",AC23<>""),1+MAX($AA$10:AA22),"") ->  | AE23: =IF(OR(AF23<>"",AG23<>""),1+MAX($AE$10:AE22),"") ->  | AI23: =IF(OR(AJ23<>"",AK23<>""),1+MAX($AI$10:AI22),"") -> 
C24: 2 | D24: Land Purchase | E24: 0.2170920825 | F24: 2800000 | G24: =IF($F24<>"",$F24/Summary!$C$9,"") -> 62222.22222 | H24: =IF($F24<>"",$F24/Summary!$C$10,"") -> 70 | O24: =IF(OR(P24<>"",Q24<>""),1+MAX($O$10:O23),"") ->  | S24: =IF(OR(T24<>"",U24<>""),1+MAX($S$10:S23),"") ->  | W24: =IF(OR(X24<>"",Y24<>""),1+MAX($W$10:W23),"") ->  | AA24: =IF(OR(AB24<>"",AC24<>""),1+MAX($AA$10:AA23),"") ->  | AE24: =IF(OR(AF24<>"",AG24<>""),1+MAX($AE$10:AE23),"") ->  | AI24: =IF(OR(AJ24<>"",AK24<>""),1+MAX($AI$10:AI23),"") -> 
C25: 3 | D25: Transfer Taxes | E25: 0.000434184165 | F25: 5600 | G25: =IF($F25<>"",$F25/Summary!$C$9,"") -> 124.4444444 | H25: =IF($F25<>"",$F25/Summary!$C$10,"") -> 0.14 | O25: =IF(OR(P25<>"",Q25<>""),1+MAX($O$10:O24),"") ->  | S25: =IF(OR(T25<>"",U25<>""),1+MAX($S$10:S24),"") ->  | W25: =IF(OR(X25<>"",Y25<>""),1+MAX($W$10:W24),"") ->  | AA25: =IF(OR(AB25<>"",AC25<>""),1+MAX($AA$10:AA24),"") ->  | AE25: =IF(OR(AF25<>"",AG25<>""),1+MAX($AE$10:AE24),"") ->  | AI25: =IF(OR(AJ25<>"",AK25<>""),1+MAX($AI$10:AI24),"") -> 
C26: 4 | D26: Legal Costs | E26: 0.0003876644331 | F26: 5000 | G26: =IF($F26<>"",$F26/Summary!$C$9,"") -> 111.1111111 | H26: =IF($F26<>"",$F26/Summary!$C$10,"") -> 0.125 | O26: =IF(OR(P26<>"",Q26<>""),1+MAX($O$10:O25),"") ->  | S26: =IF(OR(T26<>"",U26<>""),1+MAX($S$10:S25),"") ->  | W26: =IF(OR(X26<>"",Y26<>""),1+MAX($W$10:W25),"") ->  | AA26: =IF(OR(AB26<>"",AC26<>""),1+MAX($AA$10:AA25),"") ->  | AE26: =IF(OR(AF26<>"",AG26<>""),1+MAX($AE$10:AE25),"") ->  | AI26: =IF(OR(AJ26<>"",AK26<>""),1+MAX($AI$10:AI25),"") -> 
C27: 5 | D27: Pre-Acquisition Due Diligence Costs | E27: 0.0007753288661 | F27: 10000 | G27: =IF($F27<>"",$F27/Summary!$C$9,"") -> 222.2222222 | H27: =IF($F27<>"",$F27/Summary!$C$10,"") -> 0.25 | O27: =IF(OR(P27<>"",Q27<>""),1+MAX($O$10:O26),"") ->  | S27: =IF(OR(T27<>"",U27<>""),1+MAX($S$10:S26),"") ->  | W27: =IF(OR(X27<>"",Y27<>""),1+MAX($W$10:W26),"") ->  | AA27: =IF(OR(AB27<>"",AC27<>""),1+MAX($AA$10:AA26),"") ->  | AE27: =IF(OR(AF27<>"",AG27<>""),1+MAX($AE$10:AE26),"") ->  | AI27: =IF(OR(AJ27<>"",AK27<>""),1+MAX($AI$10:AI26),"") -> 
C28: 6 | G28: =IF($F28<>"",$F28/Summary!$C$9,"") ->  | H28: =IF($F28<>"",$F28/Summary!$C$10,"") ->  | O28: =IF(OR(P28<>"",Q28<>""),1+MAX($O$10:O27),"") ->  | S28: =IF(OR(T28<>"",U28<>""),1+MAX($S$10:S27),"") ->  | W28: =IF(OR(X28<>"",Y28<>""),1+MAX($W$10:W27),"") ->  | AA28: =IF(OR(AB28<>"",AC28<>""),1+MAX($AA$10:AA27),"") ->  | AE28: =IF(OR(AF28<>"",AG28<>""),1+MAX($AE$10:AE27),"") ->  | AI28: =IF(OR(AJ28<>"",AK28<>""),1+MAX($AI$10:AI27),"") -> 
C29: 7 | D29: Soft Costs | E29: 0.05814966496 | F29: 750000 | G29: =IF($F29<>"",$F29/Summary!$C$9,"") -> 16666.66667 | H29: =IF($F29<>"",$F29/Summary!$C$10,"") -> 18.75 | O29: =IF(OR(P29<>"",Q29<>""),1+MAX($O$10:O28),"") ->  | S29: =IF(OR(T29<>"",U29<>""),1+MAX($S$10:S28),"") ->  | W29: =IF(OR(X29<>"",Y29<>""),1+MAX($W$10:W28),"") ->  | AA29: =IF(OR(AB29<>"",AC29<>""),1+MAX($AA$10:AA28),"") ->  | AE29: =IF(OR(AF29<>"",AG29<>""),1+MAX($AE$10:AE28),"") ->  | AI29: =IF(OR(AJ29<>"",AK29<>""),1+MAX($AI$10:AI28),"") -> 
C30: 8 | D30: Architect - Design Phase | E30: 0.01240526186 | F30: 160000 | G30: =IF($F30<>"",$F30/Summary!$C$9,"") -> 3555.555556 | H30: =IF($F30<>"",$F30/Summary!$C$10,"") -> 4 | O30: =IF(OR(P30<>"",Q30<>""),1+MAX($O$10:O29),"") ->  | S30: =IF(OR(T30<>"",U30<>""),1+MAX($S$10:S29),"") ->  | W30: =IF(OR(X30<>"",Y30<>""),1+MAX($W$10:W29),"") ->  | AA30: =IF(OR(AB30<>"",AC30<>""),1+MAX($AA$10:AA29),"") ->  | AE30: =IF(OR(AF30<>"",AG30<>""),1+MAX($AE$10:AE29),"") ->  | AI30: =IF(OR(AJ30<>"",AK30<>""),1+MAX($AI$10:AI29),"") -> 
C31: 9 | D31: Architect - CA | E31: 0.006202630929 | F31: 80000 | G31: =IF($F31<>"",$F31/Summary!$C$9,"") -> 1777.777778 | H31: =IF($F31<>"",$F31/Summary!$C$10,"") -> 2 | O31: =IF(OR(P31<>"",Q31<>""),1+MAX($O$10:O30),"") ->  | S31: =IF(OR(T31<>"",U31<>""),1+MAX($S$10:S30),"") ->  | W31: =IF(OR(X31<>"",Y31<>""),1+MAX($W$10:W30),"") ->  | AA31: =IF(OR(AB31<>"",AC31<>""),1+MAX($AA$10:AA30),"") ->  | AE31: =IF(OR(AF31<>"",AG31<>""),1+MAX($AE$10:AE30),"") ->  | AI31: =IF(OR(AJ31<>"",AK31<>""),1+MAX($AI$10:AI30),"") -> 
C32: 10 | D32: Engineering Consultants (Structural, Civil, MEP, Etc.) | E32: 0.006202630929 | F32: 80000 | G32: =IF($F32<>"",$F32/Summary!$C$9,"") -> 1777.777778 | H32: =IF($F32<>"",$F32/Summary!$C$10,"") -> 2 | O32: =IF(OR(P32<>"",Q32<>""),1+MAX($O$10:O31),"") ->  | S32: =IF(OR(T32<>"",U32<>""),1+MAX($S$10:S31),"") ->  | W32: =IF(OR(X32<>"",Y32<>""),1+MAX($W$10:W31),"") ->  | AA32: =IF(OR(AB32<>"",AC32<>""),1+MAX($AA$10:AA31),"") ->  | AE32: =IF(OR(AF32<>"",AG32<>""),1+MAX($AE$10:AE31),"") ->  | AI32: =IF(OR(AJ32<>"",AK32<>""),1+MAX($AI$10:AI31),"") -> 
C33: 11 | D33: Legal | E33: 0.002325986598 | F33: 30000 | G33: =IF($F33<>"",$F33/Summary!$C$9,"") -> 666.6666667 | H33: =IF($F33<>"",$F33/Summary!$C$10,"") -> 0.75 | O33: =IF(OR(P33<>"",Q33<>""),1+MAX($O$10:O32),"") ->  | S33: =IF(OR(T33<>"",U33<>""),1+MAX($S$10:S32),"") ->  | W33: =IF(OR(X33<>"",Y33<>""),1+MAX($W$10:W32),"") ->  | AA33: =IF(OR(AB33<>"",AC33<>""),1+MAX($AA$10:AA32),"") ->  | AE33: =IF(OR(AF33<>"",AG33<>""),1+MAX($AE$10:AE32),"") ->  | AI33: =IF(OR(AJ33<>"",AK33<>""),1+MAX($AI$10:AI32),"") -> 
C34: 12 | D34: =IF(M204=0,"",M204) -> Entitlement Consultants | E34: 0.002325986598 | F34: 30000 | G34: =IF($F34<>"",$F34/Summary!$C$9,"") -> 666.6666667 | H34: =IF($F34<>"",$F34/Summary!$C$10,"") -> 0.75 | O34: =IF(OR(P34<>"",Q34<>""),1+MAX($O$10:O33),"") ->  | S34: =IF(OR(T34<>"",U34<>""),1+MAX($S$10:S33),"") ->  | W34: =IF(OR(X34<>"",Y34<>""),1+MAX($W$10:W33),"") ->  | AA34: =IF(OR(AB34<>"",AC34<>""),1+MAX($AA$10:AA33),"") ->  | AE34: =IF(OR(AF34<>"",AG34<>""),1+MAX($AE$10:AE33),"") ->  | AI34: =IF(OR(AJ34<>"",AK34<>""),1+MAX($AI$10:AI33),"") -> 
C35: 13 | D35: Entitlement Fees | E35: 0.002325986598 | F35: 30000 | G35: =IF($F35<>"",$F35/Summary!$C$9,"") -> 666.6666667 | H35: =IF($F35<>"",$F35/Summary!$C$10,"") -> 0.75 | O35: =IF(OR(P35<>"",Q35<>""),1+MAX($O$10:O34),"") ->  | S35: =IF(OR(T35<>"",U35<>""),1+MAX($S$10:S34),"") ->  | W35: =IF(OR(X35<>"",Y35<>""),1+MAX($W$10:W34),"") ->  | AA35: =IF(OR(AB35<>"",AC35<>""),1+MAX($AA$10:AA34),"") ->  | AE35: =IF(OR(AF35<>"",AG35<>""),1+MAX($AE$10:AE34),"") ->  | AI35: =IF(OR(AJ35<>"",AK35<>""),1+MAX($AI$10:AI34),"") -> 
C36: 14 | D36: G&A | E36: 0.02636118145 | F36: 340000 | G36: =IF($F36<>"",$F36/Summary!$C$9,"") -> 7555.555556 | H36: =IF($F36<>"",$F36/Summary!$C$10,"") -> 8.5 | O36: =IF(OR(P36<>"",Q36<>""),1+MAX($O$10:O35),"") ->  | S36: =IF(OR(T36<>"",U36<>""),1+MAX($S$10:S35),"") ->  | W36: =IF(OR(X36<>"",Y36<>""),1+MAX($W$10:W35),"") ->  | AA36: =IF(OR(AB36<>"",AC36<>""),1+MAX($AA$10:AA35),"") ->  | AE36: =IF(OR(AF36<>"",AG36<>""),1+MAX($AE$10:AE35),"") ->  | AI36: =IF(OR(AJ36<>"",AK36<>""),1+MAX($AI$10:AI35),"") -> 
C37: 15 | G37: =IF($F37<>"",$F37/Summary!$C$9,"") ->  | H37: =IF($F37<>"",$F37/Summary!$C$10,"") ->  | O37: =IF(OR(P37<>"",Q37<>""),1+MAX($O$10:O36),"") ->  | S37: =IF(OR(T37<>"",U37<>""),1+MAX($S$10:S36),"") ->  | W37: =IF(OR(X37<>"",Y37<>""),1+MAX($W$10:W36),"") ->  | AA37: =IF(OR(AB37<>"",AC37<>""),1+MAX($AA$10:AA36),"") ->  | AE37: =IF(OR(AF37<>"",AG37<>""),1+MAX($AE$10:AE36),"") ->  | AI37: =IF(OR(AJ37<>"",AK37<>""),1+MAX($AI$10:AI36),"") -> 
C38: 16 | D38: Hard Costs | E38: 0.5388535619 | F38: 6950000 | G38: =IF($F38<>"",$F38/Summary!$C$9,"") -> 154444.4444 | H38: =IF($F38<>"",$F38/Summary!$C$10,"") -> 173.75 | O38: =IF(OR(P38<>"",Q38<>""),1+MAX($O$10:O37),"") ->  | S38: =IF(OR(T38<>"",U38<>""),1+MAX($S$10:S37),"") ->  | W38: =IF(OR(X38<>"",Y38<>""),1+MAX($W$10:W37),"") ->  | AA38: =IF(OR(AB38<>"",AC38<>""),1+MAX($AA$10:AA37),"") ->  | AE38: =IF(OR(AF38<>"",AG38<>""),1+MAX($AE$10:AE37),"") ->  | AI38: =IF(OR(AJ38<>"",AK38<>""),1+MAX($AI$10:AI37),"") -> 
H39: =IF($F39<>"",$F39/Summary!$C$10,"") ->  | O39: =MAX(O10:O38)+1 -> 6 | S39: =MAX(S10:S38)+1 -> 15 | W39: =MAX(W10:W38)+1 -> 23 | AA39: =MAX(AA10:AA38)+1 -> 29 | AE39: =MAX(AE10:AE38)+1 -> 32 | AI39: =MAX(AI10:AI38)+1 -> 35
C40: 17 | D40: =IF(M209=0,"",M209) -> Sitework | E40: =IFERROR(IF(N209=0,"",F40/$F$18),"") -> 0.05814966496 | F40: =IF(N209=0,"",N209) -> 750000 | G40: =IF($F40<>"",$F40/Summary!$C$9,"") -> 16666.66667 | H40: =IF($F40<>"",$F40/Summary!$C$10,"") -> 18.75
C41: 18 | D41: Foundation | E41: =IFERROR(IF(N210=0,"",F41/$F$18),"") -> 0.01550657732 | F41: 200000 | G41: =IF($F41<>"",$F41/Summary!$C$9,"") -> 4444.444444 | H41: =IF($F41<>"",$F41/Summary!$C$10,"") -> 5
C42: 19 | D42: Structure | E42: 0.09303946393 | F42: 1200000 | G42: =IF($F42<>"",$F42/Summary!$C$9,"") -> 26666.66667 | H42: =IF($F42<>"",$F42/Summary!$C$10,"") -> 30
C43: 20 | D43: MEP | E43: 0.09303946393 | F43: 1200000 | G43: =IF($F43<>"",$F43/Summary!$C$9,"") -> 26666.66667 | H43: =IF($F43<>"",$F43/Summary!$C$10,"") -> 30
C44: 21 | D44: Exteriors | E44: 0.1240526186 | F44: 1600000 | G44: =IF($F44<>"",$F44/Summary!$C$9,"") -> 35555.55556 | H44: =IF($F44<>"",$F44/Summary!$C$10,"") -> 40
C45: 22 | D45: Interiors | E45: 0.1550657732 | F45: 2000000 | G45: =IF($F45<>"",$F45/Summary!$C$9,"") -> 44444.44444 | H45: =IF($F45<>"",$F45/Summary!$C$10,"") -> 50
C46: 23 | G46: =IF($F46<>"",$F46/Summary!$C$9,"") ->  | H46: =IF($F46<>"",$F46/Summary!$C$10,"") -> 
C47: 24 | D47: FF&E & OS&E | E47: 0.03023782578 | F47: 390000 | G47: =IF($F47<>"",$F47/Summary!$C$9,"") -> 8666.666667 | H47: =IF($F47<>"",$F47/Summary!$C$10,"") -> 9.75
C48: 25 | D48: Furniture | E48: 0.007753288661 | F48: 100000 | G48: =IF($F48<>"",$F48/Summary!$C$9,"") -> 2222.222222 | H48: =IF($F48<>"",$F48/Summary!$C$10,"") -> 2.5
C49: 26 | D49: Fixtures | E49: 0.003101315464 | F49: 40000 | G49: =IF($F49<>"",$F49/Summary!$C$9,"") -> 888.8888889 | H49: =IF($F49<>"",$F49/Summary!$C$10,"") -> 1
C50: 27 | D50: Equipment | E50: 0.01550657732 | F50: 200000 | G50: =IF($F50<>"",$F50/Summary!$C$9,"") -> 4444.444444 | H50: =IF($F50<>"",$F50/Summary!$C$10,"") -> 5
C51: 28 | D51: Operating Supplies | E51: 0.003876644331 | F51: 50000 | G51: =IF($F51<>"",$F51/Summary!$C$9,"") -> 1111.111111 | H51: =IF($F51<>"",$F51/Summary!$C$10,"") -> 1.25
C52: 29 | G52: =IF($F52<>"",$F52/Summary!$C$9,"") ->  | H52: =IF($F52<>"",$F52/Summary!$C$10,"") -> 
C53: 30 | D53: Marketing | E53: 0.003876644331 | F53: 50000 | G53: =IF($F53<>"",$F53/Summary!$C$9,"") -> 1111.111111 | H53: =IF($F53<>"",$F53/Summary!$C$10,"") -> 1.25
C54: 31 | D54: General Marketing | E54: 0.003876644331 | F54: 50000 | G54: =IF($F54<>"",$F54/Summary!$C$9,"") -> 1111.111111 | H54: =IF($F54<>"",$F54/Summary!$C$10,"") -> 1.25
C55: 32 | G55: =IF($F55<>"",$F55/Summary!$C$9,"") ->  | H55: =IF($F55<>"",$F55/Summary!$C$10,"") -> 
C56: 33 | D56: Contingency | E56: 0.05388535619 | F56: 695000 | G56: =IF($F56<>"",$F56/Summary!$C$9,"") -> 15444.44444 | H56: =IF($F56<>"",$F56/Summary!$C$10,"") -> 17.375
C57: 34 | D57: 10% of Hard Costs | E57: 0.05388535619 | F57: 695000 | G57: =IF($F57<>"",$F57/Summary!$C$9,"") -> 15444.44444 | H57: =IF($F57<>"",$F57/Summary!$C$10,"") -> 17.375
C58: 35 | G58: =IF($F58<>"",$F58/Summary!$C$9,"") ->  | H58: =IF($F58<>"",$F58/Summary!$C$10,"") -> 
C59: 36 | G59: =IF($F59<>"",$F59/Summary!$C$9,"") ->  | H59: =IF($F59<>"",$F59/Summary!$C$10,"") -> 
C60: 37 | G60: =IF($F60<>"",$F60/Summary!$C$9,"") ->  | H60: =IF($F60<>"",$F60/Summary!$C$10,"") -> 
C61: 38 | G61: =IF($F61<>"",$F61/Summary!$C$9,"") ->  | H61: =IF($F61<>"",$F61/Summary!$C$10,"") -> 
C62: 39 | G62: =IF($F62<>"",$F62/Summary!$C$9,"") ->  | H62: =IF($F62<>"",$F62/Summary!$C$10,"") -> 
C63: 40 | D63: Disclaimer: Any information important to you or another party should be independently confirmed within an applicable due diligence period. | G63: =IF($F63<>"",$F63/Summary!$C$9,"") ->  | H63: =IF($F63<>"",$F63/Summary!$C$10,"") -> 
C64: 41 | D64: should be independently confirmed within an applicable due | G64: =IF($F64<>"",$F64/Summary!$C$9,"") ->  | H64: =IF($F64<>"",$F64/Summary!$C$10,"") -> 
C65: 42 | D65: diligence period. | G65: =IF($F65<>"",$F65/Summary!$C$9,"") ->  | H65: =IF($F65<>"",$F65/Summary!$C$10,"") -> 
C66: 43 | G66: =IF($F66<>"",$F66/Summary!$C$9,"") ->  | H66: =IF($F66<>"",$F66/Summary!$C$10,"") -> 
C67: 44 | G67: =IF($F67<>"",$F67/Summary!$C$9,"") ->  | H67: =IF($F67<>"",$F67/Summary!$C$10,"") -> 
C68: 45 | G68: =IF($F68<>"",$F68/Summary!$C$9,"") ->  | H68: =IF($F68<>"",$F68/Summary!$C$10,"") -> 
C69: 46 | G69: =IF($F69<>"",$F69/Summary!$C$9,"") ->  | H69: =IF($F69<>"",$F69/Summary!$C$10,"") -> 
C70: 47 | G70: =IF($F70<>"",$F70/Summary!$C$9,"") ->  | H70: =IF($F70<>"",$F70/Summary!$C$10,"") -> 
C71: 48 | G71: =IF($F71<>"",$F71/Summary!$C$9,"") ->  | H71: =IF($F71<>"",$F71/Summary!$C$10,"") -> 
C72: 49 | G72: =IF($F72<>"",$F72/Summary!$C$9,"") ->  | H72: =IF($F72<>"",$F72/Summary!$C$10,"") -> 
C73: 50 | G73: =IF($F73<>"",$F73/Summary!$C$9,"") ->  | H73: =IF($F73<>"",$F73/Summary!$C$10,"") -> 
C74: 51 | G74: =IF($F74<>"",$F74/Summary!$C$9,"") ->  | H74: =IF($F74<>"",$F74/Summary!$C$10,"") -> 
C75: 52 | G75: =IF($F75<>"",$F75/Summary!$C$9,"") ->  | H75: =IF($F75<>"",$F75/Summary!$C$10,"") -> 
C76: 53 | G76: =IF($F76<>"",$F76/Summary!$C$9,"") ->  | H76: =IF($F76<>"",$F76/Summary!$C$10,"") -> 
C77: 54 | G77: =IF($F77<>"",$F77/Summary!$C$9,"") ->  | H77: =IF($F77<>"",$F77/Summary!$C$10,"") -> 
C78: 55 | G78: =IF($F78<>"",$F78/Summary!$C$9,"") ->  | H78: =IF($F78<>"",$F78/Summary!$C$10,"") -> 
C79: 56 | G79: =IF($F79<>"",$F79/Summary!$C$9,"") ->  | H79: =IF($F79<>"",$F79/Summary!$C$10,"") -> 
C80: 57 | G80: =IF($F80<>"",$F80/Summary!$C$9,"") ->  | H80: =IF($F80<>"",$F80/Summary!$C$10,"") -> 
C81: 58 | G81: =IF($F81<>"",$F81/Summary!$C$9,"") ->  | H81: =IF($F81<>"",$F81/Summary!$C$10,"") -> 
C82: 59 | G82: =IF($F82<>"",$F82/Summary!$C$9,"") ->  | H82: =IF($F82<>"",$F82/Summary!$C$10,"") -> 
C83: 60 | G83: =IF($F83<>"",$F83/Summary!$C$9,"") ->  | H83: =IF($F83<>"",$F83/Summary!$C$10,"") -> 
C84: 61 | G84: =IF($F84<>"",$F84/Summary!$C$9,"") ->  | H84: =IF($F84<>"",$F84/Summary!$C$10,"") -> 
C85: 62 | G85: =IF($F85<>"",$F85/Summary!$C$9,"") ->  | H85: =IF($F85<>"",$F85/Summary!$C$10,"") -> 
C86: 63 | G86: =IF($F86<>"",$F86/Summary!$C$9,"") ->  | H86: =IF($F86<>"",$F86/Summary!$C$10,"") -> 
C87: 64 | G87: =IF($F87<>"",$F87/Summary!$C$9,"") ->  | H87: =IF($F87<>"",$F87/Summary!$C$10,"") -> 
C88: 65 | G88: =IF($F88<>"",$F88/Summary!$C$9,"") ->  | H88: =IF($F88<>"",$F88/Summary!$C$10,"") -> 
C89: 66 | G89: =IF($F89<>"",$F89/Summary!$C$9,"") ->  | H89: =IF($F89<>"",$F89/Summary!$C$10,"") -> 
C90: 67 | G90: =IF($F90<>"",$F90/Summary!$C$9,"") ->  | H90: =IF($F90<>"",$F90/Summary!$C$10,"") -> 
C91: 68 | G91: =IF($F91<>"",$F91/Summary!$C$9,"") ->  | H91: =IF($F91<>"",$F91/Summary!$C$10,"") -> 
C92: 69 | G92: =IF($F92<>"",$F92/Summary!$C$9,"") ->  | H92: =IF($F92<>"",$F92/Summary!$C$10,"") -> 
C93: 70 | G93: =IF($F93<>"",$F93/Summary!$C$9,"") ->  | H93: =IF($F93<>"",$F93/Summary!$C$10,"") -> 
C94: 71 | G94: =IF($F94<>"",$F94/Summary!$C$9,"") ->  | H94: =IF($F94<>"",$F94/Summary!$C$10,"") -> 
C95: 72 | G95: =IF($F95<>"",$F95/Summary!$C$9,"") ->  | H95: =IF($F95<>"",$F95/Summary!$C$10,"") -> 
C96: 73 | G96: =IF($F96<>"",$F96/Summary!$C$9,"") ->  | H96: =IF($F96<>"",$F96/Summary!$C$10,"") -> 
C97: 74 | G97: =IF($F97<>"",$F97/Summary!$C$9,"") ->  | H97: =IF($F97<>"",$F97/Summary!$C$10,"") -> 
C98: 75 | G98: =IF($F98<>"",$F98/Summary!$C$9,"") ->  | H98: =IF($F98<>"",$F98/Summary!$C$10,"") -> 
C99: 76 | G99: =IF($F99<>"",$F99/Summary!$C$9,"") ->  | H99: =IF($F99<>"",$F99/Summary!$C$10,"") -> 
C100: 77 | G100: =IF($F100<>"",$F100/Summary!$C$9,"") ->  | H100: =IF($F100<>"",$F100/Summary!$C$10,"") -> 
C101: 78 | G101: =IF($F101<>"",$F101/Summary!$C$9,"") ->  | H101: =IF($F101<>"",$F101/Summary!$C$10,"") -> 
C102: 79 | G102: =IF($F102<>"",$F102/Summary!$C$9,"") ->  | H102: =IF($F102<>"",$F102/Summary!$C$10,"") -> 
C103: 80 | G103: =IF($F103<>"",$F103/Summary!$C$9,"") ->  | H103: =IF($F103<>"",$F103/Summary!$C$10,"") -> 
C104: 81 | D104: =IF(M273=0,"",M273) ->  | F104: =IF(N273=0,"",N273) ->  | G104: =IF($F104<>"",$F104/Summary!$C$9,"") ->  | H104: =IF($F104<>"",$F104/Summary!$C$10,"") -> 
C105: 82 | E105: =IFERROR(IF(N274=0,"",F105/$F$18),"") ->  | G105: =IF($F105<>"",$F105/Summary!$C$9,"") ->  | H105: =IF($F105<>"",$F105/Summary!$C$10,"") -> 
C106: 83 | G106: =IF($F106<>"",$F106/Summary!$C$9,"") ->  | H106: =IF($F106<>"",$F106/Summary!$C$10,"") -> 
C107: 84 | G107: =IF($F107<>"",$F107/Summary!$C$9,"") ->  | H107: =IF($F107<>"",$F107/Summary!$C$10,"") -> 
C108: 85 | G108: =IF($F108<>"",$F108/Summary!$C$9,"") ->  | H108: =IF($F108<>"",$F108/Summary!$C$10,"") -> 
C109: 86 | G109: =IF($F109<>"",$F109/Summary!$C$9,"") ->  | H109: =IF($F109<>"",$F109/Summary!$C$10,"") -> 
C110: 87 | G110: =IF($F110<>"",$F110/Summary!$C$9,"") ->  | H110: =IF($F110<>"",$F110/Summary!$C$10,"") -> 
C111: 88 | G111: =IF($F111<>"",$F111/Summary!$C$9,"") ->  | H111: =IF($F111<>"",$F111/Summary!$C$10,"") -> 
C112: 89 | G112: =IF($F112<>"",$F112/Summary!$C$9,"") ->  | H112: =IF($F112<>"",$F112/Summary!$C$10,"") -> 
C113: 90 | G113: =IF($F113<>"",$F113/Summary!$C$9,"") ->  | H113: =IF($F113<>"",$F113/Summary!$C$10,"") -> 
C114: 91 | G114: =IF($F114<>"",$F114/Summary!$C$9,"") ->  | H114: =IF($F114<>"",$F114/Summary!$C$10,"") -> 
C115: 92 | G115: =IF($F115<>"",$F115/Summary!$C$9,"") ->  | H115: =IF($F115<>"",$F115/Summary!$C$10,"") -> 
C116: 93 | G116: =IF($F116<>"",$F116/Summary!$C$9,"") ->  | H116: =IF($F116<>"",$F116/Summary!$C$10,"") -> 
C117: 94 | G117: =IF($F117<>"",$F117/Summary!$C$9,"") ->  | H117: =IF($F117<>"",$F117/Summary!$C$10,"") -> 
C118: 95 | G118: =IF($F118<>"",$F118/Summary!$C$9,"") ->  | H118: =IF($F118<>"",$F118/Summary!$C$10,"") -> 
C119: 96 | G119: =IF($F119<>"",$F119/Summary!$C$9,"") ->  | H119: =IF($F119<>"",$F119/Summary!$C$10,"") -> 
C120: 97 | G120: =IF($F120<>"",$F120/Summary!$C$9,"") ->  | H120: =IF($F120<>"",$F120/Summary!$C$10,"") -> 
C121: 98 | G121: =IF($F121<>"",$F121/Summary!$C$9,"") ->  | H121: =IF($F121<>"",$F121/Summary!$C$10,"") -> 
C122: 99 | G122: =IF($F122<>"",$F122/Summary!$C$9,"") ->  | H122: =IF($F122<>"",$F122/Summary!$C$10,"") -> 
C123: 100 | G123: =IF($F123<>"",$F123/Summary!$C$9,"") ->  | H123: =IF($F123<>"",$F123/Summary!$C$10,"") -> 
C124: 101 | G124: =IF($F124<>"",$F124/Summary!$C$9,"") ->  | H124: =IF($F124<>"",$F124/Summary!$C$10,"") -> 
C125: 102 | G125: =IF($F125<>"",$F125/Summary!$C$9,"") ->  | H125: =IF($F125<>"",$F125/Summary!$C$10,"") -> 
C126: 103 | G126: =IF($F126<>"",$F126/Summary!$C$9,"") ->  | H126: =IF($F126<>"",$F126/Summary!$C$10,"") -> 
C127: 104 | G127: =IF($F127<>"",$F127/Summary!$C$9,"") ->  | H127: =IF($F127<>"",$F127/Summary!$C$10,"") -> 
C128: 105 | G128: =IF($F128<>"",$F128/Summary!$C$9,"") ->  | H128: =IF($F128<>"",$F128/Summary!$C$10,"") -> 
C129: 106 | G129: =IF($F129<>"",$F129/Summary!$C$9,"") ->  | H129: =IF($F129<>"",$F129/Summary!$C$10,"") -> 
C130: 107 | G130: =IF($F130<>"",$F130/Summary!$C$9,"") ->  | H130: =IF($F130<>"",$F130/Summary!$C$10,"") -> 
C131: 108 | G131: =IF($F131<>"",$F131/Summary!$C$9,"") ->  | H131: =IF($F131<>"",$F131/Summary!$C$10,"") -> 
C132: 109 | G132: =IF($F132<>"",$F132/Summary!$C$9,"") ->  | H132: =IF($F132<>"",$F132/Summary!$C$10,"") -> 
C133: 110 | G133: =IF($F133<>"",$F133/Summary!$C$9,"") ->  | H133: =IF($F133<>"",$F133/Summary!$C$10,"") -> 
C134: 111 | G134: =IF($F134<>"",$F134/Summary!$C$9,"") ->  | H134: =IF($F134<>"",$F134/Summary!$C$10,"") -> 
C135: 112 | G135: =IF($F135<>"",$F135/Summary!$C$9,"") ->  | H135: =IF($F135<>"",$F135/Summary!$C$10,"") -> 
C136: 113 | G136: =IF($F136<>"",$F136/Summary!$C$9,"") ->  | H136: =IF($F136<>"",$F136/Summary!$C$10,"") -> 
C137: 114 | G137: =IF($F137<>"",$F137/Summary!$C$9,"") ->  | H137: =IF($F137<>"",$F137/Summary!$C$10,"") -> 
C138: 115 | G138: =IF($F138<>"",$F138/Summary!$C$9,"") ->  | H138: =IF($F138<>"",$F138/Summary!$C$10,"") -> 
C139: 116 | G139: =IF($F139<>"",$F139/Summary!$C$9,"") ->  | H139: =IF($F139<>"",$F139/Summary!$C$10,"") -> 
C140: 117 | G140: =IF($F140<>"",$F140/Summary!$C$9,"") ->  | H140: =IF($F140<>"",$F140/Summary!$C$10,"") -> 
C141: 118 | G141: =IF($F141<>"",$F141/Summary!$C$9,"") ->  | H141: =IF($F141<>"",$F141/Summary!$C$10,"") -> 
C142: 119 | G142: =IF($F142<>"",$F142/Summary!$C$9,"") ->  | H142: =IF($F142<>"",$F142/Summary!$C$10,"") -> 
C143: 120 | G143: =IF($F143<>"",$F143/Summary!$C$9,"") ->  | H143: =IF($F143<>"",$F143/Summary!$C$10,"") -> 
C144: 121 | G144: =IF($F144<>"",$F144/Summary!$C$9,"") ->  | H144: =IF($F144<>"",$F144/Summary!$C$10,"") -> 
C145: 122 | G145: =IF($F145<>"",$F145/Summary!$C$9,"") ->  | H145: =IF($F145<>"",$F145/Summary!$C$10,"") -> 
C146: 123 | G146: =IF($F146<>"",$F146/Summary!$C$9,"") ->  | H146: =IF($F146<>"",$F146/Summary!$C$10,"") -> 
C147: 124 | G147: =IF($F147<>"",$F147/Summary!$C$9,"") ->  | H147: =IF($F147<>"",$F147/Summary!$C$10,"") -> 
C148: 125 | G148: =IF($F148<>"",$F148/Summary!$C$9,"") ->  | H148: =IF($F148<>"",$F148/Summary!$C$10,"") -> 
C149: 126 | G149: =IF($F149<>"",$F149/Summary!$C$9,"") ->  | H149: =IF($F149<>"",$F149/Summary!$C$10,"") -> 
C150: 127 | G150: =IF($F150<>"",$F150/Summary!$C$9,"") ->  | H150: =IF($F150<>"",$F150/Summary!$C$10,"") -> 
C151: 128 | G151: =IF($F151<>"",$F151/Summary!$C$9,"") ->  | H151: =IF($F151<>"",$F151/Summary!$C$10,"") -> 
C152: 129 | G152: =IF($F152<>"",$F152/Summary!$C$9,"") ->  | H152: =IF($F152<>"",$F152/Summary!$C$10,"") -> 
C153: 130 | G153: =IF($F153<>"",$F153/Summary!$C$9,"") ->  | H153: =IF($F153<>"",$F153/Summary!$C$10,"") -> 
C154: 131 | G154: =IF($F154<>"",$F154/Summary!$C$9,"") ->  | H154: =IF($F154<>"",$F154/Summary!$C$10,"") -> 
C155: 132 | G155: =IF($F155<>"",$F155/Summary!$C$9,"") ->  | H155: =IF($F155<>"",$F155/Summary!$C$10,"") -> 
C156: 133 | G156: =IF($F156<>"",$F156/Summary!$C$9,"") ->  | H156: =IF($F156<>"",$F156/Summary!$C$10,"") -> 
C157: 134 | G157: =IF($F157<>"",$F157/Summary!$C$9,"") ->  | H157: =IF($F157<>"",$F157/Summary!$C$10,"") -> 
C158: 135 | G158: =IF($F158<>"",$F158/Summary!$C$9,"") ->  | H158: =IF($F158<>"",$F158/Summary!$C$10,"") -> 
C159: 136 | G159: =IF($F159<>"",$F159/Summary!$C$9,"") ->  | H159: =IF($F159<>"",$F159/Summary!$C$10,"") -> 
C160: 137 | G160: =IF($F160<>"",$F160/Summary!$C$9,"") ->  | H160: =IF($F160<>"",$F160/Summary!$C$10,"") -> 
C161: 138 | G161: =IF($F161<>"",$F161/Summary!$C$9,"") ->  | H161: =IF($F161<>"",$F161/Summary!$C$10,"") -> 
C162: 139 | G162: =IF($F162<>"",$F162/Summary!$C$9,"") ->  | H162: =IF($F162<>"",$F162/Summary!$C$10,"") -> 
C163: 140 | G163: =IF($F163<>"",$F163/Summary!$C$9,"") ->  | H163: =IF($F163<>"",$F163/Summary!$C$10,"") -> 
C164: 141 | G164: =IF($F164<>"",$F164/Summary!$C$9,"") ->  | H164: =IF($F164<>"",$F164/Summary!$C$10,"") -> 
C165: 142 | G165: =IF($F165<>"",$F165/Summary!$C$9,"") ->  | H165: =IF($F165<>"",$F165/Summary!$C$10,"") -> 
C166: 143 | G166: =IF($F166<>"",$F166/Summary!$C$9,"") ->  | H166: =IF($F166<>"",$F166/Summary!$C$10,"") -> 
C167: 144 | G167: =IF($F167<>"",$F167/Summary!$C$9,"") ->  | H167: =IF($F167<>"",$F167/Summary!$C$10,"") -> 
C168: 145 | D168: =IF(M337=0,"",M337) ->  | F168: =IF(N337=0,"",N337) ->  | G168: =IF($F168<>"",$F168/Summary!$C$9,"") ->  | H168: =IF($F168<>"",$F168/Summary!$C$10,"") -> 
C169: 146 | E169: =IFERROR(IF(N338=0,"",F169/$F$18),"") ->  | G169: =IF($F169<>"",$F169/Summary!$C$9,"") ->  | H169: =IF($F169<>"",$F169/Summary!$C$10,"") -> 
C170: 147 | E170: =IFERROR(IF(N339=0,"",F170/$F$18),"") ->  | G170: =IF($F170<>"",$F170/Summary!$C$9,"") ->  | H170: =IF($F170<>"",$F170/Summary!$C$10,"") -> 
C171: 148 | E171: =IFERROR(IF(N340=0,"",F171/$F$18),"") ->  | G171: =IF($F171<>"",$F171/Summary!$C$9,"") ->  | H171: =IF($F171<>"",$F171/Summary!$C$10,"") -> 
C172: 149 | E172: =IFERROR(IF(N341=0,"",F172/$F$18),"") ->  | G172: =IF($F172<>"",$F172/Summary!$C$9,"") ->  | H172: =IF($F172<>"",$F172/Summary!$C$10,"") -> 
C173: 150 | E173: =IFERROR(IF(N342=0,"",F173/$F$18),"") ->  | G173: =IF($F173<>"",$F173/Summary!$C$9,"") ->  | H173: =IF($F173<>"",$F173/Summary!$C$10,"") -> 
D192: 1 | F192: 2 | I192: 3 | J192: 4 | K192: 5 | L192: 6 | P192: 1 | Q192: 2 | R192: 3 | AU192: 4 | AV192: 5 | AW192: 6
C193: 1 | D193: =IFERROR(INDEX(P$10:P$38,MATCH($C193,O$10:O$38,0)),"") -> Acquisition / Land Purchase | F193: =IFERROR(INDEX(T$10:T$38,MATCH($C193,S$10:S$38,0)),"") ->  | I193: =IFERROR(INDEX(X$10:X$38,MATCH($C193,W$10:W$38,0)),"") ->  | J193: =IFERROR(INDEX(AB$10:AB$38,MATCH($C193,AA$10:AA$38,0)),"") ->  | K193: =IFERROR(INDEX(AF$10:AF$38,MATCH($C193,AE$10:AE$38,0)),"") ->  | L193: =IFERROR(INDEX(AJ$10:AJ$38,MATCH($C193,AI$10:AI$38,0)),"") ->  | M193: =IFERROR(INDEX(D193:L193,MATCH(TRUE,INDEX((D193:L193<>""),0),0)),"") -> Acquisition / Land Purchase | N193: =IFERROR(INDEX(P193:AW193,MATCH(TRUE,INDEX((P193:AW193<>""),0),0)),"") -> 2820600 | P193: =IFERROR(INDEX(Q$10:Q$39,MATCH($C193,O$10:O$39,0)),"") -> 2820600 | Q193: =IFERROR(INDEX(U$10:U$39,MATCH($C193,S$10:S$39,0)),"") ->  | R193: =IFERROR(INDEX(Y$10:Y$39,MATCH($C193,W$10:W$39,0)),"") ->  | AU193: =IFERROR(INDEX(AC$10:AC$39,MATCH($C193,AA$10:AA$39,0)),"") ->  | AV193: =IFERROR(INDEX(AG$10:AG$39,MATCH($C193,AE$10:AE$39,0)),"") ->  | AW193: =IFERROR(INDEX(AK$10:AK$39,MATCH($C193,AI$10:AI$39,0)),"") -> 
C194: 2 | D194: =IFERROR(INDEX(P$10:P$38,MATCH($C194,O$10:O$38,0)),"") -> Land Purchase | F194: =IFERROR(INDEX(T$10:T$38,MATCH($C194,S$10:S$38,0)),"") ->  | I194: =IFERROR(INDEX(X$10:X$38,MATCH($C194,W$10:W$38,0)),"") ->  | J194: =IFERROR(INDEX(AB$10:AB$38,MATCH($C194,AA$10:AA$38,0)),"") ->  | K194: =IFERROR(INDEX(AF$10:AF$38,MATCH($C194,AE$10:AE$38,0)),"") ->  | L194: =IFERROR(INDEX(AJ$10:AJ$38,MATCH($C194,AI$10:AI$38,0)),"") ->  | M194: Land Purchase | N194: =IFERROR(INDEX(P194:AW194,MATCH(TRUE,INDEX((P194:AW194<>""),0),0)),"") -> 2800000 | P194: 2800000
C195: 3 | D195: Transfer Taxes | M195: Transfer Taxes | N195: 5600 | P195: 5600
C196: 4 | D196: Legal Costs | M196: Legal Costs | N196: 5000 | P196: 5000
C197: 5 | D197: Pre-Acquisition Due Diligence Costs | M197: Pre-Acquisition Due Diligence Costs | N197: 10000 | P197: 10000
C198: 6 | N198: 0 | P198: 0
C199: 7 | F199: Soft Costs | M199: Soft Costs | N199: 750000 | Q199: 750000
C200: 8 | F200: Architect - Design Phase | M200: Architect - Design Phase | N200: 160000 | Q200: 160000
C201: 9 | F201: Architect - CA | M201: Architect - CA | N201: 80000 | Q201: 80000
C202: 10 | F202: Engineering Consultants (Structural, Civil, MEP, Etc.) | M202: Engineering Consultants (Structural, Civil, MEP, Etc.) | N202: 80000 | Q202: 80000
C203: 11 | F203: Legal | M203: Legal | N203: 30000 | Q203: 30000
C204: 12 | F204: Entitlement Consultants | M204: Entitlement Consultants | N204: 30000 | Q204: 30000
C205: 13 | F205: Entitlement Fees | M205: Entitlement Fees | N205: 30000 | Q205: 30000
C206: 14 | F206: G&A | M206: G&A | N206: 340000 | Q206: 340000
C207: 15 | N207: 0 | Q207: 0
C208: 16 | I208: Hard Costs | M208: Hard Costs | N208: 6950000 | R208: 6950000
C209: 17 | I209: Sitework | M209: Sitework | N209: 750000 | R209: 750000
C210: 18 | I210: Foundation | M210: Foundation | N210: 200000 | R210: 200000
C211: 19 | I211: Structure | M211: Structure | N211: 1200000 | R211: 1200000
C212: 20 | I212: MEP | M212: MEP | N212: 1200000 | R212: 1200000
C213: 21 | I213: Exteriors | M213: Exteriors | N213: 1600000 | R213: 1600000
C214: 22 | I214: Interiors | M214: Interiors | N214: 2000000 | R214: 2000000
C215: 23 | N215: 0 | R215: 0
C216: 24 | J216: FF&E & OS&E | M216: FF&E & OS&E | N216: 390000 | AU216: 390000
C217: 25 | J217: Furniture | M217: Furniture | N217: 100000 | AU217: 100000
C218: 26 | J218: Fixtures | M218: Fixtures | N218: 40000 | AU218: 40000
C219: 27 | J219: Equipment | M219: Equipment | N219: 200000 | AU219: 200000
C220: 28 | J220: Operating Supplies | M220: Operating Supplies | N220: 50000 | AU220: 50000
C221: 29 | N221: 0 | AU221: 0
... 121 more rows

Sheet MonthlyCF
C2: =Summary!B2 -> Fairways at Mill Creek - Franklin, NC - Version 1.0 | GN2: Monthly Cash Flow
C4: Monthly Cash Flow
C6: Construction Cash Flow | O6: -1 | P6: 0 | Q6: =P6+1 -> 1 | R6: 2 | S6: 3 | T6: 4 | U6: 5 | V6: 6 | W6: 7 | X6: 8 | Y6: 9 | Z6: 10 | AA6: 11 | AB6: 12 | AC6: 13 | AD6: 14 | AE6: 15 | AF6: 16 | AG6: 17 | AH6: 18 | AI6: 19 | AJ6: 20 | AK6: 21 | AL6: 22 | AM6: 23 | AN6: 24 | AO6: 25 | AP6: 26 | AQ6: 27 | AR6: 28 | AS6: 29 | AT6: 30 | AU6: 31 | AV6: 32 | AW6: =AV6+1 -> 33 | AX6: 34 | AY6: 35 | AZ6: 36 | BA6: 37 | BB6: 38 | BC6: 39 | BD6: 40 | BE6: 41 | BF6: 42 | BG6: 43 | BH6: 44 | BI6: 45 | BJ6: 46 | BK6: 47 | BL6: 48 | BM6: 49 | BN6: 50 | BO6: 51 | BP6: 52 | BQ6: 53 | BR6: 54 | BS6: 55 | BT6: 56 | BU6: 57 | BV6: 58 | BW6: 59 | BX6: 60 | BY6: 61 | BZ6: 62 | CA6: 63 | CB6: 64 | CC6: =CB6+1 -> 65 | CD6: 66 | CE6: 67 | CF6: 68 | CG6: 69 | CH6: 70 | CI6: 71 | CJ6: 72 | CK6: 73 | CL6: 74 | CM6: 75 | CN6: 76 | CO6: 77 | CP6: 78 | CQ6: 79 | CR6: 80 | CS6: 81 | CT6: 82 | CU6: 83 | CV6: 84 | CW6: 85 | CX6: 86 | CY6: 87 | CZ6: 88 | DA6: 89 | DB6: 90 | DC6: 91 | DD6: 92 | DE6: 93 | DF6: 94 | DG6: 95 | DH6: 96 | DI6: =DH6+1 -> 97 | DJ6: 98 | DK6: 99 | DL6: 100 | DM6: 101 | DN6: 102 | DO6: 103 | DP6: 104 | DQ6: 105 | DR6: 106 | DS6: 107 | DT6: 108 | DU6: 109 | DV6: 110 | DW6: 111 | DX6: 112 | DY6: 113 | DZ6: 114 | EA6: 115 | EB6: 116 | EC6: 117 | ED6: 118 | EE6: 119 | EF6: 120 | EG6: 121 | EH6: 122 | EI6: 123 | EJ6: 124 | EK6: 125 | EL6: 126 | EM6: 127 | EN6: 128 | EO6: =EN6+1 -> 129 | EP6: 130 | EQ6: 131 | ER6: 132 | ES6: 133 | ET6: 134 | EU6: 135 | EV6: 136 | EW6: 137 | EX6: 138 | EY6: 139 | EZ6: 140 | FA6: 141 | FB6: 142 | FC6: 143 | FD6: 144 | FE6: 145 | FF6: 146 | FG6: 147 | FH6: 148 | FI6: 149 | FJ6: 150 | FK6: 151 | FL6: 152 | FM6: 153 | FN6: 154 | FO6: 155 | FP6: 156 | FQ6: 157 | FR6: 158 | FS6: 159 | FT6: 160 | FU6: =FT6+1 -> 161 | FV6: 162 | FW6: 163 | FX6: 164 | FY6: 165 | FZ6: 166 | GA6: 167 | GB6: 168 | GC6: 169 | GD6: 170 | GE6: 171 | GF6: 172 | GG6: 173 | GH6: 174 | GI6: 175 | GJ6: 176 | GK6: 177 | GL6: 178 | GM6: 179 | GN6: 180
P7: =ROUNDUP(P6/12,0) -> 0 | Q7: 1 | R7: =ROUNDUP(R6/12,0) -> 1 | S7: 1 | T7: 1 | U7: 1 | V7: 1 | W7: 1 | X7: 1 | Y7: 1 | Z7: 1 | AA7: 1 | AB7: 1 | AC7: 2 | AD7: 2 | AE7: 2 | AF7: 2 | AG7: 2 | AH7: 2 | AI7: 2 | AJ7: 2 | AK7: 2 | AL7: 2 | AM7: 2 | AN7: 2 | AO7: 3 | AP7: 3 | AQ7: 3 | AR7: 3 | AS7: 3 | AT7: 3 | AU7: 3 | AV7: =ROUNDUP(AV6/12,0) -> 3 | AW7: 3 | AX7: 3 | AY7: 3 | AZ7: 3 | BA7: 4 | BB7: 4 | BC7: 4 | BD7: 4 | BE7: 4 | BF7: 4 | BG7: 4 | BH7: 4 | BI7: 4 | BJ7: 4 | BK7: 4 | BL7: 4 | BM7: 5 | BN7: 5 | BO7: 5 | BP7: 5 | BQ7: 5 | BR7: 5 | BS7: 5 | BT7: 5 | BU7: 5 | BV7: 5 | BW7: 5 | BX7: 5 | BY7: 6 | BZ7: 6 | CA7: 6 | CB7: =ROUNDUP(CB6/12,0) -> 6 | CC7: 6 | CD7: 6 | CE7: 6 | CF7: 6 | CG7: 6 | CH7: 6 | CI7: 6 | CJ7: 6 | CK7: 7 | CL7: 7 | CM7: 7 | CN7: 7 | CO7: 7 | CP7: 7 | CQ7: 7 | CR7: 7 | CS7: 7 | CT7: 7 | CU7: 7 | CV7: 7 | CW7: 8 | CX7: 8 | CY7: 8 | CZ7: 8 | DA7: 8 | DB7: 8 | DC7: 8 | DD7: 8 | DE7: 8 | DF7: 8 | DG7: 8 | DH7: =ROUNDUP(DH6/12,0) -> 8 | DI7: 9 | DJ7: 9 | DK7: 9 | DL7: 9 | DM7: 9 | DN7: 9 | DO7: 9 | DP7: 9 | DQ7: 9 | DR7: 9 | DS7: 9 | DT7: 9 | DU7: 10 | DV7: 10 | DW7: 10 | DX7: 10 | DY7: 10 | DZ7: 10 | EA7: 10 | EB7: 10 | EC7: 10 | ED7: 10 | EE7: 10 | EF7: 10 | EG7: 11 | EH7: 11 | EI7: 11 | EJ7: 11 | EK7: 11 | EL7: 11 | EM7: 11 | EN7: =ROUNDUP(EN6/12,0) -> 11 | EO7: 11 | EP7: 11 | EQ7: 11 | ER7: 11 | ES7: 12 | ET7: 12 | EU7: 12 | EV7: 12 | EW7: 12 | EX7: 12 | EY7: 12 | EZ7: 12 | FA7: 12 | FB7: 12 | FC7: 12 | FD7: 12 | FE7: 13 | FF7: 13 | FG7: 13 | FH7: 13 | FI7: 13 | FJ7: 13 | FK7: 13 | FL7: 13 | FM7: 13 | FN7: 13 | FO7: 13 | FP7: 13 | FQ7: 14 | FR7: 14 | FS7: 14 | FT7: =ROUNDUP(FT6/12,0) -> 14 | FU7: 14 | FV7: 14 | FW7: 14 | FX7: 14 | FY7: 14 | FZ7: 14 | GA7: 14 | GB7: 14 | GC7: 15 | GD7: 15 | GE7: 15 | GF7: 15 | GG7: 15 | GH7: 15 | GI7: 15 | GJ7: 15 | GK7: 15 | GL7: 15 | GM7: 15 | GN7: 15
C8: Line Item | D8: Budget | F8: Start Month | G8: Start Date | H8: End Month | I8: End Date | J8: Total Time | K8: Bell Curve Growth Method | L8: Bell Curve Growth Method | M8: Standard Deviation | N8: Total | P8: =Summary!C13 -> 2026-01-31 | Q8: =EOMONTH(P8,1) -> 2026-02-28 | R8: =EOMONTH(Q8,1) -> 2026-03-31 | S8: 2026-04-30 | T8: 2026-05-31 | U8: 2026-06-30 | V8: 2026-07-31 | W8: 2026-08-31 | X8: 2026-09-30 | Y8: 2026-10-31 | Z8: 2026-11-30 | AA8: 2026-12-31 | AB8: 2027-01-31 | AC8: 2027-02-28 | AD8: 2027-03-31 | AE8: 2027-04-30 | AF8: 2027-05-31 | AG8: 2027-06-30 | AH8: 2027-07-31 | AI8: 2027-08-31 | AJ8: 2027-09-30 | AK8: 2027-10-31 | AL8: 2027-11-30 | AM8: 2027-12-31 | AN8: 2028-01-31 | AO8: 2028-02-29 | AP8: 2028-03-31 | AQ8: 2028-04-30 | AR8: 2028-05-31 | AS8: 2028-06-30 | AT8: 2028-07-31 | AU8: 2028-08-31 | AV8: 2028-09-30 | AW8: 2028-10-31 | AX8: 2028-11-30 | AY8: 2028-12-31 | AZ8: 2029-01-31 | BA8: 2029-02-28 | BB8: 2029-03-31 | BC8: 2029-04-30 | BD8: 2029-05-31 | BE8: 2029-06-30 | BF8: 2029-07-31 | BG8: 2029-08-31 | BH8: 2029-09-30 | BI8: 2029-10-31 | BJ8: 2029-11-30 | BK8: 2029-12-31 | BL8: 2030-01-31 | BM8: 2030-02-28 | BN8: 2030-03-31 | BO8: 2030-04-30 | BP8: 2030-05-31 | BQ8: 2030-06-30 | BR8: 2030-07-31 | BS8: 2030-08-31 | BT8: 2030-09-30 | BU8: 2030-10-31 | BV8: 2030-11-30 | BW8: 2030-12-31 | BX8: 2031-01-31 | BY8: 2031-02-28 | BZ8: 2031-03-31 | CA8: 2031-04-30 | CB8: 2031-05-31 | CC8: 2031-06-30 | CD8: =EOMONTH(CC8,1) -> 2031-07-31 | CE8: 2031-08-31 | CF8: 2031-09-30 | CG8: 2031-10-31 | CH8: 2031-11-30 | CI8: 2031-12-31 | CJ8: 2032-01-31 | CK8: 2032-02-29 | CL8: 2032-03-31 | CM8: 2032-04-30 | CN8: 2032-05-31 | CO8: 2032-06-30 | CP8: 2032-07-31 | CQ8: 2032-08-31 | CR8: 2032-09-30 | CS8: 2032-10-31 | CT8: 2032-11-30 | CU8: 2032-12-31 | CV8: 2033-01-31 | CW8: 2033-02-28 | CX8: 2033-03-31 | CY8: 2033-04-30 | CZ8: 2033-05-31 | DA8: 2033-06-30 | DB8: 2033-07-31 | DC8: 2033-08-31 | DD8: 2033-09-30 | DE8: 2033-10-31 | DF8: 2033-11-30 | DG8: 2033-12-31 | DH8: 2034-01-31 | DI8: 2034-02-28 | DJ8: 2034-03-31 | DK8: 2034-04-30 | DL8: 2034-05-31 | DM8: 2034-06-30 | DN8: 2034-07-31 | DO8: 2034-08-31 | DP8: 2034-09-30 | DQ8: 2034-10-31 | DR8: 2034-11-30 | DS8: 2034-12-31 | DT8: 2035-01-31 | DU8: 2035-02-28 | DV8: 2035-03-31 | DW8: 2035-04-30 | DX8: 2035-05-31 | DY8: 2035-06-30 | DZ8: 2035-07-31 | EA8: 2035-08-31 | EB8: 2035-09-30 | EC8: 2035-10-31 | ED8: 2035-11-30 | EE8: 2035-12-31 | EF8: 2036-01-31 | EG8: 2036-02-29 | EH8: 2036-03-31 | EI8: 2036-04-30 | EJ8: 2036-05-31 | EK8: 2036-06-30 | EL8: 2036-07-31 | EM8: 2036-08-31 | EN8: 2036-09-30 | EO8: 2036-10-31 | EP8: =EOMONTH(EO8,1) -> 2036-11-30 | EQ8: 2036-12-31 | ER8: 2037-01-31 | ES8: 2037-02-28 | ET8: 2037-03-31 | EU8: 2037-04-30 | EV8: 2037-05-31 | EW8: 2037-06-30 | EX8: 2037-07-31 | EY8: 2037-08-31 | EZ8: 2037-09-30 | FA8: 2037-10-31 | FB8: 2037-11-30 | FC8: 2037-12-31 | FD8: 2038-01-31 | FE8: 2038-02-28 | FF8: 2038-03-31 | FG8: 2038-04-30 | FH8: 2038-05-31 | FI8: 2038-06-30 | FJ8: 2038-07-31 | FK8: 2038-08-31 | FL8: 2038-09-30 | FM8: 2038-10-31 | FN8: 2038-11-30 | FO8: 2038-12-31 | FP8: 2039-01-31 | FQ8: 2039-02-28 | FR8: 2039-03-31 | FS8: 2039-04-30 | FT8: 2039-05-31 | FU8: 2039-06-30 | FV8: 2039-07-31 | FW8: 2039-08-31 | FX8: 2039-09-30 | FY8: 2039-10-31 | FZ8: 2039-11-30 | GA8: 2039-12-31 | GB8: 2040-01-31 | GC8: 2040-02-29 | GD8: 2040-03-31 | GE8: 2040-04-30 | GF8: 2040-05-31 | GG8: 2040-06-30 | GH8: 2040-07-31 | GI8: 2040-08-31 | GJ8: 2040-09-30 | GK8: 2040-10-31 | GL8: 2040-11-30 | GM8: 2040-12-31 | GN8: 2041-01-31
C9: =Budget!P10 -> Acquisition / Land Purchase | D9: =Budget!Q10 -> 2820600 | F9: =MIN(E10:E37) -> 0 | G9: =IFERROR(INDEX($P$8:$GN$8,MATCH(F9,$P$6:$GN$6,0)),"") -> 2026-01-31 | H9: =IF(F9="","",MAX(H10:H37)) -> 0 | I9: =IFERROR(INDEX($P$8:$GN$8,MATCH(H9,$P$6:$GN$6,0)),"") -> 2026-01-31 | J9: =IFERROR(H9-F9+1,"") -> 1 | N9: =SUM(P9:GN9) -> 2820599.996 | P9: =SUM(P10:P37) -> 2820599.996 | Q9: 0 | R9: 0 | S9: 0 | T9: 0 | U9: 0 | V9: 0 | W9: 0 | X9: 0 | Y9: 0 | Z9: 0 | AA9: 0 | AB9: 0 | AC9: 0 | AD9: 0 | AE9: 0 | AF9: 0 | AG9: 0 | AH9: 0 | AI9: 0 | AJ9: 0 | AK9: 0 | AL9: 0 | AM9: 0 | AN9: 0 | AO9: 0 | AP9: 0 | AQ9: 0 | AR9: 0 | AS9: 0 | AT9: 0 | AU9: 0 | AV9: =SUM(AV10:AV37) -> 0 | AW9: 0 | AX9: 0 | AY9: 0 | AZ9: 0 | BA9: 0 | BB9: 0 | BC9: 0 | BD9: 0 | BE9: 0 | BF9: 0 | BG9: 0 | BH9: 0 | BI9: 0 | BJ9: 0 | BK9: 0 | BL9: 0 | BM9: 0 | BN9: 0 | BO9: 0 | BP9: 0 | BQ9: 0 | BR9: 0 | BS9: 0 | BT9: 0 | BU9: 0 | BV9: 0 | BW9: 0 | BX9: 0 | BY9: 0 | BZ9: 0 | CA9: 0 | CB9: =SUM(CB10:CB37) -> 0 | CC9: 0 | CD9: 0 | CE9: 0 | CF9: 0 | CG9: 0 | CH9: 0 | CI9: 0 | CJ9: 0 | CK9: 0 | CL9: 0 | CM9: 0 | CN9: 0 | CO9: 0 | CP9: 0 | CQ9: 0 | CR9: 0 | CS9: 0 | CT9: 0 | CU9: 0 | CV9: 0 | CW9: 0 | CX9: 0 | CY9: 0 | CZ9: 0 | DA9: 0 | DB9: 0 | DC9: 0 | DD9: 0 | DE9: 0 | DF9: 0 | DG9: 0 | DH9: =SUM(DH10:DH37) -> 0 | DI9: 0 | DJ9: 0 | DK9: 0 | DL9: 0 | DM9: 0 | DN9: 0 | DO9: 0 | DP9: 0 | DQ9: 0 | DR9: 0 | DS9: 0 | DT9: 0 | DU9: 0 | DV9: 0 | DW9: 0 | DX9: 0 | DY9: 0 | DZ9: 0 | EA9: 0 | EB9: 0 | EC9: 0 | ED9: 0 | EE9: 0 | EF9: 0 | EG9: 0 | EH9: 0 | EI9: 0 | EJ9: 0 | EK9: 0 | EL9: 0 | EM9: 0 | EN9: =SUM(EN10:EN37) -> 0 | EO9: 0 | EP9: 0 | EQ9: 0 | ER9: 0 | ES9: 0 | ET9: 0 | EU9: 0 | EV9: 0 | EW9: 0 | EX9: 0 | EY9: 0 | EZ9: 0 | FA9: 0 | FB9: 0 | FC9: 0 | FD9: 0 | FE9: 0 | FF9: 0 | FG9: 0 | FH9: 0 | FI9: 0 | FJ9: 0 | FK9: 0 | FL9: 0 | FM9: 0 | FN9: 0 | FO9: 0 | FP9: 0 | FQ9: 0 | FR9: 0 | FS9: 0 | FT9: =SUM(FT10:FT37) -> 0 | FU9: 0 | FV9: 0 | FW9: 0 | FX9: 0 | FY9: 0 | FZ9: 0 | GA9: 0 | GB9: 0 | GC9: 0 | GD9: 0 | GE9: 0 | GF9: 0 | GG9: 0 | GH9: 0 | GI9: 0 | GJ9: 0 | GK9: 0 | GL9: 0 | GM9: 0 | GN9: 0
C10: =Budget!P11 -> Land Purchase | D10: =Budget!Q11 -> 2800000 | E10: =IF(D10<>0,F10,"") -> 0 | F10: 0 | G10: =IF(L10="custom",CustCF!F10,INDEX($P$8:$GN$8,MATCH(F10,$P$6:$GN$6,0))) -> 2026-01-31 | H10: 0 | I10: =IF(L10="custom",CustCF!G10,INDEX($P$8:$GN$8,MATCH(H10,$P$6:$GN$6,0))) -> 2026-01-31 | J10: =H10-F10+1 -> 1 | K10: Bell Curve | L10: Straight Line | M10: =INDEX($D$261:$D$266,MATCH(L10,$C$261:$C$266,0)) -> 10000000 | N10: 2799999.996 | P10: =($K10="Bell Curve")*(_xlfn.NORM.DIST(AND(P$6>=$F10,P$6<=$H10)*(P$6-$F10+1),$J10/2,$M10,TRUE)-_xlfn.NORM.DIST(AND(P$6>=$F10,P$6<=$H10)*(O$6-$F10+1),$J10/2,$M10,TRUE))/(1-2*_xlfn.NORM.DIST(0,$J10/2,$M10,TRUE))*$D10+($K10="Steady Growth")*(AND(P$6>=$F10,P$6<=$H10)*((P$6-$F10+1)/($J10*($J10+1)/2)*$D10))+($K10="custom")*CustCF!J10 -> 2799999.996 | Q10: =($K10="Bell Curve")*(_xlfn.NORM.DIST(AND(Q$6>=$F10,Q$6<=$H10)*(Q$6-$F10+1),$J10/2,$M10,TRUE)-_xlfn.NORM.DIST(AND(Q$6>=$F10,Q$6<=$H10)*(P$6-$F10+1),$J10/2,$M10,TRUE))/(1-2*_xlfn.NORM.DIST(0,$J10/2,$M10,TRUE))*$D10+($K10="Steady Growth")*(AND(Q$6>=$F10,Q$6<=$H10)*((Q$6-$F10+1)/($J10*($J10+1)/2)*$D10))+($K10="custom")*CustCF!K10 -> 0 | R10: =($K10="Bell Curve")*(_xlfn.NORM.DIST(AND(R$6>=$F10,R$6<=$H10)*(R$6-$F10+1),$J10/2,$M10,TRUE)-_xlfn.NORM.DIST(AND(R$6>=$F10,R$6<=$H10)*(Q$6-$F10+1),$J10/2,$M10,TRUE))/(1-2*_xlfn.NORM.DIST(0,$J10/2,$M10,TRUE))*$D10+($K10="Steady Growth")*(AND(R$6>=$F10,R$6<=$H10)*((R$6-$F10+1)/($J10*($J10+1)/2)*$D10))+($K10="custom")*CustCF!L10 -> 0 | S10: =($K10="Bell Curve")*(_xlfn.NORM.DIST(AND(S$6>=$F10,S$6<=$H10)*(S$6-$F10+1),$J10/2,$M10,TRUE)-_xlfn.NORM.DIST(AND(S$6>=$F10,S$6<=$H10)*(R$6-$F10+1),$J10/2,$M10,TRUE))/(1-2*_xlfn.NORM.DIST(0,$J10/2,$M10,TRUE))*$D10+($K10="Steady Growth")*(AND(S$6>=$F10,S$6<=$H10)*((S$6-$F10+1)/($J10*($J10+1)/2)*$D10))+($K10="custom")*CustCF!M10 -> 0 | T10: =($K10="Bell Curve")*(_xlfn.NORM.DIST(AND(T$6>=$F10,T$6<=$H10)*(T$6-$F10+1),$J10/2,$M10,TRUE)-_xlfn.NORM.DIST(AND(T$6>=$F10,T$6<=$H10)*(S$6-$F10+1),$J10/2,$M10,TRUE))/(1-2*_xlfn.NORM.DIST(0,$J10/2,$M10,TRUE))*$D10+($K10="Steady Growth")*(AND(T$6>=$F10,T$6<=$H10)*((T$6-$F10+1)/($J10*($J10+1)/2)*$D10))+($K10="custom")*CustCF!N10 -> 0 | U10: =($K10="Bell Curve")*(_xlfn.NORM.DIST(AND(U$6>=$F10,U$6<=$H10)*(U$6-$F10+1),$J10/2,$M10,TRUE)-_xlfn.NORM.DIST(AND(U$6>=$F10,U$6<=$H10)*(T$6-$F10+1),$J10/2,$M10,TRUE))/(1-2*_xlfn.NORM.DIST(0,$J10/2,$M10,TRUE))*$D10+($K10="Steady Growth")*(AND(U$6>=$F10,U$6<=$H10)*((U$6-$F10+1)/($J10*($J10+1)/2)*$D10))+($K10="custom")*CustCF!O10 -> 0 | V10: =($K10="Bell Curve")*(_xlfn.NORM.DIST(AND(V$6>=$F10,V$6<=$H10)*(V$6-$F10+1),$J10/2,$M10,TRUE)-_xlfn.NORM.DIST(AND(V$6>=$F10,V$6<=$H10)*(U$6-$F10+1),$J10/2,$M10,TRUE))/(1-2*_xlfn.NORM.DIST(0,$J10/2,$M10,TRUE))*$D10+($K10="Steady Growth")*(AND(V$6>=$F10,V$6<=$H10)*((V$6-$F10+1)/($J10*($J10+1)/2)*$D10))+($K10="custom")*CustCF!P10 -> 0 | W10: =($K10="Bell Curve")*(_xlfn.NORM.DIST(AND(W$6>=$F10,W$6<=$H10)*(W$6-$F10+1),$J10/2,$M10,TRUE)-_xlfn.NORM.DIST(AND(W$6>=$F10,W$6<=$H10)*(V$6-$F10+1),$J10/2,$M10,TRUE))/(1-2*_xlfn.NORM.DIST(0,$J10/2,$M10,TRUE))*$D10+($K10="Steady Growth")*(AND(W$6>=$F10,W$6<=$H10)*((W$6-$F10+1)/($J10*($J10+1)/2)*$D10))+($K10="custom")*CustCF!Q10 -> 0 | X10: =($K10="Bell Curve")*(_xlfn.NORM.DIST(AND(X$6>=$F10,X$6<=$H10)*(X$6-$F10+1),$J10/2,$M10,TRUE)-_xlfn.NORM.DIST(AND(X$6>=$F10,X$6<=$H10)*(W$6-$F10+1),$J10/2,$M10,TRUE))/(1-2*_xlfn.NORM.DIST(0,$J10/2,$M10,TRUE))*$D10+($K10="Steady Growth")*(AND(X$6>=$F10,X$6<=$H10)*((X$6-$F10+1)/($J10*($J10+1)/2)*$D10))+($K10="custom")*CustCF!R10 -> 0 | Y10: =($K10="Bell Curve")*(_xlfn.NORM.DIST(AND(Y$6>=$F10,Y$6<=$H10)*(Y$6-$F10+1),$J10/2,$M10,TRUE)-_xlfn.NORM.DIST(AND(Y$6>=$F10,Y$6<=$H10)*(X$6-$F10+1),$J10/2,$M10,TRUE))/(1-2*_xlfn.NORM.DIST(0,$J10/2,$M10,TRUE))*$D10+($K10="Steady Growth")*(AND(Y$6>=$F10,Y$6<=$H10)*((Y$6-$F10+1)/($J10*($J10+1)/2)*$D10))+($K10="custom")*CustCF!S10 -> 0 | Z10: =($K10="Bell Curve")*(_xlfn.NORM.DIST(AND(Z$6>=$F10,Z$6<=$H10)*(Z$6-$F10+1),$J10/2,$M10,TRUE)-_xlfn.NORM.DIST(AND(Z$6>=$F10,Z$6<=$H10)*(Y$6-$F10+1),$J10/2,$M10,TRUE))/(1-2*_xlfn.NORM.DIST(0,$J10/2,$M10,TRUE))*$D10+($K10="Steady Growth")*(AND(Z$6>=$F10,Z$6<=$H10)*((Z$6-$F10+1)/($J10*($J10+1)/2)*$D10))+($K10="custom")*CustCF!T10 -> 0 | AA10: =($K10="Bell Curve")*(_xlfn.NORM.DIST(AND(AA$6>=$F10,AA$6<=$H10)*(AA$6-$F10+1),$J10/2,$M10,TRUE)-_xlfn.NORM.DIST(AND(AA$6>=$F10,AA$6<=$H10)*(Z$6-$F10+1),$J10/2,$M10,TRUE))/(1-2*_xlfn.NORM.DIST(0,$J10/2,$M10,TRUE))*$D10+($K10="Steady Growth")*(AND(AA$6>=$F10,AA$6<=$H10)*((AA$6-$F10+1)/($J10*($J10+1)/2)*$D10))+($K10="custom")*CustCF!U10 -> 0 | AB10: =($K10="Bell Curve")*(_xlfn.NORM.DIST(AND(AB$6>=$F10,AB$6<=$H10)*(AB$6-$F10+1),$J10/2,$M10,TRUE)-_xlfn.NORM.DIST(AND(AB$6>=$F10,AB$6<=$H10)*(AA$6-$F10+1),$J10/2,$M10,TRUE))/(1-2*_xlfn.NORM.DIST(0,$J10/2,$M10,TRUE))*$D10+($K10="Steady Growth")*(AND(AB$6>=$F10,AB$6<=$H10)*((AB$6-$F10+1)/($J10*($J10+1)/2)*$D10))+($K10="custom")*CustCF!V10 -> 0 | AC10: =($K10="Bell Curve")*(_xlfn.NORM.DIST(AND(AC$6>=$F10,AC$6<=$H10)*(AC$6-$F10+1),$J10/2,$M10,TRUE)-_xlfn.NORM.DIST(AND(AC$6>=$F10,AC$6<=$H10)*(AB$6-$F10+1),$J10/2,$M10,TRUE))/(1-2*_xlfn.NORM.DIST(0,$J10/2,$M10,TRUE))*$D10+($K10="Steady Growth")*(AND(AC$6>=$F10,AC$6<=$H10)*((AC$6-$F10+1)/($J10*($J10+1)/2)*$D10))+($K10="custom")*CustCF!W10 -> 0 | AD10: =($K10="Bell Curve")*(_xlfn.NORM.DIST(AND(AD$6>=$F10,AD$6<=$H10)*(AD$6-$F10+1),$J10/2,$M10,TRUE)-_xlfn.NORM.DIST(AND(AD$6>=$F10,AD$6<=$H10)*(AC$6-$F10+1),$J10/2,$M10,TRUE))/(1-2*_xlfn.NORM.DIST(0,$J10/2,$M10,TRUE))*$D10+($K10="Steady Growth")*(AND(AD$6>=$F10,AD$6<=$H10)*((AD$6-$F10+1)/($J10*($J10+1)/2)*$D10))+($K10="custom")*CustCF!X10 -> 0 | AE10: =($K10="Bell Curve")*(_xlfn.NORM.DIST(AND(AE$6>=$F10,AE$6<=$H10)*(AE$6-$F10+1),$J10/2,$M10,TRUE)-_xlfn.NORM.DIST(AND(AE$6>=$F10,AE$6<=$H10)*(AD$6-$F10+1),$J10/2,$M10,TRUE))/(1-2*_xlfn.NORM.DIST(0,$J10/2,$M10,TRUE))*$D10+($K10="Steady Growth")*(AND(AE$6>=$F10,AE$6<=$H10)*((AE$6-$F10+1)/($J10*($J10+1)/2)*$D10))+($K10="custom")*CustCF!Y10 -> 0 | AF10: =($K10="Bell Curve")*(_xlfn.NORM.DIST(AND(AF$6>=$F10,AF$6<=$H10)*(AF$6-$F10+1),$J10/2,$M10,TRUE)-_xlfn.NORM.DIST(AND(AF$6>=$F10,AF$6<=$H10)*(AE$6-$F10+1),$J10/2,$M10,TRUE))/(1-2*_xlfn.NORM.DIST(0,$J10/2,$M10,TRUE))*$D10+($K10="Steady Growth")*(AND(AF$6>=$F10,AF$6<=$H10)*((AF$6-$F10+1)/($J10*($J10+1)/2)*$D10))+($K10="custom")*CustCF!Z10 -> 0 | AG10: =($K10="Bell Curve")*(_xlfn.NORM.DIST(AND(AG$6>=$F10,AG$6<=$H10)*(AG$6-$F10+1),$J10/2,$M10,TRUE)-_xlfn.NORM.DIST(AND(AG$6>=$F10,AG$6<=$H10)*(AF$6-$F10+1),$J10/2,$M10,TRUE))/(1-2*_xlfn.NORM.DIST(0,$J10/2,$M10,TRUE))*$D10+($K10="Steady Growth")*(AND(AG$6>=$F10,AG$6<=$H10)*((AG$6-$F10+1)/($J10*($J10+1)/2)*$D10))+($K10="custom")*CustCF!AA10 -> 0 | AH10: =($K10="Bell Curve")*(_xlfn.NORM.DIST(AND(AH$6>=$F10,AH$6<=$H10)*(AH$6-$F10+1),$J10/2,$M10,TRUE)-_xlfn.NORM.DIST(AND(AH$6>=$F10,AH$6<=$H10)*(AG$6-$F10+1),$J10/2,$M10,TRUE))/(1-2*_xlfn.NORM.DIST(0,$J10/2,$M10,TRUE))*$D10+($K10="Steady Growth")*(AND(AH$6>=$F10,AH$6<=$H10)*((AH$6-$F10+1)/($J10*($J10+1)/2)*$D10))+($K10="custom")*CustCF!AB10 -> 0 | AI10: =($K10="Bell Curve")*(_xlfn.NORM.DIST(AND(AI$6>=$F10,AI$6<=$H10)*(AI$6-$F10+1),$J10/2,$M10,TRUE)-_xlfn.NORM.DIST(AND(AI$6>=$F10,AI$6<=$H10)*(AH$6-$F10+1),$J10/2,$M10,TRUE))/(1-2*_xlfn.NORM.DIST(0,$J10/2,$M10,TRUE))*$D10+($K10="Steady Growth")*(AND(AI$6>=$F10,AI$6<=$H10)*((AI$6-$F10+1)/($J10*($J10+1)/2)*$D10))+($K10="custom")*CustCF!AC10 -> 0 | AJ10: =($K10="Bell Curve")*(_xlfn.NORM.DIST(AND(AJ$6>=$F10,AJ$6<=$H10)*(AJ$6-$F10+1),$J10/2,$M10,TRUE)-_xlfn.NORM.DIST(AND(AJ$6>=$F10,AJ$6<=$H10)*(AI$6-$F10+1),$J10/2,$M10,TRUE))/(1-2*_xlfn.NORM.DIST(0,$J10/2,$M10,TRUE))*$D10+($K10="Steady Growth")*(AND(AJ$6>=$F10,AJ$6<=$H10)*((AJ$6-$F10+1)/($J10*($J10+1)/2)*$D10))+($K10="custom")*CustCF!AD10 -> 0 | AK10: =($K10="Bell Curve")*(_xlfn.NORM.DIST(AND(AK$6>=$F10,AK$6<=$H10)*(AK$6-$F10+1),$J10/2,$M10,TRUE)-_xlfn.NORM.DIST(AND(AK$6>=$F10,AK$6<=$H10)*(AJ$6-$F10+1),$J10/2,$M10,TRUE))/(1-2*_xlfn.NORM.DIST(0,$J10/2,$M10,TRUE))*$D10+($K10="Steady Growth")*(AND(AK$6>=$F10,AK$6<=$H10)*((AK$6-$F10+1)/($J10*($J10+1)/2)*$D10))+($K10="custom")*CustCF!AE10 -> 0 | AL10: =($K10="Bell Curve")*(_xlfn.NORM.DIST(AND(AL$6>=$F10,AL$6<=$H10)*(AL$6-$F10+1),$J10/2,$M10,TRUE)-_xlfn.NORM.DIST(AND(AL$6>=$F10,AL$6<=$H10)*(AK$6-$F10+1),$J10/2,$M10,TRUE))/(1-2*_xlfn.NORM.DIST(0,$J10/2,$M10,TRUE))*$D10+($K10="Steady Growth")*(AND(AL$6>=$F10,AL$6<=$H10)*((AL$6-$F10+1)/($J10*($J10+1)/2)*$D10))+($K10="custom")*CustCF!AF10 -> 0 | AM10: =($K10="Bell Curve")*(_xlfn.NORM.DIST(AND(AM$6>=$F10,AM$6<=$H10)*(AM$6-$F10+1),$J10/2,$M10,TRUE)-_xlfn.NORM.DIST(AND(AM$6>=$F10,AM$6<=$H10)*(AL$6-$F10+1),$J10/2,$M10,TRUE))/(1-2*_xlfn.NORM.DIST(0,$J10/2,$M10,TRUE))*$D10+($K10="Steady Growth")*(AND(AM$6>=$F10,AM$6<=$H10)*((AM$6-$F10+1)/($J10*($J10+1)/2)*$D10))+($K10="custom")*CustCF!AG10 -> 0 | AN10: =($K10="Bell Curve")*(_xlfn.NORM.DIST(AND(AN$6>=$F10,AN$6<=$H10)*(AN$6-$F10+1),$J10/2,$M10,TRUE)-_xlfn.NORM.DIST(AND(AN$6>=$F10,AN$6<=$H10)*(AM$6-$F10+1),$J10/2,$M10,TRUE))/(1-2*_xlfn.NORM.DIST(0,$J10/2,$M10,TRUE))*$D10+($K10="Steady Growth")*(AND(AN$6>=$F10,AN$6<=$H10)*((AN$6-$F10+1)/($J10*($J10+1)/2)*$D10))+($K10="custom")*CustCF!AH10 -> 0 | AO10: =($K10="Bell Curve")*(_xlfn.NORM.DIST(AND(AO$6>=$F10,AO$6<=$H10)*(AO$6-$F10+1),$J10/2,$M10,TRUE)-_xlfn.NORM.DIST(AND(AO$6>=$F10,AO$6<=$H10)*(AN$6-$F10+1),$J10/2,$M10,TRUE))/(1-2*_xlfn.NORM.DIST(0,$J10/2,$M10,TRUE))*$D10+($K10="Steady Growth")*(AND(AO$6>=$F10,AO$6<=$H10)*((AO$6-$F10+1)/($J10*($J10+1)/2)*$D10))+($K10="custom")*CustCF!AI10 -> 0 | AP10: =($K10="Bell Curve")*(_xlfn.NORM.DIST(AND(AP$6>=$F10,AP$6<=$H10)*(AP$6-$F10+1),$J10/2,$M10,TRUE)-_xlfn.NORM.DIST(AND(AP$6>=$F10,AP$6<=$H10)*(AO$6-$F10+1),$J10/2,$M10,TRUE))/(1-2*_xlfn.NORM.DIST(0,$J10/2,$M10,TRUE))*$D10+($K10="Steady Growth")*(AND(AP$6>=$F10,AP$6<=$H10)*((AP$6-$F10+1)/($J10*($J10+1)/2)*$D10))+($K10="custom")*CustCF!AJ10 -> 0 | AQ10: =($K10="Bell Curve")*(_xlfn.NORM.DIST(AND(AQ$6>=$F10,AQ$6<=$H10)*(AQ$6-$F10+1),$J10/2,$M10,TRUE)-_xlfn.NORM.DIST(AND(AQ$6>=$F10,AQ$6<=$H10)*(AP$6-$F10+1),$J10/2,$M10,TRUE))/(1-2*_xlfn.NORM.DIST(0,$J10/2,$M10,TRUE))*$D10+($K10="Steady Growth")*(AND(AQ$6>=$F10,AQ$6<=$H10)*((AQ$6-$F10+1)/($J10*($J10+1)/2)*$D10))+($K10="custom")*CustCF!AK10 -> 0 | AR10: =($K10="Bell Curve")*(_xlfn.NORM.DIST(AND(AR$6>=$F10,AR$6<=$H10)*(AR$6-$F10+1),$J10/2,$M10,TRUE)-_xlfn.NORM.DIST(AND(AR$6>=$F10,AR$6<=$H10)*(AQ$6-$F10+1),$J10/2,$M10,TRUE))/(1-2*_xlfn.NORM.DIST(0,$J10/2,$M10,TRUE))*$D10+($K10="Steady Growth")*(AND(AR$6>=$F10,AR$6<=$H10)*((AR$6-$F10+1)/($J10*($J10+1)/2)*$D10))+($K10="custom")*CustCF!AL10 -> 0 | AS10: =($K10="Bell Curve")*(_xlfn.NORM.DIST(AND(AS$6>=$F10,AS$6<=$H10)*(AS$6-$F10+1),$J10/2,$M10,TRUE)-_xlfn.NORM.DIST(AND(AS$6>=$F10,AS$6<=$H10)*(AR$6-$F10+1),$J10/2,$M10,TRUE))/(1-2*_xlfn.NORM.DIST(0,$J10/2,$M10,TRUE))*$D10+($K10="Steady Growth")*(AND(AS$6>=$F10,AS$6<=$H10)*((AS$6-$F10+1)/($J10*($J10+1)/2)*$D10))+($K10="custom")*CustCF!AM10 -> 0 | AT10: =($K10="Bell Curve")*(_xlfn.NORM.DIST(AND(AT$6>=$F10,AT$6<=$H10)*(AT$6-$F10+1),$J10/2,$M10,TRUE)-_xlfn.NORM.DIST(AND(AT$6>=$F10,AT$6<=$H10)*(AS$6-$F10+1),$J10/2,$M10,TRUE))/(1-2*_xlfn.NORM.DIST(0,$J10/2,$M10,TRUE))*$D10+($K10="Steady Growth")*(AND(AT$6>=$F10,AT$6<=$H10)*((AT$6-$F10+1)/($J10*($J10+1)/2)*$D10))+($K10="custom")*CustCF!AN10 -> 0 | AU10: =($K10="Bell Curve")*(_xlfn.NORM.DIST(AND(AU$6>=$F10,AU$6<=$H10)*(AU$6-$F10+1),$J10/2,$M10,TRUE)-_xlfn.NORM.DIST(AND(AU$6>=$F10,AU$6<=$H10)*(AT$6-$F10+1),$J10/2,$M10,TRUE))/(1-2*_xlfn.NORM.DIST(0,$J10/2,$M10,TRUE))*$D10+($K10="Steady Growth")*(AND(AU$6>=$F10,AU$6<=$H10)*((AU$6-$F10+1)/($J10*($J10+1)/2)*$D10))+($K10="custom")*CustCF!AO10 -> 0 | AV10: =($K10="Bell Curve")*(_xlfn.NORM.DIST(AND(AV$6>=$F10,AV$6<=$H10)*(AV$6-$F10+1),$J10/2,$M10,TRUE)-_xlfn.NORM.DIST(AND(AV$6>=$F10,AV$6<=$H10)*(AU$6-$F10+1),$J10/2,$M10,TRUE))/(1-2*_xlfn.NORM.DIST(0,$J10/2,$M10,TRUE))*$D10+($K10="Steady Growth")*(AND(AV$6>=$F10,AV$6<=$H10)*((AV$6-$F10+1)/($J10*($J10+1)/2)*$D10))+($K10="custom")*CustCF!AP10 -> 0 | AW10: =($K10="Bell Curve")*(_xlfn.NORM.DIST(AND(AW$6>=$F10,AW$6<=$H10)*(AW$6-$F10+1),$J10/2,$M10,TRUE)-_xlfn.NORM.DIST(AND(AW$6>=$F10,AW$6<=$H10)*(AV$6-$F10+1),$J10/2,$M10,TRUE))/(1-2*_xlfn.NORM.DIST(0,$J10/2,$M10,TRUE))*$D10+($K10="Steady Growth")*(AND(AW$6>=$F10,AW$6<=$H10)*((AW$6-$F10+1)/($J10*($J10+1)/2)*$D10))+($K10="custom")*CustCF!AQ10 -> 0 | AX10: =($K10="Bell Curve")*(_xlfn.NORM.DIST(AND(AX$6>=$F10,AX$6<=$H10)*(AX$6-$F10+1),$J10/2,$M10,TRUE)-_xlfn.NORM.DIST(AND(AX$6>=$F10,AX$6<=$H10)*(AW$6-$F10+1),$J10/2,$M10,TRUE))/(1-2*_xlfn.NORM.DIST(0,$J10/2,$M10,TRUE))*$D10+($K10="Steady Growth")*(AND(AX$6>=$F10,AX$6<=$H10)*((AX$6-$F10+1)/($J10*($J10+1)/2)*$D10))+($K10="custom")*CustCF!AR10 -> 0 | AY10: =($K10="Bell Curve")*(_xlfn.NORM.DIST(AND(AY$6>=$F10,AY$6<=$H10)*(AY$6-$F10+1),$J10/2,$M10,TRUE)-_xlfn.NORM.DIST(AND(AY$6>=$F10,AY$6<=$H10)*(AX$6-$F10+1),$J10/2,$M10,TRUE))/(1-2*_xlfn.NORM.DIST(0,$J10/2,$M10,TRUE))*$D10+($K10="Steady Growth")*(AND(AY$6>=$F10,AY$6<=$H10)*((AY$6-$F10+1)/($J10*($J10+1)/2)*$D10))+($K10="custom")*CustCF!AS10 -> 0 | AZ10: =($K10="Bell Curve")*(_xlfn.NORM.DIST(AND(AZ$6>=$F10,AZ$6<=$H10)*(AZ$6-$F10+1),$J10/2,$M10,TRUE)-_xlfn.NORM.DIST(AND(AZ$6>=$F10,AZ$6<=$H10)*(AY$6-$F10+1),$J10/2,$M10,TRUE))/(1-2*_xlfn.NORM.DIST(0,$J10/2,$M10,TRUE))*$D10+($K10="Steady Growth")*(AND(AZ$6>=$F10,AZ$6<=$H10)*((AZ$6-$F10+1)/($J10*($J10+1)/2)*$D10))+($K10="custom")*CustCF!AT10 -> 0 | BA10: =($K10="Bell Curve")*(_xlfn.NORM.DIST(AND(BA$6>=$F10,BA$6<=$H10)*(BA$6-$F10+1),$J10/2,$M10,TRUE)-_xlfn.NORM.DIST(AND(BA$6>=$F10,BA$6<=$H10)*(AZ$6-$F10+1),$J10/2,$M10,TRUE))/(1-2*_xlfn.NORM.DIST(0,$J10/2,$M10,TRUE))*$D10+($K10="Steady Growth")*(AND(BA$6>=$F10,BA$6<=$H10)*((BA$6-$F10+1)/($J10*($J10+1)/2)*$D10))+($K10="custom")*CustCF!AU10 -> 0 | BB10: =($K10="Bell Curve")*(_xlfn.NORM.DIST(AND(BB$6>=$F10,BB$6<=$H10)*(BB$6-$F10+1),$J10/2,$M10,TRUE)-_xlfn.NORM.DIST(AND(BB$6>=$F10,BB$6<=$H10)*(BA$6-$F10+1),$J10/2,$M10,TRUE))/(1-2*_xlfn.NORM.DIST(0,$J10/2,$M10,TRUE))*$D10+($K10="Steady Growth")*(AND(BB$6>=$F10,BB$6<=$H10)*((BB$6-$F10+1)/($J10*($J10+1)/2)*$D10))+($K10="custom")*CustCF!AV10 -> 0 | BC10: =($K10="Bell Curve")*(_xlfn.NORM.DIST(AND(BC$6>=$F10,BC$6<=$H10)*(BC$6-$F10+1),$J10/2,$M10,TRUE)-_xlfn.NORM.DIST(AND(BC$6>=$F10,BC$6<=$H10)*(BB$6-$F10+1),$J10/2,$M10,TRUE))/(1-2*_xlfn.NORM.DIST(0,$J10/2,$M10,TRUE))*$D10+($K10="Steady Growth")*(AND(BC$6>=$F10,BC$6<=$H10)*((BC$6-$F10+1)/($J10*($J10+1)/2)*$D10))+($K10="custom")*CustCF!AW10 -> 0 | BD10: =($K10="Bell Curve")*(_xlfn.NORM.DIST(AND(BD$6>=$F10,BD$6<=$H10)*(BD$6-$F10+1),$J10/2,$M10,TRUE)-_xlfn.NORM.DIST(AND(BD$6>=$F10,BD$6<=$H10)*(BC$6-$F10+1),$J10/2,$M10,TRUE))/(1-2*_xlfn.NORM.DIST(0,$J10/2,$M10,TRUE))*$D10+($K10="Steady Growth")*(AND(BD$6>=$F10,BD$6<=$H10)*((BD$6-$F10+1)/($J10*($J10+1)/2)*$D10))+($K10="custom")*CustCF!AX10 -> 0 | BE10: =($K10="Bell Curve")*(_xlfn.NORM.DIST(AND(BE$6>=$F10,BE$6<=$H10)*(BE$6-$F10+1),$J10/2,$M10,TRUE)-_xlfn.NORM.DIST(AND(BE$6>=$F10,BE$6<=$H10)*(BD$6-$F10+1),$J10/2,$M10,TRUE))/(1-2*_xlfn.NORM.DIST(0,$J10/2,$M10,TRUE))*$D10+($K10="Steady Growth")*(AND(BE$6>=$F10,BE$6<=$H10)*((BE$6-$F10+1)/($J10*($J10+1)/2)*$D10))+($K10="custom")*CustCF!AY10 -> 0 | BF10: =($K10="Bell Curve")*(_xlfn.NORM.DIST(AND(BF$6>=$F10,BF$6<=$H10)*(BF$6-$F10+1),$J10/2,$M10,TRUE)-_xlfn.NORM.DIST(AND(BF$6>=$F10,BF$6<=$H10)*(BE$6-$F10+1),$J10/2,$M10,TRUE))/(1-2*_xlfn.NORM.DIST(0,$J10/2,$M10,TRUE))*$D10+($K10="Steady Growth")*(AND(BF$6>=$F10,BF$6<=$H10)*((BF$6-$F10+1)/($J10*($J10+1)/2)*$D10))+($K10="custom")*CustCF!AZ10 -> 0 | BG10: =($K10="Bell Curve")*(_xlfn.NORM.DIST(AND(BG$6>=$F10,BG$6<=$H10)*(BG$6-$F10+1),$J10/2,$M10,TRUE)-_xlfn.NORM.DIST(AND(BG$6>=$F10,BG$6<=$H10)*(BF$6-$F10+1),$J10/2,$M10,TRUE))/(1-2*_xlfn.NORM.DIST(0,$J10/2,$M10,TRUE))*$D10+($K10="Steady Growth")*(AND(BG$6>=$F10,BG$6<=$H10)*((BG$6-$F10+1)/($J10*($J10+1)/2)*$D10))+($K10="custom")*CustCF!BA10 -> 0 | BH10: =($K10="Bell Curve")*(_xlfn.NORM.DIST(AND(BH$6>=$F10,BH$6<=$H10)*(BH$6-$F10+1),$J10/2,$M10,TRUE)-_xlfn.NORM.DIST(AND(BH$6>=$F10,BH$6<=$H10)*(BG$6-$F10+1),$J10/2,$M10,TRUE))/(1-2*_xlfn.NORM.DIST(0,$J10/2,$M10,TRUE))*$D10+($K10="Steady Growth")*(AND(BH$6>=$F10,BH$6<=$H10)*((BH$6-$F10+1)/($J10*($J10+1)/2)*$D10))+($K10="custom")*CustCF!BB10 -> 0 | BI10: =($K10="Bell Curve")*(_xlfn.NORM.DIST(AND(BI$6>=$F10,BI$6<=$H10)*(BI$6-$F10+1),$J10/2,$M10,TRUE)-_xlfn.NORM.DIST(AND(BI$6>=$F10,BI$6<=$H10)*(BH$6-$F10+1),$J10/2,$M10,TRUE))/(1-2*_xlfn.NORM.DIST(0,$J10/2,$M10,TRUE))*$D10+($K10="Steady Growth")*(AND(BI$6>=$F10,BI$6<=$H10)*((BI$6-$F10+1)/($J10*($J10+1)/2)*$D10))+($K10="custom")*CustCF!BC10 -> 0 | BJ10: =($K10="Bell Curve")*(_xlfn.NORM.DIST(AND(BJ$6>=$F10,BJ$6<=$H10)*(BJ$6-$F10+1),$J10/2,$M10,TRUE)-_xlfn.NORM.DIST(AND(BJ$6>=$F10,BJ$6<=$H10)*(BI$6-$F10+1),$J10/2,$M10,TRUE))/(1-2*_xlfn.NORM.DIST(0,$J10/2,$M10,TRUE))*$D10+($K10="Steady Growth")*(AND(BJ$6>=$F10,BJ$6<=$H10)*((BJ$6-$F10+1)/($J10*($J10+1)/2)*$D10))+($K10="custom")*CustCF!BD10 -> 0 | BK10: =($K10="Bell Curve")*(_xlfn.NORM.DIST(AND(BK$6>=$F10,BK$6<=$H10)*(BK$6-$F10+1),$J10/2,$M10,TRUE)-_xlfn.NORM.DIST(AND(BK$6>=$F10,BK$6<=$H10)*(BJ$6-$F10+1),$J10/2,$M10,TRUE))/(1-2*_xlfn.NORM.DIST(0,$J10/2,$M10,TRUE))*$D10+($K10="Steady Growth")*(AND(BK$6>=$F10,BK$6<=$H10)*((BK$6-$F10+1)/($J10*($J10+1)/2)*$D10))+($K10="custom")*CustCF!BE10 -> 0 | BL10: =($K10="Bell Curve")*(_xlfn.NORM.DIST(AND(BL$6>=$F10,BL$6<=$H10)*(BL$6-$F10+1),$J10/2,$M10,TRUE)-_xlfn.NORM.DIST(AND(BL$6>=$F10,BL$6<=$H10)*(BK$6-$F10+1),$J10/2,$M10,TRUE))/(1-2*_xlfn.NORM.DIST(0,$J10/2,$M10,TRUE))*$D10+($K10="Steady Growth")*(AND(BL$6>=$F10,BL$6<=$H10)*((BL$6-$F10+1)/($J10*($J10+1)/2)*$D10))+($K10="custom")*CustCF!BF10 -> 0 | BM10: =($K10="Bell Curve")*(_xlfn.NORM.DIST(AND(BM$6>=$F10,BM$6<=$H10)*(BM$6-$F10+1),$J10/2,$M10,TRUE)-_xlfn.NORM.DIST(AND(BM$6>=$F10,BM$6<=$H10)*(BL$6-$F10+1),$J10/2,$M10,TRUE))/(1-2*_xlfn.NORM.DIST(0,$J10/2,$M10,TRUE))*$D10+($K10="Steady Growth")*(AND(BM$6>=$F10,BM$6<=$H10)*((BM$6-$F10+1)/($J10*($J10+1)/2)*$D10))+($K10="custom")*CustCF!BG10 -> 0 | BN10: =($K10="Bell Curve")*(_xlfn.NORM.DIST(AND(BN$6>=$F10,BN$6<=$H10)*(BN$6-$F10+1),$J10/2,$M10,TRUE)-_xlfn.NORM.DIST(AND(BN$6>=$F10,BN$6<=$H10)*(BM$6-$F10+1),$J10/2,$M10,TRUE))/(1-2*_xlfn.NORM.DIST(0,$J10/2,$M10,TRUE))*$D10+($K10="Steady Growth")*(AND(BN$6>=$F10,BN$6<=$H10)*((BN$6-$F10+1)/($J10*($J10+1)/2)*$D10))+($K10="custom")*CustCF!BH10 -> 0 | BO10: =($K10="Bell Curve")*(_xlfn.NORM.DIST(AND(BO$6>=$F10,BO$6<=$H10)*(BO$6-$F10+1),$J10/2,$M10,TRUE)-_xlfn.NORM.DIST(AND(BO$6>=$F10,BO$6<=$H10)*(BN$6-$F10+1),$J10/2,$M10,TRUE))/(1-2*_xlfn.NORM.DIST(0,$J10/2,$M10,TRUE))*$D10+($K10="Steady Growth")*(AND(BO$6>=$F10,BO$6<=$H10)*((BO$6-$F10+1)/($J10*($J10+1)/2)*$D10))+($K10="custom")*CustCF!BI10 -> 0 | BP10: =($K10="Bell Curve")*(_xlfn.NORM.DIST(AND(BP$6>=$F10,BP$6<=$H10)*(BP$6-$F10+1),$J10/2,$M10,TRUE)-_xlfn.NORM.DIST(AND(BP$6>=$F10,BP$6<=$H10)*(BO$6-$F10+1),$J10/2,$M10,TRUE))/(1-2*_xlfn.NORM.DIST(0,$J10/2,$M10,TRUE))*$D10+($K10="Steady Growth")*(AND(BP$6>=$F10,BP$6<=$H10)*((BP$6-$F10+1)/($J10*($J10+1)/2)*$D10))+($K10="custom")*CustCF!BJ10 -> 0 | BQ10: =($K10="Bell Curve")*(_xlfn.NORM.DIST(AND(BQ$6>=$F10,BQ$6<=$H10)*(BQ$6-$F10+1),$J10/2,$M10,TRUE)-_xlfn.NORM.DIST(AND(BQ$6>=$F10,BQ$6<=$H10)*(BP$6-$F10+1),$J10/2,$M10,TRUE))/(1-2*_xlfn.NORM.DIST(0,$J10/2,$M10,TRUE))*$D10+($K10="Steady Growth")*(AND(BQ$6>=$F10,BQ$6<=$H10)*((BQ$6-$F10+1)/($J10*($J10+1)/2)*$D10))+($K10="custom")*CustCF!BK10 -> 0 | BR10: =($K10="Bell Curve")*(_xlfn.NORM.DIST(AND(BR$6>=$F10,BR$6<=$H10)*(BR$6-$F10+1),$J10/2,$M10,TRUE)-_xlfn.NORM.DIST(AND(BR$6>=$F10,BR$6<=$H10)*(BQ$6-$F10+1),$J10/2,$M10,TRUE))/(1-2*_xlfn.NORM.DIST(0,$J10/2,$M10,TRUE))*$D10+($K10="Steady Growth")*(AND(BR$6>=$F10,BR$6<=$H10)*((BR$6-$F10+1)/($J10*($J10+1)/2)*$D10))+($K10="custom")*CustCF!BL10 -> 0 | BS10: =($K10="Bell Curve")*(_xlfn.NORM.DIST(AND(BS$6>=$F10,BS$6<=$H10)*(BS$6-$F10+1),$J10/2,$M10,TRUE)-_xlfn.NORM.DIST(AND(BS$6>=$F10,BS$6<=$H10)*(BR$6-$F10+1),$J10/2,$M10,TRUE))/(1-2*_xlfn.NORM.DIST(0,$J10/2,$M10,TRUE))*$D10+($K10="Steady Growth")*(AND(BS$6>=$F10,BS$6<=$H10)*((BS$6-$F10+1)/($J10*($J10+1)/2)*$D10))+($K10="custom")*CustCF!BM10 -> 0 | BT10: =($K10="Bell Curve")*(_xlfn.NORM.DIST(AND(BT$6>=$F10,BT$6<=$H10)*(BT$6-$F10+1),$J10/2,$M10,TRUE)-_xlfn.NORM.DIST(AND(BT$6>=$F10,BT$6<=$H10)*(BS$6-$F10+1),$J10/2,$M10,TRUE))/(1-2*_xlfn.NORM.DIST(0,$J10/2,$M10,TRUE))*$D10+($K10="Steady Growth")*(AND(BT$6>=$F10,BT$6<=$H10)*((BT$6-$F10+1)/($J10*($J10+1)/2)*$D10))+($K10="custom")*CustCF!BN10 -> 0 | BU10: =($K10="Bell Curve")*(_xlfn.NORM.DIST(AND(BU$6>=$F10,BU$6<=$H10)*(BU$6-$F10+1),$J10/2,$M10,TRUE)-_xlfn.NORM.DIST(AND(BU$6>=$F10,BU$6<=$H10)*(BT$6-$F10+1),$J10/2,$M10,TRUE))/(1-2*_xlfn.NORM.DIST(0,$J10/2,$M10,TRUE))*$D10+($K10="Steady Growth")*(AND(BU$6>=$F10,BU$6<=$H10)*((BU$6-$F10+1)/($J10*($J10+1)/2)*$D10))+($K10="custom")*CustCF!BO10 -> 0 | BV10: =($K10="Bell Curve")*(_xlfn.NORM.DIST(AND(BV$6>=$F10,BV$6<=$H10)*(BV$6-$F10+1),$J10/2,$M10,TRUE)-_xlfn.NORM.DIST(AND(BV$6>=$F10,BV$6<=$H10)*(BU$6-$F10+1),$J10/2,$M10,TRUE))/(1-2*_xlfn.NORM.DIST(0,$J10/2,$M10,TRUE))*$D10+($K10="Steady Growth")*(AND(BV$6>=$F10,BV$6<=$H10)*((BV$6-$F10+1)/($J10*($J10+1)/2)*$D10))+($K10="custom")*CustCF!BP10 -> 0 | BW10: =($K10="Bell Curve")*(_xlfn.NORM.DIST(AND(BW$6>=$F10,BW$6<=$H10)*(BW$6-$F10+1),$J10/2,$M10,TRUE)-_xlfn.NORM.DIST(AND(BW$6>=$F10,BW$6<=$H10)*(BV$6-$F10+1),$J10/2,$M10,TRUE))/(1-2*_xlfn.NORM.DIST(0,$J10/2,$M10,TRUE))*$D10+($K10="Steady Growth")*(AND(BW$6>=$F10,BW$6<=$H10)*((BW$6-$F10+1)/($J10*($J10+1)/2)*$D10))+($K10="custom")*CustCF!BQ10 -> 0 | BX10: =($K10="Bell Curve")*(_xlfn.NORM.DIST(AND(BX$6>=$F10,BX$6<=$H10)*(BX$6-$F10+1),$J10/2,$M10,TRUE)-_xlfn.NORM.DIST(AND(BX$6>=$F10,BX$6<=$H10)*(BW$6-$F10+1),$J10/2,$M10,TRUE))/(1-2*_xlfn.NORM.DIST(0,$J10/2,$M10,TRUE))*$D10+($K10="Steady Growth")*(AND(BX$6>=$F10,BX$6<=$H10)*((BX$6-$F10+1)/($J10*($J10+1)/2)*$D10))+($K10="custom")*CustCF!BR10 -> 0 | BY10: =($K10="Bell Curve")*(_xlfn.NORM.DIST(AND(BY$6>=$F10,BY$6<=$H10)*(BY$6-$F10+1),$J10/2,$M10,TRUE)-_xlfn.NORM.DIST(AND(BY$6>=$F10,BY$6<=$H10)*(BX$6-$F10+1),$J10/2,$M10,TRUE))/(1-2*_xlfn.NORM.DIST(0,$J10/2,$M10,TRUE))*$D10+($K10="Steady Growth")*(AND(BY$6>=$F10,BY$6<=$H10)*((BY$6-$F10+1)/($J10*($J10+1)/2)*$D10))+($K10="custom")*CustCF!BS10 -> 0 | BZ10: =($K10="Bell Curve")*(_xlfn.NORM.DIST(AND(BZ$6>=$F10,BZ$6<=$H10)*(BZ$6-$F10+1),$J10/2,$M10,TRUE)-_xlfn.NORM.DIST(AND(BZ$6>=$F10,BZ$6<=$H10)*(BY$6-$F10+1),$J10/2,$M10,TRUE))/(1-2*_xlfn.NORM.DIST(0,$J10/2,$M10,TRUE))*$D10+($K10="Steady Growth")*(AND(BZ$6>=$F10,BZ$6<=$H10)*((BZ$6-$F10+1)/($J10*($J10+1)/2)*$D10))+($K10="custom")*CustCF!BT10 -> 0 | CA10: =($K10="Bell Curve")*(_xlfn.NORM.DIST(AND(CA$6>=$F10,CA$6<=$H10)*(CA$6-$F10+1),$J10/2,$M10,TRUE)-_xlfn.NORM.DIST(AND(CA$6>=$F10,CA$6<=$H10)*(BZ$6-$F10+1),$J10/2,$M10,TRUE))/(1-2*_xlfn.NORM.DIST(0,$J10/2,$M10,TRUE))*$D10+($K10="Steady Growth")*(AND(CA$6>=$F10,CA$6<=$H10)*((CA$6-$F10+1)/($J10*($J10+1)/2)*$D10))+($K10="custom")*CustCF!BU10 -> 0 | CB10: =($K10="Bell Curve")*(_xlfn.NORM.DIST(AND(CB$6>=$F10,CB$6<=$H10)*(CB$6-$F10+1),$J10/2,$M10,TRUE)-_xlfn.NORM.DIST(AND(CB$6>=$F10,CB$6<=$H10)*(CA$6-$F10+1),$J10/2,$M10,TRUE))/(1-2*_xlfn.NORM.DIST(0,$J10/2,$M10,TRUE))*$D10+($K10="Steady Growth")*(AND(CB$6>=$F10,CB$6<=$H10)*((CB$6-$F10+1)/($J10*($J10+1)/2)*$D10))+($K10="custom")*CustCF!BV10 -> 0 | CC10: =($K10="Bell Curve")*(_xlfn.NORM.DIST(AND(CC$6>=$F10,CC$6<=$H10)*(CC$6-$F10+1),$J10/2,$M10,TRUE)-_xlfn.NORM.DIST(AND(CC$6>=$F10,CC$6<=$H10)*(CB$6-$F10+1),$J10/2,$M10,TRUE))/(1-2*_xlfn.NORM.DIST(0,$J10/2,$M10,TRUE))*$D10+($K10="Steady Growth")*(AND(CC$6>=$F10,CC$6<=$H10)*((CC$6-$F10+1)/($J10*($J10+1)/2)*$D10))+($K10="custom")*CustCF!BW10 -> 0 | CD10: =($K10="Bell Curve")*(_xlfn.NORM.DIST(AND(CD$6>=$F10,CD$6<=$H10)*(CD$6-$F10+1),$J10/2,$M10,TRUE)-_xlfn.NORM.DIST(AND(CD$6>=$F10,CD$6<=$H10)*(CC$6-$F10+1),$J10/2,$M10,TRUE))/(1-2*_xlfn.NORM.DIST(0,$J10/2,$M10,TRUE))*$D10+($K10="Steady Growth")*(AND(CD$6>=$F10,CD$6<=$H10)*((CD$6-$F10+1)/($J10*($J10+1)/2)*$D10))+($K10="custom")*CustCF!BX10 -> 0 | CE10: =($K10="Bell Curve")*(_xlfn.NORM.DIST(AND(CE$6>=$F10,CE$6<=$H10)*(CE$6-$F10+1),$J10/2,$M10,TRUE)-_xlfn.NORM.DIST(AND(CE$6>=$F10,CE$6<=$H10)*(CD$6-$F10+1),$J10/2,$M10,TRUE))/(1-2*_xlfn.NORM.DIST(0,$J10/2,$M10,TRUE))*$D10+($K10="Steady Growth")*(AND(CE$6>=$F10,CE$6<=$H10)*((CE$6-$F10+1)/($J10*($J10+1)/2)*$D10))+($K10="custom")*CustCF!BY10 -> 0 | CF10: =($K10="Bell Curve")*(_xlfn.NORM.DIST(AND(CF$6>=$F10,CF$6<=$H10)*(CF$6-$F10+1),$J10/2,$M10,TRUE)-_xlfn.NORM.DIST(AND(CF$6>=$F10,CF$6<=$H10)*(CE$6-$F10+1),$J10/2,$M10,TRUE))/(1-2*_xlfn.NORM.DIST(0,$J10/2,$M10,TRUE))*$D10+($K10="Steady Growth")*(AND(CF$6>=$F10,CF$6<=$H10)*((CF$6-$F10+1)/($J10*($J10+1)/2)*$D10))+($K10="custom")*CustCF!BZ10 -> 0 | CG10: =($K10="Bell Curve")*(_xlfn.NORM.DIST(AND(CG$6>=$F10,CG$6<=$H10)*(CG$6-$F10+1),$J10/2,$M10,TRUE)-_xlfn.NORM.DIST(AND(CG$6>=$F10,CG$6<=$H10)*(CF$6-$F10+1),$J10/2,$M10,TRUE))/(1-2*_xlfn.NORM.DIST(0,$J10/2,$M10,TRUE))*$D10+($K10="Steady Growth")*(AND(CG$6>=$F10,CG$6<=$H10)*((CG$6-$F10+1)/($J10*($J10+1)/2)*$D10))+($K10="custom")*CustCF!CA10 -> 0 | CH10: =($K10="Bell Curve")*(_xlfn.NORM.DIST(AND(CH$6>=$F10,CH$6<=$H10)*(CH$6-$F10+1),$J10/2,$M10,TRUE)-_xlfn.NORM.DIST(AND(CH$6>=$F10,CH$6<=$H10)*(CG$6-$F10+1),$J10/2,$M10,TRUE))/(1-2*_xlfn.NORM.DIST(0,$J10/2,$M10,TRUE))*$D10+($K10="Steady Growth")*(AND(CH$6>=$F10,CH$6<=$H10)*((CH$6-$F10+1)/($J10*($J10+1)/2)*$D10))+($K10="custom")*CustCF!CB10 -> 0 | CI10: =($K10="Bell Curve")*(_xlfn.NORM.DIST(AND(CI$6>=$F10,CI$6<=$H10)*(CI$6-$F10+1),$J10/2,$M10,TRUE)-_xlfn.NORM.DIST(AND(CI$6>=$F10,CI$6<=$H10)*(CH$6-$F10+1),$J10/2,$M10,TRUE))/(1-2*_xlfn.NORM.DIST(0,$J10/2,$M10,TRUE))*$D10+($K10="Steady Growth")*(AND(CI$6>=$F10,CI$6<=$H10)*((CI$6-$F10+1)/($J10*($J10+1)/2)*$D10))+($K10="custom")*CustCF!CC10 -> 0 | CJ10: =($K10="Bell Curve")*(_xlfn.NORM.DIST(AND(CJ$6>=$F10,CJ$6<=$H10)*(CJ$6-$F10+1),$J10/2,$M10,TRUE)-_xlfn.NORM.DIST(AND(CJ$6>=$F10,CJ$6<=$H10)*(CI$6-$F10+1),$J10/2,$M10,TRUE))/(1-2*_xlfn.NORM.DIST(0,$J10/2,$M10,TRUE))*$D10+($K10="Steady Growth")*(AND(CJ$6>=$F10,CJ$6<=$H10)*((CJ$6-$F10+1)/($J10*($J10+1)/2)*$D10))+($K10="custom")*CustCF!CD10 -> 0 | CK10: =($K10="Bell Curve")*(_xlfn.NORM.DIST(AND(CK$6>=$F10,CK$6<=$H10)*(CK$6-$F10+1),$J10/2,$M10,TRUE)-_xlfn.NORM.DIST(AND(CK$6>=$F10,CK$6<=$H10)*(CJ$6-$F10+1),$J10/2,$M10,TRUE))/(1-2*_xlfn.NORM.DIST(0,$J10/2,$M10,TRUE))*$D10+($K10="Steady Growth")*(AND(CK$6>=$F10,CK$6<=$H10)*((CK$6-$F10+1)/($J10*($J10+1)/2)*$D10))+($K10="custom")*CustCF!CE10 -> 0 | CL10: =($K10="Bell Curve")*(_xlfn.NORM.DIST(AND(CL$6>=$F10,CL$6<=$H10)*(CL$6-$F10+1),$J10/2,$M10,TRUE)-_xlfn.NORM.DIST(AND(CL$6>=$F10,CL$6<=$H10)*(CK$6-$F10+1),$J10/2,$M10,TRUE))/(1-2*_xlfn.NORM.DIST(0,$J10/2,$M10,TRUE))*$D10+($K10="Steady Growth")*(AND(CL$6>=$F10,CL$6<=$H10)*((CL$6-$F10+1)/($J10*($J10+1)/2)*$D10))+($K10="custom")*CustCF!CF10 -> 0 | CM10: =($K10="Bell Curve")*(_xlfn.NORM.DIST(AND(CM$6>=$F10,CM$6<=$H10)*(CM$6-$F10+1),$J10/2,$M10,TRUE)-_xlfn.NORM.DIST(AND(CM$6>=$F10,CM$6<=$H10)*(CL$6-$F10+1),$J10/2,$M10,TRUE))/(1-2*_xlfn.NORM.DIST(0,$J10/2,$M10,TRUE))*$D10+($K10="Steady Growth")*(AND(CM$6>=$F10,CM$6<=$H10)*((CM$6-$F10+1)/($J10*($J10+1)/2)*$D10))+($K10="custom")*CustCF!CG10 -> 0 | CN10: =($K10="Bell Curve")*(_xlfn.NORM.DIST(AND(CN$6>=$F10,CN$6<=$H10)*(CN$6-$F10+1),$J10/2,$M10,TRUE)-_xlfn.NORM.DIST(AND(CN$6>=$F10,CN$6<=$H10)*(CM$6-$F10+1),$J10/2,$M10,TRUE))/(1-2*_xlfn.NORM.DIST(0,$J10/2,$M10,TRUE))*$D10+($K10="Steady Growth")*(AND(CN$6>=$F10,CN$6<=$H10)*((CN$6-$F10+1)/($J10*($J10+1)/2)*$D10))+($K10="custom")*CustCF!CH10 -> 0 | CO10: =($K10="Bell Curve")*(_xlfn.NORM.DIST(AND(CO$6>=$F10,CO$6<=$H10)*(CO$6-$F10+1),$J10/2,$M10,TRUE)-_xlfn.NORM.DIST(AND(CO$6>=$F10,CO$6<=$H10)*(CN$6-$F10+1),$J10/2,$M10,TRUE))/(1-2*_xlfn.NORM.DIST(0,$J10/2,$M10,TRUE))*$D10+($K10="Steady Growth")*(AND(CO$6>=$F10,CO$6<=$H10)*((CO$6-$F10+1)/($J10*($J10+1)/2)*$D10))+($K10="custom")*CustCF!CI10 -> 0 | CP10: =($K10="Bell Curve")*(_xlfn.NORM.DIST(AND(CP$6>=$F10,CP$6<=$H10)*(CP$6-$F10+1),$J10/2,$M10,TRUE)-_xlfn.NORM.DIST(AND(CP$6>=$F10,CP$6<=$H10)*(CO$6-$F10+1),$J10/2,$M10,TRUE))/(1-2*_xlfn.NORM.DIST(0,$J10/2,$M10,TRUE))*$D10+($K10="Steady Growth")*(AND(CP$6>=$F10,CP$6<=$H10)*((CP$6-$F10+1)/($J10*($J10+1)/2)*$D10))+($K10="custom")*CustCF!CJ10 -> 0 | CQ10: =($K10="Bell Curve")*(_xlfn.NORM.DIST(AND(CQ$6>=$F10,CQ$6<=$H10)*(CQ$6-$F10+1),$J10/2,$M10,TRUE)-_xlfn.NORM.DIST(AND(CQ$6>=$F10,CQ$6<=$H10)*(CP$6-$F10+1),$J10/2,$M10,TRUE))/(1-2*_xlfn.NORM.DIST(0,$J10/2,$M10,TRUE))*$D10+($K10="Steady Growth")*(AND(CQ$6>=$F10,CQ$6<=$H10)*((CQ$6-$F10+1)/($J10*($J10+1)/2)*$D10))+($K10="custom")*CustCF!CK10 -> 0 | CR10: =($K10="Bell Curve")*(_xlfn.NORM.DIST(AND(CR$6>=$F10,CR$6<=$H10)*(CR$6-$F10+1),$J10/2,$M10,TRUE)-_xlfn.NORM.DIST(AND(CR$6>=$F10,CR$6<=$H10)*(CQ$6-$F10+1),$J10/2,$M10,TRUE))/(1-2*_xlfn.NORM.DIST(0,$J10/2,$M10,TRUE))*$D10+($K10="Steady Growth")*(AND(CR$6>=$F10,CR$6<=$H10)*((CR$6-$F10+1)/($J10*($J10+1)/2)*$D10))+($K10="custom")*CustCF!CL10 -> 0 | CS10: =($K10="Bell Curve")*(_xlfn.NORM.DIST(AND(CS$6>=$F10,CS$6<=$H10)*(CS$6-$F10+1),$J10/2,$M10,TRUE)-_xlfn.NORM.DIST(AND(CS$6>=$F10,CS$6<=$H10)*(CR$6-$F10+1),$J10/2,$M10,TRUE))/(1-2*_xlfn.NORM.DIST(0,$J10/2,$M10,TRUE))*$D10+($K10="Steady Growth")*(AND(CS$6>=$F10,CS$6<=$H10)*((CS$6-$F10+1)/($J10*($J10+1)/2)*$D10))+($K10="custom")*CustCF!CM10 -> 0 | CT10: =($K10="Bell Curve")*(_xlfn.NORM.DIST(AND(CT$6>=$F10,CT$6<=$H10)*(CT$6-$F10+1),$J10/2,$M10,TRUE)-_xlfn.NORM.DIST(AND(CT$6>=$F10,CT$6<=$H10)*(CS$6-$F10+1),$J10/2,$M10,TRUE))/(1-2*_xlfn.NORM.DIST(0,$J10/2,$M10,TRUE))*$D10+($K10="Steady Growth")*(AND(CT$6>=$F10,CT$6<=$H10)*((CT$6-$F10+1)/($J10*($J10+1)/2)*$D10))+($K10="custom")*CustCF!CN10 -> 0 | CU10: =($K10="Bell Curve")*(_xlfn.NORM.DIST(AND(CU$6>=$F10,CU$6<=$H10)*(CU$6-$F10+1),$J10/2,$M10,TRUE)-_xlfn.NORM.DIST(AND(CU$6>=$F10,CU$6<=$H10)*(CT$6-$F10+1),$J10/2,$M10,TRUE))/(1-2*_xlfn.NORM.DIST(0,$J10/2,$M10,TRUE))*$D10+($K10="Steady Growth")*(AND(CU$6>=$F10,CU$6<=$H10)*((CU$6-$F10+1)/($J10*($J10+1)/2)*$D10))+($K10="custom")*CustCF!CO10 -> 0 | CV10: =($K10="Bell Curve")*(_xlfn.NORM.DIST(AND(CV$6>=$F10,CV$6<=$H10)*(CV$6-$F10+1),$J10/2,$M10,TRUE)-_xlfn.NORM.DIST(AND(CV$6>=$F10,CV$6<=$H10)*(CU$6-$F10+1),$J10/2,$M10,TRUE))/(1-2*_xlfn.NORM.DIST(0,$J10/2,$M10,TRUE))*$D10+($K10="Steady Growth")*(AND(CV$6>=$F10,CV$6<=$H10)*((CV$6-$F10+1)/($J10*($J10+1)/2)*$D10))+($K10="custom")*CustCF!CP10 -> 0 | CW10: =($K10="Bell Curve")*(_xlfn.NORM.DIST(AND(CW$6>=$F10,CW$6<=$H10)*(CW$6-$F10+1),$J10/2,$M10,TRUE)-_xlfn.NORM.DIST(AND(CW$6>=$F10,CW$6<=$H10)*(CV$6-$F10+1),$J10/2,$M10,TRUE))/(1-2*_xlfn.NORM.DIST(0,$J10/2,$M10,TRUE))*$D10+($K10="Steady Growth")*(AND(CW$6>=$F10,CW$6<=$H10)*((CW$6-$F10+1)/($J10*($J10+1)/2)*$D10))+($K10="custom")*CustCF!CQ10 -> 0 | CX10: =($K10="Bell Curve")*(_xlfn.NORM.DIST(AND(CX$6>=$F10,CX$6<=$H10)*(CX$6-$F10+1),$J10/2,$M10,TRUE)-_xlfn.NORM.DIST(AND(CX$6>=$F10,CX$6<=$H10)*(CW$6-$F10+1),$J10/2,$M10,TRUE))/(1-2*_xlfn.NORM.DIST(0,$J10/2,$M10,TRUE))*$D10+($K10="Steady Growth")*(AND(CX$6>=$F10,CX$6<=$H10)*((CX$6-$F10+1)/($J10*($J10+1)/2)*$D10))+($K10="custom")*CustCF!CR10 -> 0 | CY10: =($K10="Bell Curve")*(_xlfn.NORM.DIST(AND(CY$6>=$F10,CY$6<=$H10)*(CY$6-$F10+1),$J10/2,$M10,TRUE)-_xlfn.NORM.DIST(AND(CY$6>=$F10,CY$6<=$H10)*(CX$6-$F10+1),$J10/2,$M10,TRUE))/(1-2*_xlfn.NORM.DIST(0,$J10/2,$M10,TRUE))*$D10+($K10="Steady Growth")*(AND(CY$6>=$F10,CY$6<=$H10)*((CY$6-$F10+1)/($J10*($J10+1)/2)*$D10))+($K10="custom")*CustCF!CS10 -> 0 | CZ10: =($K10="Bell Curve")*(_xlfn.NORM.DIST(AND(CZ$6>=$F10,CZ$6<=$H10)*(CZ$6-$F10+1),$J10/2,$M10,TRUE)-_xlfn.NORM.DIST(AND(CZ$6>=$F10,CZ$6<=$H10)*(CY$6-$F10+1),$J10/2,$M10,TRUE))/(1-2*_xlfn.NORM.DIST(0,$J10/2,$M10,TRUE))*$D10+($K10="Steady Growth")*(AND(CZ$6>=$F10,CZ$6<=$H10)*((CZ$6-$F10+1)/($J10*($J10+1)/2)*$D10))+($K10="custom")*CustCF!CT10 -> 0 | DA10: =($K10="Bell Curve")*(_xlfn.NORM.DIST(AND(DA$6>=$F10,DA$6<=$H10)*(DA$6-$F10+1),$J10/2,$M10,TRUE)-_xlfn.NORM.DIST(AND(DA$6>=$F10,DA$6<=$H10)*(CZ$6-$F10+1),$J10/2,$M10,TRUE))/(1-2*_xlfn.NORM.DIST(0,$J10/2,$M10,TRUE))*$D10+($K10="Steady Growth")*(AND(DA$6>=$F10,DA$6<=$H10)*((DA$6-$F10+1)/($J10*($J10+1)/2)*$D10))+($K10="custom")*CustCF!CU10 -> 0 | DB10: =($K10="Bell Curve")*(_xlfn.NORM.DIST(AND(DB$6>=$F10,DB$6<=$H10)*(DB$6-$F10+1),$J10/2,$M10,TRUE)-_xlfn.NORM.DIST(AND(DB$6>=$F10,DB$6<=$H10)*(DA$6-$F10+1),$J10/2,$M10,TRUE))/(1-2*_xlfn.NORM.DIST(0,$J10/2,$M10,TRUE))*$D10+($K10="Steady Growth")*(AND(DB$6>=$F10,DB$6<=$H10)*((DB$6-$F10+1)/($J10*($J10+1)/2)*$D10))+($K10="custom")*CustCF!CV10 -> 0 | DC10: =($K10="Bell Curve")*(_xlfn.NORM.DIST(AND(DC$6>=$F10,DC$6<=$H10)*(DC$6-$F10+1),$J10/2,$M10,TRUE)-_xlfn.NORM.DIST(AND(DC$6>=$F10,DC$6<=$H10)*(DB$6-$F10+1),$J10/2,$M10,TRUE))/(1-2*_xlfn.NORM.DIST(0,$J10/2,$M10,TRUE))*$D10+($K10="Steady Growth")*(AND(DC$6>=$F10,DC$6<=$H10)*((DC$6-$F10+1)/($J10*($J10+1)/2)*$D10))+($K10="custom")*CustCF!CW10 -> 0 | DD10: =($K10="Bell Curve")*(_xlfn.NORM.DIST(AND(DD$6>=$F10,DD$6<=$H10)*(DD$6-$F10+1),$J10/2,$M10,TRUE)-_xlfn.NORM.DIST(AND(DD$6>=$F10,DD$6<=$H10)*(DC$6-$F10+1),$J10/2,$M10,TRUE))/(1-2*_xlfn.NORM.DIST(0,$J10/2,$M10,TRUE))*$D10+($K10="Steady Growth")*(AND(DD$6>=$F10,DD$6<=$H10)*((DD$6-$F10+1)/($J10*($J10+1)/2)*$D10))+($K10="custom")*CustCF!CX10 -> 0 | DE10: =($K10="Bell Curve")*(_xlfn.NORM.DIST(AND(DE$6>=$F10,DE$6<=$H10)*(DE$6-$F10+1),$J10/2,$M10,TRUE)-_xlfn.NORM.DIST(AND(DE$6>=$F10,DE$6<=$H10)*(DD$6-$F10+1),$J10/2,$M10,TRUE))/(1-2*_xlfn.NORM.DIST(0,$J10/2,$M10,TRUE))*$D10+($K10="Steady Growth")*(AND(DE$6>=$F10,DE$6<=$H10)*((DE$6-$F10+1)/($J10*($J10+1)/2)*$D10))+($K10="custom")*CustCF!CY10 -> 0 | DF10: =($K10="Bell Curve")*(_xlfn.NORM.DIST(AND(DF$6>=$F10,DF$6<=$H10)*(DF$6-$F10+1),$J10/2,$M10,TRUE)-_xlfn.NORM.DIST(AND(DF$6>=$F10,DF$6<=$H10)*(DE$6-$F10+1),$J10/2,$M10,TRUE))/(1-2*_xlfn.NORM.DIST(0,$J10/2,$M10,TRUE))*$D10+($K10="Steady Growth")*(AND(DF$6>=$F10,DF$6<=$H10)*((DF$6-$F10+1)/($J10*($J10+1)/2)*$D10))+($K10="custom")*CustCF!CZ10 -> 0 | DG10: =($K10="Bell Curve")*(_xlfn.NORM.DIST(AND(DG$6>=$F10,DG$6<=$H10)*(DG$6-$F10+1),$J10/2,$M10,TRUE)-_xlfn.NORM.DIST(AND(DG$6>=$F10,DG$6<=$H10)*(DF$6-$F10+1),$J10/2,$M10,TRUE))/(1-2*_xlfn.NORM.DIST(0,$J10/2,$M10,TRUE))*$D10+($K10="Steady Growth")*(AND(DG$6>=$F10,DG$6<=$H10)*((DG$6-$F10+1)/($J10*($J10+1)/2)*$D10))+($K10="custom")*CustCF!DA10 -> 0 | DH10: =($K10="Bell Curve")*(_xlfn.NORM.DIST(AND(DH$6>=$F10,DH$6<=$H10)*(DH$6-$F10+1),$J10/2,$M10,TRUE)-_xlfn.NORM.DIST(AND(DH$6>=$F10,DH$6<=$H10)*(DG$6-$F10+1),$J10/2,$M10,TRUE))/(1-2*_xlfn.NORM.DIST(0,$J10/2,$M10,TRUE))*$D10+($K10="Steady Growth")*(AND(DH$6>=$F10,DH$6<=$H10)*((DH$6-$F10+1)/($J10*($J10+1)/2)*$D10))+($K10="custom")*CustCF!DB10 -> 0 | DI10: =($K10="Bell Curve")*(_xlfn.NORM.DIST(AND(DI$6>=$F10,DI$6<=$H10)*(DI$6-$F10+1),$J10/2,$M10,TRUE)-_xlfn.NORM.DIST(AND(DI$6>=$F10,DI$6<=$H10)*(DH$6-$F10+1),$J10/2,$M10,TRUE))/(1-2*_xlfn.NORM.DIST(0,$J10/2,$M10,TRUE))*$D10+($K10="Steady Growth")*(AND(DI$6>=$F10,DI$6<=$H10)*((DI$6-$F10+1)/($J10*($J10+1)/2)*$D10))+($K10="custom")*CustCF!DC10 -> 0 | DJ10: =($K10="Bell Curve")*(_xlfn.NORM.DIST(AND(DJ$6>=$F10,DJ$6<=$H10)*(DJ$6-$F10+1),$J10/2,$M10,TRUE)-_xlfn.NORM.DIST(AND(DJ$6>=$F10,DJ$6<=$H10)*(DI$6-$F10+1),$J10/2,$M10,TRUE))/(1-2*_xlfn.NORM.DIST(0,$J10/2,$M10,TRUE))*$D10+($K10="Steady Growth")*(AND(DJ$6>=$F10,DJ$6<=$H10)*((DJ$6-$F10+1)/($J10*($J10+1)/2)*$D10))+($K10="custom")*CustCF!DD10 -> 0 | DK10: =($K10="Bell Curve")*(_xlfn.NORM.DIST(AND(DK$6>=$F10,DK$6<=$H10)*(DK$6-$F10+1),$J10/2,$M10,TRUE)-_xlfn.NORM.DIST(AND(DK$6>=$F10,DK$6<=$H10)*(DJ$6-$F10+1),$J10/2,$M10,TRUE))/(1-2*_xlfn.NORM.DIST(0,$J10/2,$M10,TRUE))*$D10+($K10="Steady Growth")*(AND(DK$6>=$F10,DK$6<=$H10)*((DK$6-$F10+1)/($J10*($J10+1)/2)*$D10))+($K10="custom")*CustCF!DE10 -> 0 | DL10: =($K10="Bell Curve")*(_xlfn.NORM.DIST(AND(DL$6>=$F10,DL$6<=$H10)*(DL$6-$F10+1),$J10/2,$M10,TRUE)-_xlfn.NORM.DIST(AND(DL$6>=$F10,DL$6<=$H10)*(DK$6-$F10+1),$J10/2,$M10,TRUE))/(1-2*_xlfn.NORM.DIST(0,$J10/2,$M10,TRUE))*$D10+($K10="Steady Growth")*(AND(DL$6>=$F10,DL$6<=$H10)*((DL$6-$F10+1)/($J10*($J10+1)/2)*$D10))+($K10="custom")*CustCF!DF10 -> 0 | DM10: =($K10="Bell Curve")*(_xlfn.NORM.DIST(AND(DM$6>=$F10,DM$6<=$H10)*(DM$6-$F10+1),$J10/2,$M10,TRUE)-_xlfn.NORM.DIST(AND(DM$6>=$F10,DM$6<=$H10)*(DL$6-$F10+1),$J10/2,$M10,TRUE))/(1-2*_xlfn.NORM.DIST(0,$J10/2,$M10,TRUE))*$D10+($K10="Steady Growth")*(AND(DM$6>=$F10,DM$6<=$H10)*((DM$6-$F10+1)/($J10*($J10+1)/2)*$D10))+($K10="custom")*CustCF!DG10 -> 0 | DN10: =($K10="Bell Curve")*(_xlfn.NORM.DIST(AND(DN$6>=$F10,DN$6<=$H10)*(DN$6-$F10+1),$J10/2,$M10,TRUE)-_xlfn.NORM.DIST(AND(DN$6>=$F10,DN$6<=$H10)*(DM$6-$F10+1),$J10/2,$M10,TRUE))/(1-2*_xlfn.NORM.DIST(0,$J10/2,$M10,TRUE))*$D10+($K10="Steady Growth")*(AND(DN$6>=$F10,DN$6<=$H10)*((DN$6-$F10+1)/($J10*($J10+1)/2)*$D10))+($K10="custom")*CustCF!DH10 -> 0 | DO10: =($K10="Bell Curve")*(_xlfn.NORM.DIST(AND(DO$6>=$F10,DO$6<=$H10)*(DO$6-$F10+1),$J10/2,$M10,TRUE)-_xlfn.NORM.DIST(AND(DO$6>=$F10,DO$6<=$H10)*(DN$6-$F10+1),$J10/2,$M10,TRUE))/(1-2*_xlfn.NORM.DIST(0,$J10/2,$M10,TRUE))*$D10+($K10="Steady Growth")*(AND(DO$6>=$F10,DO$6<=$H10)*((DO$6-$F10+1)/($J10*($J10+1)/2)*$D10))+($K10="custom")*CustCF!DI10 -> 0 | DP10: =($K10="Bell Curve")*(_xlfn.NORM.DIST(AND(DP$6>=$F10,DP$6<=$H10)*(DP$6-$F10+1),$J10/2,$M10,TRUE)-_xlfn.NORM.DIST(AND(DP$6>=$F10,DP$6<=$H10)*(DO$6-$F10+1),$J10/2,$M10,TRUE))/(1-2*_xlfn.NORM.DIST(0,$J10/2,$M10,TRUE))*$D10+($K10="Steady Growth")*(AND(DP$6>=$F10,DP$6<=$H10)*((DP$6-$F10+1)/($J10*($J10+1)/2)*$D10))+($K10="custom")*CustCF!DJ10 -> 0 | DQ10: =($K10="Bell Curve")*(_xlfn.NORM.DIST(AND(DQ$6>=$F10,DQ$6<=$H10)*(DQ$6-$F10+1),$J10/2,$M10,TRUE)-_xlfn.NORM.DIST(AND(DQ$6>=$F10,DQ$6<=$H10)*(DP$6-$F10+1),$J10/2,$M10,TRUE))/(1-2*_xlfn.NORM.DIST(0,$J10/2,$M10,TRUE))*$D10+($K10="Steady Growth")*(AND(DQ$6>=$F10,DQ$6<=$H10)*((DQ$6-$F10+1)/($J10*($J10+1)/2)*$D10))+($K10="custom")*CustCF!DK10 -> 0 | DR10: =($K10="Bell Curve")*(_xlfn.NORM.DIST(AND(DR$6>=$F10,DR$6<=$H10)*(DR$6-$F10+1),$J10/2,$M10,TRUE)-_xlfn.NORM.DIST(AND(DR$6>=$F10,DR$6<=$H10)*(DQ$6-$F10+1),$J10/2,$M10,TRUE))/(1-2*_xlfn.NORM.DIST(0,$J10/2,$M10,TRUE))*$D10+($K10="Steady Growth")*(AND(DR$6>=$F10,DR$6<=$H10)*((DR$6-$F10+1)/($J10*($J10+1)/2)*$D10))+($K10="custom")*CustCF!DL10 -> 0 | DS10: =($K10="Bell Curve")*(_xlfn.NORM.DIST(AND(DS$6>=$F10,DS$6<=$H10)*(DS$6-$F10+1),$J10/2,$M10,TRUE)-_xlfn.NORM.DIST(AND(DS$6>=$F10,DS$6<=$H10)*(DR$6-$F10+1),$J10/2,$M10,TRUE))/(1-2*_xlfn.NORM.DIST(0,$J10/2,$M10,TRUE))*$D10+($K10="Steady Growth")*(AND(DS$6>=$F10,DS$6<=$H10)*((DS$6-$F10+1)/($J10*($J10+1)/2)*$D10))+($K10="custom")*CustCF!DM10 -> 0 | DT10: =($K10="Bell Curve")*(_xlfn.NORM.DIST(AND(DT$6>=$F10,DT$6<=$H10)*(DT$6-$F10+1),$J10/2,$M10,TRUE)-_xlfn.NORM.DIST(AND(DT$6>=$F10,DT$6<=$H10)*(DS$6-$F10+1),$J10/2,$M10,TRUE))/(1-2*_xlfn.NORM.DIST(0,$J10/2,$M10,TRUE))*$D10+($K10="Steady Growth")*(AND(DT$6>=$F10,DT$6<=$H10)*((DT$6-$F10+1)/($J10*($J10+1)/2)*$D10))+($K10="custom")*CustCF!DN10 -> 0 | DU10: =($K10="Bell Curve")*(_xlfn.NORM.DIST(AND(DU$6>=$F10,DU$6<=$H10)*(DU$6-$F10+1),$J10/2,$M10,TRUE)-_xlfn.NORM.DIST(AND(DU$6>=$F10,DU$6<=$H10)*(DT$6-$F10+1),$J10/2,$M10,TRUE))/(1-2*_xlfn.NORM.DIST(0,$J10/2,$M10,TRUE))*$D10+($K10="Steady Growth")*(AND(DU$6>=$F10,DU$6<=$H10)*((DU$6-$F10+1)/($J10*($J10+1)/2)*$D10))+($K10="custom")*CustCF!DO10 -> 0 | DV10: =($K10="Bell Curve")*(_xlfn.NORM.DIST(AND(DV$6>=$F10,DV$6<=$H10)*(DV$6-$F10+1),$J10/2,$M10,TRUE)-_xlfn.NORM.DIST(AND(DV$6>=$F10,DV$6<=$H10)*(DU$6-$F10+1),$J10/2,$M10,TRUE))/(1-2*_xlfn.NORM.DIST(0,$J10/2,$M10,TRUE))*$D10+($K10="Steady Growth")*(AND(DV$6>=$F10,DV$6<=$H10)*((DV$6-$F10+1)/($J10*($J10+1)/2)*$D10))+($K10="custom")*CustCF!DP10 -> 0 | DW10: =($K10="Bell Curve")*(_xlfn.NORM.DIST(AND(DW$6>=$F10,DW$6<=$H10)*(DW$6-$F10+1),$J10/2,$M10,TRUE)-_xlfn.NORM.DIST(AND(DW$6>=$F10,DW$6<=$H10)*(DV$6-$F10+1),$J10/2,$M10,TRUE))/(1-2*_xlfn.NORM.DIST(0,$J10/2,$M10,TRUE))*$D10+($K10="Steady Growth")*(AND(DW$6>=$F10,DW$6<=$H10)*((DW$6-$F10+1)/($J10*($J10+1)/2)*$D10))+($K10="custom")*CustCF!DQ10 -> 0 | DX10: =($K10="Bell Curve")*(_xlfn.NORM.DIST(AND(DX$6>=$F10,DX$6<=$H10)*(DX$6-$F10+1),$J10/2,$M10,TRUE)-_xlfn.NORM.DIST(AND(DX$6>=$F10,DX$6<=$H10)*(DW$6-$F10+1),$J10/2,$M10,TRUE))/(1-2*_xlfn.NORM.DIST(0,$J10/2,$M10,TRUE))*$D10+($K10="Steady Growth")*(AND(DX$6>=$F10,DX$6<=$H10)*((DX$6-$F10+1)/($J10*($J10+1)/2)*$D10))+($K10="custom")*CustCF!DR10 -> 0 | DY10: =($K10="Bell Curve")*(_xlfn.NORM.DIST(AND(DY$6>=$F10,DY$6<=$H10)*(DY$6-$F10+1),$J10/2,$M10,TRUE)-_xlfn.NORM.DIST(AND(DY$6>=$F10,DY$6<=$H10)*(DX$6-$F10+1),$J10/2,$M10,TRUE))/(1-2*_xlfn.NORM.DIST(0,$J10/2,$M10,TRUE))*$D10+($K10="Steady Growth")*(AND(DY$6>=$F10,DY$6<=$H10)*((DY$6-$F10+1)/($J10*($J10+1)/2)*$D10))+($K10="custom")*CustCF!DS10 -> 0 | DZ10: =($K10="Bell Curve")*(_xlfn.NORM.DIST(AND(DZ$6>=$F10,DZ$6<=$H10)*(DZ$6-$F10+1),$J10/2,$M10,TRUE)-_xlfn.NORM.DIST(AND(DZ$6>=$F10,DZ$6<=$H10)*(DY$6-$F10+1),$J10/2,$M10,TRUE))/(1-2*_xlfn.NORM.DIST(0,$J10/2,$M10,TRUE))*$D10+($K10="Steady Growth")*(AND(DZ$6>=$F10,DZ$6<=$H10)*((DZ$6-$F10+1)/($J10*($J10+1)/2)*$D10))+($K10="custom")*CustCF!DT10 -> 0 | EA10: =($K10="Bell Curve")*(_xlfn.NORM.DIST(AND(EA$6>=$F10,EA$6<=$H10)*(EA$6-$F10+1),$J10/2,$M10,TRUE)-_xlfn.NORM.DIST(AND(EA$6>=$F10,EA$6<=$H10)*(DZ$6-$F10+1),$J10/2,$M10,TRUE))/(1-2*_xlfn.NORM.DIST(0,$J10/2,$M10,TRUE))*$D10+($K10="Steady Growth")*(AND(EA$6>=$F10,EA$6<=$H10)*((EA$6-$F10+1)/($J10*($J10+1)/2)*$D10))+($K10="custom")*CustCF!DU10 -> 0 | EB10: =($K10="Bell Curve")*(_xlfn.NORM.DIST(AND(EB$6>=$F10,EB$6<=$H10)*(EB$6-$F10+1),$J10/2,$M10,TRUE)-_xlfn.NORM.DIST(AND(EB$6>=$F10,EB$6<=$H10)*(EA$6-$F10+1),$J10/2,$M10,TRUE))/(1-2*_xlfn.NORM.DIST(0,$J10/2,$M10,TRUE))*$D10+($K10="Steady Growth")*(AND(EB$6>=$F10,EB$6<=$H10)*((EB$6-$F10+1)/($J10*($J10+1)/2)*$D10))+($K10="custom")*CustCF!DV10 -> 0 | EC10: =($K10="Bell Curve")*(_xlfn.NORM.DIST(AND(EC$6>=$F10,EC$6<=$H10)*(EC$6-$F10+1),$J10/2,$M10,TRUE)-_xlfn.NORM.DIST(AND(EC$6>=$F10,EC$6<=$H10)*(EB$6-$F10+1),$J10/2,$M10,TRUE))/(1-2*_xlfn.NORM.DIST(0,$J10/2,$M10,TRUE))*$D10+($K10="Steady Growth")*(AND(EC$6>=$F10,EC$6<=$H10)*((EC$6-$F10+1)/($J10*($J10+1)/2)*$D10))+($K10="custom")*CustCF!DW10 -> 0 | ED10: =($K10="Bell Curve")*(_xlfn.NORM.DIST(AND(ED$6>=$F10,ED$6<=$H10)*(ED$6-$F10+1),$J10/2,$M10,TRUE)-_xlfn.NORM.DIST(AND(ED$6>=$F10,ED$6<=$H10)*(EC$6-$F10+1),$J10/2,$M10,TRUE))/(1-2*_xlfn.NORM.DIST(0,$J10/2,$M10,TRUE))*$D10+($K10="Steady Growth")*(AND(ED$6>=$F10,ED$6<=$H10)*((ED$6-$F10+1)/($J10*($J10+1)/2)*$D10))+($K10="custom")*CustCF!DX10 -> 0 | EE10: =($K10="Bell Curve")*(_xlfn.NORM.DIST(AND(EE$6>=$F10,EE$6<=$H10)*(EE$6-$F10+1),$J10/2,$M10,TRUE)-_xlfn.NORM.DIST(AND(EE$6>=$F10,EE$6<=$H10)*(ED$6-$F10+1),$J10/2,$M10,TRUE))/(1-2*_xlfn.NORM.DIST(0,$J10/2,$M10,TRUE))*$D10+($K10="Steady Growth")*(AND(EE$6>=$F10,EE$6<=$H10)*((EE$6-$F10+1)/($J10*($J10+1)/2)*$D10))+($K10="custom")*CustCF!DY10 -> 0 | EF10: =($K10="Bell Curve")*(_xlfn.NORM.DIST(AND(EF$6>=$F10,EF$6<=$H10)*(EF$6-$F10+1),$J10/2,$M10,TRUE)-_xlfn.NORM.DIST(AND(EF$6>=$F10,EF$6<=$H10)*(EE$6-$F10+1),$J10/2,$M10,TRUE))/(1-2*_xlfn.NORM.DIST(0,$J10/2,$M10,TRUE))*$D10+($K10="Steady Growth")*(AND(EF$6>=$F10,EF$6<=$H10)*((EF$6-$F10+1)/($J10*($J10+1)/2)*$D10))+($K10="custom")*CustCF!DZ10 -> 0 | EG10: =($K10="Bell Curve")*(_xlfn.NORM.DIST(AND(EG$6>=$F10,EG$6<=$H10)*(EG$6-$F10+1),$J10/2,$M10,TRUE)-_xlfn.NORM.DIST(AND(EG$6>=$F10,EG$6<=$H10)*(EF$6-$F10+1),$J10/2,$M10,TRUE))/(1-2*_xlfn.NORM.DIST(0,$J10/2,$M10,TRUE))*$D10+($K10="Steady Growth")*(AND(EG$6>=$F10,EG$6<=$H10)*((EG$6-$F10+1)/($J10*($J10+1)/2)*$D10))+($K10="custom")*CustCF!EA10 -> 0 | EH10: =($K10="Bell Curve")*(_xlfn.NORM.DIST(AND(EH$6>=$F10,EH$6<=$H10)*(EH$6-$F10+1),$J10/2,$M10,TRUE)-_xlfn.NORM.DIST(AND(EH$6>=$F10,EH$6<=$H10)*(EG$6-$F10+1),$J10/2,$M10,TRUE))/(1-2*_xlfn.NORM.DIST(0,$J10/2,$M10,TRUE))*$D10+($K10="Steady Growth")*(AND(EH$6>=$F10,EH$6<=$H10)*((EH$6-$F10+1)/($J10*($J10+1)/2)*$D10))+($K10="custom")*CustCF!EB10 -> 0 | EI10: =($K10="Bell Curve")*(_xlfn.NORM.DIST(AND(EI$6>=$F10,EI$6<=$H10)*(EI$6-$F10+1),$J10/2,$M10,TRUE)-_xlfn.NORM.DIST(AND(EI$6>=$F10,EI$6<=$H10)*(EH$6-$F10+1),$J10/2,$M10,TRUE))/(1-2*_xlfn.NORM.DIST(0,$J10/2,$M10,TRUE))*$D10+($K10="Steady Growth")*(AND(EI$6>=$F10,EI$6<=$H10)*((EI$6-$F10+1)/($J10*($J10+1)/2)*$D10))+($K10="custom")*CustCF!EC10 -> 0 | EJ10: =($K10="Bell Curve")*(_xlfn.NORM.DIST(AND(EJ$6>=$F10,EJ$6<=$H10)*(EJ$6-$F10+1),$J10/2,$M10,TRUE)-_xlfn.NORM.DIST(AND(EJ$6>=$F10,EJ$6<=$H10)*(EI$6-$F10+1),$J10/2,$M10,TRUE))/(1-2*_xlfn.NORM.DIST(0,$J10/2,$M10,TRUE))*$D10+($K10="Steady Growth")*(AND(EJ$6>=$F10,EJ$6<=$H10)*((EJ$6-$F10+1)/($J10*($J10+1)/2)*$D10))+($K10="custom")*CustCF!ED10 -> 0 | EK10: =($K10="Bell Curve")*(_xlfn.NORM.DIST(AND(EK$6>=$F10,EK$6<=$H10)*(EK$6-$F10+1),$J10/2,$M10,TRUE)-_xlfn.NORM.DIST(AND(EK$6>=$F10,EK$6<=$H10)*(EJ$6-$F10+1),$J10/2,$M10,TRUE))/(1-2*_xlfn.NORM.DIST(0,$J10/2,$M10,TRUE))*$D10+($K10="Steady Growth")*(AND(EK$6>=$F10,EK$6<=$H10)*((EK$6-$F10+1)/($J10*($J10+1)/2)*$D10))+($K10="custom")*CustCF!EE10 -> 0 | EL10: =($K10="Bell Curve")*(_xlfn.NORM.DIST(AND(EL$6>=$F10,EL$6<=$H10)*(EL$6-$F10+1),$J10/2,$M10,TRUE)-_xlfn.NORM.DIST(AND(EL$6>=$F10,EL$6<=$H10)*(EK$6-$F10+1),$J10/2,$M10,TRUE))/(1-2*_xlfn.NORM.DIST(0,$J10/2,$M10,TRUE))*$D10+($K10="Steady Growth")*(AND(EL$6>=$F10,EL$6<=$H10)*((EL$6-$F10+1)/($J10*($J10+1)/2)*$D10))+($K10="custom")*CustCF!EF10 -> 0 | EM10: =($K10="Bell Curve")*(_xlfn.NORM.DIST(AND(EM$6>=$F10,EM$6<=$H10)*(EM$6-$F10+1),$J10/2,$M10,TRUE)-_xlfn.NORM.DIST(AND(EM$6>=$F10,EM$6<=$H10)*(EL$6-$F10+1),$J10/2,$M10,TRUE))/(1-2*_xlfn.NORM.DIST(0,$J10/2,$M10,TRUE))*$D10+($K10="Steady Growth")*(AND(EM$6>=$F10,EM$6<=$H10)*((EM$6-$F10+1)/($J10*($J10+1)/2)*$D10))+($K10="custom")*CustCF!EG10 -> 0 | EN10: =($K10="Bell Curve")*(_xlfn.NORM.DIST(AND(EN$6>=$F10,EN$6<=$H10)*(EN$6-$F10+1),$J10/2,$M10,TRUE)-_xlfn.NORM.DIST(AND(EN$6>=$F10,EN$6<=$H10)*(EM$6-$F10+1),$J10/2,$M10,TRUE))/(1-2*_xlfn.NORM.DIST(0,$J10/2,$M10,TRUE))*$D10+($K10="Steady Growth")*(AND(EN$6>=$F10,EN$6<=$H10)*((EN$6-$F10+1)/($J10*($J10+1)/2)*$D10))+($K10="custom")*CustCF!EH10 -> 0 | EO10: =($K10="Bell Curve")*(_xlfn.NORM.DIST(AND(EO$6>=$F10,EO$6<=$H10)*(EO$6-$F10+1),$J10/2,$M10,TRUE)-_xlfn.NORM.DIST(AND(EO$6>=$F10,EO$6<=$H10)*(EN$6-$F10+1),$J10/2,$M10,TRUE))/(1-2*_xlfn.NORM.DIST(0,$J10/2,$M10,TRUE))*$D10+($K10="Steady Growth")*(AND(EO$6>=$F10,EO$6<=$H10)*((EO$6-$F10+1)/($J10*($J10+1)/2)*$D10))+($K10="custom")*CustCF!EI10 -> 0 | EP10: =($K10="Bell Curve")*(_xlfn.NORM.DIST(AND(EP$6>=$F10,EP$6<=$H10)*(EP$6-$F10+1),$J10/2,$M10,TRUE)-_xlfn.NORM.DIST(AND(EP$6>=$F10,EP$6<=$H10)*(EO$6-$F10+1),$J10/2,$M10,TRUE))/(1-2*_xlfn.NORM.DIST(0,$J10/2,$M10,TRUE))*$D10+($K10="Steady Growth")*(AND(EP$6>=$F10,EP$6<=$H10)*((EP$6-$F10+1)/($J10*($J10+1)/2)*$D10))+($K10="custom")*CustCF!EJ10 -> 0 | EQ10: =($K10="Bell Curve")*(_xlfn.NORM.DIST(AND(EQ$6>=$F10,EQ$6<=$H10)*(EQ$6-$F10+1),$J10/2,$M10,TRUE)-_xlfn.NORM.DIST(AND(EQ$6>=$F10,EQ$6<=$H10)*(EP$6-$F10+1),$J10/2,$M10,TRUE))/(1-2*_xlfn.NORM.DIST(0,$J10/2,$M10,TRUE))*$D10+($K10="Steady Growth")*(AND(EQ$6>=$F10,EQ$6<=$H10)*((EQ$6-$F10+1)/($J10*($J10+1)/2)*$D10))+($K10="custom")*CustCF!EK10 -> 0 | ER10: =($K10="Bell Curve")*(_xlfn.NORM.DIST(AND(ER$6>=$F10,ER$6<=$H10)*(ER$6-$F10+1),$J10/2,$M10,TRUE)-_xlfn.NORM.DIST(AND(ER$6>=$F10,ER$6<=$H10)*(EQ$6-$F10+1),$J10/2,$M10,TRUE))/(1-2*_xlfn.NORM.DIST(0,$J10/2,$M10,TRUE))*$D10+($K10="Steady Growth")*(AND(ER$6>=$F10,ER$6<=$H10)*((ER$6-$F10+1)/($J10*($J10+1)/2)*$D10))+($K10="custom")*CustCF!EL10 -> 0 | ES10: =($K10="Bell Curve")*(_xlfn.NORM.DIST(AND(ES$6>=$F10,ES$6<=$H10)*(ES$6-$F10+1),$J10/2,$M10,TRUE)-_xlfn.NORM.DIST(AND(ES$6>=$F10,ES$6<=$H10)*(ER$6-$F10+1),$J10/2,$M10,TRUE))/(1-2*_xlfn.NORM.DIST(0,$J10/2,$M10,TRUE))*$D10+($K10="Steady Growth")*(AND(ES$6>=$F10,ES$6<=$H10)*((ES$6-$F10+1)/($J10*($J10+1)/2)*$D10))+($K10="custom")*CustCF!EM10 -> 0 | ET10: =($K10="Bell Curve")*(_xlfn.NORM.DIST(AND(ET$6>=$F10,ET$6<=$H10)*(ET$6-$F10+1),$J10/2,$M10,TRUE)-_xlfn.NORM.DIST(AND(ET$6>=$F10,ET$6<=$H10)*(ES$6-$F10+1),$J10/2,$M10,TRUE))/(1-2*_xlfn.NORM.DIST(0,$J10/2,$M10,TRUE))*$D10+($K10="Steady Growth")*(AND(ET$6>=$F10,ET$6<=$H10)*((ET$6-$F10+1)/($J10*($J10+1)/2)*$D10))+($K10="custom")*CustCF!EN10 -> 0 | EU10: =($K10="Bell Curve")*(_xlfn.NORM.DIST(AND(EU$6>=$F10,EU$6<=$H10)*(EU$6-$F10+1),$J10/2,$M10,TRUE)-_xlfn.NORM.DIST(AND(EU$6>=$F10,EU$6<=$H10)*(ET$6-$F10+1),$J10/2,$M10,TRUE))/(1-2*_xlfn.NORM.DIST(0,$J10/2,$M10,TRUE))*$D10+($K10="Steady Growth")*(AND(EU$6>=$F10,EU$6<=$H10)*((EU$6-$F10+1)/($J10*($J10+1)/2)*$D10))+($K10="custom")*CustCF!EO10 -> 0 | EV10: =($K10="Bell Curve")*(_xlfn.NORM.DIST(AND(EV$6>=$F10,EV$6<=$H10)*(EV$6-$F10+1),$J10/2,$M10,TRUE)-_xlfn.NORM.DIST(AND(EV$6>=$F10,EV$6<=$H10)*(EU$6-$F10+1),$J10/2,$M10,TRUE))/(1-2*_xlfn.NORM.DIST(0,$J10/2,$M10,TRUE))*$D10+($K10="Steady Growth")*(AND(EV$6>=$F10,EV$6<=$H10)*((EV$6-$F10+1)/($J10*($J10+1)/2)*$D10))+($K10="custom")*CustCF!EP10 -> 0 | EW10: =($K10="Bell Curve")*(_xlfn.NORM.DIST(AND(EW$6>=$F10,EW$6<=$H10)*(EW$6-$F10+1),$J10/2,$M10,TRUE)-_xlfn.NORM.DIST(AND(EW$6>=$F10,EW$6<=$H10)*(EV$6-$F10+1),$J10/2,$M10,TRUE))/(1-2*_xlfn.NORM.DIST(0,$J10/2,$M10,TRUE))*$D10+($K10="Steady Growth")*(AND(EW$6>=$F10,EW$6<=$H10)*((EW$6-$F10+1)/($J10*($J10+1)/2)*$D10))+($K10="custom")*CustCF!EQ10 -> 0 | EX10: =($K10="Bell Curve")*(_xlfn.NORM.DIST(AND(EX$6>=$F10,EX$6<=$H10)*(EX$6-$F10+1),$J10/2,$M10,TRUE)-_xlfn.NORM.DIST(AND(EX$6>=$F10,EX$6<=$H10)*(EW$6-$F10+1),$J10/2,$M10,TRUE))/(1-2*_xlfn.NORM.DIST(0,$J10/2,$M10,TRUE))*$D10+($K10="Steady Growth")*(AND(EX$6>=$F10,EX$6<=$H10)*((EX$6-$F10+1)/($J10*($J10+1)/2)*$D10))+($K10="custom")*CustCF!ER10 -> 0 | EY10: =($K10="Bell Curve")*(_xlfn.NORM.DIST(AND(EY$6>=$F10,EY$6<=$H10)*(EY$6-$F10+1),$J10/2,$M10,TRUE)-_xlfn.NORM.DIST(AND(EY$6>=$F10,EY$6<=$H10)*(EX$6-$F10+1),$J10/2,$M10,TRUE))/(1-2*_xlfn.NORM.DIST(0,$J10/2,$M10,TRUE))*$D10+($K10="Steady Growth")*(AND(EY$6>=$F10,EY$6<=$H10)*((EY$6-$F10+1)/($J10*($J10+1)/2)*$D10))+($K10="custom")*CustCF!ES10 -> 0 | EZ10: =($K10="Bell Curve")*(_xlfn.NORM.DIST(AND(EZ$6>=$F10,EZ$6<=$H10)*(EZ$6-$F10+1),$J10/2,$M10,TRUE)-_xlfn.NORM.DIST(AND(EZ$6>=$F10,EZ$6<=$H10)*(EY$6-$F10+1),$J10/2,$M10,TRUE))/(1-2*_xlfn.NORM.DIST(0,$J10/2,$M10,TRUE))*$D10+($K10="Steady Growth")*(AND(EZ$6>=$F10,EZ$6<=$H10)*((EZ$6-$F10+1)/($J10*($J10+1)/2)*$D10))+($K10="custom")*CustCF!ET10 -> 0 | FA10: =($K10="Bell Curve")*(_xlfn.NORM.DIST(AND(FA$6>=$F10,FA$6<=$H10)*(FA$6-$F10+1),$J10/2,$M10,TRUE)-_xlfn.NORM.DIST(AND(FA$6>=$F10,FA$6<=$H10)*(EZ$6-$F10+1),$J10/2,$M10,TRUE))/(1-2*_xlfn.NORM.DIST(0,$J10/2,$M10,TRUE))*$D10+($K10="Steady Growth")*(AND(FA$6>=$F10,FA$6<=$H10)*((FA$6-$F10+1)/($J10*($J10+1)/2)*$D10))+($K10="custom")*CustCF!EU10 -> 0 | FB10: =($K10="Bell Curve")*(_xlfn.NORM.DIST(AND(FB$6>=$F10,FB$6<=$H10)*(FB$6-$F10+1),$J10/2,$M10,TRUE)-_xlfn.NORM.DIST(AND(FB$6>=$F10,FB$6<=$H10)*(FA$6-$F10+1),$J10/2,$M10,TRUE))/(1-2*_xlfn.NORM.DIST(0,$J10/2,$M10,TRUE))*$D10+($K10="Steady Growth")*(AND(FB$6>=$F10,FB$6<=$H10)*((FB$6-$F10+1)/($J10*($J10+1)/2)*$D10))+($K10="custom")*CustCF!EV10 -> 0 | FC10: =($K10="Bell Curve")*(_xlfn.NORM.DIST(AND(FC$6>=$F10,FC$6<=$H10)*(FC$6-$F10+1),$J10/2,$M10,TRUE)-_xlfn.NORM.DIST(AND(FC$6>=$F10,FC$6<=$H10)*(FB$6-$F10+1),$J10/2,$M10,TRUE))/(1-2*_xlfn.NORM.DIST(0,$J10/2,$M10,TRUE))*$D10+($K10="Steady Growth")*(AND(FC$6>=$F10,FC$6<=$H10)*((FC$6-$F10+1)/($J10*($J10+1)/2)*$D10))+($K10="custom")*CustCF!EW10 -> 0 | FD10: =($K10="Bell Curve")*(_xlfn.NORM.DIST(AND(FD$6>=$F10,FD$6<=$H10)*(FD$6-$F10+1),$J10/2,$M10,TRUE)-_xlfn.NORM.DIST(AND(FD$6>=$F10,FD$6<=$H10)*(FC$6-$F10+1),$J10/2,$M10,TRUE))/(1-2*_xlfn.NORM.DIST(0,$J10/2,$M10,TRUE))*$D10+($K10="Steady Growth")*(AND(FD$6>=$F10,FD$6<=$H10)*((FD$6-$F10+1)/($J10*($J10+1)/2)*$D10))+($K10="custom")*CustCF!EX10 -> 0 | FE10: =($K10="Bell Curve")*(_xlfn.NORM.DIST(AND(FE$6>=$F10,FE$6<=$H10)*(FE$6-$F10+1),$J10/2,$M10,TRUE)-_xlfn.NORM.DIST(AND(FE$6>=$F10,FE$6<=$H10)*(FD$6-$F10+1),$J10/2,$M10,TRUE))/(1-2*_xlfn.NORM.DIST(0,$J10/2,$M10,TRUE))*$D10+($K10="Steady Growth")*(AND(FE$6>=$F10,FE$6<=$H10)*((FE$6-$F10+1)/($J10*($J10+1)/2)*$D10))+($K10="custom")*CustCF!EY10 -> 0 | FF10: =($K10="Bell Curve")*(_xlfn.NORM.DIST(AND(FF$6>=$F10,FF$6<=$H10)*(FF$6-$F10+1),$J10/2,$M10,TRUE)-_xlfn.NORM.DIST(AND(FF$6>=$F10,FF$6<=$H10)*(FE$6-$F10+1),$J10/2,$M10,TRUE))/(1-2*_xlfn.NORM.DIST(0,$J10/2,$M10,TRUE))*$D10+($K10="Steady Growth")*(AND(FF$6>=$F10,FF$6<=$H10)*((FF$6-$F10+1)/($J10*($J10+1)/2)*$D10))+($K10="custom")*CustCF!EZ10 -> 0 | FG10: =($K10="Bell Curve")*(_xlfn.NORM.DIST(AND(FG$6>=$F10,FG$6<=$H10)*(FG$6-$F10+1),$J10/2,$M10,TRUE)-_xlfn.NORM.DIST(AND(FG$6>=$F10,FG$6<=$H10)*(FF$6-$F10+1),$J10/2,$M10,TRUE))/(1-2*_xlfn.NORM.DIST(0,$J10/2,$M10,TRUE))*$D10+($K10="Steady Growth")*(AND(FG$6>=$F10,FG$6<=$H10)*((FG$6-$F10+1)/($J10*($J10+1)/2)*$D10))+($K10="custom")*CustCF!FA10 -> 0 | FH10: =($K10="Bell Curve")*(_xlfn.NORM.DIST(AND(FH$6>=$F10,FH$6<=$H10)*(FH$6-$F10+1),$J10/2,$M10,TRUE)-_xlfn.NORM.DIST(AND(FH$6>=$F10,FH$6<=$H10)*(FG$6-$F10+1),$J10/2,$M10,TRUE))/(1-2*_xlfn.NORM.DIST(0,$J10/2,$M10,TRUE))*$D10+($K10="Steady Growth")*(AND(FH$6>=$F10,FH$6<=$H10)*((FH$6-$F10+1)/($J10*($J10+1)/2)*$D10))+($K10="custom")*CustCF!FB10 -> 0 | FI10: =($K10="Bell Curve")*(_xlfn.NORM.DIST(AND(FI$6>=$F10,FI$6<=$H10)*(FI$6-$F10+1),$J10/2,$M10,TRUE)-_xlfn.NORM.DIST(AND(FI$6>=$F10,FI$6<=$H10)*(FH$6-$F10+1),$J10/2,$M10,TRUE))/(1-2*_xlfn.NORM.DIST(0,$J10/2,$M10,TRUE))*$D10+($K10="Steady Growth")*(AND(FI$6>=$F10,FI$6<=$H10)*((FI$6-$F10+1)/($J10*($J10+1)/2)*$D10))+($K10="custom")*CustCF!FC10 -> 0 | FJ10: =($K10="Bell Curve")*(_xlfn.NORM.DIST(AND(FJ$6>=$F10,FJ$6<=$H10)*(FJ$6-$F10+1),$J10/2,$M10,TRUE)-_xlfn.NORM.DIST(AND(FJ$6>=$F10,FJ$6<=$H10)*(FI$6-$F10+1),$J10/2,$M10,TRUE))/(1-2*_xlfn.NORM.DIST(0,$J10/2,$M10,TRUE))*$D10+($K10="Steady Growth")*(AND(FJ$6>=$F10,FJ$6<=$H10)*((FJ$6-$F10+1)/($J10*($J10+1)/2)*$D10))+($K10="custom")*CustCF!FD10 -> 0 | FK10: =($K10="Bell Curve")*(_xlfn.NORM.DIST(AND(FK$6>=$F10,FK$6<=$H10)*(FK$6-$F10+1),$J10/2,$M10,TRUE)-_xlfn.NORM.DIST(AND(FK$6>=$F10,FK$6<=$H10)*(FJ$6-$F10+1),$J10/2,$M10,TRUE))/(1-2*_xlfn.NORM.DIST(0,$J10/2,$M10,TRUE))*$D10+($K10="Steady Growth")*(AND(FK$6>=$F10,FK$6<=$H10)*((FK$6-$F10+1)/($J10*($J10+1)/2)*$D10))+($K10="custom")*CustCF!FE10 -> 0 | FL10: =($K10="Bell Curve")*(_xlfn.NORM.DIST(AND(FL$6>=$F10,FL$6<=$H10)*(FL$6-$F10+1),$J10/2,$M10,TRUE)-_xlfn.NORM.DIST(AND(FL$6>=$F10,FL$6<=$H10)*(FK$6-$F10+1),$J10/2,$M10,TRUE))/(1-2*_xlfn.NORM.DIST(0,$J10/2,$M10,TRUE))*$D10+($K10="Steady Growth")*(AND(FL$6>=$F10,FL$6<=$H10)*((FL$6-$F10+1)/($J10*($J10+1)/2)*$D10))+($K10="custom")*CustCF!FF10 -> 0 | FM10: =($K10="Bell Curve")*(_xlfn.NORM.DIST(AND(FM$6>=$F10,FM$6<=$H10)*(FM$6-$F10+1),$J10/2,$M10,TRUE)-_xlfn.NORM.DIST(AND(FM$6>=$F10,FM$6<=$H10)*(FL$6-$F10+1),$J10/2,$M10,TRUE))/(1-2*_xlfn.NORM.DIST(0,$J10/2,$M10,TRUE))*$D10+($K10="Steady Growth")*(AND(FM$6>=$F10,FM$6<=$H10)*((FM$6-$F10+1)/($J10*($J10+1)/2)*$D10))+($K10="custom")*CustCF!FG10 -> 0 | FN10: =($K10="Bell Curve")*(_xlfn.NORM.DIST(AND(FN$6>=$F10,FN$6<=$H10)*(FN$6-$F10+1),$J10/2,$M10,TRUE)-_xlfn.NORM.DIST(AND(FN$6>=$F10,FN$6<=$H10)*(FM$6-$F10+1),$J10/2,$M10,TRUE))/(1-2*_xlfn.NORM.DIST(0,$J10/2,$M10,TRUE))*$D10+($K10="Steady Growth")*(AND(FN$6>=$F10,FN$6<=$H10)*((FN$6-$F10+1)/($J10*($J10+1)/2)*$D10))+($K10="custom")*CustCF!FH10 -> 0 | FO10: =($K10="Bell Curve")*(_xlfn.NORM.DIST(AND(FO$6>=$F10,FO$6<=$H10)*(FO$6-$F10+1),$J10/2,$M10,TRUE)-_xlfn.NORM.DIST(AND(FO$6>=$F10,FO$6<=$H10)*(FN$6-$F10+1),$J10/2,$M10,TRUE))/(1-2*_xlfn.NORM.DIST(0,$J10/2,$M10,TRUE))*$D10+($K10="Steady Growth")*(AND(FO$6>=$F10,FO$6<=$H10)*((FO$6-$F10+1)/($J10*($J10+1)/2)*$D10))+($K10="custom")*CustCF!FI10 -> 0 | FP10: =($K10="Bell Curve")*(_xlfn.NORM.DIST(AND(FP$6>=$F10,FP$6<=$H10)*(FP$6-$F10+1),$J10/2,$M10,TRUE)-_xlfn.NORM.DIST(AND(FP$6>=$F10,FP$6<=$H10)*(FO$6-$F10+1),$J10/2,$M10,TRUE))/(1-2*_xlfn.NORM.DIST(0,$J10/2,$M10,TRUE))*$D10+($K10="Steady Growth")*(AND(FP$6>=$F10,FP$6<=$H10)*((FP$6-$F10+1)/($J10*($J10+1)/2)*$D10))+($K10="custom")*CustCF!FJ10 -> 0 | FQ10: =($K10="Bell Curve")*(_xlfn.NORM.DIST(AND(FQ$6>=$F10,FQ$6<=$H10)*(FQ$6-$F10+1),$J10/2,$M10,TRUE)-_xlfn.NORM.DIST(AND(FQ$6>=$F10,FQ$6<=$H10)*(FP$6-$F10+1),$J10/2,$M10,TRUE))/(1-2*_xlfn.NORM.DIST(0,$J10/2,$M10,TRUE))*$D10+($K10="Steady Growth")*(AND(FQ$6>=$F10,FQ$6<=$H10)*((FQ$6-$F10+1)/($J10*($J10+1)/2)*$D10))+($K10="custom")*CustCF!FK10 -> 0 | FR10: =($K10="Bell Curve")*(_xlfn.NORM.DIST(AND(FR$6>=$F10,FR$6<=$H10)*(FR$6-$F10+1),$J10/2,$M10,TRUE)-_xlfn.NORM.DIST(AND(FR$6>=$F10,FR$6<=$H10)*(FQ$6-$F10+1),$J10/2,$M10,TRUE))/(1-2*_xlfn.NORM.DIST(0,$J10/2,$M10,TRUE))*$D10+($K10="Steady Growth")*(AND(FR$6>=$F10,FR$6<=$H10)*((FR$6-$F10+1)/($J10*($J10+1)/2)*$D10))+($K10="custom")*CustCF!FL10 -> 0 | FS10: =($K10="Bell Curve")*(_xlfn.NORM.DIST(AND(FS$6>=$F10,FS$6<=$H10)*(FS$6-$F10+1),$J10/2,$M10,TRUE)-_xlfn.NORM.DIST(AND(FS$6>=$F10,FS$6<=$H10)*(FR$6-$F10+1),$J10/2,$M10,TRUE))/(1-2*_xlfn.NORM.DIST(0,$J10/2,$M10,TRUE))*$D10+($K10="Steady Growth")*(AND(FS$6>=$F10,FS$6<=$H10)*((FS$6-$F10+1)/($J10*($J10+1)/2)*$D10))+($K10="custom")*CustCF!FM10 -> 0 | FT10: =($K10="Bell Curve")*(_xlfn.NORM.DIST(AND(FT$6>=$F10,FT$6<=$H10)*(FT$6-$F10+1),$J10/2,$M10,TRUE)-_xlfn.NORM.DIST(AND(FT$6>=$F10,FT$6<=$H10)*(FS$6-$F10+1),$J10/2,$M10,TRUE))/(1-2*_xlfn.NORM.DIST(0,$J10/2,$M10,TRUE))*$D10+($K10="Steady Growth")*(AND(FT$6>=$F10,FT$6<=$H10)*((FT$6-$F10+1)/($J10*($J10+1)/2)*$D10))+($K10="custom")*CustCF!FN10 -> 0 | FU10: =($K10="Bell Curve")*(_xlfn.NORM.DIST(AND(FU$6>=$F10,FU$6<=$H10)*(FU$6-$F10+1),$J10/2,$M10,TRUE)-_xlfn.NORM.DIST(AND(FU$6>=$F10,FU$6<=$H10)*(FT$6-$F10+1),$J10/2,$M10,TRUE))/(1-2*_xlfn.NORM.DIST(0,$J10/2,$M10,TRUE))*$D10+($K10="Steady Growth")*(AND(FU$6>=$F10,FU$6<=$H10)*((FU$6-$F10+1)/($J10*($J10+1)/2)*$D10))+($K10="custom")*CustCF!FO10 -> 0 | FV10: =($K10="Bell Curve")*(_xlfn.NORM.DIST(AND(FV$6>=$F10,FV$6<=$H10)*(FV$6-$F10+1),$J10/2,$M10,TRUE)-_xlfn.NORM.DIST(AND(FV$6>=$F10,FV$6<=$H10)*(FU$6-$F10+1),$J10/2,$M10,TRUE))/(1-2*_xlfn.NORM.DIST(0,$J10/2,$M10,TRUE))*$D10+($K10="Steady Growth")*(AND(FV$6>=$F10,FV$6<=$H10)*((FV$6-$F10+1)/($J10*($J10+1)/2)*$D10))+($K10="custom")*CustCF!FP10 -> 0 | FW10: =($K10="Bell Curve")*(_xlfn.NORM.DIST(AND(FW$6>=$F10,FW$6<=$H10)*(FW$6-$F10+1),$J10/2,$M10,TRUE)-_xlfn.NORM.DIST(AND(FW$6>=$F10,FW$6<=$H10)*(FV$6-$F10+1),$J10/2,$M10,TRUE))/(1-2*_xlfn.NORM.DIST(0,$J10/2,$M10,TRUE))*$D10+($K10="Steady Growth")*(AND(FW$6>=$F10,FW$6<=$H10)*((FW$6-$F10+1)/($J10*($J10+1)/2)*$D10))+($K10="custom")*CustCF!FQ10 -> 0 | FX10: =($K10="Bell Curve")*(_xlfn.NORM.DIST(AND(FX$6>=$F10,FX$6<=$H10)*(FX$6-$F10+1),$J10/2,$M10,TRUE)-_xlfn.NORM.DIST(AND(FX$6>=$F10,FX$6<=$H10)*(FW$6-$F10+1),$J10/2,$M10,TRUE))/(1-2*_xlfn.NORM.DIST(0,$J10/2,$M10,TRUE))*$D10+($K10="Steady Growth")*(AND(FX$6>=$F10,FX$6<=$H10)*((FX$6-$F10+1)/($J10*($J10+1)/2)*$D10))+($K10="custom")*CustCF!FR10 -> 0 | FY10: =($K10="Bell Curve")*(_xlfn.NORM.DIST(AND(FY$6>=$F10,FY$6<=$H10)*(FY$6-$F10+1),$J10/2,$M10,TRUE)-_xlfn.NORM.DIST(AND(FY$6>=$F10,FY$6<=$H10)*(FX$6-$F10+1),$J10/2,$M10,TRUE))/(1-2*_xlfn.NORM.DIST(0,$J10/2,$M10,TRUE))*$D10+($K10="Steady Growth")*(AND(FY$6>=$F10,FY$6<=$H10)*((FY$6-$F10+1)/($J10*($J10+1)/2)*$D10))+($K10="custom")*CustCF!FS10 -> 0 | FZ10: =($K10="Bell Curve")*(_xlfn.NORM.DIST(AND(FZ$6>=$F10,FZ$6<=$H10)*(FZ$6-$F10+1),$J10/2,$M10,TRUE)-_xlfn.NORM.DIST(AND(FZ$6>=$F10,FZ$6<=$H10)*(FY$6-$F10+1),$J10/2,$M10,TRUE))/(1-2*_xlfn.NORM.DIST(0,$J10/2,$M10,TRUE))*$D10+($K10="Steady Growth")*(AND(FZ$6>=$F10,FZ$6<=$H10)*((FZ$6-$F10+1)/($J10*($J10+1)/2)*$D10))+($K10="custom")*CustCF!FT10 -> 0 | GA10: =($K10="Bell Curve")*(_xlfn.NORM.DIST(AND(GA$6>=$F10,GA$6<=$H10)*(GA$6-$F10+1),$J10/2,$M10,TRUE)-_xlfn.NORM.DIST(AND(GA$6>=$F10,GA$6<=$H10)*(FZ$6-$F10+1),$J10/2,$M10,TRUE))/(1-2*_xlfn.NORM.DIST(0,$J10/2,$M10,TRUE))*$D10+($K10="Steady Growth")*(AND(GA$6>=$F10,GA$6<=$H10)*((GA$6-$F10+1)/($J10*($J10+1)/2)*$D10))+($K10="custom")*CustCF!FU10 -> 0 | GB10: =($K10="Bell Curve")*(_xlfn.NORM.DIST(AND(GB$6>=$F10,GB$6<=$H10)*(GB$6-$F10+1),$J10/2,$M10,TRUE)-_xlfn.NORM.DIST(AND(GB$6>=$F10,GB$6<=$H10)*(GA$6-$F10+1),$J10/2,$M10,TRUE))/(1-2*_xlfn.NORM.DIST(0,$J10/2,$M10,TRUE))*$D10+($K10="Steady Growth")*(AND(GB$6>=$F10,GB$6<=$H10)*((GB$6-$F10+1)/($J10*($J10+1)/2)*$D10))+($K10="custom")*CustCF!FV10 -> 0 | GC10: =($K10="Bell Curve")*(_xlfn.NORM.DIST(AND(GC$6>=$F10,GC$6<=$H10)*(GC$6-$F10+1),$J10/2,$M10,TRUE)-_xlfn.NORM.DIST(AND(GC$6>=$F10,GC$6<=$H10)*(GB$6-$F10+1),$J10/2,$M10,TRUE))/(1-2*_xlfn.NORM.DIST(0,$J10/2,$M10,TRUE))*$D10+($K10="Steady Growth")*(AND(GC$6>=$F10,GC$6<=$H10)*((GC$6-$F10+1)/($J10*($J10+1)/2)*$D10))+($K10="custom")*CustCF!FW10 -> 0 | GD10: =($K10="Bell Curve")*(_xlfn.NORM.DIST(AND(GD$6>=$F10,GD$6<=$H10)*(GD$6-$F10+1),$J10/2,$M10,TRUE)-_xlfn.NORM.DIST(AND(GD$6>=$F10,GD$6<=$H10)*(GC$6-$F10+1),$J10/2,$M10,TRUE))/(1-2*_xlfn.NORM.DIST(0,$J10/2,$M10,TRUE))*$D10+($K10="Steady Growth")*(AND(GD$6>=$F10,GD$6<=$H10)*((GD$6-$F10+1)/($J10*($J10+1)/2)*$D10))+($K10="custom")*CustCF!FX10 -> 0 | GE10: =($K10="Bell Curve")*(_xlfn.NORM.DIST(AND(GE$6>=$F10,GE$6<=$H10)*(GE$6-$F10+1),$J10/2,$M10,TRUE)-_xlfn.NORM.DIST(AND(GE$6>=$F10,GE$6<=$H10)*(GD$6-$F10+1),$J10/2,$M10,TRUE))/(1-2*_xlfn.NORM.DIST(0,$J10/2,$M10,TRUE))*$D10+($K10="Steady Growth")*(AND(GE$6>=$F10,GE$6<=$H10)*((GE$6-$F10+1)/($J10*($J10+1)/2)*$D10))+($K10="custom")*CustCF!FY10 -> 0 | GF10: =($K10="Bell Curve")*(_xlfn.NORM.DIST(AND(GF$6>=$F10,GF$6<=$H10)*(GF$6-$F10+1),$J10/2,$M10,TRUE)-_xlfn.NORM.DIST(AND(GF$6>=$F10,GF$6<=$H10)*(GE$6-$F10+1),$J10/2,$M10,TRUE))/(1-2*_xlfn.NORM.DIST(0,$J10/2,$M10,TRUE))*$D10+($K10="Steady Growth")*(AND(GF$6>=$F10,GF$6<=$H10)*((GF$6-$F10+1)/($J10*($J10+1)/2)*$D10))+($K10="custom")*CustCF!FZ10 -> 0 | GG10: =($K10="Bell Curve")*(_xlfn.NORM.DIST(AND(GG$6>=$F10,GG$6<=$H10)*(GG$6-$F10+1),$J10/2,$M10,TRUE)-_xlfn.NORM.DIST(AND(GG$6>=$F10,GG$6<=$H10)*(GF$6-$F10+1),$J10/2,$M10,TRUE))/(1-2*_xlfn.NORM.DIST(0,$J10/2,$M10,TRUE))*$D10+($K10="Steady Growth")*(AND(GG$6>=$F10,GG$6<=$H10)*((GG$6-$F10+1)/($J10*($J10+1)/2)*$D10))+($K10="custom")*CustCF!GA10 -> 0 | GH10: =($K10="Bell Curve")*(_xlfn.NORM.DIST(AND(GH$6>=$F10,GH$6<=$H10)*(GH$6-$F10+1),$J10/2,$M10,TRUE)-_xlfn.NORM.DIST(AND(GH$6>=$F10,GH$6<=$H10)*(GG$6-$F10+1),$J10/2,$M10,TRUE))/(1-2*_xlfn.NORM.DIST(0,$J10/2,$M10,TRUE))*$D10+($K10="Steady Growth")*(AND(GH$6>=$F10,GH$6<=$H10)*((GH$6-$F10+1)/($J10*($J10+1)/2)*$D10))+($K10="custom")*CustCF!GB10 -> 0 | GI10: =($K10="Bell Curve")*(_xlfn.NORM.DIST(AND(GI$6>=$F10,GI$6<=$H10)*(GI$6-$F10+1),$J10/2,$M10,TRUE)-_xlfn.NORM.DIST(AND(GI$6>=$F10,GI$6<=$H10)*(GH$6-$F10+1),$J10/2,$M10,TRUE))/(1-2*_xlfn.NORM.DIST(0,$J10/2,$M10,TRUE))*$D10+($K10="Steady Growth")*(AND(GI$6>=$F10,GI$6<=$H10)*((GI$6-$F10+1)/($J10*($J10+1)/2)*$D10))+($K10="custom")*CustCF!GC10 -> 0 | GJ10: =($K10="Bell Curve")*(_xlfn.NORM.DIST(AND(GJ$6>=$F10,GJ$6<=$H10)*(GJ$6-$F10+1),$J10/2,$M10,TRUE)-_xlfn.NORM.DIST(AND(GJ$6>=$F10,GJ$6<=$H10)*(GI$6-$F10+1),$J10/2,$M10,TRUE))/(1-2*_xlfn.NORM.DIST(0,$J10/2,$M10,TRUE))*$D10+($K10="Steady Growth")*(AND(GJ$6>=$F10,GJ$6<=$H10)*((GJ$6-$F10+1)/($J10*($J10+1)/2)*$D10))+($K10="custom")*CustCF!GD10 -> 0 | GK10: =($K10="Bell Curve")*(_xlfn.NORM.DIST(AND(GK$6>=$F10,GK$6<=$H10)*(GK$6-$F10+1),$J10/2,$M10,TRUE)-_xlfn.NORM.DIST(AND(GK$6>=$F10,GK$6<=$H10)*(GJ$6-$F10+1),$J10/2,$M10,TRUE))/(1-2*_xlfn.NORM.DIST(0,$J10/2,$M10,TRUE))*$D10+($K10="Steady Growth")*(AND(GK$6>=$F10,GK$6<=$H10)*((GK$6-$F10+1)/($J10*($J10+1)/2)*$D10))+($K10="custom")*CustCF!GE10 -> 0 | GL10: =($K10="Bell Curve")*(_xlfn.NORM.DIST(AND(GL$6>=$F10,GL$6<=$H10)*(GL$6-$F10+1),$J10/2,$M10,TRUE)-_xlfn.NORM.DIST(AND(GL$6>=$F10,GL$6<=$H10)*(GK$6-$F10+1),$J10/2,$M10,TRUE))/(1-2*_xlfn.NORM.DIST(0,$J10/2,$M10,TRUE))*$D10+($K10="Steady Growth")*(AND(GL$6>=$F10,GL$6<=$H10)*((GL$6-$F10+1)/($J10*($J10+1)/2)*$D10))+($K10="custom")*CustCF!GF10 -> 0 | GM10: =($K10="Bell Curve")*(_xlfn.NORM.DIST(AND(GM$6>=$F10,GM$6<=$H10)*(GM$6-$F10+1),$J10/2,$M10,TRUE)-_xlfn.NORM.DIST(AND(GM$6>=$F10,GM$6<=$H10)*(GL$6-$F10+1),$J10/2,$M10,TRUE))/(1-2*_xlfn.NORM.DIST(0,$J10/2,$M10,TRUE))*$D10+($K10="Steady Growth")*(AND(GM$6>=$F10,GM$6<=$H10)*((GM$6-$F10+1)/($J10*($J10+1)/2)*$D10))+($K10="custom")*CustCF!GG10 -> 0 | GN10: =($K10="Bell Curve")*(_xlfn.NORM.DIST(AND(GN$6>=$F10,GN$6<=$H10)*(GN$6-$F10+1),$J10/2,$M10,TRUE)-_xlfn.NORM.DIST(AND(GN$6>=$F10,GN$6<=$H10)*(GM$6-$F10+1),$J10/2,$M10,TRUE))/(1-2*_xlfn.NORM.DIST(0,$J10/2,$M10,TRUE))*$D10+($K10="Steady Growth")*(AND(GN$6>=$F10,GN$6<=$H10)*((GN$6-$F10+1)/($J10*($J10+1)/2)*$D10))+($K10="custom")*CustCF!GH10 -> 0
C11: =Budget!P12 -> Transfer Taxes | D11: =Budget!Q12 -> 5600 | E11: 0 | F11: 0 | G11: =IF(L11="custom",CustCF!F11,INDEX($P$8:$GN$8,MATCH(F11,$P$6:$GN$6,0))) -> 2026-01-31 | H11: 0 | I11: =IF(L11="custom",CustCF!G11,INDEX($P$8:$GN$8,MATCH(H11,$P$6:$GN$6,0))) -> 2026-01-31 | J11: 1 | K11: Bell Curve | L11: Straight Line | M11: 10000000 | N11: 5599.999992 | P11: =($K11="Bell Curve")*(_xlfn.NORM.DIST(AND(P$6>=$F11,P$6<=$H11)*(P$6-$F11+1),$J11/2,$M11,TRUE)-_xlfn.NORM.DIST(AND(P$6>=$F11,P$6<=$H11)*(O$6-$F11+1),$J11/2,$M11,TRUE))/(1-2*_xlfn.NORM.DIST(0,$J11/2,$M11,TRUE))*$D11+($K11="Steady Growth")*(AND(P$6>=$F11,P$6<=$H11)*((P$6-$F11+1)/($J11*($J11+1)/2)*$D11))+($K11="custom")*CustCF!J11 -> 5599.999992 | Q11: =($K11="Bell Curve")*(_xlfn.NORM.DIST(AND(Q$6>=$F11,Q$6<=$H11)*(Q$6-$F11+1),$J11/2,$M11,TRUE)-_xlfn.NORM.DIST(AND(Q$6>=$F11,Q$6<=$H11)*(P$6-$F11+1),$J11/2,$M11,TRUE))/(1-2*_xlfn.NORM.DIST(0,$J11/2,$M11,TRUE))*$D11+($K11="Steady Growth")*(AND(Q$6>=$F11,Q$6<=$H11)*((Q$6-$F11+1)/($J11*($J11+1)/2)*$D11))+($K11="custom")*CustCF!K11 -> 0 | R11: =($K11="Bell Curve")*(_xlfn.NORM.DIST(AND(R$6>=$F11,R$6<=$H11)*(R$6-$F11+1),$J11/2,$M11,TRUE)-_xlfn.NORM.DIST(AND(R$6>=$F11,R$6<=$H11)*(Q$6-$F11+1),$J11/2,$M11,TRUE))/(1-2*_xlfn.NORM.DIST(0,$J11/2,$M11,TRUE))*$D11+($K11="Steady Growth")*(AND(R$6>=$F11,R$6<=$H11)*((R$6-$F11+1)/($J11*($J11+1)/2)*$D11))+($K11="custom")*CustCF!L11 -> 0 | S11: =($K11="Bell Curve")*(_xlfn.NORM.DIST(AND(S$6>=$F11,S$6<=$H11)*(S$6-$F11+1),$J11/2,$M11,TRUE)-_xlfn.NORM.DIST(AND(S$6>=$F11,S$6<=$H11)*(R$6-$F11+1),$J11/2,$M11,TRUE))/(1-2*_xlfn.NORM.DIST(0,$J11/2,$M11,TRUE))*$D11+($K11="Steady Growth")*(AND(S$6>=$F11,S$6<=$H11)*((S$6-$F11+1)/($J11*($J11+1)/2)*$D11))+($K11="custom")*CustCF!M11 -> 0 | T11: =($K11="Bell Curve")*(_xlfn.NORM.DIST(AND(T$6>=$F11,T$6<=$H11)*(T$6-$F11+1),$J11/2,$M11,TRUE)-_xlfn.NORM.DIST(AND(T$6>=$F11,T$6<=$H11)*(S$6-$F11+1),$J11/2,$M11,TRUE))/(1-2*_xlfn.NORM.DIST(0,$J11/2,$M11,TRUE))*$D11+($K11="Steady Growth")*(AND(T$6>=$F11,T$6<=$H11)*((T$6-$F11+1)/($J11*($J11+1)/2)*$D11))+($K11="custom")*CustCF!N11 -> 0 | U11: =($K11="Bell Curve")*(_xlfn.NORM.DIST(AND(U$6>=$F11,U$6<=$H11)*(U$6-$F11+1),$J11/2,$M11,TRUE)-_xlfn.NORM.DIST(AND(U$6>=$F11,U$6<=$H11)*(T$6-$F11+1),$J11/2,$M11,TRUE))/(1-2*_xlfn.NORM.DIST(0,$J11/2,$M11,TRUE))*$D11+($K11="Steady Growth")*(AND(U$6>=$F11,U$6<=$H11)*((U$6-$F11+1)/($J11*($J11+1)/2)*$D11))+($K11="custom")*CustCF!O11 -> 0 | V11: =($K11="Bell Curve")*(_xlfn.NORM.DIST(AND(V$6>=$F11,V$6<=$H11)*(V$6-$F11+1),$J11/2,$M11,TRUE)-_xlfn.NORM.DIST(AND(V$6>=$F11,V$6<=$H11)*(U$6-$F11+1),$J11/2,$M11,TRUE))/(1-2*_xlfn.NORM.DIST(0,$J11/2,$M11,TRUE))*$D11+($K11="Steady Growth")*(AND(V$6>=$F11,V$6<=$H11)*((V$6-$F11+1)/($J11*($J11+1)/2)*$D11))+($K11="custom")*CustCF!P11 -> 0 | W11: =($K11="Bell Curve")*(_xlfn.NORM.DIST(AND(W$6>=$F11,W$6<=$H11)*(W$6-$F11+1),$J11/2,$M11,TRUE)-_xlfn.NORM.DIST(AND(W$6>=$F11,W$6<=$H11)*(V$6-$F11+1),$J11/2,$M11,TRUE))/(1-2*_xlfn.NORM.DIST(0,$J11/2,$M11,TRUE))*$D11+($K11="Steady Growth")*(AND(W$6>=$F11,W$6<=$H11)*((W$6-$F11+1)/($J11*($J11+1)/2)*$D11))+($K11="custom")*CustCF!Q11 -> 0 | X11: =($K11="Bell Curve")*(_xlfn.NORM.DIST(AND(X$6>=$F11,X$6<=$H11)*(X$6-$F11+1),$J11/2,$M11,TRUE)-_xlfn.NORM.DIST(AND(X$6>=$F11,X$6<=$H11)*(W$6-$F11+1),$J11/2,$M11,TRUE))/(1-2*_xlfn.NORM.DIST(0,$J11/2,$M11,TRUE))*$D11+($K11="Steady Growth")*(AND(X$6>=$F11,X$6<=$H11)*((X$6-$F11+1)/($J11*($J11+1)/2)*$D11))+($K11="custom")*CustCF!R11 -> 0 | Y11: =($K11="Bell Curve")*(_xlfn.NORM.DIST(AND(Y$6>=$F11,Y$6<=$H11)*(Y$6-$F11+1),$J11/2,$M11,TRUE)-_xlfn.NORM.DIST(AND(Y$6>=$F11,Y$6<=$H11)*(X$6-$F11+1),$J11/2,$M11,TRUE))/(1-2*_xlfn.NORM.DIST(0,$J11/2,$M11,TRUE))*$D11+($K11="Steady Growth")*(AND(Y$6>=$F11,Y$6<=$H11)*((Y$6-$F11+1)/($J11*($J11+1)/2)*$D11))+($K11="custom")*CustCF!S11 -> 0 | Z11: =($K11="Bell Curve")*(_xlfn.NORM.DIST(AND(Z$6>=$F11,Z$6<=$H11)*(Z$6-$F11+1),$J11/2,$M11,TRUE)-_xlfn.NORM.DIST(AND(Z$6>=$F11,Z$6<=$H11)*(Y$6-$F11+1),$J11/2,$M11,TRUE))/(1-2*_xlfn.NORM.DIST(0,$J11/2,$M11,TRUE))*$D11+($K11="Steady Growth")*(AND(Z$6>=$F11,Z$6<=$H11)*((Z$6-$F11+1)/($J11*($J11+1)/2)*$D11))+($K11="custom")*CustCF!T11 -> 0 | AA11: =($K11="Bell Curve")*(_xlfn.NORM.DIST(AND(AA$6>=$F11,AA$6<=$H11)*(AA$6-$F11+1),$J11/2,$M11,TRUE)-_xlfn.NORM.DIST(AND(AA$6>=$F11,AA$6<=$H11)*(Z$6-$F11+1),$J11/2,$M11,TRUE))/(1-2*_xlfn.NORM.DIST(0,$J11/2,$M11,TRUE))*$D11+($K11="Steady Growth")*(AND(AA$6>=$F11,AA$6<=$H11)*((AA$6-$F11+1)/($J11*($J11+1)/2)*$D11))+($K11="custom")*CustCF!U11 -> 0 | AB11: =($K11="Bell Curve")*(_xlfn.NORM.DIST(AND(AB$6>=$F11,AB$6<=$H11)*(AB$6-$F11+1),$J11/2,$M11,TRUE)-_xlfn.NORM.DIST(AND(AB$6>=$F11,AB$6<=$H11)*(AA$6-$F11+1),$J11/2,$M11,TRUE))/(1-2*_xlfn.NORM.DIST(0,$J11/2,$M11,TRUE))*$D11+($K11="Steady Growth")*(AND(AB$6>=$F11,AB$6<=$H11)*((AB$6-$F11+1)/($J11*($J11+1)/2)*$D11))+($K11="custom")*CustCF!V11 -> 0 | AC11: =($K11="Bell Curve")*(_xlfn.NORM.DIST(AND(AC$6>=$F11,AC$6<=$H11)*(AC$6-$F11+1),$J11/2,$M11,TRUE)-_xlfn.NORM.DIST(AND(AC$6>=$F11,AC$6<=$H11)*(AB$6-$F11+1),$J11/2,$M11,TRUE))/(1-2*_xlfn.NORM.DIST(0,$J11/2,$M11,TRUE))*$D11+($K11="Steady Growth")*(AND(AC$6>=$F11,AC$6<=$H11)*((AC$6-$F11+1)/($J11*($J11+1)/2)*$D11))+($K11="custom")*CustCF!W11 -> 0 | AD11: =($K11="Bell Curve")*(_xlfn.NORM.DIST(AND(AD$6>=$F11,AD$6<=$H11)*(AD$6-$F11+1),$J11/2,$M11,TRUE)-_xlfn.NORM.DIST(AND(AD$6>=$F11,AD$6<=$H11)*(AC$6-$F11+1),$J11/2,$M11,TRUE))/(1-2*_xlfn.NORM.DIST(0,$J11/2,$M11,TRUE))*$D11+($K11="Steady Growth")*(AND(AD$6>=$F11,AD$6<=$H11)*((AD$6-$F11+1)/($J11*($J11+1)/2)*$D11))+($K11="custom")*CustCF!X11 -> 0 | AE11: =($K11="Bell Curve")*(_xlfn.NORM.DIST(AND(AE$6>=$F11,AE$6<=$H11)*(AE$6-$F11+1),$J11/2,$M11,TRUE)-_xlfn.NORM.DIST(AND(AE$6>=$F11,AE$6<=$H11)*(AD$6-$F11+1),$J11/2,$M11,TRUE))/(1-2*_xlfn.NORM.DIST(0,$J11/2,$M11,TRUE))*$D11+($K11="Steady Growth")*(AND(AE$6>=$F11,AE$6<=$H11)*((AE$6-$F11+1)/($J11*($J11+1)/2)*$D11))+($K11="custom")*CustCF!Y11 -> 0 | AF11: =($K11="Bell Curve")*(_xlfn.NORM.DIST(AND(AF$6>=$F11,AF$6<=$H11)*(AF$6-$F11+1),$J11/2,$M11,TRUE)-_xlfn.NORM.DIST(AND(AF$6>=$F11,AF$6<=$H11)*(AE$6-$F11+1),$J11/2,$M11,TRUE))/(1-2*_xlfn.NORM.DIST(0,$J11/2,$M11,TRUE))*$D11+($K11="Steady Growth")*(AND(AF$6>=$F11,AF$6<=$H11)*((AF$6-$F11+1)/($J11*($J11+1)/2)*$D11))+($K11="custom")*CustCF!Z11 -> 0 | AG11: =($K11="Bell Curve")*(_xlfn.NORM.DIST(AND(AG$6>=$F11,AG$6<=$H11)*(AG$6-$F11+1),$J11/2,$M11,TRUE)-_xlfn.NORM.DIST(AND(AG$6>=$F11,AG$6<=$H11)*(AF$6-$F11+1),$J11/2,$M11,TRUE))/(1-2*_xlfn.NORM.DIST(0,$J11/2,$M11,TRUE))*$D11+($K11="Steady Growth")*(AND(AG$6>=$F11,AG$6<=$H11)*((AG$6-$F11+1)/($J11*($J11+1)/2)*$D11))+($K11="custom")*CustCF!AA11 -> 0 | AH11: =($K11="Bell Curve")*(_xlfn.NORM.DIST(AND(AH$6>=$F11,AH$6<=$H11)*(AH$6-$F11+1),$J11/2,$M11,TRUE)-_xlfn.NORM.DIST(AND(AH$6>=$F11,AH$6<=$H11)*(AG$6-$F11+1),$J11/2,$M11,TRUE))/(1-2*_xlfn.NORM.DIST(0,$J11/2,$M11,TRUE))*$D11+($K11="Steady Growth")*(AND(AH$6>=$F11,AH$6<=$H11)*((AH$6-$F11+1)/($J11*($J11+1)/2)*$D11))+($K11="custom")*CustCF!AB11 -> 0 | AI11: =($K11="Bell Curve")*(_xlfn.NORM.DIST(AND(AI$6>=$F11,AI$6<=$H11)*(AI$6-$F11+1),$J11/2,$M11,TRUE)-_xlfn.NORM.DIST(AND(AI$6>=$F11,AI$6<=$H11)*(AH$6-$F11+1),$J11/2,$M11,TRUE))/(1-2*_xlfn.NORM.DIST(0,$J11/2,$M11,TRUE))*$D11+($K11="Steady Growth")*(AND(AI$6>=$F11,AI$6<=$H11)*((AI$6-$F11+1)/($J11*($J11+1)/2)*$D11))+($K11="custom")*CustCF!AC11 -> 0 | AJ11: =($K11="Bell Curve")*(_xlfn.NORM.DIST(AND(AJ$6>=$F11,AJ$6<=$H11)*(AJ$6-$F11+1),$J11/2,$M11,TRUE)-_xlfn.NORM.DIST(AND(AJ$6>=$F11,AJ$6<=$H11)*(AI$6-$F11+1),$J11/2,$M11,TRUE))/(1-2*_xlfn.NORM.DIST(0,$J11/2,$M11,TRUE))*$D11+($K11="Steady Growth")*(AND(AJ$6>=$F11,AJ$6<=$H11)*((AJ$6-$F11+1)/($J11*($J11+1)/2)*$D11))+($K11="custom")*CustCF!AD11 -> 0 | AK11: =($K11="Bell Curve")*(_xlfn.NORM.DIST(AND(AK$6>=$F11,AK$6<=$H11)*(AK$6-$F11+1),$J11/2,$M11,TRUE)-_xlfn.NORM.DIST(AND(AK$6>=$F11,AK$6<=$H11)*(AJ$6-$F11+1),$J11/2,$M11,TRUE))/(1-2*_xlfn.NORM.DIST(0,$J11/2,$M11,TRUE))*$D11+($K11="Steady Growth")*(AND(AK$6>=$F11,AK$6<=$H11)*((AK$6-$F11+1)/($J11*($J11+1)/2)*$D11))+($K11="custom")*CustCF!AE11 -> 0 | AL11: =($K11="Bell Curve")*(_xlfn.NORM.DIST(AND(AL$6>=$F11,AL$6<=$H11)*(AL$6-$F11+1),$J11/2,$M11,TRUE)-_xlfn.NORM.DIST(AND(AL$6>=$F11,AL$6<=$H11)*(AK$6-$F11+1),$J11/2,$M11,TRUE))/(1-2*_xlfn.NORM.DIST(0,$J11/2,$M11,TRUE))*$D11+($K11="Steady Growth")*(AND(AL$6>=$F11,AL$6<=$H11)*((AL$6-$F11+1)/($J11*($J11+1)/2)*$D11))+($K11="custom")*CustCF!AF11 -> 0 | AM11: =($K11="Bell Curve")*(_xlfn.NORM.DIST(AND(AM$6>=$F11,AM$6<=$H11)*(AM$6-$F11+1),$J11/2,$M11,TRUE)-_xlfn.NORM.DIST(AND(AM$6>=$F11,AM$6<=$H11)*(AL$6-$F11+1),$J11/2,$M11,TRUE))/(1-2*_xlfn.NORM.DIST(0,$J11/2,$M11,TRUE))*$D11+($K11="Steady Growth")*(AND(AM$6>=$F11,AM$6<=$H11)*((AM$6-$F11+1)/($J11*($J11+1)/2)*$D11))+($K11="custom")*CustCF!AG11 -> 0 | AN11: =($K11="Bell Curve")*(_xlfn.NORM.DIST(AND(AN$6>=$F11,AN$6<=$H11)*(AN$6-$F11+1),$J11/2,$M11,TRUE)-_xlfn.NORM.DIST(AND(AN$6>=$F11,AN$6<=$H11)*(AM$6-$F11+1),$J11/2,$M11,TRUE))/(1-2*_xlfn.NORM.DIST(0,$J11/2,$M11,TRUE))*$D11+($K11="Steady Growth")*(AND(AN$6>=$F11,AN$6<=$H11)*((AN$6-$F11+1)/($J11*($J11+1)/2)*$D11))+($K11="custom")*CustCF!AH11 -> 0 | AO11: =($K11="Bell Curve")*(_xlfn.NORM.DIST(AND(AO$6>=$F11,AO$6<=$H11)*(AO$6-$F11+1),$J11/2,$M11,TRUE)-_xlfn.NORM.DIST(AND(AO$6>=$F11,AO$6<=$H11)*(AN$6-$F11+1),$J11/2,$M11,TRUE))/(1-2*_xlfn.NORM.DIST(0,$J11/2,$M11,TRUE))*$D11+($K11="Steady Growth")*(AND(AO$6>=$F11,AO$6<=$H11)*((AO$6-$F11+1)/($J11*($J11+1)/2)*$D11))+($K11="custom")*CustCF!AI11 -> 0 | AP11: =($K11="Bell Curve")*(_xlfn.NORM.DIST(AND(AP$6>=$F11,AP$6<=$H11)*(AP$6-$F11+1),$J11/2,$M11,TRUE)-_xlfn.NORM.DIST(AND(AP$6>=$F11,AP$6<=$H11)*(AO$6-$F11+1),$J11/2,$M11,TRUE))/(1-2*_xlfn.NORM.DIST(0,$J11/2,$M11,TRUE))*$D11+($K11="Steady Growth")*(AND(AP$6>=$F11,AP$6<=$H11)*((AP$6-$F11+1)/($J11*($J11+1)/2)*$D11))+($K11="custom")*CustCF!AJ11 -> 0 | AQ11: =($K11="Bell Curve")*(_xlfn.NORM.DIST(AND(AQ$6>=$F11,AQ$6<=$H11)*(AQ$6-$F11+1),$J11/2,$M11,TRUE)-_xlfn.NORM.DIST(AND(AQ$6>=$F11,AQ$6<=$H11)*(AP$6-$F11+1),$J11/2,$M11,TRUE))/(1-2*_xlfn.NORM.DIST(0,$J11/2,$M11,TRUE))*$D11+($K11="Steady Growth")*(AND(AQ$6>=$F11,AQ$6<=$H11)*((AQ$6-$F11+1)/($J11*($J11+1)/2)*$D11))+($K11="custom")*CustCF!AK11 -> 0 | AR11: =($K11="Bell Curve")*(_xlfn.NORM.DIST(AND(AR$6>=$F11,AR$6<=$H11)*(AR$6-$F11+1),$J11/2,$M11,TRUE)-_xlfn.NORM.DIST(AND(AR$6>=$F11,AR$6<=$H11)*(AQ$6-$F11+1),$J11/2,$M11,TRUE))/(1-2*_xlfn.NORM.DIST(0,$J11/2,$M11,TRUE))*$D11+($K11="Steady Growth")*(AND(AR$6>=$F11,AR$6<=$H11)*((AR$6-$F11+1)/($J11*($J11+1)/2)*$D11))+($K11="custom")*CustCF!AL11 -> 0 | AS11: =($K11="Bell Curve")*(_xlfn.NORM.DIST(AND(AS$6>=$F11,AS$6<=$H11)*(AS$6-$F11+1),$J11/2,$M11,TRUE)-_xlfn.NORM.DIST(AND(AS$6>=$F11,AS$6<=$H11)*(AR$6-$F11+1),$J11/2,$M11,TRUE))/(1-2*_xlfn.NORM.DIST(0,$J11/2,$M11,TRUE))*$D11+($K11="Steady Growth")*(AND(AS$6>=$F11,AS$6<=$H11)*((AS$6-$F11+1)/($J11*($J11+1)/2)*$D11))+($K11="custom")*CustCF!AM11 -> 0 | AT11: =($K11="Bell Curve")*(_xlfn.NORM.DIST(AND(AT$6>=$F11,AT$6<=$H11)*(AT$6-$F11+1),$J11/2,$M11,TRUE)-_xlfn.NORM.DIST(AND(AT$6>=$F11,AT$6<=$H11)*(AS$6-$F11+1),$J11/2,$M11,TRUE))/(1-2*_xlfn.NORM.DIST(0,$J11/2,$M11,TRUE))*$D11+($K11="Steady Growth")*(AND(AT$6>=$F11,AT$6<=$H11)*((AT$6-$F11+1)/($J11*($J11+1)/2)*$D11))+($K11="custom")*CustCF!AN11 -> 0 | AU11: =($K11="Bell Curve")*(_xlfn.NORM.DIST(AND(AU$6>=$F11,AU$6<=$H11)*(AU$6-$F11+1),$J11/2,$M11,TRUE)-_xlfn.NORM.DIST(AND(AU$6>=$F11,AU$6<=$H11)*(AT$6-$F11+1),$J11/2,$M11,TRUE))/(1-2*_xlfn.NORM.DIST(0,$J11/2,$M11,TRUE))*$D11+($K11="Steady Growth")*(AND(AU$6>=$F11,AU$6<=$H11)*((AU$6-$F11+1)/($J11*($J11+1)/2)*$D11))+($K11="custom")*CustCF!AO11 -> 0 | AV11: =($K11="Bell Curve")*(_xlfn.NORM.DIST(AND(AV$6>=$F11,AV$6<=$H11)*(AV$6-$F11+1),$J11/2,$M11,TRUE)-_xlfn.NORM.DIST(AND(AV$6>=$F11,AV$6<=$H11)*(AU$6-$F11+1),$J11/2,$M11,TRUE))/(1-2*_xlfn.NORM.DIST(0,$J11/2,$M11,TRUE))*$D11+($K11="Steady Growth")*(AND(AV$6>=$F11,AV$6<=$H11)*((AV$6-$F11+1)/($J11*($J11+1)/2)*$D11))+($K11="custom")*CustCF!AP11 -> 0 | AW11: =($K11="Bell Curve")*(_xlfn.NORM.DIST(AND(AW$6>=$F11,AW$6<=$H11)*(AW$6-$F11+1),$J11/2,$M11,TRUE)-_xlfn.NORM.DIST(AND(AW$6>=$F11,AW$6<=$H11)*(AV$6-$F11+1),$J11/2,$M11,TRUE))/(1-2*_xlfn.NORM.DIST(0,$J11/2,$M11,TRUE))*$D11+($K11="Steady Growth")*(AND(AW$6>=$F11,AW$6<=$H11)*((AW$6-$F11+1)/($J11*($J11+1)/2)*$D11))+($K11="custom")*CustCF!AQ11 -> 0 | AX11: =($K11="Bell Curve")*(_xlfn.NORM.DIST(AND(AX$6>=$F11,AX$6<=$H11)*(AX$6-$F11+1),$J11/2,$M11,TRUE)-_xlfn.NORM.DIST(AND(AX$6>=$F11,AX$6<=$H11)*(AW$6-$F11+1),$J11/2,$M11,TRUE))/(1-2*_xlfn.NORM.DIST(0,$J11/2,$M11,TRUE))*$D11+($K11="Steady Growth")*(AND(AX$6>=$F11,AX$6<=$H11)*((AX$6-$F11+1)/($J11*($J11+1)/2)*$D11))+($K11="custom")*CustCF!AR11 -> 0 | AY11: =($K11="Bell Curve")*(_xlfn.NORM.DIST(AND(AY$6>=$F11,AY$6<=$H11)*(AY$6-$F11+1),$J11/2,$M11,TRUE)-_xlfn.NORM.DIST(AND(AY$6>=$F11,AY$6<=$H11)*(AX$6-$F11+1),$J11/2,$M11,TRUE))/(1-2*_xlfn.NORM.DIST(0,$J11/2,$M11,TRUE))*$D11+($K11="Steady Growth")*(AND(AY$6>=$F11,AY$6<=$H11)*((AY$6-$F11+1)/($J11*($J11+1)/2)*$D11))+($K11="custom")*CustCF!AS11 -> 0 | AZ11: =($K11="Bell Curve")*(_xlfn.NORM.DIST(AND(AZ$6>=$F11,AZ$6<=$H11)*(AZ$6-$F11+1),$J11/2,$M11,TRUE)-_xlfn.NORM.DIST(AND(AZ$6>=$F11,AZ$6<=$H11)*(AY$6-$F11+1),$J11/2,$M11,TRUE))/(1-2*_xlfn.NORM.DIST(0,$J11/2,$M11,TRUE))*$D11+($K11="Steady Growth")*(AND(AZ$6>=$F11,AZ$6<=$H11)*((AZ$6-$F11+1)/($J11*($J11+1)/2)*$D11))+($K11="custom")*CustCF!AT11 -> 0 | BA11: =($K11="Bell Curve")*(_xlfn.NORM.DIST(AND(BA$6>=$F11,BA$6<=$H11)*(BA$6-$F11+1),$J11/2,$M11,TRUE)-_xlfn.NORM.DIST(AND(BA$6>=$F11,BA$6<=$H11)*(AZ$6-$F11+1),$J11/2,$M11,TRUE))/(1-2*_xlfn.NORM.DIST(0,$J11/2,$M11,TRUE))*$D11+($K11="Steady Growth")*(AND(BA$6>=$F11,BA$6<=$H11)*((BA$6-$F11+1)/($J11*($J11+1)/2)*$D11))+($K11="custom")*CustCF!AU11 -> 0 | BB11: =($K11="Bell Curve")*(_xlfn.NORM.DIST(AND(BB$6>=$F11,BB$6<=$H11)*(BB$6-$F11+1),$J11/2,$M11,TRUE)-_xlfn.NORM.DIST(AND(BB$6>=$F11,BB$6<=$H11)*(BA$6-$F11+1),$J11/2,$M11,TRUE))/(1-2*_xlfn.NORM.DIST(0,$J11/2,$M11,TRUE))*$D11+($K11="Steady Growth")*(AND(BB$6>=$F11,BB$6<=$H11)*((BB$6-$F11+1)/($J11*($J11+1)/2)*$D11))+($K11="custom")*CustCF!AV11 -> 0 | BC11: =($K11="Bell Curve")*(_xlfn.NORM.DIST(AND(BC$6>=$F11,BC$6<=$H11)*(BC$6-$F11+1),$J11/2,$M11,TRUE)-_xlfn.NORM.DIST(AND(BC$6>=$F11,BC$6<=$H11)*(BB$6-$F11+1),$J11/2,$M11,TRUE))/(1-2*_xlfn.NORM.DIST(0,$J11/2,$M11,TRUE))*$D11+($K11="Steady Growth")*(AND(BC$6>=$F11,BC$6<=$H11)*((BC$6-$F11+1)/($J11*($J11+1)/2)*$D11))+($K11="custom")*CustCF!AW11 -> 0 | BD11: =($K11="Bell Curve")*(_xlfn.NORM.DIST(AND(BD$6>=$F11,BD$6<=$H11)*(BD$6-$F11+1),$J11/2,$M11,TRUE)-_xlfn.NORM.DIST(AND(BD$6>=$F11,BD$6<=$H11)*(BC$6-$F11+1),$J11/2,$M11,TRUE))/(1-2*_xlfn.NORM.DIST(0,$J11/2,$M11,TRUE))*$D11+($K11="Steady Growth")*(AND(BD$6>=$F11,BD$6<=$H11)*((BD$6-$F11+1)/($J11*($J11+1)/2)*$D11))+($K11="custom")*CustCF!AX11 -> 0 | BE11: =($K11="Bell Curve")*(_xlfn.NORM.DIST(AND(BE$6>=$F11,BE$6<=$H11)*(BE$6-$F11+1),$J11/2,$M11,TRUE)-_xlfn.NORM.DIST(AND(BE$6>=$F11,BE$6<=$H11)*(BD$6-$F11+1),$J11/2,$M11,TRUE))/(1-2*_xlfn.NORM.DIST(0,$J11/2,$M11,TRUE))*$D11+($K11="Steady Growth")*(AND(BE$6>=$F11,BE$6<=$H11)*((BE$6-$F11+1)/($J11*($J11+1)/2)*$D11))+($K11="custom")*CustCF!AY11 -> 0 | BF11: =($K11="Bell Curve")*(_xlfn.NORM.DIST(AND(BF$6>=$F11,BF$6<=$H11)*(BF$6-$F11+1),$J11/2,$M11,TRUE)-_xlfn.NORM.DIST(AND(BF$6>=$F11,BF$6<=$H11)*(BE$6-$F11+1),$J11/2,$M11,TRUE))/(1-2*_xlfn.NORM.DIST(0,$J11/2,$M11,TRUE))*$D11+($K11="Steady Growth")*(AND(BF$6>=$F11,BF$6<=$H11)*((BF$6-$F11+1)/($J11*($J11+1)/2)*$D11))+($K11="custom")*CustCF!AZ11 -> 0 | BG11: =($K11="Bell Curve")*(_xlfn.NORM.DIST(AND(BG$6>=$F11,BG$6<=$H11)*(BG$6-$F11+1),$J11/2,$M11,TRUE)-_xlfn.NORM.DIST(AND(BG$6>=$F11,BG$6<=$H11)*(BF$6-$F11+1),$J11/2,$M11,TRUE))/(1-2*_xlfn.NORM.DIST(0,$J11/2,$M11,TRUE))*$D11+($K11="Steady Growth")*(AND(BG$6>=$F11,BG$6<=$H11)*((BG$6-$F11+1)/($J11*($J11+1)/2)*$D11))+($K11="custom")*CustCF!BA11 -> 0 | BH11: =($K11="Bell Curve")*(_xlfn.NORM.DIST(AND(BH$6>=$F11,BH$6<=$H11)*(BH$6-$F11+1),$J11/2,$M11,TRUE)-_xlfn.NORM.DIST(AND(BH$6>=$F11,BH$6<=$H11)*(BG$6-$F11+1),$J11/2,$M11,TRUE))/(1-2*_xlfn.NORM.DIST(0,$J11/2,$M11,TRUE))*$D11+($K11="Steady Growth")*(AND(BH$6>=$F11,BH$6<=$H11)*((BH$6-$F11+1)/($J11*($J11+1)/2)*$D11))+($K11="custom")*CustCF!BB11 -> 0 | BI11: =($K11="Bell Curve")*(_xlfn.NORM.DIST(AND(BI$6>=$F11,BI$6<=$H11)*(BI$6-$F11+1),$J11/2,$M11,TRUE)-_xlfn.NORM.DIST(AND(BI$6>=$F11,BI$6<=$H11)*(BH$6-$F11+1),$J11/2,$M11,TRUE))/(1-2*_xlfn.NORM.DIST(0,$J11/2,$M11,TRUE))*$D11+($K11="Steady Growth")*(AND(BI$6>=$F11,BI$6<=$H11)*((BI$6-$F11+1)/($J11*($J11+1)/2)*$D11))+($K11="custom")*CustCF!BC11 -> 0 | BJ11: =($K11="Bell Curve")*(_xlfn.NORM.DIST(AND(BJ$6>=$F11,BJ$6<=$H11)*(BJ$6-$F11+1),$J11/2,$M11,TRUE)-_xlfn.NORM.DIST(AND(BJ$6>=$F11,BJ$6<=$H11)*(BI$6-$F11+1),$J11/2,$M11,TRUE))/(1-2*_xlfn.NORM.DIST(0,$J11/2,$M11,TRUE))*$D11+($K11="Steady Growth")*(AND(BJ$6>=$F11,BJ$6<=$H11)*((BJ$6-$F11+1)/($J11*($J11+1)/2)*$D11))+($K11="custom")*CustCF!BD11 -> 0 | BK11: =($K11="Bell Curve")*(_xlfn.NORM.DIST(AND(BK$6>=$F11,BK$6<=$H11)*(BK$6-$F11+1),$J11/2,$M11,TRUE)-_xlfn.NORM.DIST(AND(BK$6>=$F11,BK$6<=$H11)*(BJ$6-$F11+1),$J11/2,$M11,TRUE))/(1-2*_xlfn.NORM.DIST(0,$J11/2,$M11,TRUE))*$D11+($K11="Steady Growth")*(AND(BK$6>=$F11,BK$6<=$H11)*((BK$6-$F11+1)/($J11*($J11+1)/2)*$D11))+($K11="custom")*CustCF!BE11 -> 0 | BL11: =($K11="Bell Curve")*(_xlfn.NORM.DIST(AND(BL$6>=$F11,BL$6<=$H11)*(BL$6-$F11+1),$J11/2,$M11,TRUE)-_xlfn.NORM.DIST(AND(BL$6>=$F11,BL$6<=$H11)*(BK$6-$F11+1),$J11/2,$M11,TRUE))/(1-2*_xlfn.NORM.DIST(0,$J11/2,$M11,TRUE))*$D11+($K11="Steady Growth")*(AND(BL$6>=$F11,BL$6<=$H11)*((BL$6-$F11+1)/($J11*($J11+1)/2)*$D11))+($K11="custom")*CustCF!BF11 -> 0 | BM11: =($K11="Bell Curve")*(_xlfn.NORM.DIST(AND(BM$6>=$F11,BM$6<=$H11)*(BM$6-$F11+1),$J11/2,$M11,TRUE)-_xlfn.NORM.DIST(AND(BM$6>=$F11,BM$6<=$H11)*(BL$6-$F11+1),$J11/2,$M11,TRUE))/(1-2*_xlfn.NORM.DIST(0,$J11/2,$M11,TRUE))*$D11+($K11="Steady Growth")*(AND(BM$6>=$F11,BM$6<=$H11)*((BM$6-$F11+1)/($J11*($J11+1)/2)*$D11))+($K11="custom")*CustCF!BG11 -> 0 | BN11: =($K11="Bell Curve")*(_xlfn.NORM.DIST(AND(BN$6>=$F11,BN$6<=$H11)*(BN$6-$F11+1),$J11/2,$M11,TRUE)-_xlfn.NORM.DIST(AND(BN$6>=$F11,BN$6<=$H11)*(BM$6-$F11+1),$J11/2,$M11,TRUE))/(1-2*_xlfn.NORM.DIST(0,$J11/2,$M11,TRUE))*$D11+($K11="Steady Growth")*(AND(BN$6>=$F11,BN$6<=$H11)*((BN$6-$F11+1)/($J11*($J11+1)/2)*$D11))+($K11="custom")*CustCF!BH11 -> 0 | BO11: =($K11="Bell Curve")*(_xlfn.NORM.DIST(AND(BO$6>=$F11,BO$6<=$H11)*(BO$6-$F11+1),$J11/2,$M11,TRUE)-_xlfn.NORM.DIST(AND(BO$6>=$F11,BO$6<=$H11)*(BN$6-$F11+1),$J11/2,$M11,TRUE))/(1-2*_xlfn.NORM.DIST(0,$J11/2,$M11,TRUE))*$D11+($K11="Steady Growth")*(AND(BO$6>=$F11,BO$6<=$H11)*((BO$6-$F11+1)/($J11*($J11+1)/2)*$D11))+($K11="custom")*CustCF!BI11 -> 0 | BP11: =($K11="Bell Curve")*(_xlfn.NORM.DIST(AND(BP$6>=$F11,BP$6<=$H11)*(BP$6-$F11+1),$J11/2,$M11,TRUE)-_xlfn.NORM.DIST(AND(BP$6>=$F11,BP$6<=$H11)*(BO$6-$F11+1),$J11/2,$M11,TRUE))/(1-2*_xlfn.NORM.DIST(0,$J11/2,$M11,TRUE))*$D11+($K11="Steady Growth")*(AND(BP$6>=$F11,BP$6<=$H11)*((BP$6-$F11+1)/($J11*($J11+1)/2)*$D11))+($K11="custom")*CustCF!BJ11 -> 0 | BQ11: =($K11="Bell Curve")*(_xlfn.NORM.DIST(AND(BQ$6>=$F11,BQ$6<=$H11)*(BQ$6-$F11+1),$J11/2,$M11,TRUE)-_xlfn.NORM.DIST(AND(BQ$6>=$F11,BQ$6<=$H11)*(BP$6-$F11+1),$J11/2,$M11,TRUE))/(1-2*_xlfn.NORM.DIST(0,$J11/2,$M11,TRUE))*$D11+($K11="Steady Growth")*(AND(BQ$6>=$F11,BQ$6<=$H11)*((BQ$6-$F11+1)/($J11*($J11+1)/2)*$D11))+($K11="custom")*CustCF!BK11 -> 0 | BR11: =($K11="Bell Curve")*(_xlfn.NORM.DIST(AND(BR$6>=$F11,BR$6<=$H11)*(BR$6-$F11+1),$J11/2,$M11,TRUE)-_xlfn.NORM.DIST(AND(BR$6>=$F11,BR$6<=$H11)*(BQ$6-$F11+1),$J11/2,$M11,TRUE))/(1-2*_xlfn.NORM.DIST(0,$J11/2,$M11,TRUE))*$D11+($K11="Steady Growth")*(AND(BR$6>=$F11,BR$6<=$H11)*((BR$6-$F11+1)/($J11*($J11+1)/2)*$D11))+($K11="custom")*CustCF!BL11 -> 0 | BS11: =($K11="Bell Curve")*(_xlfn.NORM.DIST(AND(BS$6>=$F11,BS$6<=$H11)*(BS$6-$F11+1),$J11/2,$M11,TRUE)-_xlfn.NORM.DIST(AND(BS$6>=$F11,BS$6<=$H11)*(BR$6-$F11+1),$J11/2,$M11,TRUE))/(1-2*_xlfn.NORM.DIST(0,$J11/2,$M11,TRUE))*$D11+($K11="Steady Growth")*(AND(BS$6>=$F11,BS$6<=$H11)*((BS$6-$F11+1)/($J11*($J11+1)/2)*$D11))+($K11="custom")*CustCF!BM11 -> 0 | BT11: =($K11="Bell Curve")*(_xlfn.NORM.DIST(AND(BT$6>=$F11,BT$6<=$H11)*(BT$6-$F11+1),$J11/2,$M11,TRUE)-_xlfn.NORM.DIST(AND(BT$6>=$F11,BT$6<=$H11)*(BS$6-$F11+1),$J11/2,$M11,TRUE))/(1-2*_xlfn.NORM.DIST(0,$J11/2,$M11,TRUE))*$D11+($K11="Steady Growth")*(AND(BT$6>=$F11,BT$6<=$H11)*((BT$6-$F11+1)/($J11*($J11+1)/2)*$D11))+($K11="custom")*CustCF!BN11 -> 0 | BU11: =($K11="Bell Curve")*(_xlfn.NORM.DIST(AND(BU$6>=$F11,BU$6<=$H11)*(BU$6-$F11+1),$J11/2,$M11,TRUE)-_xlfn.NORM.DIST(AND(BU$6>=$F11,BU$6<=$H11)*(BT$6-$F11+1),$J11/2,$M11,TRUE))/(1-2*_xlfn.NORM.DIST(0,$J11/2,$M11,TRUE))*$D11+($K11="Steady Growth")*(AND(BU$6>=$F11,BU$6<=$H11)*((BU$6-$F11+1)/($J11*($J11+1)/2)*$D11))+($K11="custom")*CustCF!BO11 -> 0 | BV11: =($K11="Bell Curve")*(_xlfn.NORM.DIST(AND(BV$6>=$F11,BV$6<=$H11)*(BV$6-$F11+1),$J11/2,$M11,TRUE)-_xlfn.NORM.DIST(AND(BV$6>=$F11,BV$6<=$H11)*(BU$6-$F11+1),$J11/2,$M11,TRUE))/(1-2*_xlfn.NORM.DIST(0,$J11/2,$M11,TRUE))*$D11+($K11="Steady Growth")*(AND(BV$6>=$F11,BV$6<=$H11)*((BV$6-$F11+1)/($J11*($J11+1)/2)*$D11))+($K11="custom")*CustCF!BP11 -> 0 | BW11: =($K11="Bell Curve")*(_xlfn.NORM.DIST(AND(BW$6>=$F11,BW$6<=$H11)*(BW$6-$F11+1),$J11/2,$M11,TRUE)-_xlfn.NORM.DIST(AND(BW$6>=$F11,BW$6<=$H11)*(BV$6-$F11+1),$J11/2,$M11,TRUE))/(1-2*_xlfn.NORM.DIST(0,$J11/2,$M11,TRUE))*$D11+($K11="Steady Growth")*(AND(BW$6>=$F11,BW$6<=$H11)*((BW$6-$F11+1)/($J11*($J11+1)/2)*$D11))+($K11="custom")*CustCF!BQ11 -> 0 | BX11: =($K11="Bell Curve")*(_xlfn.NORM.DIST(AND(BX$6>=$F11,BX$6<=$H11)*(BX$6-$F11+1),$J11/2,$M11,TRUE)-_xlfn.NORM.DIST(AND(BX$6>=$F11,BX$6<=$H11)*(BW$6-$F11+1),$J11/2,$M11,TRUE))/(1-2*_xlfn.NORM.DIST(0,$J11/2,$M11,TRUE))*$D11+($K11="Steady Growth")*(AND(BX$6>=$F11,BX$6<=$H11)*((BX$6-$F11+1)/($J11*($J11+1)/2)*$D11))+($K11="custom")*CustCF!BR11 -> 0 | BY11: =($K11="Bell Curve")*(_xlfn.NORM.DIST(AND(BY$6>=$F11,BY$6<=$H11)*(BY$6-$F11+1),$J11/2,$M11,TRUE)-_xlfn.NORM.DIST(AND(BY$6>=$F11,BY$6<=$H11)*(BX$6-$F11+1),$J11/2,$M11,TRUE))/(1-2*_xlfn.NORM.DIST(0,$J11/2,$M11,TRUE))*$D11+($K11="Steady Growth")*(AND(BY$6>=$F11,BY$6<=$H11)*((BY$6-$F11+1)/($J11*($J11+1)/2)*$D11))+($K11="custom")*CustCF!BS11 -> 0 | BZ11: =($K11="Bell Curve")*(_xlfn.NORM.DIST(AND(BZ$6>=$F11,BZ$6<=$H11)*(BZ$6-$F11+1),$J11/2,$M11,TRUE)-_xlfn.NORM.DIST(AND(BZ$6>=$F11,BZ$6<=$H11)*(BY$6-$F11+1),$J11/2,$M11,TRUE))/(1-2*_xlfn.NORM.DIST(0,$J11/2,$M11,TRUE))*$D11+($K11="Steady Growth")*(AND(BZ$6>=$F11,BZ$6<=$H11)*((BZ$6-$F11+1)/($J11*($J11+1)/2)*$D11))+($K11="custom")*CustCF!BT11 -> 0 | CA11: =($K11="Bell Curve")*(_xlfn.NORM.DIST(AND(CA$6>=$F11,CA$6<=$H11)*(CA$6-$F11+1),$J11/2,$M11,TRUE)-_xlfn.NORM.DIST(AND(CA$6>=$F11,CA$6<=$H11)*(BZ$6-$F11+1),$J11/2,$M11,TRUE))/(1-2*_xlfn.NORM.DIST(0,$J11/2,$M11,TRUE))*$D11+($K11="Steady Growth")*(AND(CA$6>=$F11,CA$6<=$H11)*((CA$6-$F11+1)/($J11*($J11+1)/2)*$D11))+($K11="custom")*CustCF!BU11 -> 0 | CB11: =($K11="Bell Curve")*(_xlfn.NORM.DIST(AND(CB$6>=$F11,CB$6<=$H11)*(CB$6-$F11+1),$J11/2,$M11,TRUE)-_xlfn.NORM.DIST(AND(CB$6>=$F11,CB$6<=$H11)*(CA$6-$F11+1),$J11/2,$M11,TRUE))/(1-2*_xlfn.NORM.DIST(0,$J11/2,$M11,TRUE))*$D11+($K11="Steady Growth")*(AND(CB$6>=$F11,CB$6<=$H11)*((CB$6-$F11+1)/($J11*($J11+1)/2)*$D11))+($K11="custom")*CustCF!BV11 -> 0 | CC11: =($K11="Bell Curve")*(_xlfn.NORM.DIST(AND(CC$6>=$F11,CC$6<=$H11)*(CC$6-$F11+1),$J11/2,$M11,TRUE)-_xlfn.NORM.DIST(AND(CC$6>=$F11,CC$6<=$H11)*(CB$6-$F11+1),$J11/2,$M11,TRUE))/(1-2*_xlfn.NORM.DIST(0,$J11/2,$M11,TRUE))*$D11+($K11="Steady Growth")*(AND(CC$6>=$F11,CC$6<=$H11)*((CC$6-$F11+1)/($J11*($J11+1)/2)*$D11))+($K11="custom")*CustCF!BW11 -> 0 | CD11: =($K11="Bell Curve")*(_xlfn.NORM.DIST(AND(CD$6>=$F11,CD$6<=$H11)*(CD$6-$F11+1),$J11/2,$M11,TRUE)-_xlfn.NORM.DIST(AND(CD$6>=$F11,CD$6<=$H11)*(CC$6-$F11+1),$J11/2,$M11,TRUE))/(1-2*_xlfn.NORM.DIST(0,$J11/2,$M11,TRUE))*$D11+($K11="Steady Growth")*(AND(CD$6>=$F11,CD$6<=$H11)*((CD$6-$F11+1)/($J11*($J11+1)/2)*$D11))+($K11="custom")*CustCF!BX11 -> 0 | CE11: =($K11="Bell Curve")*(_xlfn.NORM.DIST(AND(CE$6>=$F11,CE$6<=$H11)*(CE$6-$F11+1),$J11/2,$M11,TRUE)-_xlfn.NORM.DIST(AND(CE$6>=$F11,CE$6<=$H11)*(CD$6-$F11+1),$J11/2,$M11,TRUE))/(1-2*_xlfn.NORM.DIST(0,$J11/2,$M11,TRUE))*$D11+($K11="Steady Growth")*(AND(CE$6>=$F11,CE$6<=$H11)*((CE$6-$F11+1)/($J11*($J11+1)/2)*$D11))+($K11="custom")*CustCF!BY11 -> 0 | CF11: =($K11="Bell Curve")*(_xlfn.NORM.DIST(AND(CF$6>=$F11,CF$6<=$H11)*(CF$6-$F11+1),$J11/2,$M11,TRUE)-_xlfn.NORM.DIST(AND(CF$6>=$F11,CF$6<=$H11)*(CE$6-$F11+1),$J11/2,$M11,TRUE))/(1-2*_xlfn.NORM.DIST(0,$J11/2,$M11,TRUE))*$D11+($K11="Steady Growth")*(AND(CF$6>=$F11,CF$6<=$H11)*((CF$6-$F11+1)/($J11*($J11+1)/2)*$D11))+($K11="custom")*CustCF!BZ11 -> 0 | CG11: =($K11="Bell Curve")*(_xlfn.NORM.DIST(AND(CG$6>=$F11,CG$6<=$H11)*(CG$6-$F11+1),$J11/2,$M11,TRUE)-_xlfn.NORM.DIST(AND(CG$6>=$F11,CG$6<=$H11)*(CF$6-$F11+1),$J11/2,$M11,TRUE))/(1-2*_xlfn.NORM.DIST(0,$J11/2,$M11,TRUE))*$D11+($K11="Steady Growth")*(AND(CG$6>=$F11,CG$6<=$H11)*((CG$6-$F11+1)/($J11*($J11+1)/2)*$D11))+($K11="custom")*CustCF!CA11 -> 0 | CH11: =($K11="Bell Curve")*(_xlfn.NORM.DIST(AND(CH$6>=$F11,CH$6<=$H11)*(CH$6-$F11+1),$J11/2,$M11,TRUE)-_xlfn.NORM.DIST(AND(CH$6>=$F11,CH$6<=$H11)*(CG$6-$F11+1),$J11/2,$M11,TRUE))/(1-2*_xlfn.NORM.DIST(0,$J11/2,$M11,TRUE))*$D11+($K11="Steady Growth")*(AND(CH$6>=$F11,CH$6<=$H11)*((CH$6-$F11+1)/($J11*($J11+1)/2)*$D11))+($K11="custom")*CustCF!CB11 -> 0 | CI11: =($K11="Bell Curve")*(_xlfn.NORM.DIST(AND(CI$6>=$F11,CI$6<=$H11)*(CI$6-$F11+1),$J11/2,$M11,TRUE)-_xlfn.NORM.DIST(AND(CI$6>=$F11,CI$6<=$H11)*(CH$6-$F11+1),$J11/2,$M11,TRUE))/(1-2*_xlfn.NORM.DIST(0,$J11/2,$M11,TRUE))*$D11+($K11="Steady Growth")*(AND(CI$6>=$F11,CI$6<=$H11)*((CI$6-$F11+1)/($J11*($J11+1)/2)*$D11))+($K11="custom")*CustCF!CC11 -> 0 | CJ11: =($K11="Bell Curve")*(_xlfn.NORM.DIST(AND(CJ$6>=$F11,CJ$6<=$H11)*(CJ$6-$F11+1),$J11/2,$M11,TRUE)-_xlfn.NORM.DIST(AND(CJ$6>=$F11,CJ$6<=$H11)*(CI$6-$F11+1),$J11/2,$M11,TRUE))/(1-2*_xlfn.NORM.DIST(0,$J11/2,$M11,TRUE))*$D11+($K11="Steady Growth")*(AND(CJ$6>=$F11,CJ$6<=$H11)*((CJ$6-$F11+1)/($J11*($J11+1)/2)*$D11))+($K11="custom")*CustCF!CD11 -> 0 | CK11: =($K11="Bell Curve")*(_xlfn.NORM.DIST(AND(CK$6>=$F11,CK$6<=$H11)*(CK$6-$F11+1),$J11/2,$M11,TRUE)-_xlfn.NORM.DIST(AND(CK$6>=$F11,CK$6<=$H11)*(CJ$6-$F11+1),$J11/2,$M11,TRUE))/(1-2*_xlfn.NORM.DIST(0,$J11/2,$M11,TRUE))*$D11+($K11="Steady Growth")*(AND(CK$6>=$F11,CK$6<=$H11)*((CK$6-$F11+1)/($J11*($J11+1)/2)*$D11))+($K11="custom")*CustCF!CE11 -> 0 | CL11: =($K11="Bell Curve")*(_xlfn.NORM.DIST(AND(CL$6>=$F11,CL$6<=$H11)*(CL$6-$F11+1),$J11/2,$M11,TRUE)-_xlfn.NORM.DIST(AND(CL$6>=$F11,CL$6<=$H11)*(CK$6-$F11+1),$J11/2,$M11,TRUE))/(1-2*_xlfn.NORM.DIST(0,$J11/2,$M11,TRUE))*$D11+($K11="Steady Growth")*(AND(CL$6>=$F11,CL$6<=$H11)*((CL$6-$F11+1)/($J11*($J11+1)/2)*$D11))+($K11="custom")*CustCF!CF11 -> 0 | CM11: =($K11="Bell Curve")*(_xlfn.NORM.DIST(AND(CM$6>=$F11,CM$6<=$H11)*(CM$6-$F11+1),$J11/2,$M11,TRUE)-_xlfn.NORM.DIST(AND(CM$6>=$F11,CM$6<=$H11)*(CL$6-$F11+1),$J11/2,$M11,TRUE))/(1-2*_xlfn.NORM.DIST(0,$J11/2,$M11,TRUE))*$D11+($K11="Steady Growth")*(AND(CM$6>=$F11,CM$6<=$H11)*((CM$6-$F11+1)/($J11*($J11+1)/2)*$D11))+($K11="custom")*CustCF!CG11 -> 0 | CN11: =($K11="Bell Curve")*(_xlfn.NORM.DIST(AND(CN$6>=$F11,CN$6<=$H11)*(CN$6-$F11+1),$J11/2,$M11,TRUE)-_xlfn.NORM.DIST(AND(CN$6>=$F11,CN$6<=$H11)*(CM$6-$F11+1),$J11/2,$M11,TRUE))/(1-2*_xlfn.NORM.DIST(0,$J11/2,$M11,TRUE))*$D11+($K11="Steady Growth")*(AND(CN$6>=$F11,CN$6<=$H11)*((CN$6-$F11+1)/($J11*($J11+1)/2)*$D11))+($K11="custom")*CustCF!CH11 -> 0 | CO11: =($K11="Bell Curve")*(_xlfn.NORM.DIST(AND(CO$6>=$F11,CO$6<=$H11)*(CO$6-$F11+1),$J11/2,$M11,TRUE)-_xlfn.NORM.DIST(AND(CO$6>=$F11,CO$6<=$H11)*(CN$6-$F11+1),$J11/2,$M11,TRUE))/(1-2*_xlfn.NORM.DIST(0,$J11/2,$M11,TRUE))*$D11+($K11="Steady Growth")*(AND(CO$6>=$F11,CO$6<=$H11)*((CO$6-$F11+1)/($J11*($J11+1)/2)*$D11))+($K11="custom")*CustCF!CI11 -> 0 | CP11: =($K11="Bell Curve")*(_xlfn.NORM.DIST(AND(CP$6>=$F11,CP$6<=$H11)*(CP$6-$F11+1),$J11/2,$M11,TRUE)-_xlfn.NORM.DIST(AND(CP$6>=$F11,CP$6<=$H11)*(CO$6-$F11+1),$J11/2,$M11,TRUE))/(1-2*_xlfn.NORM.DIST(0,$J11/2,$M11,TRUE))*$D11+($K11="Steady Growth")*(AND(CP$6>=$F11,CP$6<=$H11)*((CP$6-$F11+1)/($J11*($J11+1)/2)*$D11))+($K11="custom")*CustCF!CJ11 -> 0 | CQ11: =($K11="Bell Curve")*(_xlfn.NORM.DIST(AND(CQ$6>=$F11,CQ$6<=$H11)*(CQ$6-$F11+1),$J11/2,$M11,TRUE)-_xlfn.NORM.DIST(AND(CQ$6>=$F11,CQ$6<=$H11)*(CP$6-$F11+1),$J11/2,$M11,TRUE))/(1-2*_xlfn.NORM.DIST(0,$J11/2,$M11,TRUE))*$D11+($K11="Steady Growth")*(AND(CQ$6>=$F11,CQ$6<=$H11)*((CQ$6-$F11+1)/($J11*($J11+1)/2)*$D11))+($K11="custom")*CustCF!CK11 -> 0 | CR11: =($K11="Bell Curve")*(_xlfn.NORM.DIST(AND(CR$6>=$F11,CR$6<=$H11)*(CR$6-$F11+1),$J11/2,$M11,TRUE)-_xlfn.NORM.DIST(AND(CR$6>=$F11,CR$6<=$H11)*(CQ$6-$F11+1),$J11/2,$M11,TRUE))/(1-2*_xlfn.NORM.DIST(0,$J11/2,$M11,TRUE))*$D11+($K11="Steady Growth")*(AND(CR$6>=$F11,CR$6<=$H11)*((CR$6-$F11+1)/($J11*($J11+1)/2)*$D11))+($K11="custom")*CustCF!CL11 -> 0 | CS11: =($K11="Bell Curve")*(_xlfn.NORM.DIST(AND(CS$6>=$F11,CS$6<=$H11)*(CS$6-$F11+1),$J11/2,$M11,TRUE)-_xlfn.NORM.DIST(AND(CS$6>=$F11,CS$6<=$H11)*(CR$6-$F11+1),$J11/2,$M11,TRUE))/(1-2*_xlfn.NORM.DIST(0,$J11/2,$M11,TRUE))*$D11+($K11="Steady Growth")*(AND(CS$6>=$F11,CS$6<=$H11)*((CS$6-$F11+1)/($J11*($J11+1)/2)*$D11))+($K11="custom")*CustCF!CM11 -> 0 | CT11: =($K11="Bell Curve")*(_xlfn.NORM.DIST(AND(CT$6>=$F11,CT$6<=$H11)*(CT$6-$F11+1),$J11/2,$M11,TRUE)-_xlfn.NORM.DIST(AND(CT$6>=$F11,CT$6<=$H11)*(CS$6-$F11+1),$J11/2,$M11,TRUE))/(1-2*_xlfn.NORM.DIST(0,$J11/2,$M11,TRUE))*$D11+($K11="Steady Growth")*(AND(CT$6>=$F11,CT$6<=$H11)*((CT$6-$F11+1)/($J11*($J11+1)/2)*$D11))+($K11="custom")*CustCF!CN11 -> 0 | CU11: =($K11="Bell Curve")*(_xlfn.NORM.DIST(AND(CU$6>=$F11,CU$6<=$H11)*(CU$6-$F11+1),$J11/2,$M11,TRUE)-_xlfn.NORM.DIST(AND(CU$6>=$F11,CU$6<=$H11)*(CT$6-$F11+1),$J11/2,$M11,TRUE))/(1-2*_xlfn.NORM.DIST(0,$J11/2,$M11,TRUE))*$D11+($K11="Steady Growth")*(AND(CU$6>=$F11,CU$6<=$H11)*((CU$6-$F11+1)/($J11*($J11+1)/2)*$D11))+($K11="custom")*CustCF!CO11 -> 0 | CV11: =($K11="Bell Curve")*(_xlfn.NORM.DIST(AND(CV$6>=$F11,CV$6<=$H11)*(CV$6-$F11+1),$J11/2,$M11,TRUE)-_xlfn.NORM.DIST(AND(CV$6>=$F11,CV$6<=$H11)*(CU$6-$F11+1),$J11/2,$M11,TRUE))/(1-2*_xlfn.NORM.DIST(0,$J11/2,$M11,TRUE))*$D11+($K11="Steady Growth")*(AND(CV$6>=$F11,CV$6<=$H11)*((CV$6-$F11+1)/($J11*($J11+1)/2)*$D11))+($K11="custom")*CustCF!CP11 -> 0 | CW11: =($K11="Bell Curve")*(_xlfn.NORM.DIST(AND(CW$6>=$F11,CW$6<=$H11)*(CW$6-$F11+1),$J11/2,$M11,TRUE)-_xlfn.NORM.DIST(AND(CW$6>=$F11,CW$6<=$H11)*(CV$6-$F11+1),$J11/2,$M11,TRUE))/(1-2*_xlfn.NORM.DIST(0,$J11/2,$M11,TRUE))*$D11+($K11="Steady Growth")*(AND(CW$6>=$F11,CW$6<=$H11)*((CW$6-$F11+1)/($J11*($J11+1)/2)*$D11))+($K11="custom")*CustCF!CQ11 -> 0 | CX11: =($K11="Bell Curve")*(_xlfn.NORM.DIST(AND(CX$6>=$F11,CX$6<=$H11)*(CX$6-$F11+1),$J11/2,$M11,TRUE)-_xlfn.NORM.DIST(AND(CX$6>=$F11,CX$6<=$H11)*(CW$6-$F11+1),$J11/2,$M11,TRUE))/(1-2*_xlfn.NORM.DIST(0,$J11/2,$M11,TRUE))*$D11+($K11="Steady Growth")*(AND(CX$6>=$F11,CX$6<=$H11)*((CX$6-$F11+1)/($J11*($J11+1)/2)*$D11))+($K11="custom")*CustCF!CR11 -> 0 | CY11: =($K11="Bell Curve")*(_xlfn.NORM.DIST(AND(CY$6>=$F11,CY$6<=$H11)*(CY$6-$F11+1),$J11/2,$M11,TRUE)-_xlfn.NORM.DIST(AND(CY$6>=$F11,CY$6<=$H11)*(CX$6-$F11+1),$J11/2,$M11,TRUE))/(1-2*_xlfn.NORM.DIST(0,$J11/2,$M11,TRUE))*$D11+($K11="Steady Growth")*(AND(CY$6>=$F11,CY$6<=$H11)*((CY$6-$F11+1)/($J11*($J11+1)/2)*$D11))+($K11="custom")*CustCF!CS11 -> 0 | CZ11: =($K11="Bell Curve")*(_xlfn.NORM.DIST(AND(CZ$6>=$F11,CZ$6<=$H11)*(CZ$6-$F11+1),$J11/2,$M11,TRUE)-_xlfn.NORM.DIST(AND(CZ$6>=$F11,CZ$6<=$H11)*(CY$6-$F11+1),$J11/2,$M11,TRUE))/(1-2*_xlfn.NORM.DIST(0,$J11/2,$M11,TRUE))*$D11+($K11="Steady Growth")*(AND(CZ$6>=$F11,CZ$6<=$H11)*((CZ$6-$F11+1)/($J11*($J11+1)/2)*$D11))+($K11="custom")*CustCF!CT11 -> 0 | DA11: =($K11="Bell Curve")*(_xlfn.NORM.DIST(AND(DA$6>=$F11,DA$6<=$H11)*(DA$6-$F11+1),$J11/2,$M11,TRUE)-_xlfn.NORM.DIST(AND(DA$6>=$F11,DA$6<=$H11)*(CZ$6-$F11+1),$J11/2,$M11,TRUE))/(1-2*_xlfn.NORM.DIST(0,$J11/2,$M11,TRUE))*$D11+($K11="Steady Growth")*(AND(DA$6>=$F11,DA$6<=$H11)*((DA$6-$F11+1)/($J11*($J11+1)/2)*$D11))+($K11="custom")*CustCF!CU11 -> 0 | DB11: =($K11="Bell Curve")*(_xlfn.NORM.DIST(AND(DB$6>=$F11,DB$6<=$H11)*(DB$6-$F11+1),$J11/2,$M11,TRUE)-_xlfn.NORM.DIST(AND(DB$6>=$F11,DB$6<=$H11)*(DA$6-$F11+1),$J11/2,$M11,TRUE))/(1-2*_xlfn.NORM.DIST(0,$J11/2,$M11,TRUE))*$D11+($K11="Steady Growth")*(AND(DB$6>=$F11,DB$6<=$H11)*((DB$6-$F11+1)/($J11*($J11+1)/2)*$D11))+($K11="custom")*CustCF!CV11 -> 0 | DC11: =($K11="Bell Curve")*(_xlfn.NORM.DIST(AND(DC$6>=$F11,DC$6<=$H11)*(DC$6-$F11+1),$J11/2,$M11,TRUE)-_xlfn.NORM.DIST(AND(DC$6>=$F11,DC$6<=$H11)*(DB$6-$F11+1),$J11/2,$M11,TRUE))/(1-2*_xlfn.NORM.DIST(0,$J11/2,$M11,TRUE))*$D11+($K11="Steady Growth")*(AND(DC$6>=$F11,DC$6<=$H11)*((DC$6-$F11+1)/($J11*($J11+1)/2)*$D11))+($K11="custom")*CustCF!CW11 -> 0 | DD11: =($K11="Bell Curve")*(_xlfn.NORM.DIST(AND(DD$6>=$F11,DD$6<=$H11)*(DD$6-$F11+1),$J11/2,$M11,TRUE)-_xlfn.NORM.DIST(AND(DD$6>=$F11,DD$6<=$H11)*(DC$6-$F11+1),$J11/2,$M11,TRUE))/(1-2*_xlfn.NORM.DIST(0,$J11/2,$M11,TRUE))*$D11+($K11="Steady Growth")*(AND(DD$6>=$F11,DD$6<=$H11)*((DD$6-$F11+1)/($J11*($J11+1)/2)*$D11))+($K11="custom")*CustCF!CX11 -> 0 | DE11: =($K11="Bell Curve")*(_xlfn.NORM.DIST(AND(DE$6>=$F11,DE$6<=$H11)*(DE$6-$F11+1),$J11/2,$M11,TRUE)-_xlfn.NORM.DIST(AND(DE$6>=$F11,DE$6<=$H11)*(DD$6-$F11+1),$J11/2,$M11,TRUE))/(1-2*_xlfn.NORM.DIST(0,$J11/2,$M11,TRUE))*$D11+($K11="Steady Growth")*(AND(DE$6>=$F11,DE$6<=$H11)*((DE$6-$F11+1)/($J11*($J11+1)/2)*$D11))+($K11="custom")*CustCF!CY11 -> 0 | DF11: =($K11="Bell Curve")*(_xlfn.NORM.DIST(AND(DF$6>=$F11,DF$6<=$H11)*(DF$6-$F11+1),$J11/2,$M11,TRUE)-_xlfn.NORM.DIST(AND(DF$6>=$F11,DF$6<=$H11)*(DE$6-$F11+1),$J11/2,$M11,TRUE))/(1-2*_xlfn.NORM.DIST(0,$J11/2,$M11,TRUE))*$D11+($K11="Steady Growth")*(AND(DF$6>=$F11,DF$6<=$H11)*((DF$6-$F11+1)/($J11*($J11+1)/2)*$D11))+($K11="custom")*CustCF!CZ11 -> 0 | DG11: =($K11="Bell Curve")*(_xlfn.NORM.DIST(AND(DG$6>=$F11,DG$6<=$H11)*(DG$6-$F11+1),$J11/2,$M11,TRUE)-_xlfn.NORM.DIST(AND(DG$6>=$F11,DG$6<=$H11)*(DF$6-$F11+1),$J11/2,$M11,TRUE))/(1-2*_xlfn.NORM.DIST(0,$J11/2,$M11,TRUE))*$D11+($K11="Steady Growth")*(AND(DG$6>=$F11,DG$6<=$H11)*((DG$6-$F11+1)/($J11*($J11+1)/2)*$D11))+($K11="custom")*CustCF!DA11 -> 0 | DH11: =($K11="Bell Curve")*(_xlfn.NORM.DIST(AND(DH$6>=$F11,DH$6<=$H11)*(DH$6-$F11+1),$J11/2,$M11,TRUE)-_xlfn.NORM.DIST(AND(DH$6>=$F11,DH$6<=$H11)*(DG$6-$F11+1),$J11/2,$M11,TRUE))/(1-2*_xlfn.NORM.DIST(0,$J11/2,$M11,TRUE))*$D11+($K11="Steady Growth")*(AND(DH$6>=$F11,DH$6<=$H11)*((DH$6-$F11+1)/($J11*($J11+1)/2)*$D11))+($K11="custom")*CustCF!DB11 -> 0 | DI11: =($K11="Bell Curve")*(_xlfn.NORM.DIST(AND(DI$6>=$F11,DI$6<=$H11)*(DI$6-$F11+1),$J11/2,$M11,TRUE)-_xlfn.NORM.DIST(AND(DI$6>=$F11,DI$6<=$H11)*(DH$6-$F11+1),$J11/2,$M11,TRUE))/(1-2*_xlfn.NORM.DIST(0,$J11/2,$M11,TRUE))*$D11+($K11="Steady Growth")*(AND(DI$6>=$F11,DI$6<=$H11)*((DI$6-$F11+1)/($J11*($J11+1)/2)*$D11))+($K11="custom")*CustCF!DC11 -> 0 | DJ11: =($K11="Bell Curve")*(_xlfn.NORM.DIST(AND(DJ$6>=$F11,DJ$6<=$H11)*(DJ$6-$F11+1),$J11/2,$M11,TRUE)-_xlfn.NORM.DIST(AND(DJ$6>=$F11,DJ$6<=$H11)*(DI$6-$F11+1),$J11/2,$M11,TRUE))/(1-2*_xlfn.NORM.DIST(0,$J11/2,$M11,TRUE))*$D11+($K11="Steady Growth")*(AND(DJ$6>=$F11,DJ$6<=$H11)*((DJ$6-$F11+1)/($J11*($J11+1)/2)*$D11))+($K11="custom")*CustCF!DD11 -> 0 | DK11: =($K11="Bell Curve")*(_xlfn.NORM.DIST(AND(DK$6>=$F11,DK$6<=$H11)*(DK$6-$F11+1),$J11/2,$M11,TRUE)-_xlfn.NORM.DIST(AND(DK$6>=$F11,DK$6<=$H11)*(DJ$6-$F11+1),$J11/2,$M11,TRUE))/(1-2*_xlfn.NORM.DIST(0,$J11/2,$M11,TRUE))*$D11+($K11="Steady Growth")*(AND(DK$6>=$F11,DK$6<=$H11)*((DK$6-$F11+1)/($J11*($J11+1)/2)*$D11))+($K11="custom")*CustCF!DE11 -> 0 | DL11: =($K11="Bell Curve")*(_xlfn.NORM.DIST(AND(DL$6>=$F11,DL$6<=$H11)*(DL$6-$F11+1),$J11/2,$M11,TRUE)-_xlfn.NORM.DIST(AND(DL$6>=$F11,DL$6<=$H11)*(DK$6-$F11+1),$J11/2,$M11,TRUE))/(1-2*_xlfn.NORM.DIST(0,$J11/2,$M11,TRUE))*$D11+($K11="Steady Growth")*(AND(DL$6>=$F11,DL$6<=$H11)*((DL$6-$F11+1)/($J11*($J11+1)/2)*$D11))+($K11="custom")*CustCF!DF11 -> 0 | DM11: =($K11="Bell Curve")*(_xlfn.NORM.DIST(AND(DM$6>=$F11,DM$6<=$H11)*(DM$6-$F11+1),$J11/2,$M11,TRUE)-_xlfn.NORM.DIST(AND(DM$6>=$F11,DM$6<=$H11)*(DL$6-$F11+1),$J11/2,$M11,TRUE))/(1-2*_xlfn.NORM.DIST(0,$J11/2,$M11,TRUE))*$D11+($K11="Steady Growth")*(AND(DM$6>=$F11,DM$6<=$H11)*((DM$6-$F11+1)/($J11*($J11+1)/2)*$D11))+($K11="custom")*CustCF!DG11 -> 0 | DN11: =($K11="Bell Curve")*(_xlfn.NORM.DIST(AND(DN$6>=$F11,DN$6<=$H11)*(DN$6-$F11+1),$J11/2,$M11,TRUE)-_xlfn.NORM.DIST(AND(DN$6>=$F11,DN$6<=$H11)*(DM$6-$F11+1),$J11/2,$M11,TRUE))/(1-2*_xlfn.NORM.DIST(0,$J11/2,$M11,TRUE))*$D11+($K11="Steady Growth")*(AND(DN$6>=$F11,DN$6<=$H11)*((DN$6-$F11+1)/($J11*($J11+1)/2)*$D11))+($K11="custom")*CustCF!DH11 -> 0 | DO11: =($K11="Bell Curve")*(_xlfn.NORM.DIST(AND(DO$6>=$F11,DO$6<=$H11)*(DO$6-$F11+1),$J11/2,$M11,TRUE)-_xlfn.NORM.DIST(AND(DO$6>=$F11,DO$6<=$H11)*(DN$6-$F11+1),$J11/2,$M11,TRUE))/(1-2*_xlfn.NORM.DIST(0,$J11/2,$M11,TRUE))*$D11+($K11="Steady Growth")*(AND(DO$6>=$F11,DO$6<=$H11)*((DO$6-$F11+1)/($J11*($J11+1)/2)*$D11))+($K11="custom")*CustCF!DI11 -> 0 | DP11: =($K11="Bell Curve")*(_xlfn.NORM.DIST(AND(DP$6>=$F11,DP$6<=$H11)*(DP$6-$F11+1),$J11/2,$M11,TRUE)-_xlfn.NORM.DIST(AND(DP$6>=$F11,DP$6<=$H11)*(DO$6-$F11+1),$J11/2,$M11,TRUE))/(1-2*_xlfn.NORM.DIST(0,$J11/2,$M11,TRUE))*$D11+($K11="Steady Growth")*(AND(DP$6>=$F11,DP$6<=$H11)*((DP$6-$F11+1)/($J11*($J11+1)/2)*$D11))+($K11="custom")*CustCF!DJ11 -> 0 | DQ11: =($K11="Bell Curve")*(_xlfn.NORM.DIST(AND(DQ$6>=$F11,DQ$6<=$H11)*(DQ$6-$F11+1),$J11/2,$M11,TRUE)-_xlfn.NORM.DIST(AND(DQ$6>=$F11,DQ$6<=$H11)*(DP$6-$F11+1),$J11/2,$M11,TRUE))/(1-2*_xlfn.NORM.DIST(0,$J11/2,$M11,TRUE))*$D11+($K11="Steady Growth")*(AND(DQ$6>=$F11,DQ$6<=$H11)*((DQ$6-$F11+1)/($J11*($J11+1)/2)*$D11))+($K11="custom")*CustCF!DK11 -> 0 | DR11: =($K11="Bell Curve")*(_xlfn.NORM.DIST(AND(DR$6>=$F11,DR$6<=$H11)*(DR$6-$F11+1),$J11/2,$M11,TRUE)-_xlfn.NORM.DIST(AND(DR$6>=$F11,DR$6<=$H11)*(DQ$6-$F11+1),$J11/2,$M11,TRUE))/(1-2*_xlfn.NORM.DIST(0,$J11/2,$M11,TRUE))*$D11+($K11="Steady Growth")*(AND(DR$6>=$F11,DR$6<=$H11)*((DR$6-$F11+1)/($J11*($J11+1)/2)*$D11))+($K11="custom")*CustCF!DL11 -> 0 | DS11: =($K11="Bell Curve")*(_xlfn.NORM.DIST(AND(DS$6>=$F11,DS$6<=$H11)*(DS$6-$F11+1),$J11/2,$M11,TRUE)-_xlfn.NORM.DIST(AND(DS$6>=$F11,DS$6<=$H11)*(DR$6-$F11+1),$J11/2,$M11,TRUE))/(1-2*_xlfn.NORM.DIST(0,$J11/2,$M11,TRUE))*$D11+($K11="Steady Growth")*(AND(DS$6>=$F11,DS$6<=$H11)*((DS$6-$F11+1)/($J11*($J11+1)/2)*$D11))+($K11="custom")*CustCF!DM11 -> 0 | DT11: =($K11="Bell Curve")*(_xlfn.NORM.DIST(AND(DT$6>=$F11,DT$6<=$H11)*(DT$6-$F11+1),$J11/2,$M11,TRUE)-_xlfn.NORM.DIST(AND(DT$6>=$F11,DT$6<=$H11)*(DS$6-$F11+1),$J11/2,$M11,TRUE))/(1-2*_xlfn.NORM.DIST(0,$J11/2,$M11,TRUE))*$D11+($K11="Steady Growth")*(AND(DT$6>=$F11,DT$6<=$H11)*((DT$6-$F11+1)/($J11*($J11+1)/2)*$D11))+($K11="custom")*CustCF!DN11 -> 0 | DU11: =($K11="Bell Curve")*(_xlfn.NORM.DIST(AND(DU$6>=$F11,DU$6<=$H11)*(DU$6-$F11+1),$J11/2,$M11,TRUE)-_xlfn.NORM.DIST(AND(DU$6>=$F11,DU$6<=$H11)*(DT$6-$F11+1),$J11/2,$M11,TRUE))/(1-2*_xlfn.NORM.DIST(0,$J11/2,$M11,TRUE))*$D11+($K11="Steady Growth")*(AND(DU$6>=$F11,DU$6<=$H11)*((DU$6-$F11+1)/($J11*($J11+1)/2)*$D11))+($K11="custom")*CustCF!DO11 -> 0 | DV11: =($K11="Bell Curve")*(_xlfn.NORM.DIST(AND(DV$6>=$F11,DV$6<=$H11)*(DV$6-$F11+1),$J11/2,$M11,TRUE)-_xlfn.NORM.DIST(AND(DV$6>=$F11,DV$6<=$H11)*(DU$6-$F11+1),$J11/2,$M11,TRUE))/(1-2*_xlfn.NORM.DIST(0,$J11/2,$M11,TRUE))*$D11+($K11="Steady Growth")*(AND(DV$6>=$F11,DV$6<=$H11)*((DV$6-$F11+1)/($J11*($J11+1)/2)*$D11))+($K11="custom")*CustCF!DP11 -> 0 | DW11: =($K11="Bell Curve")*(_xlfn.NORM.DIST(AND(DW$6>=$F11,DW$6<=$H11)*(DW$6-$F11+1),$J11/2,$M11,TRUE)-_xlfn.NORM.DIST(AND(DW$6>=$F11,DW$6<=$H11)*(DV$6-$F11+1),$J11/2,$M11,TRUE))/(1-2*_xlfn.NORM.DIST(0,$J11/2,$M11,TRUE))*$D11+($K11="Steady Growth")*(AND(DW$6>=$F11,DW$6<=$H11)*((DW$6-$F11+1)/($J11*($J11+1)/2)*$D11))+($K11="custom")*CustCF!DQ11 -> 0 | DX11: =($K11="Bell Curve")*(_xlfn.NORM.DIST(AND(DX$6>=$F11,DX$6<=$H11)*(DX$6-$F11+1),$J11/2,$M11,TRUE)-_xlfn.NORM.DIST(AND(DX$6>=$F11,DX$6<=$H11)*(DW$6-$F11+1),$J11/2,$M11,TRUE))/(1-2*_xlfn.NORM.DIST(0,$J11/2,$M11,TRUE))*$D11+($K11="Steady Growth")*(AND(DX$6>=$F11,DX$6<=$H11)*((DX$6-$F11+1)/($J11*($J11+1)/2)*$D11))+($K11="custom")*CustCF!DR11 -> 0 | DY11: =($K11="Bell Curve")*(_xlfn.NORM.DIST(AND(DY$6>=$F11,DY$6<=$H11)*(DY$6-$F11+1),$J11/2,$M11,TRUE)-_xlfn.NORM.DIST(AND(DY$6>=$F11,DY$6<=$H11)*(DX$6-$F11+1),$J11/2,$M11,TRUE))/(1-2*_xlfn.NORM.DIST(0,$J11/2,$M11,TRUE))*$D11+($K11="Steady Growth")*(AND(DY$6>=$F11,DY$6<=$H11)*((DY$6-$F11+1)/($J11*($J11+1)/2)*$D11))+($K11="custom")*CustCF!DS11 -> 0 | DZ11: =($K11="Bell Curve")*(_xlfn.NORM.DIST(AND(DZ$6>=$F11,DZ$6<=$H11)*(DZ$6-$F11+1),$J11/2,$M11,TRUE)-_xlfn.NORM.DIST(AND(DZ$6>=$F11,DZ$6<=$H11)*(DY$6-$F11+1),$J11/2,$M11,TRUE))/(1-2*_xlfn.NORM.DIST(0,$J11/2,$M11,TRUE))*$D11+($K11="Steady Growth")*(AND(DZ$6>=$F11,DZ$6<=$H11)*((DZ$6-$F11+1)/($J11*($J11+1)/2)*$D11))+($K11="custom")*CustCF!DT11 -> 0 | EA11: =($K11="Bell Curve")*(_xlfn.NORM.DIST(AND(EA$6>=$F11,EA$6<=$H11)*(EA$6-$F11+1),$J11/2,$M11,TRUE)-_xlfn.NORM.DIST(AND(EA$6>=$F11,EA$6<=$H11)*(DZ$6-$F11+1),$J11/2,$M11,TRUE))/(1-2*_xlfn.NORM.DIST(0,$J11/2,$M11,TRUE))*$D11+($K11="Steady Growth")*(AND(EA$6>=$F11,EA$6<=$H11)*((EA$6-$F11+1)/($J11*($J11+1)/2)*$D11))+($K11="custom")*CustCF!DU11 -> 0 | EB11: =($K11="Bell Curve")*(_xlfn.NORM.DIST(AND(EB$6>=$F11,EB$6<=$H11)*(EB$6-$F11+1),$J11/2,$M11,TRUE)-_xlfn.NORM.DIST(AND(EB$6>=$F11,EB$6<=$H11)*(EA$6-$F11+1),$J11/2,$M11,TRUE))/(1-2*_xlfn.NORM.DIST(0,$J11/2,$M11,TRUE))*$D11+($K11="Steady Growth")*(AND(EB$6>=$F11,EB$6<=$H11)*((EB$6-$F11+1)/($J11*($J11+1)/2)*$D11))+($K11="custom")*CustCF!DV11 -> 0 | EC11: =($K11="Bell Curve")*(_xlfn.NORM.DIST(AND(EC$6>=$F11,EC$6<=$H11)*(EC$6-$F11+1),$J11/2,$M11,TRUE)-_xlfn.NORM.DIST(AND(EC$6>=$F11,EC$6<=$H11)*(EB$6-$F11+1),$J11/2,$M11,TRUE))/(1-2*_xlfn.NORM.DIST(0,$J11/2,$M11,TRUE))*$D11+($K11="Steady Growth")*(AND(EC$6>=$F11,EC$6<=$H11)*((EC$6-$F11+1)/($J11*($J11+1)/2)*$D11))+($K11="custom")*CustCF!DW11 -> 0 | ED11: =($K11="Bell Curve")*(_xlfn.NORM.DIST(AND(ED$6>=$F11,ED$6<=$H11)*(ED$6-$F11+1),$J11/2,$M11,TRUE)-_xlfn.NORM.DIST(AND(ED$6>=$F11,ED$6<=$H11)*(EC$6-$F11+1),$J11/2,$M11,TRUE))/(1-2*_xlfn.NORM.DIST(0,$J11/2,$M11,TRUE))*$D11+($K11="Steady Growth")*(AND(ED$6>=$F11,ED$6<=$H11)*((ED$6-$F11+1)/($J11*($J11+1)/2)*$D11))+($K11="custom")*CustCF!DX11 -> 0 | EE11: =($K11="Bell Curve")*(_xlfn.NORM.DIST(AND(EE$6>=$F11,EE$6<=$H11)*(EE$6-$F11+1),$J11/2,$M11,TRUE)-_xlfn.NORM.DIST(AND(EE$6>=$F11,EE$6<=$H11)*(ED$6-$F11+1),$J11/2,$M11,TRUE))/(1-2*_xlfn.NORM.DIST(0,$J11/2,$M11,TRUE))*$D11+($K11="Steady Growth")*(AND(EE$6>=$F11,EE$6<=$H11)*((EE$6-$F11+1)/($J11*($J11+1)/2)*$D11))+($K11="custom")*CustCF!DY11 -> 0 | EF11: =($K11="Bell Curve")*(_xlfn.NORM.DIST(AND(EF$6>=$F11,EF$6<=$H11)*(EF$6-$F11+1),$J11/2,$M11,TRUE)-_xlfn.NORM.DIST(AND(EF$6>=$F11,EF$6<=$H11)*(EE$6-$F11+1),$J11/2,$M11,TRUE))/(1-2*_xlfn.NORM.DIST(0,$J11/2,$M11,TRUE))*$D11+($K11="Steady Growth")*(AND(EF$6>=$F11,EF$6<=$H11)*((EF$6-$F11+1)/($J11*($J11+1)/2)*$D11))+($K11="custom")*CustCF!DZ11 -> 0 | EG11: =($K11="Bell Curve")*(_xlfn.NORM.DIST(AND(EG$6>=$F11,EG$6<=$H11)*(EG$6-$F11+1),$J11/2,$M11,TRUE)-_xlfn.NORM.DIST(AND(EG$6>=$F11,EG$6<=$H11)*(EF$6-$F11+1),$J11/2,$M11,TRUE))/(1-2*_xlfn.NORM.DIST(0,$J11/2,$M11,TRUE))*$D11+($K11="Steady Growth")*(AND(EG$6>=$F11,EG$6<=$H11)*((EG$6-$F11+1)/($J11*($J11+1)/2)*$D11))+($K11="custom")*CustCF!EA11 -> 0 | EH11: =($K11="Bell Curve")*(_xlfn.NORM.DIST(AND(EH$6>=$F11,EH$6<=$H11)*(EH$6-$F11+1),$J11/2,$M11,TRUE)-_xlfn.NORM.DIST(AND(EH$6>=$F11,EH$6<=$H11)*(EG$6-$F11+1),$J11/2,$M11,TRUE))/(1-2*_xlfn.NORM.DIST(0,$J11/2,$M11,TRUE))*$D11+($K11="Steady Growth")*(AND(EH$6>=$F11,EH$6<=$H11)*((EH$6-$F11+1)/($J11*($J11+1)/2)*$D11))+($K11="custom")*CustCF!EB11 -> 0 | EI11: =($K11="Bell Curve")*(_xlfn.NORM.DIST(AND(EI$6>=$F11,EI$6<=$H11)*(EI$6-$F11+1),$J11/2,$M11,TRUE)-_xlfn.NORM.DIST(AND(EI$6>=$F11,EI$6<=$H11)*(EH$6-$F11+1),$J11/2,$M11,TRUE))/(1-2*_xlfn.NORM.DIST(0,$J11/2,$M11,TRUE))*$D11+($K11="Steady Growth")*(AND(EI$6>=$F11,EI$6<=$H11)*((EI$6-$F11+1)/($J11*($J11+1)/2)*$D11))+($K11="custom")*CustCF!EC11 -> 0 | EJ11: =($K11="Bell Curve")*(_xlfn.NORM.DIST(AND(EJ$6>=$F11,EJ$6<=$H11)*(EJ$6-$F11+1),$J11/2,$M11,TRUE)-_xlfn.NORM.DIST(AND(EJ$6>=$F11,EJ$6<=$H11)*(EI$6-$F11+1),$J11/2,$M11,TRUE))/(1-2*_xlfn.NORM.DIST(0,$J11/2,$M11,TRUE))*$D11+($K11="Steady Growth")*(AND(EJ$6>=$F11,EJ$6<=$H11)*((EJ$6-$F11+1)/($J11*($J11+1)/2)*$D11))+($K11="custom")*CustCF!ED11 -> 0 | EK11: =($K11="Bell Curve")*(_xlfn.NORM.DIST(AND(EK$6>=$F11,EK$6<=$H11)*(EK$6-$F11+1),$J11/2,$M11,TRUE)-_xlfn.NORM.DIST(AND(EK$6>=$F11,EK$6<=$H11)*(EJ$6-$F11+1),$J11/2,$M11,TRUE))/(1-2*_xlfn.NORM.DIST(0,$J11/2,$M11,TRUE))*$D11+($K11="Steady Growth")*(AND(EK$6>=$F11,EK$6<=$H11)*((EK$6-$F11+1)/($J11*($J11+1)/2)*$D11))+($K11="custom")*CustCF!EE11 -> 0 | EL11: =($K11="Bell Curve")*(_xlfn.NORM.DIST(AND(EL$6>=$F11,EL$6<=$H11)*(EL$6-$F11+1),$J11/2,$M11,TRUE)-_xlfn.NORM.DIST(AND(EL$6>=$F11,EL$6<=$H11)*(EK$6-$F11+1),$J11/2,$M11,TRUE))/(1-2*_xlfn.NORM.DIST(0,$J11/2,$M11,TRUE))*$D11+($K11="Steady Growth")*(AND(EL$6>=$F11,EL$6<=$H11)*((EL$6-$F11+1)/($J11*($J11+1)/2)*$D11))+($K11="custom")*CustCF!EF11 -> 0 | EM11: =($K11="Bell Curve")*(_xlfn.NORM.DIST(AND(EM$6>=$F11,EM$6<=$H11)*(EM$6-$F11+1),$J11/2,$M11,TRUE)-_xlfn.NORM.DIST(AND(EM$6>=$F11,EM$6<=$H11)*(EL$6-$F11+1),$J11/2,$M11,TRUE))/(1-2*_xlfn.NORM.DIST(0,$J11/2,$M11,TRUE))*$D11+($K11="Steady Growth")*(AND(EM$6>=$F11,EM$6<=$H11)*((EM$6-$F11+1)/($J11*($J11+1)/2)*$D11))+($K11="custom")*CustCF!EG11 -> 0 | EN11: =($K11="Bell Curve")*(_xlfn.NORM.DIST(AND(EN$6>=$F11,EN$6<=$H11)*(EN$6-$F11+1),$J11/2,$M11,TRUE)-_xlfn.NORM.DIST(AND(EN$6>=$F11,EN$6<=$H11)*(EM$6-$F11+1),$J11/2,$M11,TRUE))/(1-2*_xlfn.NORM.DIST(0,$J11/2,$M11,TRUE))*$D11+($K11="Steady Growth")*(AND(EN$6>=$F11,EN$6<=$H11)*((EN$6-$F11+1)/($J11*($J11+1)/2)*$D11))+($K11="custom")*CustCF!EH11 -> 0 | EO11: =($K11="Bell Curve")*(_xlfn.NORM.DIST(AND(EO$6>=$F11,EO$6<=$H11)*(EO$6-$F11+1),$J11/2,$M11,TRUE)-_xlfn.NORM.DIST(AND(EO$6>=$F11,EO$6<=$H11)*(EN$6-$F11+1),$J11/2,$M11,TRUE))/(1-2*_xlfn.NORM.DIST(0,$J11/2,$M11,TRUE))*$D11+($K11="Steady Growth")*(AND(EO$6>=$F11,EO$6<=$H11)*((EO$6-$F11+1)/($J11*($J11+1)/2)*$D11))+($K11="custom")*CustCF!EI11 -> 0 | EP11: =($K11="Bell Curve")*(_xlfn.NORM.DIST(AND(EP$6>=$F11,EP$6<=$H11)*(EP$6-$F11+1),$J11/2,$M11,TRUE)-_xlfn.NORM.DIST(AND(EP$6>=$F11,EP$6<=$H11)*(EO$6-$F11+1),$J11/2,$M11,TRUE))/(1-2*_xlfn.NORM.DIST(0,$J11/2,$M11,TRUE))*$D11+($K11="Steady Growth")*(AND(EP$6>=$F11,EP$6<=$H11)*((EP$6-$F11+1)/($J11*($J11+1)/2)*$D11))+($K11="custom")*CustCF!EJ11 -> 0 | EQ11: =($K11="Bell Curve")*(_xlfn.NORM.DIST(AND(EQ$6>=$F11,EQ$6<=$H11)*(EQ$6-$F11+1),$J11/2,$M11,TRUE)-_xlfn.NORM.DIST(AND(EQ$6>=$F11,EQ$6<=$H11)*(EP$6-$F11+1),$J11/2,$M11,TRUE))/(1-2*_xlfn.NORM.DIST(0,$J11/2,$M11,TRUE))*$D11+($K11="Steady Growth")*(AND(EQ$6>=$F11,EQ$6<=$H11)*((EQ$6-$F11+1)/($J11*($J11+1)/2)*$D11))+($K11="custom")*CustCF!EK11 -> 0 | ER11: =($K11="Bell Curve")*(_xlfn.NORM.DIST(AND(ER$6>=$F11,ER$6<=$H11)*(ER$6-$F11+1),$J11/2,$M11,TRUE)-_xlfn.NORM.DIST(AND(ER$6>=$F11,ER$6<=$H11)*(EQ$6-$F11+1),$J11/2,$M11,TRUE))/(1-2*_xlfn.NORM.DIST(0,$J11/2,$M11,TRUE))*$D11+($K11="Steady Growth")*(AND(ER$6>=$F11,ER$6<=$H11)*((ER$6-$F11+1)/($J11*($J11+1)/2)*$D11))+($K11="custom")*CustCF!EL11 -> 0 | ES11: =($K11="Bell Curve")*(_xlfn.NORM.DIST(AND(ES$6>=$F11,ES$6<=$H11)*(ES$6-$F11+1),$J11/2,$M11,TRUE)-_xlfn.NORM.DIST(AND(ES$6>=$F11,ES$6<=$H11)*(ER$6-$F11+1),$J11/2,$M11,TRUE))/(1-2*_xlfn.NORM.DIST(0,$J11/2,$M11,TRUE))*$D11+($K11="Steady Growth")*(AND(ES$6>=$F11,ES$6<=$H11)*((ES$6-$F11+1)/($J11*($J11+1)/2)*$D11))+($K11="custom")*CustCF!EM11 -> 0 | ET11: =($K11="Bell Curve")*(_xlfn.NORM.DIST(AND(ET$6>=$F11,ET$6<=$H11)*(ET$6-$F11+1),$J11/2,$M11,TRUE)-_xlfn.NORM.DIST(AND(ET$6>=$F11,ET$6<=$H11)*(ES$6-$F11+1),$J11/2,$M11,TRUE))/(1-2*_xlfn.NORM.DIST(0,$J11/2,$M11,TRUE))*$D11+($K11="Steady Growth")*(AND(ET$6>=$F11,ET$6<=$H11)*((ET$6-$F11+1)/($J11*($J11+1)/2)*$D11))+($K11="custom")*CustCF!EN11 -> 0 | EU11: =($K11="Bell Curve")*(_xlfn.NORM.DIST(AND(EU$6>=$F11,EU$6<=$H11)*(EU$6-$F11+1),$J11/2,$M11,TRUE)-_xlfn.NORM.DIST(AND(EU$6>=$F11,EU$6<=$H11)*(ET$6-$F11+1),$J11/2,$M11,TRUE))/(1-2*_xlfn.NORM.DIST(0,$J11/2,$M11,TRUE))*$D11+($K11="Steady Growth")*(AND(EU$6>=$F11,EU$6<=$H11)*((EU$6-$F11+1)/($J11*($J11+1)/2)*$D11))+($K11="custom")*CustCF!EO11 -> 0 | EV11: =($K11="Bell Curve")*(_xlfn.NORM.DIST(AND(EV$6>=$F11,EV$6<=$H11)*(EV$6-$F11+1),$J11/2,$M11,TRUE)-_xlfn.NORM.DIST(AND(EV$6>=$F11,EV$6<=$H11)*(EU$6-$F11+1),$J11/2,$M11,TRUE))/(1-2*_xlfn.NORM.DIST(0,$J11/2,$M11,TRUE))*$D11+($K11="Steady Growth")*(AND(EV$6>=$F11,EV$6<=$H11)*((EV$6-$F11+1)/($J11*($J11+1)/2)*$D11))+($K11="custom")*CustCF!EP11 -> 0 | EW11: =($K11="Bell Curve")*(_xlfn.NORM.DIST(AND(EW$6>=$F11,EW$6<=$H11)*(EW$6-$F11+1),$J11/2,$M11,TRUE)-_xlfn.NORM.DIST(AND(EW$6>=$F11,EW$6<=$H11)*(EV$6-$F11+1),$J11/2,$M11,TRUE))/(1-2*_xlfn.NORM.DIST(0,$J11/2,$M11,TRUE))*$D11+($K11="Steady Growth")*(AND(EW$6>=$F11,EW$6<=$H11)*((EW$6-$F11+1)/($J11*($J11+1)/2)*$D11))+($K11="custom")*CustCF!EQ11 -> 0 | EX11: =($K11="Bell Curve")*(_xlfn.NORM.DIST(AND(EX$6>=$F11,EX$6<=$H11)*(EX$6-$F11+1),$J11/2,$M11,TRUE)-_xlfn.NORM.DIST(AND(EX$6>=$F11,EX$6<=$H11)*(EW$6-$F11+1),$J11/2,$M11,TRUE))/(1-2*_xlfn.NORM.DIST(0,$J11/2,$M11,TRUE))*$D11+($K11="Steady Growth")*(AND(EX$6>=$F11,EX$6<=$H11)*((EX$6-$F11+1)/($J11*($J11+1)/2)*$D11))+($K11="custom")*CustCF!ER11 -> 0 | EY11: =($K11="Bell Curve")*(_xlfn.NORM.DIST(AND(EY$6>=$F11,EY$6<=$H11)*(EY$6-$F11+1),$J11/2,$M11,TRUE)-_xlfn.NORM.DIST(AND(EY$6>=$F11,EY$6<=$H11)*(EX$6-$F11+1),$J11/2,$M11,TRUE))/(1-2*_xlfn.NORM.DIST(0,$J11/2,$M11,TRUE))*$D11+($K11="Steady Growth")*(AND(EY$6>=$F11,EY$6<=$H11)*((EY$6-$F11+1)/($J11*($J11+1)/2)*$D11))+($K11="custom")*CustCF!ES11 -> 0 | EZ11: =($K11="Bell Curve")*(_xlfn.NORM.DIST(AND(EZ$6>=$F11,EZ$6<=$H11)*(EZ$6-$F11+1),$J11/2,$M11,TRUE)-_xlfn.NORM.DIST(AND(EZ$6>=$F11,EZ$6<=$H11)*(EY$6-$F11+1),$J11/2,$M11,TRUE))/(1-2*_xlfn.NORM.DIST(0,$J11/2,$M11,TRUE))*$D11+($K11="Steady Growth")*(AND(EZ$6>=$F11,EZ$6<=$H11)*((EZ$6-$F11+1)/($J11*($J11+1)/2)*$D11))+($K11="custom")*CustCF!ET11 -> 0 | FA11: =($K11="Bell Curve")*(_xlfn.NORM.DIST(AND(FA$6>=$F11,FA$6<=$H11)*(FA$6-$F11+1),$J11/2,$M11,TRUE)-_xlfn.NORM.DIST(AND(FA$6>=$F11,FA$6<=$H11)*(EZ$6-$F11+1),$J11/2,$M11,TRUE))/(1-2*_xlfn.NORM.DIST(0,$J11/2,$M11,TRUE))*$D11+($K11="Steady Growth")*(AND(FA$6>=$F11,FA$6<=$H11)*((FA$6-$F11+1)/($J11*($J11+1)/2)*$D11))+($K11="custom")*CustCF!EU11 -> 0 | FB11: =($K11="Bell Curve")*(_xlfn.NORM.DIST(AND(FB$6>=$F11,FB$6<=$H11)*(FB$6-$F11+1),$J11/2,$M11,TRUE)-_xlfn.NORM.DIST(AND(FB$6>=$F11,FB$6<=$H11)*(FA$6-$F11+1),$J11/2,$M11,TRUE))/(1-2*_xlfn.NORM.DIST(0,$J11/2,$M11,TRUE))*$D11+($K11="Steady Growth")*(AND(FB$6>=$F11,FB$6<=$H11)*((FB$6-$F11+1)/($J11*($J11+1)/2)*$D11))+($K11="custom")*CustCF!EV11 -> 0 | FC11: =($K11="Bell Curve")*(_xlfn.NORM.DIST(AND(FC$6>=$F11,FC$6<=$H11)*(FC$6-$F11+1),$J11/2,$M11,TRUE)-_xlfn.NORM.DIST(AND(FC$6>=$F11,FC$6<=$H11)*(FB$6-$F11+1),$J11/2,$M11,TRUE))/(1-2*_xlfn.NORM.DIST(0,$J11/2,$M11,TRUE))*$D11+($K11="Steady Growth")*(AND(FC$6>=$F11,FC$6<=$H11)*((FC$6-$F11+1)/($J11*($J11+1)/2)*$D11))+($K11="custom")*CustCF!EW11 -> 0 | FD11: =($K11="Bell Curve")*(_xlfn.NORM.DIST(AND(FD$6>=$F11,FD$6<=$H11)*(FD$6-$F11+1),$J11/2,$M11,TRUE)-_xlfn.NORM.DIST(AND(FD$6>=$F11,FD$6<=$H11)*(FC$6-$F11+1),$J11/2,$M11,TRUE))/(1-2*_xlfn.NORM.DIST(0,$J11/2,$M11,TRUE))*$D11+($K11="Steady Growth")*(AND(FD$6>=$F11,FD$6<=$H11)*((FD$6-$F11+1)/($J11*($J11+1)/2)*$D11))+($K11="custom")*CustCF!EX11 -> 0 | FE11: =($K11="Bell Curve")*(_xlfn.NORM.DIST(AND(FE$6>=$F11,FE$6<=$H11)*(FE$6-$F11+1),$J11/2,$M11,TRUE)-_xlfn.NORM.DIST(AND(FE$6>=$F11,FE$6<=$H11)*(FD$6-$F11+1),$J11/2,$M11,TRUE))/(1-2*_xlfn.NORM.DIST(0,$J11/2,$M11,TRUE))*$D11+($K11="Steady Growth")*(AND(FE$6>=$F11,FE$6<=$H11)*((FE$6-$F11+1)/($J11*($J11+1)/2)*$D11))+($K11="custom")*CustCF!EY11 -> 0 | FF11: =($K11="Bell Curve")*(_xlfn.NORM.DIST(AND(FF$6>=$F11,FF$6<=$H11)*(FF$6-$F11+1),$J11/2,$M11,TRUE)-_xlfn.NORM.DIST(AND(FF$6>=$F11,FF$6<=$H11)*(FE$6-$F11+1),$J11/2,$M11,TRUE))/(1-2*_xlfn.NORM.DIST(0,$J11/2,$M11,TRUE))*$D11+($K11="Steady Growth")*(AND(FF$6>=$F11,FF$6<=$H11)*((FF$6-$F11+1)/($J11*($J11+1)/2)*$D11))+($K11="custom")*CustCF!EZ11 -> 0 | FG11: =($K11="Bell Curve")*(_xlfn.NORM.DIST(AND(FG$6>=$F11,FG$6<=$H11)*(FG$6-$F11+1),$J11/2,$M11,TRUE)-_xlfn.NORM.DIST(AND(FG$6>=$F11,FG$6<=$H11)*(FF$6-$F11+1),$J11/2,$M11,TRUE))/(1-2*_xlfn.NORM.DIST(0,$J11/2,$M11,TRUE))*$D11+($K11="Steady Growth")*(AND(FG$6>=$F11,FG$6<=$H11)*((FG$6-$F11+1)/($J11*($J11+1)/2)*$D11))+($K11="custom")*CustCF!FA11 -> 0 | FH11: =($K11="Bell Curve")*(_xlfn.NORM.DIST(AND(FH$6>=$F11,FH$6<=$H11)*(FH$6-$F11+1),$J11/2,$M11,TRUE)-_xlfn.NORM.DIST(AND(FH$6>=$F11,FH$6<=$H11)*(FG$6-$F11+1),$J11/2,$M11,TRUE))/(1-2*_xlfn.NORM.DIST(0,$J11/2,$M11,TRUE))*$D11+($K11="Steady Growth")*(AND(FH$6>=$F11,FH$6<=$H11)*((FH$6-$F11+1)/($J11*($J11+1)/2)*$D11))+($K11="custom")*CustCF!FB11 -> 0 | FI11: =($K11="Bell Curve")*(_xlfn.NORM.DIST(AND(FI$6>=$F11,FI$6<=$H11)*(FI$6-$F11+1),$J11/2,$M11,TRUE)-_xlfn.NORM.DIST(AND(FI$6>=$F11,FI$6<=$H11)*(FH$6-$F11+1),$J11/2,$M11,TRUE))/(1-2*_xlfn.NORM.DIST(0,$J11/2,$M11,TRUE))*$D11+($K11="Steady Growth")*(AND(FI$6>=$F11,FI$6<=$H11)*((FI$6-$F11+1)/($J11*($J11+1)/2)*$D11))+($K11="custom")*CustCF!FC11 -> 0 | FJ11: =($K11="Bell Curve")*(_xlfn.NORM.DIST(AND(FJ$6>=$F11,FJ$6<=$H11)*(FJ$6-$F11+1),$J11/2,$M11,TRUE)-_xlfn.NORM.DIST(AND(FJ$6>=$F11,FJ$6<=$H11)*(FI$6-$F11+1),$J11/2,$M11,TRUE))/(1-2*_xlfn.NORM.DIST(0,$J11/2,$M11,TRUE))*$D11+($K11="Steady Growth")*(AND(FJ$6>=$F11,FJ$6<=$H11)*((FJ$6-$F11+1)/($J11*($J11+1)/2)*$D11))+($K11="custom")*CustCF!FD11 -> 0 | FK11: =($K11="Bell Curve")*(_xlfn.NORM.DIST(AND(FK$6>=$F11,FK$6<=$H11)*(FK$6-$F11+1),$J11/2,$M11,TRUE)-_xlfn.NORM.DIST(AND(FK$6>=$F11,FK$6<=$H11)*(FJ$6-$F11+1),$J11/2,$M11,TRUE))/(1-2*_xlfn.NORM.DIST(0,$J11/2,$M11,TRUE))*$D11+($K11="Steady Growth")*(AND(FK$6>=$F11,FK$6<=$H11)*((FK$6-$F11+1)/($J11*($J11+1)/2)*$D11))+($K11="custom")*CustCF!FE11 -> 0 | FL11: =($K11="Bell Curve")*(_xlfn.NORM.DIST(AND(FL$6>=$F11,FL$6<=$H11)*(FL$6-$F11+1),$J11/2,$M11,TRUE)-_xlfn.NORM.DIST(AND(FL$6>=$F11,FL$6<=$H11)*(FK$6-$F11+1),$J11/2,$M11,TRUE))/(1-2*_xlfn.NORM.DIST(0,$J11/2,$M11,TRUE))*$D11+($K11="Steady Growth")*(AND(FL$6>=$F11,FL$6<=$H11)*((FL$6-$F11+1)/($J11*($J11+1)/2)*$D11))+($K11="custom")*CustCF!FF11 -> 0 | FM11: =($K11="Bell Curve")*(_xlfn.NORM.DIST(AND(FM$6>=$F11,FM$6<=$H11)*(FM$6-$F11+1),$J11/2,$M11,TRUE)-_xlfn.NORM.DIST(AND(FM$6>=$F11,FM$6<=$H11)*(FL$6-$F11+1),$J11/2,$M11,TRUE))/(1-2*_xlfn.NORM.DIST(0,$J11/2,$M11,TRUE))*$D11+($K11="Steady Growth")*(AND(FM$6>=$F11,FM$6<=$H11)*((FM$6-$F11+1)/($J11*($J11+1)/2)*$D11))+($K11="custom")*CustCF!FG11 -> 0 | FN11: =($K11="Bell Curve")*(_xlfn.NORM.DIST(AND(FN$6>=$F11,FN$6<=$H11)*(FN$6-$F11+1),$J11/2,$M11,TRUE)-_xlfn.NORM.DIST(AND(FN$6>=$F11,FN$6<=$H11)*(FM$6-$F11+1),$J11/2,$M11,TRUE))/(1-2*_xlfn.NORM.DIST(0,$J11/2,$M11,TRUE))*$D11+($K11="Steady Growth")*(AND(FN$6>=$F11,FN$6<=$H11)*((FN$6-$F11+1)/($J11*($J11+1)/2)*$D11))+($K11="custom")*CustCF!FH11 -> 0 | FO11: =($K11="Bell Curve")*(_xlfn.NORM.DIST(AND(FO$6>=$F11,FO$6<=$H11)*(FO$6-$F11+1),$J11/2,$M11,TRUE)-_xlfn.NORM.DIST(AND(FO$6>=$F11,FO$6<=$H11)*(FN$6-$F11+1),$J11/2,$M11,TRUE))/(1-2*_xlfn.NORM.DIST(0,$J11/2,$M11,TRUE))*$D11+($K11="Steady Growth")*(AND(FO$6>=$F11,FO$6<=$H11)*((FO$6-$F11+1)/($J11*($J11+1)/2)*$D11))+($K11="custom")*CustCF!FI11 -> 0 | FP11: =($K11="Bell Curve")*(_xlfn.NORM.DIST(AND(FP$6>=$F11,FP$6<=$H11)*(FP$6-$F11+1),$J11/2,$M11,TRUE)-_xlfn.NORM.DIST(AND(FP$6>=$F11,FP$6<=$H11)*(FO$6-$F11+1),$J11/2,$M11,TRUE))/(1-2*_xlfn.NORM.DIST(0,$J11/2,$M11,TRUE))*$D11+($K11="Steady Growth")*(AND(FP$6>=$F11,FP$6<=$H11)*((FP$6-$F11+1)/($J11*($J11+1)/2)*$D11))+($K11="custom")*CustCF!FJ11 -> 0 | FQ11: =($K11="Bell Curve")*(_xlfn.NORM.DIST(AND(FQ$6>=$F11,FQ$6<=$H11)*(FQ$6-$F11+1),$J11/2,$M11,TRUE)-_xlfn.NORM.DIST(AND(FQ$6>=$F11,FQ$6<=$H11)*(FP$6-$F11+1),$J11/2,$M11,TRUE))/(1-2*_xlfn.NORM.DIST(0,$J11/2,$M11,TRUE))*$D11+($K11="Steady Growth")*(AND(FQ$6>=$F11,FQ$6<=$H11)*((FQ$6-$F11+1)/($J11*($J11+1)/2)*$D11))+($K11="custom")*CustCF!FK11 -> 0 | FR11: =($K11="Bell Curve")*(_xlfn.NORM.DIST(AND(FR$6>=$F11,FR$6<=$H11)*(FR$6-$F11+1),$J11/2,$M11,TRUE)-_xlfn.NORM.DIST(AND(FR$6>=$F11,FR$6<=$H11)*(FQ$6-$F11+1),$J11/2,$M11,TRUE))/(1-2*_xlfn.NORM.DIST(0,$J11/2,$M11,TRUE))*$D11+($K11="Steady Growth")*(AND(FR$6>=$F11,FR$6<=$H11)*((FR$6-$F11+1)/($J11*($J11+1)/2)*$D11))+($K11="custom")*CustCF!FL11 -> 0 | FS11: =($K11="Bell Curve")*(_xlfn.NORM.DIST(AND(FS$6>=$F11,FS$6<=$H11)*(FS$6-$F11+1),$J11/2,$M11,TRUE)-_xlfn.NORM.DIST(AND(FS$6>=$F11,FS$6<=$H11)*(FR$6-$F11+1),$J11/2,$M11,TRUE))/(1-2*_xlfn.NORM.DIST(0,$J11/2,$M11,TRUE))*$D11+($K11="Steady Growth")*(AND(FS$6>=$F11,FS$6<=$H11)*((FS$6-$F11+1)/($J11*($J11+1)/2)*$D11))+($K11="custom")*CustCF!FM11 -> 0 | FT11: =($K11="Bell Curve")*(_xlfn.NORM.DIST(AND(FT$6>=$F11,FT$6<=$H11)*(FT$6-$F11+1),$J11/2,$M11,TRUE)-_xlfn.NORM.DIST(AND(FT$6>=$F11,FT$6<=$H11)*(FS$6-$F11+1),$J11/2,$M11,TRUE))/(1-2*_xlfn.NORM.DIST(0,$J11/2,$M11,TRUE))*$D11+($K11="Steady Growth")*(AND(FT$6>=$F11,FT$6<=$H11)*((FT$6-$F11+1)/($J11*($J11+1)/2)*$D11))+($K11="custom")*CustCF!FN11 -> 0 | FU11: =($K11="Bell Curve")*(_xlfn.NORM.DIST(AND(FU$6>=$F11,FU$6<=$H11)*(FU$6-$F11+1),$J11/2,$M11,TRUE)-_xlfn.NORM.DIST(AND(FU$6>=$F11,FU$6<=$H11)*(FT$6-$F11+1),$J11/2,$M11,TRUE))/(1-2*_xlfn.NORM.DIST(0,$J11/2,$M11,TRUE))*$D11+($K11="Steady Growth")*(AND(FU$6>=$F11,FU$6<=$H11)*((FU$6-$F11+1)/($J11*($J11+1)/2)*$D11))+($K11="custom")*CustCF!FO11 -> 0 | FV11: =($K11="Bell Curve")*(_xlfn.NORM.DIST(AND(FV$6>=$F11,FV$6<=$H11)*(FV$6-$F11+1),$J11/2,$M11,TRUE)-_xlfn.NORM.DIST(AND(FV$6>=$F11,FV$6<=$H11)*(FU$6-$F11+1),$J11/2,$M11,TRUE))/(1-2*_xlfn.NORM.DIST(0,$J11/2,$M11,TRUE))*$D11+($K11="Steady Growth")*(AND(FV$6>=$F11,FV$6<=$H11)*((FV$6-$F11+1)/($J11*($J11+1)/2)*$D11))+($K11="custom")*CustCF!FP11 -> 0 | FW11: =($K11="Bell Curve")*(_xlfn.NORM.DIST(AND(FW$6>=$F11,FW$6<=$H11)*(FW$6-$F11+1),$J11/2,$M11,TRUE)-_xlfn.NORM.DIST(AND(FW$6>=$F11,FW$6<=$H11)*(FV$6-$F11+1),$J11/2,$M11,TRUE))/(1-2*_xlfn.NORM.DIST(0,$J11/2,$M11,TRUE))*$D11+($K11="Steady Growth")*(AND(FW$6>=$F11,FW$6<=$H11)*((FW$6-$F11+1)/($J11*($J11+1)/2)*$D11))+($K11="custom")*CustCF!FQ11 -> 0 | FX11: =($K11="Bell Curve")*(_xlfn.NORM.DIST(AND(FX$6>=$F11,FX$6<=$H11)*(FX$6-$F11+1),$J11/2,$M11,TRUE)-_xlfn.NORM.DIST(AND(FX$6>=$F11,FX$6<=$H11)*(FW$6-$F11+1),$J11/2,$M11,TRUE))/(1-2*_xlfn.NORM.DIST(0,$J11/2,$M11,TRUE))*$D11+($K11="Steady Growth")*(AND(FX$6>=$F11,FX$6<=$H11)*((FX$6-$F11+1)/($J11*($J11+1)/2)*$D11))+($K11="custom")*CustCF!FR11 -> 0 | FY11: =($K11="Bell Curve")*(_xlfn.NORM.DIST(AND(FY$6>=$F11,FY$6<=$H11)*(FY$6-$F11+1),$J11/2,$M11,TRUE)-_xlfn.NORM.DIST(AND(FY$6>=$F11,FY$6<=$H11)*(FX$6-$F11+1),$J11/2,$M11,TRUE))/(1-2*_xlfn.NORM.DIST(0,$J11/2,$M11,TRUE))*$D11+($K11="Steady Growth")*(AND(FY$6>=$F11,FY$6<=$H11)*((FY$6-$F11+1)/($J11*($J11+1)/2)*$D11))+($K11="custom")*CustCF!FS11 -> 0 | FZ11: =($K11="Bell Curve")*(_xlfn.NORM.DIST(AND(FZ$6>=$F11,FZ$6<=$H11)*(FZ$6-$F11+1),$J11/2,$M11,TRUE)-_xlfn.NORM.DIST(AND(FZ$6>=$F11,FZ$6<=$H11)*(FY$6-$F11+1),$J11/2,$M11,TRUE))/(1-2*_xlfn.NORM.DIST(0,$J11/2,$M11,TRUE))*$D11+($K11="Steady Growth")*(AND(FZ$6>=$F11,FZ$6<=$H11)*((FZ$6-$F11+1)/($J11*($J11+1)/2)*$D11))+($K11="custom")*CustCF!FT11 -> 0 | GA11: =($K11="Bell Curve")*(_xlfn.NORM.DIST(AND(GA$6>=$F11,GA$6<=$H11)*(GA$6-$F11+1),$J11/2,$M11,TRUE)-_xlfn.NORM.DIST(AND(GA$6>=$F11,GA$6<=$H11)*(FZ$6-$F11+1),$J11/2,$M11,TRUE))/(1-2*_xlfn.NORM.DIST(0,$J11/2,$M11,TRUE))*$D11+($K11="Steady Growth")*(AND(GA$6>=$F11,GA$6<=$H11)*((GA$6-$F11+1)/($J11*($J11+1)/2)*$D11))+($K11="custom")*CustCF!FU11 -> 0 | GB11: =($K11="Bell Curve")*(_xlfn.NORM.DIST(AND(GB$6>=$F11,GB$6<=$H11)*(GB$6-$F11+1),$J11/2,$M11,TRUE)-_xlfn.NORM.DIST(AND(GB$6>=$F11,GB$6<=$H11)*(GA$6-$F11+1),$J11/2,$M11,TRUE))/(1-2*_xlfn.NORM.DIST(0,$J11/2,$M11,TRUE))*$D11+($K11="Steady Growth")*(AND(GB$6>=$F11,GB$6<=$H11)*((GB$6-$F11+1)/($J11*($J11+1)/2)*$D11))+($K11="custom")*CustCF!FV11 -> 0 | GC11: =($K11="Bell Curve")*(_xlfn.NORM.DIST(AND(GC$6>=$F11,GC$6<=$H11)*(GC$6-$F11+1),$J11/2,$M11,TRUE)-_xlfn.NORM.DIST(AND(GC$6>=$F11,GC$6<=$H11)*(GB$6-$F11+1),$J11/2,$M11,TRUE))/(1-2*_xlfn.NORM.DIST(0,$J11/2,$M11,TRUE))*$D11+($K11="Steady Growth")*(AND(GC$6>=$F11,GC$6<=$H11)*((GC$6-$F11+1)/($J11*($J11+1)/2)*$D11))+($K11="custom")*CustCF!FW11 -> 0 | GD11: =($K11="Bell Curve")*(_xlfn.NORM.DIST(AND(GD$6>=$F11,GD$6<=$H11)*(GD$6-$F11+1),$J11/2,$M11,TRUE)-_xlfn.NORM.DIST(AND(GD$6>=$F11,GD$6<=$H11)*(GC$6-$F11+1),$J11/2,$M11,TRUE))/(1-2*_xlfn.NORM.DIST(0,$J11/2,$M11,TRUE))*$D11+($K11="Steady Growth")*(AND(GD$6>=$F11,GD$6<=$H11)*((GD$6-$F11+1)/($J11*($J11+1)/2)*$D11))+($K11="custom")*CustCF!FX11 -> 0 | GE11: =($K11="Bell Curve")*(_xlfn.NORM.DIST(AND(GE$6>=$F11,GE$6<=$H11)*(GE$6-$F11+1),$J11/2,$M11,TRUE)-_xlfn.NORM.DIST(AND(GE$6>=$F11,GE$6<=$H11)*(GD$6-$F11+1),$J11/2,$M11,TRUE))/(1-2*_xlfn.NORM.DIST(0,$J11/2,$M11,TRUE))*$D11+($K11="Steady Growth")*(AND(GE$6>=$F11,GE$6<=$H11)*((GE$6-$F11+1)/($J11*($J11+1)/2)*$D11))+($K11="custom")*CustCF!FY11 -> 0 | GF11: =($K11="Bell Curve")*(_xlfn.NORM.DIST(AND(GF$6>=$F11,GF$6<=$H11)*(GF$6-$F11+1),$J11/2,$M11,TRUE)-_xlfn.NORM.DIST(AND(GF$6>=$F11,GF$6<=$H11)*(GE$6-$F11+1),$J11/2,$M11,TRUE))/(1-2*_xlfn.NORM.DIST(0,$J11/2,$M11,TRUE))*$D11+($K11="Steady Growth")*(AND(GF$6>=$F11,GF$6<=$H11)*((GF$6-$F11+1)/($J11*($J11+1)/2)*$D11))+($K11="custom")*CustCF!FZ11 -> 0 | GG11: =($K11="Bell Curve")*(_xlfn.NORM.DIST(AND(GG$6>=$F11,GG$6<=$H11)*(GG$6-$F11+1),$J11/2,$M11,TRUE)-_xlfn.NORM.DIST(AND(GG$6>=$F11,GG$6<=$H11)*(GF$6-$F11+1),$J11/2,$M11,TRUE))/(1-2*_xlfn.NORM.DIST(0,$J11/2,$M11,TRUE))*$D11+($K11="Steady Growth")*(AND(GG$6>=$F11,GG$6<=$H11)*((GG$6-$F11+1)/($J11*($J11+1)/2)*$D11))+($K11="custom")*CustCF!GA11 -> 0 | GH11: =($K11="Bell Curve")*(_xlfn.NORM.DIST(AND(GH$6>=$F11,GH$6<=$H11)*(GH$6-$F11+1),$J11/2,$M11,TRUE)-_xlfn.NORM.DIST(AND(GH$6>=$F11,GH$6<=$H11)*(GG$6-$F11+1),$J11/2,$M11,TRUE))/(1-2*_xlfn.NORM.DIST(0,$J11/2,$M11,TRUE))*$D11+($K11="Steady Growth")*(AND(GH$6>=$F11,GH$6<=$H11)*((GH$6-$F11+1)/($J11*($J11+1)/2)*$D11))+($K11="custom")*CustCF!GB11 -> 0 | GI11: =($K11="Bell Curve")*(_xlfn.NORM.DIST(AND(GI$6>=$F11,GI$6<=$H11)*(GI$6-$F11+1),$J11/2,$M11,TRUE)-_xlfn.NORM.DIST(AND(GI$6>=$F11,GI$6<=$H11)*(GH$6-$F11+1),$J11/2,$M11,TRUE))/(1-2*_xlfn.NORM.DIST(0,$J11/2,$M11,TRUE))*$D11+($K11="Steady Growth")*(AND(GI$6>=$F11,GI$6<=$H11)*((GI$6-$F11+1)/($J11*($J11+1)/2)*$D11))+($K11="custom")*CustCF!GC11 -> 0 | GJ11: =($K11="Bell Curve")*(_xlfn.NORM.DIST(AND(GJ$6>=$F11,GJ$6<=$H11)*(GJ$6-$F11+1),$J11/2,$M11,TRUE)-_xlfn.NORM.DIST(AND(GJ$6>=$F11,GJ$6<=$H11)*(GI$6-$F11+1),$J11/2,$M11,TRUE))/(1-2*_xlfn.NORM.DIST(0,$J11/2,$M11,TRUE))*$D11+($K11="Steady Growth")*(AND(GJ$6>=$F11,GJ$6<=$H11)*((GJ$6-$F11+1)/($J11*($J11+1)/2)*$D11))+($K11="custom")*CustCF!GD11 -> 0 | GK11: =($K11="Bell Curve")*(_xlfn.NORM.DIST(AND(GK$6>=$F11,GK$6<=$H11)*(GK$6-$F11+1),$J11/2,$M11,TRUE)-_xlfn.NORM.DIST(AND(GK$6>=$F11,GK$6<=$H11)*(GJ$6-$F11+1),$J11/2,$M11,TRUE))/(1-2*_xlfn.NORM.DIST(0,$J11/2,$M11,TRUE))*$D11+($K11="Steady Growth")*(AND(GK$6>=$F11,GK$6<=$H11)*((GK$6-$F11+1)/($J11*($J11+1)/2)*$D11))+($K11="custom")*CustCF!GE11 -> 0 | GL11: =($K11="Bell Curve")*(_xlfn.NORM.DIST(AND(GL$6>=$F11,GL$6<=$H11)*(GL$6-$F11+1),$J11/2,$M11,TRUE)-_xlfn.NORM.DIST(AND(GL$6>=$F11,GL$6<=$H11)*(GK$6-$F11+1),$J11/2,$M11,TRUE))/(1-2*_xlfn.NORM.DIST(0,$J11/2,$M11,TRUE))*$D11+($K11="Steady Growth")*(AND(GL$6>=$F11,GL$6<=$H11)*((GL$6-$F11+1)/($J11*($J11+1)/2)*$D11))+($K11="custom")*CustCF!GF11 -> 0 | GM11: =($K11="Bell Curve")*(_xlfn.NORM.DIST(AND(GM$6>=$F11,GM$6<=$H11)*(GM$6-$F11+1),$J11/2,$M11,TRUE)-_xlfn.NORM.DIST(AND(GM$6>=$F11,GM$6<=$H11)*(GL$6-$F11+1),$J11/2,$M11,TRUE))/(1-2*_xlfn.NORM.DIST(0,$J11/2,$M11,TRUE))*$D11+($K11="Steady Growth")*(AND(GM$6>=$F11,GM$6<=$H11)*((GM$6-$F11+1)/($J11*($J11+1)/2)*$D11))+($K11="custom")*CustCF!GG11 -> 0 | GN11: =($K11="Bell Curve")*(_xlfn.NORM.DIST(AND(GN$6>=$F11,GN$6<=$H11)*(GN$6-$F11+1),$J11/2,$M11,TRUE)-_xlfn.NORM.DIST(AND(GN$6>=$F11,GN$6<=$H11)*(GM$6-$F11+1),$J11/2,$M11,TRUE))/(1-2*_xlfn.NORM.DIST(0,$J11/2,$M11,TRUE))*$D11+($K11="Steady Growth")*(AND(GN$6>=$F11,GN$6<=$H11)*((GN$6-$F11+1)/($J11*($J11+1)/2)*$D11))+($K11="custom")*CustCF!GH11 -> 0
